Workbook

Sheet Data
A1: Notation & Variables: | M1: GLM Bootstrap (Framework): | Y1: ODP Bootstrap (Simplified GLM):
A3: Cumulative Data | M3: Cumulative Data | Y3: Fitted Cumulative Data
B4: 1 | C4: 2 | D4: 3 | E4: 4 | F4: 5 | G4: 6 | N4: 1 | O4: 2 | P4: 3 | Q4: 4 | R4: 5 | S4: 6 | Z4: 1 | AA4: 2 | AB4: 3 | AC4: 4 | AD4: 5 | AE4: 6
A5: 1 | B5: ="c("&$A5&","&B$4&")" -> c(1,1) | C5: c(1,2) | D5: c(1,3) | E5: c(1,4) | F5: c(1,5) | G5: c(1,6) | M5: 1 | N5: 95 | O5: 150 | P5: 170 | Q5: 200 | R5: 215 | S5: 220 | Y5: 1 | Z5: =AA5/O$11 -> 109.1664813 | AA5: =AB5/P$11 -> 155.9521162 | AB5: =AC5/Q$11 -> 178.23099 | AC5: =AD5/R$11 -> 204.8823529 | AD5: =AE5/S$11 -> 215 | AE5: =S5 -> 220
A6: 2 | B6: ="c("&$A6&","&B$4&")" -> c(2,1) | C6: c(2,2) | D6: c(2,3) | E6: c(2,4) | F6: c(2,5) | M6: 2 | N6: 110 | O6: 160 | P6: 175 | Q6: 205 | R6: 210 | Y6: 2 | Z6: =AA6/O$11 -> 106.627726 | AA6: =AB6/P$11 -> 152.3253228 | AB6: =AC6/Q$11 -> 174.0860832 | AC6: =AD6/R$11 -> 200.1176471 | AD6: =R6 -> 210
A7: 3 | B7: c(3,1) | C7: c(3,2) | D7: c(3,3) | E7: c(3,4) | M7: 3 | N7: 105 | O7: 165 | P7: 190 | Q7: 210 | Y7: 3 | Z7: =AA7/O$11 -> 111.8932927 | AA7: =AB7/P$11 -> 159.847561 | AB7: =AC7/Q$11 -> 182.6829268 | AC7: =Q7 -> 210
A8: 4 | B8: c(4,1) | C8: c(4,2) | D8: c(4,3) | M8: 4 | N8: 120 | O8: 155 | P8: 185 | Y8: 4 | Z8: =AA8/O$11 -> 113.3125 | AA8: =AB8/P$11 -> 161.875 | AB8: =P8 -> 185
A9: 5 | B9: c(5,1) | C9: c(5,2) | M9: 5 | N9: 130 | O9: 170 | Y9: 5 | Z9: =AA9/O$11 -> 119 | AA9: =O9 -> 170
A10: 6 | B10: c(6,1) | M10: 6 | N10: 125 | Y10: 6 | Z10: =N10 -> 125
N11: Factors: | O11: =SUM(O5:O9)/SUM(N5:N9) -> 1.428571429 | P11: =SUM(P5:P8)/SUM(O5:O8) -> 1.142857143 | Q11: =SUM(Q5:Q7)/SUM(P5:P7) -> 1.14953271 | R11: =SUM(R5:R6)/SUM(Q5:Q6) -> 1.049382716 | S11: =S5/R5 -> 1.023255814
A12: Incremental Data | M12: Incremental Data | Y12: Fitted Incremental Data
B13: 1 | C13: 2 | D13: 3 | E13: 4 | F13: 5 | G13: 6 | N13: 1 | O13: 2 | P13: 3 | Q13: 4 | R13: 5 | S13: 6 | Z13: 1 | AA13: 2 | AB13: 3 | AC13: 4 | AD13: 5 | AE13: 6
A14: 1 | B14: ="q("&$A14&","&B$4&")" -> q(1,1) | C14: ="q("&$A14&","&C$4&")" -> q(1,2) | D14: q(1,3) | E14: q(1,4) | F14: q(1,5) | G14: ="q("&$A14&","&G$4&")" -> q(1,6) | M14: 1 | N14: =N5 -> 95 | O14: =O5-N5 -> 55 | P14: =P5-O5 -> 20 | Q14: =Q5-P5 -> 30 | R14: =R5-Q5 -> 15 | S14: =S5-R5 -> 5 | Y14: 1 | Z14: =Z5 -> 109.1664813 | AA14: =AA5-Z5 -> 46.78563486 | AB14: =AB5-AA5 -> 22.27887374 | AC14: =AC5-AB5 -> 26.65136298 | AD14: =AD5-AC5 -> 10.11764706 | AE14: =AE5-AD5 -> 5
A15: 2 | B15: q(2,1) | C15: q(2,2) | D15: q(2,3) | E15: q(2,4) | F15: q(2,5) | M15: 2 | N15: 110 | O15: =O6-N6 -> 50 | P15: =P6-O6 -> 15 | Q15: =Q6-P6 -> 30 | R15: =R6-Q6 -> 5 | Y15: 2 | Z15: 106.627726 | AA15: =AA6-Z6 -> 45.69759684 | AB15: =AB6-AA6 -> 21.7607604 | AC15: =AC6-AB6 -> 26.03156385 | AD15: =AD6-AC6 -> 9.882352941
A16: 3 | B16: q(3,1) | C16: q(3,2) | D16: q(3,3) | E16: q(3,4) | M16: 3 | N16: 105 | O16: =O7-N7 -> 60 | P16: =P7-O7 -> 25 | Q16: =Q7-P7 -> 20 | Y16: 3 | Z16: 111.8932927 | AA16: =AA7-Z7 -> 47.95426829 | AB16: =AB7-AA7 -> 22.83536585 | AC16: =AC7-AB7 -> 27.31707317
A17: 4 | B17: q(4,1) | C17: q(4,2) | D17: q(4,3) | M17: 4 | N17: 120 | O17: =O8-N8 -> 35 | P17: =P8-O8 -> 30 | Y17: 4 | Z17: 113.3125 | AA17: =AA8-Z8 -> 48.5625 | AB17: =AB8-AA8 -> 23.125
A18: 5 | B18: q(5,1) | C18: q(5,2) | M18: 5 | N18: 130 | O18: =O9-N9 -> 40 | Y18: 5 | Z18: 119 | AA18: =AA9-Z9 -> 51
A19: 6 | B19: q(6,1) | M19: 6 | N19: 125 | Y19: 6 | Z19: 125
A21: Log-Link of Incremental Data | M21: Log-Link of Incremental Data
B22: 1 | C22: 2 | D22: 3 | E22: 4 | F22: 5 | G22: 6 | N22: 1 | O22: 2 | P22: 3 | Q22: 4 | R22: 5 | S22: 6
A23: 1 | B23: ="ln[q("&$A23&","&B$4&")]" -> ln[q(1,1)] | C23: ="ln[q("&$A23&","&C$4&")]" -> ln[q(1,2)] | D23: ln[q(1,3)] | E23: ="ln[q("&$A23&","&E$4&")]" -> ln[q(1,4)] | F23: ="ln[q("&$A23&","&F$4&")]" -> ln[q(1,5)] | G23: ="ln[q("&$A23&","&G$4&")]" -> ln[q(1,6)] | M23: 1 | N23: =LN(N14) -> 4.553876892 | O23: =LN(O14) -> 4.007333185 | P23: 2.995732274 | Q23: =LN(Q14) -> 3.401197382 | R23: =LN(R14) -> 2.708050201 | S23: =LN(S14) -> 1.609437912
A24: 2 | B24: ln[q(2,1)] | C24: ln[q(2,2)] | D24: ln[q(2,3)] | E24: ln[q(2,4)] | F24: ln[q(2,5)] | M24: 2 | N24: 4.700480366 | O24: 3.912023005 | P24: 2.708050201 | Q24: =LN(Q15) -> 3.401197382 | R24: 1.609437912
A25: 3 | B25: ln[q(3,1)] | C25: ln[q(3,2)] | D25: ln[q(3,3)] | E25: ln[q(3,4)] | M25: 3 | N25: 4.65396035 | O25: 4.094344562 | P25: =LN(P16) -> 3.218875825 | Q25: =LN(Q16) -> 2.995732274
A26: 4 | B26: ln[q(4,1)] | C26: ln[q(4,2)] | D26: ln[q(4,3)] | M26: 4 | N26: 4.787491743 | O26: =LN(O17) -> 3.555348061 | P26: =LN(P17) -> 3.401197382
A27: 5 | B27: ln[q(5,1)] | C27: ln[q(5,2)] | M27: 5 | N27: 4.86753445 | O27: =LN(O18) -> 3.688879454
A28: 6 | B28: ln[q(6,1)] | M28: 6 | N28: 4.828313737
AC29: Model Parameters from Maximum Likelihood
A30: Design Matrix | O30: α1 | P30: α2 | Q30: α3 | R30: α4 | S30: α5 | T30: α6 | U30: β2 | V30: β3 | W30: β4 | X30: β5 | Y30: β6 | AA30: X x A | AD30: Actual | AF30: Estimate | AG30: Loglikelihood | AJ30: Maximum Likelihood Steps:
A31: X | B31: 1 | C31: 0 | D31: 0 | E31: 0 | F31: 0 | G31: 0 | H31: 0 | I31: 0 | J31: 0 | K31: 0 | L31: 0 | N31: A | O31: 4.692866661 | P31: 4.669337898 | Q31: 4.717540705 | R31: 4.730145073 | S31: 4.779119017 | T31: 4.828307872 | U31: -0.8472935647 | V31: -0.7419359575 | W31: 0.1792031408 | X31: -0.9685638292 | Y31: -0.7048160515 | AA31: =SUMPRODUCT(B31:L31,$O$31:$Y$31) -> 4.692866661 | AC31: q(1,1) | AD31: =N14 -> 95 | AE31: m1,1 | AF31: =EXP(AA31) -> 109.1656726 | AG31: =IF($F$55=0,-(((AD31-AF31)^2)/2)-0.5*LN(2*PI()),IF($F$55=1,-AF31+LN(AF31)*AD31-GAMMALN(AD31+1),IF($F$55=2,-LN(AF31)-AD31/AF31,-0.5*(LN(2*PI())+3*LN(AD31))-(AD31-AF31)^2/(2*AF31^2*AD31)))) -> -4.158398738 | AI31: 1) | AJ31: Enter Starting Values for vector A (Row 31)
B32: 0 | C32: 1 | D32: 0 | E32: 0 | F32: 0 | G32: 0 | H32: 0 | I32: 0 | J32: 0 | K32: 0 | L32: 0 | AA32: =SUMPRODUCT(B32:L32,$O$31:$Y$31) -> 4.669337898 | AC32: q(2,1) | AD32: =N15 -> 110 | AE32: m2,1 | AF32: =EXP(AA32) -> 106.627121 | AG32: =IF($F$55=0,-(((AD32-AF32)^2)/2)-0.5*LN(2*PI()),IF($F$55=1,-AF32+LN(AF32)*AD32-GAMMALN(AD32+1),IF($F$55=2,-LN(AF32)-AD32/AF32,-0.5*(LN(2*PI())+3*LN(AD32))-(AD32-AF32)^2/(2*AF32^2*AD32)))) -> -3.322728774 | AI32: 2) | AJ32: Use Solver to Maximize Total Loglikelihood
B33: 0 | C33: 0 | D33: 1 | E33: 0 | F33: 0 | G33: 0 | H33: 0 | I33: 0 | J33: 0 | K33: 0 | L33: 0 | AA33: 4.717540705 | AC33: q(3,1) | AD33: 105 | AE33: m3,1 | AF33: 111.8927367 | AG33: -3.463511867
B34: 0 | C34: 0 | D34: 0 | E34: 1 | F34: 0 | G34: 0 | H34: 0 | I34: 0 | J34: 0 | K34: 0 | L34: 0 | AA34: 4.730145073 | AC34: q(4,1) | AD34: 120 | AE34: m4,1 | AF34: 113.3119997 | AG34: -3.506978886
B35: 0 | C35: 0 | D35: 0 | E35: 0 | F35: 1 | G35: 0 | H35: 0 | I35: 0 | J35: 0 | K35: 0 | L35: 0 | AA35: 4.779119017 | AC35: q(5,1) | AD35: 130 | AE35: m5,1 | AF35: 118.9994674 | AG35: -3.846820474
B36: 0 | C36: 0 | D36: 0 | E36: 0 | F36: 0 | G36: 1 | H36: 0 | I36: 0 | J36: 0 | K36: 0 | L36: 0 | AA36: 4.828307872 | AC36: q(6,1) | AD36: 125 | AE36: m6,1 | AF36: 124.9992668 | AG36: -3.333762069
B37: 1 | C37: 0 | D37: 0 | E37: 0 | F37: 0 | G37: 0 | H37: 1 | I37: 0 | J37: 0 | K37: 0 | L37: 0 | AA37: 3.845573096 | AC37: q(1,2) | AD37: =O14 -> 55 | AE37: m1,2 | AF37: 46.78548925 | AG37: -3.606414413
B38: 0 | C38: 1 | D38: 0 | E38: 0 | F38: 0 | G38: 0 | H38: 1 | I38: 0 | J38: 0 | K38: 0 | L38: 0 | AA38: 3.822044333 | AC38: q(2,2) | AD38: =O15 -> 50 | AE38: m2,2 | AF38: 45.69753386 | AG38: -3.073084173
B39: 0 | C39: 0 | D39: 1 | E39: 0 | F39: 0 | G39: 0 | H39: 1 | I39: 0 | J39: 0 | K39: 0 | L39: 0 | AA39: 3.87024714 | AC39: q(3,2) | AD39: 60 | AE39: m3,2 | AF39: 47.95423603 | AG39: -4.36758105
B40: 0 | C40: 0 | D40: 0 | E40: 1 | F40: 0 | G40: 0 | H40: 1 | I40: 0 | J40: 0 | K40: 0 | L40: 0 | AA40: 3.882851509 | AC40: q(4,2) | AD40: 35 | AE40: m4,2 | AF40: 48.5624942 | AG40: -4.798867
B41: 0 | C41: 0 | D41: 0 | E41: 0 | F41: 1 | G41: 0 | H41: 1 | I41: 0 | J41: 0 | K41: 0 | L41: 0 | AA41: 3.931825452 | AC41: q(5,2) | AD41: 40 | AE41: m5,2 | AF41: 50.99999081 | AG41: -4.047612423
B42: 1 | C42: 0 | D42: 0 | E42: 0 | F42: 0 | G42: 0 | H42: 1 | I42: 1 | J42: 0 | K42: 0 | L42: 0 | AA42: 3.103637139 | AC42: q(1,3) | AD42: =P14 -> 20 | AE42: m1,3 | AF42: 22.27883531 | AG42: -2.541709
B43: 0 | C43: 1 | D43: 0 | E43: 0 | F43: 0 | G43: 0 | H43: 1 | I43: 1 | J43: 0 | K43: 0 | L43: 0 | AA43: 3.080108375 | AC43: q(2,3) | AD43: =P15 -> 15 | AE43: m2,3 | AF43: 21.7607606 | AG43: -3.458406351
B44: 0 | C44: 0 | D44: 1 | E44: 0 | F44: 0 | G44: 0 | H44: 1 | I44: 1 | J44: 0 | K44: 0 | L44: 0 | AA44: 3.128311182 | AC44: q(3,3) | AD44: 25 | AE44: m3,3 | AF44: 22.83538217 | AG44: -2.631207827
B45: 0 | C45: 0 | D45: 0 | E45: 1 | F45: 0 | G45: 0 | H45: 1 | I45: 1 | J45: 0 | K45: 0 | L45: 0 | AA45: 3.140915551 | AC45: q(4,3) | AD45: 30 | AE45: m4,3 | AF45: 23.12502932 | AG45: -3.555799131
B46: 1 | C46: 0 | D46: 0 | E46: 0 | F46: 0 | G46: 0 | H46: 1 | I46: 1 | J46: 1 | K46: 0 | L46: 0 | AA46: 3.282840279 | AC46: q(1,4) | AD46: =Q14 -> 30 | AE46: m1,4 | AF46: 26.65136262 | AG46: -2.824390584
B47: 0 | C47: 1 | D47: 0 | E47: 0 | F47: 0 | G47: 0 | H47: 1 | I47: 1 | J47: 1 | K47: 0 | L47: 0 | AA47: 3.259311516 | AC47: q(2,4) | AD47: =Q15 -> 30 | AE47: m2,4 | AF47: 26.03160863 | AG47: -2.910499494
B48: 0 | C48: 0 | D48: 1 | E48: 0 | F48: 0 | G48: 0 | H48: 1 | I48: 1 | J48: 1 | K48: 0 | L48: 0 | AA48: 3.307514323 | AC48: q(3,4) | AD48: 20 | AE48: m3,4 | AF48: 27.31713943 | AG48: -3.502469429
B49: 1 | C49: 0 | D49: 0 | E49: 0 | F49: 0 | G49: 0 | H49: 1 | I49: 1 | J49: 1 | K49: 1 | L49: 0 | AA49: 2.31427645 | AC49: q(1,5) | AD49: =R14 -> 15 | AE49: m1,5 | AF49: 10.11759968 | AG49: -3.302724313
B50: 0 | C50: 1 | D50: 0 | E50: 0 | F50: 0 | G50: 0 | H50: 1 | I50: 1 | J50: 1 | K50: 1 | L50: 0 | AA50: 2.290747687 | AC50: q(2,5) | AD50: =R15 -> 5 | AE50: m2,5 | AF50: 9.882323803 | AG50: -3.216077112
B51: 1 | C51: 0 | D51: 0 | E51: 0 | F51: 0 | G51: 0 | H51: 1 | I51: 1 | J51: 1 | K51: 1 | L51: 1 | AA51: 1.609460399 | AC51: q(1,6) | AD51: =S14 -> 5 | AE51: m1,6 | AF51: 5.000112432 | AG51: -1.740302182
A53: Model Parameters from Iteratively Weighted Least Squares | AD53: =COUNTIF(AD31:AD51,"<>0") -> 21 | AF53: Total | AG53: =SUM(AG31:AG51) -> -71.20934529
B54: Values | C54: t-Stat | D54: p-Value | F54: Error Distribution
A55: α1 | B55: =GLM!CB130 -> 4.692874069 | C55: =B55/SQRT(ScaleParameter*GLM!AR130) -> 37.57637134 | D55: =_xlfn.T.DIST.2T(ABS(C55),$T$113) -> 4.245256977e-12 | E55: z = | F55: 1 | AJ55: 0 | AK55: Normal
A56: α2 | B56: =GLM!CB131 -> 4.669343571 | C56: =(B56-B55)/SQRT(ScaleParameter*GLM!AS131) -> -0.1866211368 | D56: =_xlfn.T.DIST.2T(ABS(C56),$T$113) -> 0.8556893524 | F56: =VLOOKUP(F55,ErrorTable,2) -> Poisson | AJ56: 1 | AK56: Poisson
A57: α3 | B57: =GLM!CB132 -> 4.717545673 | C57: =(B57-B55)/SQRT(ScaleParameter*GLM!AT132) -> 0.1976421366 | D57: 0.8472847334 | AJ57: 2 | AK57: Gamma
A58: α4 | B58: =GLM!CB133 -> 4.730149489 | C58: =(B58-B55)/SQRT(ScaleParameter*GLM!AU133) -> 0.2887099499 | D58: 0.7786995114 | AJ58: 3 | AK58: Inverse Gaussian
A59: α5 | B59: =GLM!CB134 -> 4.779123493 | C59: =(B59-B55)/SQRT(ScaleParameter*GLM!AV134) -> 0.6533726197 | D59: 0.5282522647
A60: α6 | B60: =GLM!CB135 -> 4.828313737 | C60: =(B60-B55)/SQRT(ScaleParameter*GLM!AW135) -> 0.9189835671 | D60: 0.3797371407
A61: β2 | B61: =GLM!CB136 -> -0.8472978604 | C61: =B61/SQRT(ScaleParameter*GLM!AX136) -> -6.664960925 | D61: 5.603743027e-05
A62: β3 | B62: =GLM!CB137 -> -0.7419373447 | C62: =B62/SQRT(ScaleParameter*GLM!AY137) -> -3.603313017 | D62: 0.004821316438
A63: β4 | B63: =GLM!CB138 -> 0.1792014295 | C63: =B63/SQRT(ScaleParameter*GLM!AZ138) -> 0.7006763804 | D63: 0.4994830701
A64: β5 | B64: =GLM!CB139 -> -0.9685591604 | C64: =B64/SQRT(ScaleParameter*GLM!BA139) -> -2.335518362 | D64: 0.04165658851
A65: β6 | B65: =GLM!CB140 -> -0.7048432203 | C65: =B65/SQRT(ScaleParameter*GLM!BB140) -> -0.8516130132 | D65: 0.4143574886
A67: Log-Link of Fitted Values | M67: Log-Link of Fitted Values
B68: 1 | C68: 2 | D68: 3 | E68: 4 | F68: 5 | G68: 6 | N68: 1 | O68: 2 | P68: 3 | Q68: 4 | R68: 5 | S68: 6
A69: 1 | B69: ln[m1,1] | C69: ln[m1,2] | D69: ln[m1,3] | E69: ln[m1,4] | F69: ln[m1,5] | G69: ln[m1,6] | M69: 1 | N69: =B55 -> 4.692874069 | O69: =B55+B61 -> 3.845576208 | P69: =B55+B61+B62 -> 3.103638864 | Q69: =B55+B61+B62+B63 -> 3.282840293 | R69: =B55+B61+B62+B63+B64 -> 2.314281133 | S69: =B55+B61+B62+B63+B64+B65 -> 1.609437912
A70: 2 | B70: ln[m2,1] | C70: ln[m2,2] | D70: ln[m2,3] | E70: ln[m2,4] | F70: ln[m2,5] | M70: 2 | N70: 4.669343571 | O70: =B56+B61 -> 3.822045711 | P70: =B56+B61+B62 -> 3.080108366 | Q70: =B56+B61+B62+B63 -> 3.259309796 | R70: =B56+B61+B62+B63+B64 -> 2.290750635
A71: 3 | B71: ln[m3,1] | C71: ln[m3,2] | D71: ln[m3,3] | E71: ln[m3,4] | M71: 3 | N71: 4.717545673 | O71: =B57+B61 -> 3.870247813 | P71: =B57+B61+B62 -> 3.128310468 | Q71: =B57+B61+B62+B63 -> 3.307511898
A72: 4 | B72: ln[m4,1] | C72: ln[m4,2] | D72: ln[m4,3] | M72: 4 | N72: 4.730149489 | O72: =B58+B61 -> 3.882851628 | P72: =B58+B61+B62 -> 3.140914283
A73: 5 | B73: ln[m5,1] | C73: ln[m5,2] | M73: 5 | N73: 4.779123493 | O73: =B59+B61 -> 3.931825633
A74: 6 | B74: ln[m6,1] | M74: 6 | N74: 4.828313737
A76: Fitted Incremental Values | M76: Fitted Incremental Values | AI76: Difference
B77: 1 | C77: 2 | D77: 3 | E77: 4 | F77: 5 | G77: 6 | N77: 1 | O77: 2 | P77: 3 | Q77: 4 | R77: 5 | S77: 6 | AJ77: 1 | AK77: 2 | AL77: 3 | AM77: 4 | AN77: 5 | AO77: 6
A78: 1 | B78: m1,1 | C78: m1,2 | D78: m1,3 | E78: m1,4 | F78: m1,5 | G78: m1,6 | M78: 1 | N78: =EXP(N69) -> 109.1664813 | O78: =EXP(O69) -> 46.78563486 | P78: 22.27887374 | Q78: =EXP(Q69) -> 26.65136298 | R78: =EXP(R69) -> 10.11764706 | S78: =EXP(S69) -> 5 | AI78: 1 | AJ78: =N78-Z14 -> 1.705302566e-13 | AK78: 0 | AL78: 2.842170943e-14 | AM78: 0 | AN78: 0 | AO78: 7.105427358e-15
A79: 2 | B79: m2,1 | C79: m2,2 | D79: m2,3 | E79: m2,4 | F79: m2,5 | M79: 2 | N79: 106.627726 | O79: 45.69759684 | P79: 21.7607604 | Q79: =EXP(Q70) -> 26.03156385 | R79: 9.882352941 | AI79: 2 | AJ79: =N79-Z15 -> 1.563194019e-13 | AK79: =O79-AA15 -> 0 | AL79: =P79-AB15 -> 4.263256415e-14 | AM79: =Q79-AC15 -> 3.197442311e-14 | AN79: =R79-AD15 -> 2.664535259e-14
A80: 3 | B80: m3,1 | C80: m3,2 | D80: m3,3 | E80: m3,4 | M80: 3 | N80: 111.8932927 | O80: 47.95426829 | P80: =EXP(P71) -> 22.83536585 | Q80: =EXP(Q71) -> 27.31707317 | AI80: 3 | AJ80: =N80-Z16 -> 2.415845302e-13 | AK80: =O80-AA16 -> 6.394884622e-14 | AL80: =P80-AB16 -> 7.105427358e-14 | AM80: =Q80-AC16 -> 5.684341886e-14
A81: 4 | B81: m4,1 | C81: m4,2 | D81: m4,3 | M81: 4 | N81: 113.3125 | O81: =EXP(O72) -> 48.5625 | P81: =EXP(P72) -> 23.125 | AI81: 4 | AJ81: =N81-Z17 -> 0 | AK81: =O81-AA17 -> 0 | AL81: =P81-AB17 -> 0
A82: 5 | B82: m5,1 | C82: m5,2 | M82: 5 | N82: 119 | O82: =EXP(O73) -> 51 | AI82: 5 | AJ82: =N82-Z18 -> 1.278976924e-13 | AK82: =O82-AA18 -> 0
A83: 6 | B83: m6,1 | M83: 6 | N83: 125 | AI83: 6 | AJ83: =N83-Z19 -> 0
A85: Unscaled Pearson Residuals | M85: Unscaled Pearson Residuals | Y85: Unscaled Pearson Residuals | AI85: Difference
B86: 1 | C86: 2 | D86: 3 | E86: 4 | F86: 5 | G86: 6 | N86: 1 | O86: 2 | P86: 3 | Q86: 4 | R86: 5 | S86: 6 | Z86: 1 | AA86: 2 | AB86: 3 | AC86: 4 | AD86: 5 | AE86: 6 | AJ86: 1 | AK86: 2 | AL86: 3 | AM86: 4 | AN86: 5 | AO86: 6
A87: 1 | B87: r1,1 | C87: r1,2 | D87: r1,3 | E87: r1,4 | F87: r1,5 | G87: r1,6 | M87: 1 | N87: =(N14-N78)/SQRT(N78^$F$55) -> -1.355867772 | O87: 1.200930128 | P87: -0.4828071007 | Q87: 0.6486469218 | R87: 1.534932947 | S87: -3.177643716e-15 | Y87: 1 | Z87: =(N14-Z14)/SQRT(Z14) -> -1.355867772 | AA87: 1.200930128 | AB87: -0.4828071007 | AC87: 0.6486469218 | AD87: 1.534932947 | AE87: 0 | AI87: 1 | AJ87: =N87-Z87 -> -1.509903313e-14 | AK87: -5.551115123e-15 | AL87: -5.773159728e-15 | AM87: -4.440892099e-15 | AN87: -4.662936703e-15 | AO87: -3.177643716e-15
A88: 2 | B88: r2,1 | C88: r2,2 | D88: r2,3 | E88: r2,4 | F88: r2,5 | M88: 2 | N88: =(N15-N79)/SQRT(N79^$F$55) -> 0.3265786464 | O88: =(O15-O79)/SQRT(O79^$F$55) -> 0.636450193 | P88: =(P15-P79)/SQRT(P79^$F$55) -> -1.449300732 | Q88: =(Q15-Q79)/SQRT(Q79^$F$55) -> 0.7778023807 | R88: =(R15-R79)/SQRT(R79^$F$55) -> -1.553098466 | Y88: 2 | Z88: =(N15-Z15)/SQRT(Z15) -> 0.3265786464 | AA88: =(O15-AA15)/SQRT(AA15) -> 0.636450193 | AB88: =(P15-AB15)/SQRT(AB15) -> -1.449300732 | AC88: =(Q15-AC15)/SQRT(AC15) -> 0.7778023807 | AD88: =(R15-AD15)/SQRT(AD15) -> -1.553098466 | AI88: 2 | AJ88: =N88-Z88 -> -1.543210004e-14 | AK88: =O88-AA88 -> -5.551115123e-15 | AL88: =P88-AB88 -> -7.549516567e-15 | AM88: =Q88-AC88 -> -6.661338148e-15 | AN88: =R88-AD88 -> -6.217248938e-15
A89: 3 | B89: r3,1 | C89: r3,2 | D89: r3,3 | E89: r3,4 | M89: 3 | N89: =(N16-N80)/SQRT(N80^$F$55) -> -0.6516654432 | O89: =(O16-O80)/SQRT(O80^$F$55) -> 1.739480448 | P89: =(P16-P80)/SQRT(P80^$F$55) -> 0.4529815547 | Q89: =(Q16-Q80)/SQRT(Q80^$F$55) -> -1.399975112 | Y89: 3 | Z89: =(N16-Z16)/SQRT(Z16) -> -0.6516654432 | AA89: =(O16-AA16)/SQRT(AA16) -> 1.739480448 | AB89: =(P16-AB16)/SQRT(AB16) -> 0.4529815547 | AC89: =(Q16-AC16)/SQRT(AC16) -> -1.399975112 | AI89: 3 | AJ89: =N89-Z89 -> -2.198241589e-14 | AK89: =O89-AA89 -> -1.021405183e-14 | AL89: =P89-AB89 -> -1.554312234e-14 | AM89: =Q89-AC89 -> -9.325873407e-15
A90: 4 | B90: r4,1 | C90: r4,2 | D90: r4,3 | M90: 4 | N90: =(N17-N81)/SQRT(N81^$F$55) -> 0.6282389872 | O90: =(O17-O81)/SQRT(O81^$F$55) -> -1.946207909 | P90: =(P17-P81)/SQRT(P81^$F$55) -> 1.429656924 | Y90: 4 | Z90: =(N17-Z17)/SQRT(Z17) -> 0.6282389872 | AA90: =(O17-AA17)/SQRT(AA17) -> -1.946207909 | AB90: =(P17-AB17)/SQRT(AB17) -> 1.429656924 | AI90: 4 | AJ90: =N90-Z90 -> -2.775557562e-15 | AK90: =O90-AA90 -> 2.664535259e-15 | AL90: =P90-AB90 -> 0
A91: 5 | B91: r5,1 | C91: r5,2 | M91: 5 | N91: =(N18-N82)/SQRT(N82^$F$55) -> 1.008368347 | O91: =(O18-O82)/SQRT(O82^$F$55) -> -1.540308092 | Y91: 5 | Z91: =(N18-Z18)/SQRT(Z18) -> 1.008368347 | AA91: =(O18-AA18)/SQRT(AA18) -> -1.540308092 | AI91: 5 | AJ91: =N91-Z91 -> -1.243449788e-14 | AK91: =O91-AA91 -> -2.664535259e-15
A92: 6 | B92: r6,1 | M92: 6 | N92: =(N19-N83)/SQRT(N83^$F$55) -> -3.813172459e-15 | Y92: 6 | Z92: =(N19-Z19)/SQRT(Z19) -> 0 | AI92: 6 | AJ92: =N92-Z92 -> -3.813172459e-15
A94: Hat Matrix Factors | M94: Hat Matrix Factors
B95: 1 | C95: 2 | D95: 3 | E95: 4 | F95: 5 | G95: 6 | N95: 1 | O95: 2 | P95: 3 | Q95: 4 | R95: 5 | S95: 6
A96: 1 | B96: fH1,1 | C96: fH1,2 | D96: fH1,3 | E96: fH1,4 | F96: fH1,5 | G96: fH1,6 | M96: 1 | N96: ='Hat Matrix'!A49 -> 1.637630331 | O96: ='Hat Matrix'!G55 -> 1.270165573 | P96: ='Hat Matrix'!L60 -> 1.220082504 | Q96: ='Hat Matrix'!P64 -> 1.309527803 | R96: ='Hat Matrix'!S67 -> 1.457309416 | S96: ='Hat Matrix'!U69 -> 0
A97: 2 | B97: fH2,1 | C97: fH2,2 | D97: fH2,3 | E97: fH2,4 | F97: fH2,5 | M97: 2 | N97: ='Hat Matrix'!B50 -> 1.631568185 | O97: ='Hat Matrix'!H56 -> 1.266309938 | P97: ='Hat Matrix'!M61 -> 1.215366584 | Q97: ='Hat Matrix'!Q65 -> 1.301945776 | R97: ='Hat Matrix'!T68 -> 1.440264275
A98: 3 | B98: fH3,1 | C98: fH3,2 | D98: fH3,3 | E98: fH3,4 | M98: 3 | N98: ='Hat Matrix'!C51 -> 1.671724591 | O98: ='Hat Matrix'!I57 -> 1.279734058 | P98: ='Hat Matrix'!N62 -> 1.227481452 | Q98: ='Hat Matrix'!R66 -> 1.321206535
A99: 4 | B99: fH4,1 | C99: fH4,2 | D99: fH4,3 | M99: 4 | N99: ='Hat Matrix'!D52 -> 1.812753971 | O99: ='Hat Matrix'!J58 -> 1.306075306 | P99: ='Hat Matrix'!O63 -> 1.240181734
A100: 5 | B100: fH5,1 | C100: fH5,2 | M100: 5 | N100: ='Hat Matrix'!E53 -> 2.057377999 | O100: ='Hat Matrix'!K59 -> 1.346870059
A101: 6 | B101: fH6,1 | M101: 6 | N101: ='Hat Matrix'!F54 -> 0
A103: Standardized Pearson Residuals | M103: Standardized Pearson Residuals
B104: 1 | C104: 2 | D104: 3 | E104: 4 | F104: 5 | G104: 6 | N104: 1 | O104: 2 | P104: 3 | Q104: 4 | R104: 5 | S104: 6
A105: 1 | B105: rH1,1 | C105: rH1,2 | D105: rH1,3 | E105: rH1,4 | F105: rH1,5 | G105: rH1,6 | M105: 1 | N105: =N87*N96 -> -2.220410188 | O105: =O87*O96 -> 1.525380105 | P105: -0.5890644963 | Q105: 0.8494211784 | R105: 2.236872237 | S105: =S87*S96 -> 0
A106: 2 | B106: rH2,1 | C106: rH2,2 | D106: rH2,3 | E106: rH2,4 | F106: rH2,5 | M106: 2 | N106: 0.5328353295 | O106: 0.8059432042 | P106: -1.761431679 | Q106: 1.012656524 | R106: -2.236872237
A107: 3 | B107: rH3,1 | C107: rH3,2 | D107: rH3,3 | E107: rH3,4 | M107: 3 | N107: -1.089405146 | O107: 2.226072373 | P107: 0.5560264565 | Q107: -1.849656267
A108: 4 | B108: rH4,1 | C108: rH4,2 | D108: rH4,3 | M108: 4 | N108: 1.138842719 | O108: -2.54189409 | P108: 1.773034403
A109: 5 | B109: rH5,1 | C109: rH5,2 | M109: 5 | N109: 2.074594852 | O109: -2.074594852
A110: 6 | B110: rH6,1 | M110: 6 | N110: 0
M112: Pearson chi-squared statistic | T112: =SUMSQ(N87:S92) -> 27.15102852
M113: Degrees of freedom | P113: =COUNT(N14:S19) -> 21 | Q113: - | R113: =COUNT(B55:B65) -> 11 | S113: = | T113: =P113-R113 -> 10
M114: Scale Parameter | T114: =T112/T113 -> 2.715102852
M115: Degrees of Freedom Adjustment Factor | T115: =SQRT(P113/T113) -> 1.449137675
M116: Number of Non-Zero Residuals | T116: =COUNTIF(N105:N110,"<>0")+COUNTIF(O105:O109,"<>0")+COUNTIF(P105:P108,"<>0")+COUNTIF(Q105:Q107,"<>0")+COUNTIF(R105:R106,"<>0")+COUNTIF(S105,"<>0") -> 19
M118: Random Selections
N119: 1 | O119: 2 | P119: 3 | Q119: 4 | R119: 5 | S119: 6 | Y119: Residual Lookup Table
M120: 1 | N120: =RANDBETWEEN(1,NonZeroCount) -> 17 | O120: 18 | P120: 12 | Q120: 7 | R120: 4 | S120: 9 | U120: Recalc will change all values | Y120: 1 | Z120: =N105 -> -2.220410188 | AA120: =Z120 -> -2.220410188
M121: 2 | N121: =RANDBETWEEN(1,NonZeroCount) -> 10 | O121: =RANDBETWEEN(1,NonZeroCount) -> 7 | P121: =RANDBETWEEN(1,NonZeroCount) -> 1 | Q121: =RANDBETWEEN(1,NonZeroCount) -> 14 | R121: =RANDBETWEEN(1,NonZeroCount) -> 16 | U121: from this step forward | Y121: 2 | Z121: 0.5328353295 | AA121: =Z121 -> 0.5328353295
M122: 3 | N122: =RANDBETWEEN(1,NonZeroCount) -> 4 | O122: =RANDBETWEEN(1,NonZeroCount) -> 9 | P122: =RANDBETWEEN(1,NonZeroCount) -> 18 | Q122: =RANDBETWEEN(1,NonZeroCount) -> 6 | Y122: 3 | Z122: -1.089405146 | AA122: =Z122 -> -1.089405146
M123: 4 | N123: =RANDBETWEEN(1,NonZeroCount) -> 2 | O123: =RANDBETWEEN(1,NonZeroCount) -> 2 | P123: =RANDBETWEEN(1,NonZeroCount) -> 17 | Y123: 4 | Z123: 1.138842719 | AA123: =Z123 -> 1.138842719
M124: 5 | N124: =RANDBETWEEN(1,NonZeroCount) -> 12 | O124: =RANDBETWEEN(1,NonZeroCount) -> 10 | Y124: 5 | Z124: 2.074594852 | AA124: =Z124 -> 2.074594852
M125: 6 | N125: =RANDBETWEEN(1,NonZeroCount) -> 10 | Y125: 6 | Z125: 0 | AA125: =Z126 -> 1.525380105
Y126: 7 | Z126: =O105 -> 1.525380105 | AA126: =Z127 -> 0.8059432042
M127: Random Residuals | Y127: 8 | Z127: =O106 -> 0.8059432042 | AA127: 2.226072373
N128: 1 | O128: 2 | P128: 3 | Q128: 4 | R128: 5 | S128: 6 | Y128: 9 | Z128: =O107 -> 2.226072373 | AA128: -2.54189409
M129: 1 | N129: =VLOOKUP(N120,$Y$120:$AA$140,3) -> -1.849656267 | O129: =VLOOKUP(O120,$Y$120:$AA$140,3) -> 2.236872237 | P129: -1.761431679 | Q129: 0.8059432042 | R129: 1.138842719 | S129: =VLOOKUP(S120,$Y$120:$AA$140,3) -> -2.54189409 | Y129: 10 | Z129: =O108 -> -2.54189409 | AA129: -2.074594852
M130: 2 | N130: -2.074594852 | O130: 0.8059432042 | P130: -2.220410188 | Q130: 1.773034403 | R130: 1.012656524 | Y130: 11 | Z130: =O109 -> -2.074594852 | AA130: -0.5890644963
M131: 3 | N131: 1.138842719 | O131: -2.54189409 | P131: 2.236872237 | Q131: 1.525380105 | Y131: 12 | Z131: =P105 -> -0.5890644963 | AA131: -1.761431679
M132: 4 | N132: 0.5328353295 | O132: 0.5328353295 | P132: -1.849656267 | Y132: 13 | Z132: =P106 -> -1.761431679 | AA132: 0.5560264565
M133: 5 | N133: -1.761431679 | O133: -2.074594852 | Y133: 14 | Z133: =P107 -> 0.5560264565 | AA133: 1.773034403
M134: 6 | N134: -2.074594852 | Y134: 15 | Z134: =P108 -> 1.773034403 | AA134: 0.8494211784
Y135: 16 | Z135: =Q105 -> 0.8494211784 | AA135: 1.012656524
A136: Sample Incremental Triangle | M136: Sample Incremental Triangle | Y136: 17 | Z136: =Q106 -> 1.012656524 | AA136: -1.849656267
B137: 1 | C137: 2 | D137: 3 | E137: 4 | F137: 5 | G137: 6 | N137: 1 | O137: 2 | P137: 3 | Q137: 4 | R137: 5 | S137: 6 | Y137: 18 | Z137: =Q107 -> -1.849656267 | AA137: 2.236872237
A138: 1 | B138: ="q'("&$A138&","&B$4&")" -> q'(1,1) | C138: ="q'("&$A138&","&C$4&")" -> q'(1,2) | D138: q'(1,3) | E138: ="q'("&$A138&","&E$4&")" -> q'(1,4) | F138: ="q'("&$A138&","&F$4&")" -> q'(1,5) | G138: ="q'("&$A138&","&G$4&")" -> q'(1,6) | M138: 1 | N138: =N78+N129*SQRT(N78^$F$55) -> 89.84076129 | O138: 62.08584667 | P138: 13.96482782 | Q138: 30.8120414 | R138: 13.74010634 | S138: -0.6838479761 | Y138: 19 | Z138: =R105 -> 2.236872237 | AA138: -2.236872237
A139: 2 | B139: q'(2,1) | C139: q'(2,2) | D139: q'(2,3) | E139: q'(2,4) | F139: q'(2,5) | M139: 2 | N139: =N79+N130*SQRT(N79^$F$55) -> 85.20531387 | O139: =O79+O130*SQRT(O79^$F$55) -> 51.14577272 | P139: =P79+P130*SQRT(P79^$F$55) -> 11.40289543 | Q139: =Q79+Q130*SQRT(Q79^$F$55) -> 35.0777869 | R139: =R79+R130*SQRT(R79^$F$55) -> 13.06576125 | Y139: 20 | Z139: =R106 -> -2.236872237
A140: 3 | B140: q'(3,1) | C140: q'(3,2) | D140: q'(3,3) | E140: q'(3,4) | M140: 3 | N140: =N80+N131*SQRT(N80^$F$55) -> 123.9399284 | O140: =O80+O131*SQRT(O80^$F$55) -> 30.35190072 | P140: =P80+P131*SQRT(P80^$F$55) -> 33.52456495 | Q140: =Q80+Q131*SQRT(Q80^$F$55) -> 35.28958479 | Y140: 21 | Z140: =S105 -> 0
A141: 4 | B141: q'(4,1) | C141: q'(4,2) | D141: q'(4,3) | M141: 4 | N141: =N81+N132*SQRT(N81^$F$55) -> 118.9844439 | O141: =O81+O132*SQRT(O81^$F$55) -> 52.27565887 | P141: =P81+P132*SQRT(P81^$F$55) -> 14.23028783
A142: 5 | B142: q'(5,1) | C142: q'(5,2) | M142: 5 | N142: =N82+N133*SQRT(N82^$F$55) -> 99.7850489 | O142: =O82+O133*SQRT(O82^$F$55) -> 36.18442935
A143: 6 | B143: q'(6,1) | M143: 6 | N143: =N83+N134*SQRT(N83^$F$55) -> 101.8053244
A145: Sample Cumulative Triangle | M145: Sample Triangle Fitted Values | Y145: Sample Cumulative Triangle
B146: 1 | C146: 2 | D146: 3 | E146: 4 | F146: 5 | G146: 6 | N146: 1 | O146: 2 | P146: 3 | Q146: 4 | R146: 5 | S146: 6 | Z146: 1 | AA146: 2 | AB146: 3 | AC146: 4 | AD146: 5 | AE146: 6
A147: 1 | B147: ="c'("&$A147&","&B$4&")" -> c'(1,1) | C147: ="c'("&$A147&","&C$4&")" -> c'(1,2) | D147: c'(1,3) | E147: ="c'("&$A147&","&E$4&")" -> c'(1,4) | F147: ="c'("&$A147&","&F$4&")" -> c'(1,5) | G147: ="c'("&$A147&","&G$4&")" -> c'(1,6) | M147: 1 | N147: =EXP($B155) -> 100.9199879 | O147: =EXP($B155+$B$161) -> 45.22953075 | P147: =EXP($B155+$B$161+$B$162) -> 17.41009041 | Q147: =EXP($B155+$B$161+$B$162+$B$163) -> 33.00124727 | R147: =EXP($B155+$B$161+$B$162+$B$163+$B$164) -> 13.88272721 | S147: =EXP($B155+$B$161+$B$162+$B$163+$B$164+$B$165) -> 1.462313314 | Y147: 1 | Z147: =N138 -> 89.84076129 | AA147: =O138+Z147 -> 151.926608 | AB147: =P138+AA147 -> 165.8914358 | AC147: =Q138+AB147 -> 196.7034772 | AD147: =R138+AC147 -> 210.4435835 | AE147: =S138+AD147 -> 209.7597355
A148: 2 | B148: c'(2,1) | C148: c'(2,2) | D148: c'(2,3) | E148: c'(2,4) | F148: c'(2,5) | M148: 2 | N148: 93.94430584 | O148: =EXP($B156+$B$161) -> 42.10322414 | P148: =EXP($B156+$B$161+$B$162) -> 16.206689 | Q148: =EXP($B156+$B$161+$B$162+$B$163) -> 30.72017081 | R148: =EXP($B156+$B$161+$B$162+$B$163+$B$164) -> 12.92314038 | Y148: 2 | Z148: 85.20531387 | AA148: =O139+Z148 -> 136.3510866 | AB148: =P139+AA148 -> 147.753982 | AC148: =Q139+AB148 -> 182.8317689 | AD148: =R139+AC148 -> 195.8975302
A149: 3 | B149: c'(3,1) | C149: c'(3,2) | D149: c'(3,3) | E149: c'(3,4) | M149: 3 | N149: 114.549016 | O149: =EXP($B157+$B$161) -> 51.33768197 | P149: =EXP($B157+$B$161+$B$162) -> 19.76128582 | Q149: =EXP($B157+$B$161+$B$162+$B$163) -> 37.45799501 | Y149: 3 | Z149: 123.9399284 | AA149: =O140+Z149 -> 154.2918291 | AB149: =P140+AA149 -> 187.816394 | AC149: =Q140+AB149 -> 223.1059788
A150: 4 | B150: c'(4,1) | C150: c'(4,2) | D150: c'(4,3) | M150: 4 | N150: 114.4517774 | O150: =EXP($B158+$B$161) -> 51.29410233 | P150: =EXP($B158+$B$161+$B$162) -> 19.74451081 | Y150: 4 | Z150: 118.9844439 | AA150: =O141+Z150 -> 171.2601027 | AB150: =P141+AA150 -> 185.4903906
A151: 5 | B151: c'(5,1) | C151: c'(5,2) | M151: 5 | N151: 93.89040912 | O151: =EXP($B159+$B$161) -> 42.07906913 | Y151: 5 | Z151: 99.7850489 | AA151: =O142+Z151 -> 135.9694782
A152: 6 | B152: c'(6,1) | M152: 6 | N152: 101.8053244 | Y152: 6 | Z152: 101.8053244
Z153: Factors: | AA153: =SUM(AA147:AA151)/SUM(Z147:Z151) -> 1.448172178 | AB153: =SUM(AB147:AB150)/SUM(AA147:AA150) -> 1.119125198 | AC153: =SUM(AC147:AC149)/SUM(AB147:AB149) -> 1.20176893 | AD153: =SUM(AD147:AD148)/SUM(AC147:AC148) -> 1.070628138 | AE153: =AE147/AD147 -> 0.9967504451
A154: Sample Data Parameters | AA154: =AA153*AB154 -> 2.078475631 | AB154: =AB153*AC154 -> 1.435240687 | AC154: =AC153*AD154 -> 1.282466599 | AD154: =AD153*AE154 -> 1.067149073 | AE154: =AE153 -> 0.9967504451
A155: α1 | B155: ='GLM 2'!CB130 -> 4.614328004
A156: α2 | B156: ='GLM 2'!CB131 -> 4.542702116 | Y156: Projected Cumulative Data
A157: α3 | B157: ='GLM 2'!CB132 -> 4.741002819 | Z157: 1 | AA157: 2 | AB157: 3 | AC157: 4 | AD157: 5 | AE157: 6
A158: α4 | B158: ='GLM 2'!CB133 -> 4.740153576 | Y158: 1 | Z158: =Z147 -> 89.84076129 | AA158: =AA147 -> 151.926608 | AB158: 165.8914358 | AC158: 196.7034772 | AD158: 210.4435835 | AE158: =AE147 -> 209.7597355
A159: α5 | B159: ='GLM 2'!CB134 -> 4.542128242 | Y159: 2 | Z159: 85.20531387 | AA159: 136.3510866 | AB159: 147.753982 | AC159: 182.8317689 | AD159: 195.8975302 | AE159: =AD159*AE$153 -> 195.2609504
A160: α6 | B160: ='GLM 2'!CB135 -> 4.623062406 | Y160: 3 | Z160: 123.9399284 | AA160: 154.2918291 | AB160: 187.816394 | AC160: 223.1059788 | AD160: =AC160*AD$153 -> 238.8635386 | AE160: =AD160*AE$153 -> 238.0873384
A161: β2 | B161: ='GLM 2'!CB136 -> -0.802577795 | Y161: 4 | Z161: 118.9844439 | AA161: 171.2601027 | AB161: 185.4903906 | AC161: =AB161*AC$153 -> 222.9165881 | AD161: =AC161*AD$153 -> 238.6607716 | AE161: =AD161*AE$153 -> 237.8852303
A162: β3 | B162: ='GLM 2'!CB137 -> -0.9547002621 | Y162: 5 | Z162: 99.7850489 | AA162: 135.9694782 | AB162: =AA162*AB$153 -> 152.1668693 | AC162: =AB162*AC$153 -> 182.8694157 | AD162: =AC162*AD$153 -> 195.7851419 | AE162: =AD162*AE$153 -> 195.1489274
A163: β4 | B163: ='GLM 2'!CB138 -> 0.6394954101 | Y163: 6 | Z163: 101.8053244 | AA163: =Z163*AA$153 -> 147.4316384 | AB163: =AA163*AB$153 -> 164.9944616 | AC163: =AB163*AC$153 -> 198.2852175 | AD163: =AC163*AD$153 -> 212.2897331 | AE163: =AD163*AE$153 -> 211.599886
A164: β5 | B164: ='GLM 2'!CB139 -> -0.8658999363
A165: β6 | B165: ='GLM 2'!CB140 -> -2.250625777 | M165: Projected Incremental Data | U165: Point | Y165: Projected Incremental Data | AG165: Point | AI165: Difference
N166: 1 | O166: 2 | P166: 3 | Q166: 4 | R166: 5 | S166: 6 | U166: Estimate | Z166: 1 | AA166: 2 | AB166: 3 | AC166: 4 | AD166: 5 | AE166: 6 | AG166: Estimate | AJ166: 1 | AK166: 2 | AL166: 3 | AM166: 4 | AN166: 5 | AO166: 6
M167: 1 | Y167: 1 | AI167: 1
M168: 2 | S168: =EXP($B156+$B$161+$B$162+$B$163+$B$164+$B$165) -> 1.361236877 | U168: =SUM(N168:S168) -> 1.361236877 | Y168: 2 | AE168: =AE159-AD159 -> -0.6365797773 | AG168: =SUM(Z168:AE168) -> -0.6365797773 | AI168: 2 | AO168: =S168-AE168 -> 1.997816655
M169: 3 | R169: =EXP($B157+$B$161+$B$162+$B$163+$B$164) -> 15.75755977 | S169: =EXP($B157+$B$161+$B$162+$B$163+$B$164+$B$165) -> 1.659795594 | U169: =SUM(N169:S169) -> 17.41735537 | Y169: 3 | AD169: 15.75755977 | AE169: -0.7762001801 | AG169: =SUM(Z169:AE169) -> 14.98135959 | AI169: 3 | AN169: =R169-AD169 -> -1.421085472e-14 | AO169: =S169-AE169 -> 2.435995774
M170: 4 | Q170: =EXP($B158+$B$161+$B$162+$B$163) -> 37.42619758 | R170: =EXP($B158+$B$161+$B$162+$B$163+$B$164) -> 15.74418346 | S170: =EXP($B158+$B$161+$B$162+$B$163+$B$164+$B$165) -> 1.658386623 | U170: =SUM(N170:S170) -> 54.82876767 | Y170: 4 | AC170: 37.42619758 | AD170: 15.74418346 | AE170: -0.7755412776 | AG170: =SUM(Z170:AE170) -> 52.39483977 | AI170: 4 | AM170: =Q170-AC170 -> -8.526512829e-14 | AN170: =R170-AD170 -> -2.486899575e-14 | AO170: =S170-AE170 -> 2.433927901
M171: 5 | P171: =EXP($B159+$B$161+$B$162) -> 16.19739108 | Q171: =EXP($B159+$B$161+$B$162+$B$163) -> 30.70254637 | R171: =EXP($B159+$B$161+$B$162+$B$163+$B$164) -> 12.91572626 | S171: =EXP($B159+$B$161+$B$162+$B$163+$B$164+$B$165) -> 1.360455923 | U171: =SUM(N171:S171) -> 61.17611962 | Y171: 5 | AB171: 16.19739108 | AC171: 30.70254637 | AD171: 12.91572626 | AE171: -0.6362145656 | AG171: =SUM(Z171:AE171) -> 59.17944913 | AI171: 5 | AL171: =P171-AB171 -> 0 | AM171: =Q171-AC171 -> -9.592326933e-14 | AN171: =R171-AD171 -> -2.309263891e-14 | AO171: =S171-AE171 -> 1.996670489
M172: 6 | O172: =EXP($B160+$B$161) -> 45.62631396 | P172: =EXP($B160+$B$161+$B$162) -> 17.56282318 | Q172: =EXP($B160+$B$161+$B$162+$B$163) -> 33.29075592 | R172: =EXP($B160+$B$161+$B$162+$B$163+$B$164) -> 14.00451563 | S172: =EXP($B160+$B$161+$B$162+$B$163+$B$164+$B$165) -> 1.475141688 | U172: =SUM(N172:S172) -> 111.9595504 | Y172: 6 | AA172: =AA163-Z163 -> 45.62631396 | AB172: 17.56282318 | AC172: 33.29075592 | AD172: 14.00451563 | AE172: -0.6898471405 | AG172: =SUM(Z172:AE172) -> 109.7945615 | AI172: 6 | AK172: =O172-AA172 -> -1.065814104e-13 | AL172: =P172-AB172 -> 0 | AM172: =Q172-AC172 -> -1.136868377e-13 | AN172: =R172-AD172 -> -3.019806627e-14 | AO172: =S172-AE172 -> 2.164988829
U173: =SUM(U168:U172) -> 246.7430299 | AG173: =SUM(AG168:AG172) -> 235.7136303
M174: Random Values
N175: 1 | O175: 2 | P175: 3 | Q175: 4 | R175: 5 | S175: 6
M176: 1
M177: 2 | S177: =RAND() -> 0.9251495837
M178: 3 | R178: 0.1170811518 | S178: 0.37700868
M179: 4 | Q179: 0.8998360199 | R179: 0.9135921216 | S179: 0.1936345161
M180: 5 | P180: 0.4833153881 | Q180: 0.011478317 | R180: 0.8925291042 | S180: 0.9869801194
M181: 6 | O181: =RAND() -> 0.4150989812 | P181: 0.6682564467 | Q181: 0.918985096 | R181: 0.3110488044 | S181: 0.7232874156
M183: Incremental Data w/ Process Variance | U183: Possible | Y183: Incremental Data w/ Process Variance | AG183: Possible | AI183: Difference
N184: 1 | O184: 2 | P184: 3 | Q184: 4 | R184: 5 | S184: 6 | U184: Outcome | Z184: 1 | AA184: 2 | AB184: 3 | AC184: 4 | AD184: 5 | AE184: 6 | AG184: Outcome | AJ184: 1 | AK184: 2 | AL184: 3 | AM184: 4 | AN184: 5 | AO184: 6
M185: 1 | Y185: 1 | AI185: 1
M186: 2 | S186: =GAMMAINV(S177,S168/ScaleParameter,ScaleParameter) -> 4.316379062 | U186: =SUM(N186:S186) -> 4.316379062 | Y186: 2 | AE186: =GAMMAINV(S177,AE168/ScaleParameter,ScaleParameter) ->  | AG186: =SUM(Z186:AE186) ->  | AI186: 2 | AO186: =S186-AE186 -> 
M187: 3 | R187: =GAMMAINV(R178,R169/ScaleParameter,ScaleParameter) -> 8.559783158 | S187: =GAMMAINV(S178,S169/ScaleParameter,ScaleParameter) -> 0.5150251506 | U187: =SUM(N187:S187) -> 9.074808309 | Y187: 3 | AD187: =GAMMAINV(R178,AD169/ScaleParameter,ScaleParameter) -> 8.559783158 | AE187: =GAMMAINV(S178,AE169/ScaleParameter,ScaleParameter) ->  | AG187: =SUM(Z187:AE187) ->  | AI187: 3 | AN187: =R187-AD187 -> 0 | AO187: =S187-AE187 -> 
M188: 4 | Q188: =GAMMAINV(Q179,Q170/ScaleParameter,ScaleParameter) -> 50.77433643 | R188: =GAMMAINV(R179,R170/ScaleParameter,ScaleParameter) -> 25.21040344 | S188: =GAMMAINV(S179,S170/ScaleParameter,ScaleParameter) -> 0.1596346634 | U188: =SUM(N188:S188) -> 76.14437453 | Y188: 4 | AC188: =GAMMAINV(Q179,AC170/ScaleParameter,ScaleParameter) -> 50.77433643 | AD188: =GAMMAINV(R179,AD170/ScaleParameter,ScaleParameter) -> 25.21040344 | AE188: =GAMMAINV(S179,AE170/ScaleParameter,ScaleParameter) ->  | AG188: =SUM(Z188:AE188) ->  | AI188: 4 | AM188: =Q188-AC188 -> -9.947598301e-14 | AN188: =R188-AD188 -> -2.842170943e-14 | AO188: =S188-AE188 -> 
M189: 5 | P189: =GAMMAINV(P180,P171/ScaleParameter,ScaleParameter) -> 15.0351761 | Q189: =GAMMAINV(Q180,Q171/ScaleParameter,ScaleParameter) -> 13.77245321 | R189: =GAMMAINV(R180,R171/ScaleParameter,ScaleParameter) -> 20.51034833 | S189: =GAMMAINV(S180,S171/ScaleParameter,ScaleParameter) -> 8.379750822 | U189: =SUM(N189:S189) -> 57.69772846 | Y189: 5 | AB189: =GAMMAINV(P180,AB171/ScaleParameter,ScaleParameter) -> 15.0351761 | AC189: =GAMMAINV(Q180,AC171/ScaleParameter,ScaleParameter) -> 13.77245321 | AD189: =GAMMAINV(R180,AD171/ScaleParameter,ScaleParameter) -> 20.51034833 | AE189: =GAMMAINV(S180,AE171/ScaleParameter,ScaleParameter) ->  | AG189: =SUM(Z189:AE189) ->  | AI189: 5 | AL189: =P189-AB189 -> -1.421085472e-14 | AM189: =Q189-AC189 -> -6.217248938e-14 | AN189: =R189-AD189 -> 0 | AO189: =S189-AE189 -> 
M190: 6 | O190: =GAMMAINV(O181,O172/ScaleParameter,ScaleParameter) -> 42.40678676 | P190: =GAMMAINV(P181,P172/ScaleParameter,ScaleParameter) -> 19.75310554 | Q190: =GAMMAINV(Q181,Q172/ScaleParameter,ScaleParameter) -> 47.29472782 | R190: =GAMMAINV(R181,R172/ScaleParameter,ScaleParameter) -> 10.40149521 | S190: =GAMMAINV(S181,S172/ScaleParameter,ScaleParameter) -> 1.776871411 | U190: =SUM(N190:S190) -> 121.6329867 | Y190: 6 | AA190: =GAMMAINV(O181,AA172/ScaleParameter,ScaleParameter) -> 42.40678676 | AB190: =GAMMAINV(P181,AB172/ScaleParameter,ScaleParameter) -> 19.75310554 | AC190: =GAMMAINV(Q181,AC172/ScaleParameter,ScaleParameter) -> 47.29472782 | AD190: =GAMMAINV(R181,AD172/ScaleParameter,ScaleParameter) -> 10.40149521 | AE190: =GAMMAINV(S181,AE172/ScaleParameter,ScaleParameter) ->  | AG190: =SUM(Z190:AE190) ->  | AI190: 6 | AK190: =O190-AA190 -> -9.947598301e-14 | AL190: =P190-AB190 -> 0 | AM190: =Q190-AC190 -> -1.350031198e-13 | AN190: =R190-AD190 -> -2.664535259e-14 | AO190: =S190-AE190 -> 
U191: =SUM(U186:U190) -> 268.8662771 | AG191: =SUM(AG186:AG190) -> 

Sheet GLM
A1: GLM Estimation of Model Parameters | G1: rho = | H1: =Data!F55 -> 1 | J1: parameters = | K1: =2*6-1 -> 11
A2: Newton-Raphson Interation Sequence -- Iteration 1
B3: y(i) | D3: xb(i) | F3: W(i,i) | AB3: XWX | AN3: zz(i) | AP3: factor | AR3: xwx-1 | BD3: aa1(i,j) | BZ3: aa2(j) | CB3: beta(j) | CD3: beta_diff = | CE3: =SUM(CD5:CD15) -> 2.304934015 | CF3: beta_old = | CG3: =SUM(CB5:CB15) -> 25.35427416
B4: 1 | D4: 1 | F4: 1 | G4: 2 | H4: 3 | I4: 4 | J4: 5 | K4: 6 | L4: 7 | M4: 8 | N4: 9 | O4: 10 | P4: 11 | Q4: 12 | R4: 13 | S4: 14 | T4: 15 | U4: 16 | V4: 17 | W4: 18 | X4: 19 | Y4: 20 | Z4: 21 | AB4: 1 | AC4: 2 | AD4: 3 | AE4: 4 | AF4: 5 | AG4: 6 | AH4: 7 | AI4: 8 | AJ4: 9 | AK4: 10 | AL4: 11 | AN4: 1 | AR4: 1 | AS4: 2 | AT4: 3 | AU4: 4 | AV4: 5 | AW4: 6 | AX4: 7 | AY4: 8 | AZ4: 9 | BA4: 10 | BB4: 11 | BD4: 1 | BE4: 2 | BF4: 3 | BG4: 4 | BH4: 5 | BI4: 6 | BJ4: 7 | BK4: 8 | BL4: 9 | BM4: 10 | BN4: 11 | BO4: 12 | BP4: 13 | BQ4: 14 | BR4: 15 | BS4: 16 | BT4: 17 | BU4: 18 | BV4: 19 | BW4: 20 | BX4: 21
A5: 1 | B5: =Data!N14 -> 95 | D5: =IF(B5<0,-LN(-B5),LN(B5)) -> 4.553876892 | F5: =IF($A5=F$4,IF($B5<0,-(EXP(-$D5)^(2-$H$1)),IF($B5=0,0,EXP($D5)^(2-$H$1))),0) -> 95 | G5: 0 | H5: 0 | I5: 0 | J5: 0 | K5: 0 | L5: 0 | M5: 0 | N5: 0 | O5: 0 | P5: =IF($A5=P$4,IF($B5<0,-(EXP(-$D5)^(2-$H$1)),IF($B5=0,0,EXP($D5)^(2-$H$1))),0) -> 0 | Q5: 0 | R5: 0 | S5: 0 | T5: 0 | U5: 0 | V5: 0 | W5: 0 | X5: 0 | Y5: 0 | Z5: 0 | AB5: =MMULT(TRANSPOSE(DesignMatrix),MMULT(F5:Z25,DesignMatrix)) -> 220 | AC5: 0 | AD5: 0 | AE5: 0 | AF5: 0 | AG5: 0 | AH5: 125 | AI5: 70 | AJ5: 50 | AK5: 20 | AL5: 5 | AN5: =IF(B5<0,D5+(B5+EXP(-D5))/-EXP(-D5),IF(B5=0,0,D5+(B5-EXP(D5))/EXP(D5))) -> 4.553876892 | AP5: =OFFSET(AA4,A5,A5) -> 220 | AR5: =MINVERSE(AB5:AL15) -> 0.006174788893 | AS5: 0.001222276984 | AT5: 0.001163884881 | AU5: 0.0007566852058 | AV5: 0.0005071880749 | AW5: 0 | AX5: -0.002155549318 | AY5: 4.131420232e-06 | AZ5: -0.0009134530261 | BA5: -0.001871789991 | BB5: -0.001238127977 | BD5: =MMULT(AR5:BB15,TRANSPOSE(DesignMatrix)) -> 0.006174788893 | BE5: 0.001222276984 | BF5: 0.001163884881 | BG5: 0.0007566852058 | BH5: 0.0005071880749 | BI5: 0 | BJ5: 0.004019239574 | BK5: -0.000933272334 | BL5: -0.0009916644371 | BM5: -0.001398864112 | BN5: -0.001648361243 | BO5: 0.004023370995 | BP5: -0.0009291409138 | BQ5: -0.0009875330169 | BR5: -0.001394732692 | BS5: 0.003109917969 | BT5: -0.00184259394 | BU5: -0.001900986043 | BV5: 0.001238127977 | BW5: -0.003714383931 | BX5: 0 | BZ5: =MMULT(F5:Z25,AN5:AN25) -> 432.6183047 | CB5: =MMULT(BD5:BX15,BZ5:BZ25) -> 4.687463064 | CD5: =CB5/$K$1 -> 0.4261330058
A6: 2 | B6: =Data!N15 -> 110 | D6: =IF(B6<0,-LN(-B6),LN(B6)) -> 4.700480366 | F6: 0 | G6: 110 | H6: 0 | I6: 0 | J6: 0 | K6: 0 | L6: 0 | M6: 0 | N6: 0 | O6: 0 | P6: 0 | Q6: 0 | R6: 0 | S6: 0 | T6: 0 | U6: 0 | V6: 0 | W6: 0 | X6: 0 | Y6: 0 | Z6: 0 | AB6: 0 | AC6: 210 | AD6: 0 | AE6: 0 | AF6: 0 | AG6: 0 | AH6: 100 | AI6: 50 | AJ6: 35 | AK6: 5 | AL6: 0 | AN6: =IF(B6<0,D6+(B6+EXP(-D6))/-EXP(-D6),IF(B6=0,0,D6+(B6-EXP(D6))/EXP(D6))) -> 4.700480366 | AP6: =OFFSET(AA4,A6,A6) -> 210 | AR6: 0.001222276984 | AS6: 0.005813269965 | AT6: 0.001031334018 | AU6: 0.0006454465786 | AV6: 0.0004513871466 | AW6: 0 | AX6: -0.001918395373 | AY6: 0.0001762694069 | AZ6: -0.001154037644 | BA6: 0.000526138381 | BB6: 0.001147748245 | BD6: 0.001222276984 | BE6: 0.005813269965 | BF6: 0.001031334018 | BG6: 0.0006454465786 | BH6: 0.0004513871466 | BI6: 0 | BJ6: -0.000696118389 | BK6: 0.003894874592 | BL6: -0.0008870613553 | BM6: -0.001272948795 | BN6: -0.001467008227 | BO6: -0.0005198489821 | BP6: 0.004071143999 | BQ6: -0.0007107919484 | BR6: -0.001096679388 | BS6: -0.001673886626 | BT6: 0.002917106354 | BU6: -0.001864829592 | BV6: -0.001147748245 | BW6: 0.003443244735 | BX6: -8.67361738e-19 | BZ6: 517.0528402 | CB6: 4.67192943 | CD6: 0.4247208573
A7: 3 | B7: =Data!N16 -> 105 | D7: 4.65396035 | F7: 0 | G7: 0 | H7: 105 | I7: 0 | J7: 0 | K7: 0 | L7: 0 | M7: 0 | N7: 0 | O7: 0 | P7: 0 | Q7: 0 | R7: 0 | S7: 0 | T7: 0 | U7: 0 | V7: 0 | W7: 0 | X7: 0 | Y7: 0 | Z7: 0 | AB7: 0 | AC7: 0 | AD7: 210 | AE7: 0 | AF7: 0 | AG7: 0 | AH7: 105 | AI7: 45 | AJ7: 20 | AK7: 0 | AL7: 0 | AN7: 4.65396035 | AP7: =OFFSET(AA4,A7,A7) -> 210 | AR7: 0.001163884881 | AS7: 0.001031334018 | AT7: 0.00587006873 | AU7: 0.0007828281133 | AV7: 0.0005052892624 | AW7: 0 | AX7: -0.002147479365 | AY7: -0.0001745680743 | AZ7: 3.13231697e-05 | BA7: 0.001159977104 | BB7: -3.31377158e-05 | BD7: 0.001163884881 | BE7: 0.001031334018 | BF7: 0.00587006873 | BG7: 0.0007828281133 | BH7: 0.0005052892624 | BI7: 0 | BJ7: -0.000983594484 | BK7: -0.001116145347 | BL7: 0.003722589365 | BM7: -0.001364651252 | BN7: -0.001642190103 | BO7: -0.001158162558 | BP7: -0.001290713421 | BQ7: 0.003548021291 | BR7: -0.001539219326 | BS7: -0.001126839389 | BT7: -0.001259390252 | BU7: 0.00357934446 | BV7: 3.31377158e-05 | BW7: -9.941314739e-05 | BX7: -6.09863722e-19 | BZ7: 488.6658368 | CB7: 4.720164563 | CD7: 0.4291058694
A8: 4 | B8: =Data!N17 -> 120 | D8: 4.787491743 | F8: 0 | G8: 0 | H8: 0 | I8: 120 | J8: 0 | K8: 0 | L8: 0 | M8: 0 | N8: 0 | O8: 0 | P8: 0 | Q8: 0 | R8: 0 | S8: 0 | T8: 0 | U8: 0 | V8: 0 | W8: 0 | X8: 0 | Y8: 0 | Z8: 0 | AB8: 0 | AC8: 0 | AD8: 0 | AE8: 185 | AF8: 0 | AG8: 0 | AH8: 65 | AI8: 30 | AJ8: 0 | AK8: 0 | AL8: 0 | AN8: 4.787491743 | AP8: =OFFSET(AA4,A8,A8) -> 185 | AR8: 0.0007566852058 | AS8: 0.0006454465786 | AT8: 0.0007828281133 | AU8: 0.006088487041 | AV8: 0.0003407721923 | AW8: 0 | AX8: -0.001448281817 | AY8: -0.001074392814 | AZ8: 0.001801168184 | BA8: -7.369101534e-06 | BB8: -2.780965679e-05 | BD8: 0.0007566852058 | BE8: 0.0006454465786 | BF8: 0.0007828281133 | BG8: 0.006088487041 | BH8: 0.0003407721923 | BI8: 0 | BJ8: -0.0006915966116 | BK8: -0.0008028352387 | BL8: -0.0006654537041 | BM8: 0.004640205223 | BN8: -0.001107509625 | BO8: -0.001765989426 | BP8: -0.001877228053 | BQ8: -0.001739846518 | BR8: 0.003565812409 | BS8: 3.517875833e-05 | BT8: -7.605986885e-05 | BU8: 6.132166578e-05 | BV8: 2.780965679e-05 | BW8: -8.342897038e-05 | BX8: -6.437450399e-20 | BZ8: 574.4990091 | CB8: 4.739874588 | CD8: 0.4308976898
A9: 5 | B9: =Data!N18 -> 130 | D9: 4.86753445 | F9: 0 | G9: 0 | H9: 0 | I9: 0 | J9: 130 | K9: 0 | L9: 0 | M9: 0 | N9: 0 | O9: 0 | P9: 0 | Q9: 0 | R9: 0 | S9: 0 | T9: 0 | U9: 0 | V9: 0 | W9: 0 | X9: 0 | Y9: 0 | Z9: 0 | AB9: 0 | AC9: 0 | AD9: 0 | AE9: 0 | AF9: 170 | AG9: 0 | AH9: 40 | AI9: 0 | AJ9: 0 | AK9: 0 | AL9: 0 | AN9: 4.86753445 | AP9: =OFFSET(AA4,A9,A9) -> 170 | AR9: 0.0005071880749 | AS9: 0.0004513871466 | AT9: 0.0005052892624 | AU9: 0.0003407721923 | AV9: 0.006217050086 | AW9: 0 | AX9: -0.001422462864 | AY9: 0.0009805743526 | AZ9: -4.389951226e-05 | BA9: -7.449819158e-06 | BB9: -1.395023206e-05 | BD9: 0.0005071880749 | BE9: 0.0004513871466 | BF9: 0.0005052892624 | BG9: 0.0003407721923 | BH9: 0.006217050086 | BI9: 0 | BJ9: -0.0009152747891 | BK9: -0.0009710757173 | BL9: -0.0009171736016 | BM9: -0.001081690672 | BN9: 0.004794587222 | BO9: 6.529956347e-05 | BP9: 9.498635234e-06 | BQ9: 6.340075096e-05 | BR9: -0.0001011163191 | BS9: 2.140005122e-05 | BT9: -3.440087702e-05 | BU9: 1.950123871e-05 | BV9: 1.395023206e-05 | BW9: -4.185069618e-05 | BX9: -4.319868031e-19 | BZ9: 632.7794786 | CB9: 4.784553934 | CD9: 0.4349594485
A10: 6 | B10: =Data!N19 -> 125 | D10: 4.828313737 | F10: 0 | G10: 0 | H10: 0 | I10: 0 | J10: 0 | K10: 125 | L10: 0 | M10: 0 | N10: 0 | O10: 0 | P10: 0 | Q10: 0 | R10: 0 | S10: 0 | T10: 0 | U10: 0 | V10: 0 | W10: 0 | X10: 0 | Y10: 0 | Z10: 0 | AB10: 0 | AC10: 0 | AD10: 0 | AE10: 0 | AF10: 0 | AG10: 125 | AH10: 0 | AI10: 0 | AJ10: 0 | AK10: 0 | AL10: 0 | AN10: 4.828313737 | AP10: =OFFSET(AA4,A10,A10) -> 125 | AR10: 0 | AS10: 0 | AT10: 0 | AU10: 0 | AV10: 0 | AW10: 0.008 | AX10: 0 | AY10: 0 | AZ10: 0 | BA10: 0 | BB10: 0 | BD10: 0 | BE10: 0 | BF10: 0 | BG10: 0 | BH10: 0 | BI10: 0.008 | BJ10: 0 | BK10: 0 | BL10: 0 | BM10: 0 | BN10: 0 | BO10: 0 | BP10: 0 | BQ10: 0 | BR10: 0 | BS10: 0 | BT10: 0 | BU10: 0 | BV10: 0 | BW10: 0 | BX10: 0 | BZ10: 603.5392172 | CB10: 4.828313737 | CD10: 0.4389376125
A11: 7 | B11: =Data!O14 -> 55 | D11: 4.007333185 | F11: 0 | G11: 0 | H11: 0 | I11: 0 | J11: 0 | K11: 0 | L11: 55 | M11: 0 | N11: 0 | O11: 0 | P11: 0 | Q11: 0 | R11: 0 | S11: 0 | T11: 0 | U11: 0 | V11: 0 | W11: 0 | X11: 0 | Y11: 0 | Z11: 0 | AB11: 125 | AC11: 100 | AD11: 105 | AE11: 65 | AF11: 40 | AG11: 0 | AH11: 435 | AI11: 195 | AJ11: 105 | AK11: 25 | AL11: 5 | AN11: 4.007333185 | AP11: =OFFSET(AA4,A11,A11) -> 435 | AR11: -0.002155549318 | AS11: -0.001918395373 | AT11: -0.002147479365 | AU11: -0.001448281817 | AV11: -0.001422462864 | AW11: 0 | AX11: 0.006045467172 | AY11: -0.004167440998 | AZ11: 0.0001865729271 | BA11: 3.166173142e-05 | BB11: 5.928848626e-05 | BD11: -0.002155549318 | BE11: -0.001918395373 | BF11: -0.002147479365 | BG11: -0.001448281817 | BH11: -0.001422462864 | BI11: 0 | BJ11: 0.003889917854 | BK11: 0.004127071799 | BL11: 0.003897987807 | BM11: 0.004597185354 | BN11: 0.004623004308 | BO11: -0.0002775231448 | BP11: -4.036919975e-05 | BQ11: -0.0002694531916 | BR11: 0.000429744356 | BS11: -9.095021768e-05 | BT11: 0.0001462037273 | BU11: -8.28802645e-05 | BV11: -5.928848626e-05 | BW11: 0.0001778654588 | BX11: 9.757819552e-19 | BZ11: 220.4033252 | CB11: -0.8259878008 | CD11: -0.07508980008
A12: 8 | B12: =Data!O15 -> 50 | D12: 3.912023005 | F12: 0 | G12: 0 | H12: 0 | I12: 0 | J12: 0 | K12: 0 | L12: 0 | M12: 50 | N12: 0 | O12: 0 | P12: 0 | Q12: 0 | R12: 0 | S12: 0 | T12: 0 | U12: 0 | V12: 0 | W12: 0 | X12: 0 | Y12: 0 | Z12: 0 | AB12: 70 | AC12: 50 | AD12: 45 | AE12: 30 | AF12: 0 | AG12: 0 | AH12: 195 | AI12: 195 | AJ12: 105 | AK12: 25 | AL12: 5 | AN12: 3.912023005 | AP12: =OFFSET(AA4,A12,A12) -> 195 | AR12: 4.131420232e-06 | AS12: 0.0001762694069 | AT12: -0.0001745680743 | AU12: -0.001074392814 | AV12: 0.0009805743526 | AW12: 0 | AX12: -0.004167440998 | AY12: 0.01565487785 | AZ12: -0.01151144514 | BA12: -2.315762529e-05 | BB12: 4.303449667e-05 | BD12: 4.131420232e-06 | BE12: 0.0001762694069 | BF12: -0.0001745680743 | BG12: -0.001074392814 | BH12: 0.0009805743526 | BI12: 0 | BJ12: -0.004163309578 | BK12: -0.003991171591 | BL12: -0.004342009073 | BM12: -0.005241833813 | BN12: -0.003186866646 | BO12: 0.01149156827 | BP12: 0.01166370626 | BQ12: 0.01131286878 | BR12: 0.01041304404 | BS12: -1.987687139e-05 | BT12: 0.0001522611153 | BU12: -0.0001985763659 | BV12: -4.303449667e-05 | BW12: 0.00012910349 | BX12: -8.809142651e-19 | BZ12: 195.6011503 | CB12: -0.7405159644 | CD12: -0.06731963313
A13: 9 | B13: =Data!O16 -> 60 | D13: 4.094344562 | F13: 0 | G13: 0 | H13: 0 | I13: 0 | J13: 0 | K13: 0 | L13: 0 | M13: 0 | N13: 60 | O13: 0 | P13: 0 | Q13: 0 | R13: 0 | S13: 0 | T13: 0 | U13: 0 | V13: 0 | W13: 0 | X13: 0 | Y13: 0 | Z13: 0 | AB13: 50 | AC13: 35 | AD13: 20 | AE13: 0 | AF13: 0 | AG13: 0 | AH13: 105 | AI13: 105 | AJ13: 105 | AK13: 25 | AL13: 5 | AN13: 4.094344562 | AP13: =OFFSET(AA4,A13,A13) -> 105 | AR13: -0.0009134530261 | AS13: -0.001154037644 | AT13: 3.13231697e-05 | AU13: 0.001801168184 | AV13: -4.389951226e-05 | AW13: 0 | AX13: 0.0001865729271 | AY13: -0.01151144514 | AZ13: 0.02459235043 | BA13: -0.01229387903 | BB13: -6.01461545e-05 | BD13: -0.0009134530261 | BE13: -0.001154037644 | BF13: 3.13231697e-05 | BG13: 0.001801168184 | BH13: -4.389951226e-05 | BI13: 0 | BJ13: -0.000726880099 | BK13: -0.000967464717 | BL13: 0.0002178960968 | BM13: 0.001987741111 | BN13: 0.0001426734148 | BO13: -0.01223832524 | BP13: -0.01247890986 | BQ13: -0.01129354905 | BR13: -0.009523704033 | BS13: 0.01235402518 | BT13: 0.01211344056 | BU13: 0.01329880138 | BV13: 6.01461545e-05 | BW13: -0.0001804384635 | BX13: 1.490777987e-19 | BZ13: 245.6606737 | CB13: 0.1765215439 | CD13: 0.01604741308
A14: 10 | B14: =Data!O17 -> 35 | D14: 3.555348061 | F14: 0 | G14: 0 | H14: 0 | I14: 0 | J14: 0 | K14: 0 | L14: 0 | M14: 0 | N14: 0 | O14: 35 | P14: 0 | Q14: 0 | R14: 0 | S14: 0 | T14: 0 | U14: 0 | V14: 0 | W14: 0 | X14: 0 | Y14: 0 | Z14: 0 | AB14: 20 | AC14: 5 | AD14: 0 | AE14: 0 | AF14: 0 | AG14: 0 | AH14: 25 | AI14: 25 | AJ14: 25 | AK14: 25 | AL14: 5 | AN14: 3.555348061 | AP14: =OFFSET(AA4,A14,A14) -> 25 | AR14: -0.001871789991 | AS14: 0.000526138381 | AT14: 0.001159977104 | AU14: -7.369101534e-06 | AV14: -7.449819158e-06 | AW14: 0 | AX14: 3.166173142e-05 | AY14: -2.315762529e-05 | AZ14: -0.01229387903 | BA14: 0.06355768282 | BB14: -0.04940051791 | BD14: -0.001871789991 | BE14: 0.000526138381 | BF14: 0.001159977104 | BG14: -7.369101534e-06 | BH14: -7.449819158e-06 | BI14: 0 | BJ14: -0.00184012826 | BK14: 0.0005578001124 | BL14: 0.001191638836 | BM14: 2.429262989e-05 | BN14: 2.421191226e-05 | BO14: -0.001863285885 | BP14: 0.0005346424871 | BQ14: 0.00116848121 | BR14: 1.135004602e-06 | BS14: -0.01415716491 | BT14: -0.01175923654 | BU14: -0.01112539782 | BV14: 0.04940051791 | BW14: 0.05179844628 | BX14: 6.938893904e-18 | BZ14: 124.4371822 | CB14: -0.8602003051 | CD14: -0.07820002774
A15: 11 | B15: =Data!O18 -> 40 | D15: 3.688879454 | F15: =IF($A15=F$4,IF($B15<0,-(EXP(-$D15)^(2-$H$1)),IF($B15=0,0,EXP($D15)^(2-$H$1))),0) -> 0 | G15: 0 | H15: 0 | I15: 0 | J15: 0 | K15: 0 | L15: 0 | M15: 0 | N15: 0 | O15: 0 | P15: =IF($A15=P$4,IF($B15<0,-(EXP(-$D15)^(2-$H$1)),IF($B15=0,0,EXP($D15)^(2-$H$1))),0) -> 40 | Q15: 0 | R15: 0 | S15: 0 | T15: 0 | U15: 0 | V15: 0 | W15: 0 | X15: 0 | Y15: 0 | Z15: 0 | AB15: 5 | AC15: 0 | AD15: 0 | AE15: 0 | AF15: 0 | AG15: 0 | AH15: 5 | AI15: 5 | AJ15: 5 | AK15: 5 | AL15: 5 | AN15: 3.688879454 | AP15: =OFFSET(AA4,A15,A15) -> 5 | AR15: -0.001238127977 | AS15: 0.001147748245 | AT15: -3.31377158e-05 | AU15: -2.780965679e-05 | AV15: -1.395023206e-05 | AW15: 0 | AX15: 5.928848626e-05 | AY15: 4.303449667e-05 | AZ15: -6.01461545e-05 | BA15: -0.04940051791 | BB15: 0.2505964691 | BD15: -0.001238127977 | BE15: 0.001147748245 | BF15: -3.31377158e-05 | BG15: -2.780965679e-05 | BH15: -1.395023206e-05 | BI15: 0 | BJ15: -0.001178839491 | BK15: 0.001207036731 | BL15: 2.615077046e-05 | BM15: 3.147882946e-05 | BN15: 4.53382542e-05 | BO15: -0.001135804994 | BP15: 0.001250071228 | BQ15: 6.918526713e-05 | BR15: 7.451332614e-05 | BS15: -0.001195951149 | BT15: 0.001189925074 | BU15: 9.039112636e-06 | BV15: -0.05059646906 | BW15: -0.04821059283 | BX15: 0.2 | BZ15: 147.5551782 | CB15: -0.8278426249 | CD15: -0.07525842045
A16: 12 | B16: =Data!P14 -> 20 | D16: 2.995732274 | F16: 0 | G16: 0 | H16: 0 | I16: 0 | J16: 0 | K16: 0 | L16: 0 | M16: 0 | N16: 0 | O16: 0 | P16: 0 | Q16: 20 | R16: 0 | S16: 0 | T16: 0 | U16: 0 | V16: 0 | W16: 0 | X16: 0 | Y16: 0 | Z16: 0 | AN16: 2.995732274 | BZ16: 59.91464547
A17: 13 | B17: =Data!P15 -> 15 | D17: 2.708050201 | F17: 0 | G17: 0 | H17: 0 | I17: 0 | J17: 0 | K17: 0 | L17: 0 | M17: 0 | N17: 0 | O17: 0 | P17: 0 | Q17: 0 | R17: 15 | S17: 0 | T17: 0 | U17: 0 | V17: 0 | W17: 0 | X17: 0 | Y17: 0 | Z17: 0 | AN17: 2.708050201 | BZ17: 40.62075302
A18: 14 | B18: =Data!P16 -> 25 | D18: 3.218875825 | F18: 0 | G18: 0 | H18: 0 | I18: 0 | J18: 0 | K18: 0 | L18: 0 | M18: 0 | N18: 0 | O18: 0 | P18: 0 | Q18: 0 | R18: 0 | S18: 25 | T18: 0 | U18: 0 | V18: 0 | W18: 0 | X18: 0 | Y18: 0 | Z18: 0 | AN18: 3.218875825 | BZ18: 80.47189562
A19: 15 | B19: =Data!P17 -> 30 | D19: 3.401197382 | F19: 0 | G19: 0 | H19: 0 | I19: 0 | J19: 0 | K19: 0 | L19: 0 | M19: 0 | N19: 0 | O19: 0 | P19: 0 | Q19: 0 | R19: 0 | S19: 0 | T19: 30 | U19: 0 | V19: 0 | W19: 0 | X19: 0 | Y19: 0 | Z19: 0 | AN19: 3.401197382 | BZ19: 102.0359214
A20: 16 | B20: =Data!Q14 -> 30 | D20: 3.401197382 | F20: 0 | G20: 0 | H20: 0 | I20: 0 | J20: 0 | K20: 0 | L20: 0 | M20: 0 | N20: 0 | O20: 0 | P20: 0 | Q20: 0 | R20: 0 | S20: 0 | T20: 0 | U20: 30 | V20: 0 | W20: 0 | X20: 0 | Y20: 0 | Z20: 0 | AN20: 3.401197382 | BZ20: 102.0359214
A21: 17 | B21: =Data!Q15 -> 30 | D21: 3.401197382 | F21: 0 | G21: 0 | H21: 0 | I21: 0 | J21: 0 | K21: 0 | L21: 0 | M21: 0 | N21: 0 | O21: 0 | P21: 0 | Q21: 0 | R21: 0 | S21: 0 | T21: 0 | U21: 0 | V21: 30 | W21: 0 | X21: 0 | Y21: 0 | Z21: 0 | AN21: 3.401197382 | BZ21: 102.0359214
A22: 18 | B22: =Data!Q16 -> 20 | D22: 2.995732274 | F22: 0 | G22: 0 | H22: 0 | I22: 0 | J22: 0 | K22: 0 | L22: 0 | M22: 0 | N22: 0 | O22: 0 | P22: 0 | Q22: 0 | R22: 0 | S22: 0 | T22: 0 | U22: 0 | V22: 0 | W22: 20 | X22: 0 | Y22: 0 | Z22: 0 | AN22: 2.995732274 | BZ22: 59.91464547
A23: 19 | B23: =Data!R14 -> 15 | D23: 2.708050201 | F23: 0 | G23: 0 | H23: 0 | I23: 0 | J23: 0 | K23: 0 | L23: 0 | M23: 0 | N23: 0 | O23: 0 | P23: 0 | Q23: 0 | R23: 0 | S23: 0 | T23: 0 | U23: 0 | V23: 0 | W23: 0 | X23: 15 | Y23: 0 | Z23: 0 | AN23: 2.708050201 | BZ23: 40.62075302
A24: 20 | B24: =Data!R15 -> 5 | D24: 1.609437912 | F24: 0 | G24: 0 | H24: 0 | I24: 0 | J24: 0 | K24: 0 | L24: 0 | M24: 0 | N24: 0 | O24: 0 | P24: 0 | Q24: 0 | R24: 0 | S24: 0 | T24: 0 | U24: 0 | V24: 0 | W24: 0 | X24: 0 | Y24: 5 | Z24: 0 | AN24: 1.609437912 | BZ24: 8.047189562
A25: 21 | B25: =Data!S14 -> 5 | D25: 1.609437912 | F25: 0 | G25: 0 | H25: 0 | I25: 0 | J25: 0 | K25: 0 | L25: 0 | M25: 0 | N25: 0 | O25: 0 | P25: 0 | Q25: 0 | R25: 0 | S25: 0 | T25: 0 | U25: 0 | V25: 0 | W25: 0 | X25: 0 | Y25: 0 | Z25: 5 | AN25: 1.609437912 | BZ25: 8.047189562
A27: Newton-Raphson Interation Sequence -- Iteration 2
B28: y(i) | D28: xb(i) | F28: W(i,i) | AB28: XWX | AN28: zz(i) | AP28: factor | AR28: xwx-1 | BD28: aa1(i,j) | BZ28: aa2(j) | CB28: beta(j) | CD28: beta_diff = | CE28: =SUM(CD30:CD40) -> -0.02019403141 | CF28: beta_old = | CG28: =SUM(CB30:CB40) -> 25.33408013
B29: 1 | D29: 1 | F29: 1 | G29: 2 | H29: 3 | I29: 4 | J29: 5 | K29: 6 | L29: 7 | M29: 8 | N29: 9 | O29: 10 | P29: 11 | Q29: 12 | R29: 13 | S29: 14 | T29: 15 | U29: 16 | V29: 17 | W29: 18 | X29: 19 | Y29: 20 | Z29: 21 | AB29: 1 | AC29: 2 | AD29: 3 | AE29: 4 | AF29: 5 | AG29: 6 | AH29: 7 | AI29: 8 | AJ29: 9 | AK29: 10 | AL29: 11 | AN29: 1 | AR29: 1 | AS29: 2 | AT29: 3 | AU29: 4 | AV29: 5 | AW29: 6 | AX29: 7 | AY29: 8 | AZ29: 9 | BA29: 10 | BB29: 11 | BD29: 1 | BE29: 2 | BF29: 3 | BG29: 4 | BH29: 5 | BI29: 6 | BJ29: 7 | BK29: 8 | BL29: 9 | BM29: 10 | BN29: 11 | BO29: 12 | BP29: 13 | BQ29: 14 | BR29: 15 | BS29: 16 | BT29: 17 | BU29: 18 | BV29: 19 | BW29: 20 | BX29: 21
A30: 1 | B30: =B5 -> 95 | D30: =MMULT(DesignMatrix,CB5:CB15) -> 4.687463064 | F30: =IF($A30=F$4,IF($B30<0,-(EXP(-$D30)^(2-$H$1)),IF($B30=0,0,EXP($D30)^(2-$H$1))),0) -> 108.5773762 | G30: 0 | H30: 0 | I30: 0 | J30: 0 | K30: 0 | L30: 0 | M30: 0 | N30: 0 | O30: 0 | P30: =IF($A30=P$4,IF($B30<0,-(EXP(-$D30)^(2-$H$1)),IF($B30=0,0,EXP($D30)^(2-$H$1))),0) -> 0 | Q30: 0 | R30: 0 | S30: 0 | T30: 0 | U30: 0 | V30: 0 | W30: 0 | X30: 0 | Y30: 0 | Z30: 0 | AB30: =MMULT(TRANSPOSE(DesignMatrix),MMULT(F30:Z50,DesignMatrix)) -> 222.2672243 | AC30: 0 | AD30: 0 | AE30: 0 | AF30: 0 | AG30: 0 | AH30: 113.6898481 | AI30: 66.1544212 | AJ30: 43.48630649 | AK30: 16.44188262 | AL30: 5 | AN30: =IF(B30<0,D30+(B30+EXP(-D30))/-EXP(-D30),IF(B30=0,0,D30+(B30-EXP(D30))/EXP(D30))) -> 4.562415133 | AP30: =OFFSET(AA29,A30,A30) -> 222.2672243 | AR30: =MINVERSE(AB30:AL40) -> 0.005716620697 | AS30: 0.001113993665 | AT30: 0.0009850694727 | AU30: 0.0007415334684 | AV30: 0.0005420593375 | AW30: 0 | AX30: -0.001780196543 | AY30: -0.0003350932406 | AZ30: -0.0004797082499 | BA30: -0.0008381826687 | BB30: -0.002283439995 | BD30: =MMULT(AR30:BB40,TRANSPOSE(DesignMatrix)) -> 0.005716620697 | BE30: 0.001113993665 | BF30: 0.0009850694727 | BG30: 0.0007415334684 | BH30: 0.0005420593375 | BI30: 0 | BJ30: 0.003936424154 | BK30: -0.0006662028779 | BL30: -0.0007951270698 | BM30: -0.001038663074 | BN30: -0.001238137205 | BO30: 0.003601330914 | BP30: -0.001001296119 | BQ30: -0.00113022031 | BR30: -0.001373756315 | BS30: 0.003121622664 | BT30: -0.001481004369 | BU30: -0.00160992856 | BV30: 0.002283439995 | BW30: -0.002319187037 | BX30: -1.301042607e-18 | BZ30: =MMULT(F30:Z50,AN30:AN50) -> 495.3750644 | CB30: =MMULT(BD30:BX40,BZ30:BZ50) -> 4.692786844 | CD30: =CB30-CG3/$K$1 -> 2.387852829
A31: 2 | B31: =B6 -> 110 | D31: 4.67192943 | F31: 0 | G31: 106.903807 | H31: 0 | I31: 0 | J31: 0 | K31: 0 | L31: 0 | M31: 0 | N31: 0 | O31: 0 | P31: 0 | Q31: 0 | R31: 0 | S31: 0 | T31: 0 | U31: 0 | V31: 0 | W31: 0 | X31: 0 | Y31: 0 | Z31: 0 | AB31: 0 | AC31: 213.9183523 | AD31: 0 | AE31: 0 | AF31: 0 | AG31: 0 | AH31: 107.0145453 | AI31: 60.21181086 | AJ31: 37.89309361 | AK31: 11.26552192 | AL31: 0 | AN31: =IF(B31<0,D31+(B31+EXP(-D31))/-EXP(-D31),IF(B31=0,0,D31+(B31-EXP(D31))/EXP(D31))) -> 4.700891851 | AP31: =OFFSET(AA29,A31,A31) -> 213.9183523 | AR31: 0.001113993665 | AS31: 0.005788674398 | AT31: 0.0009850694727 | AU31: 0.0007415334684 | AV31: 0.0005420593375 | AW31: 0 | AX31: -0.001780196543 | AY31: -0.0003350932406 | AZ31: -0.0004797082499 | BA31: -0.0008381826687 | BB31: 0.002319187037 | BD31: 0.001113993665 | BE31: 0.005788674398 | BF31: 0.0009850694727 | BG31: 0.0007415334684 | BH31: 0.0005420593375 | BI31: 0 | BJ31: -0.0006662028779 | BK31: 0.004008477855 | BL31: -0.0007951270698 | BM31: -0.001038663074 | BN31: -0.001238137205 | BO31: -0.001001296119 | BP31: 0.003673384615 | BQ31: -0.00113022031 | BR31: -0.001373756315 | BS31: -0.001481004369 | BT31: 0.003193676365 | BU31: -0.00160992856 | BV31: -0.002319187037 | BW31: 0.002355493696 | BX31: -4.33680869e-19 | BZ31: 502.5432351 | CB31: 4.669371353 | CD31: =CB31-CG3/$K$1 -> 2.364437338
A32: 3 | B32: 105 | D32: 4.720164563 | F32: 0 | G32: 0 | H32: 112.1867129 | I32: 0 | J32: 0 | K32: 0 | L32: 0 | M32: 0 | N32: 0 | O32: 0 | P32: 0 | Q32: 0 | R32: 0 | S32: 0 | T32: 0 | U32: 0 | V32: 0 | W32: 0 | X32: 0 | Y32: 0 | Z32: 0 | AB32: 0 | AC32: 0 | AD32: 212.667402 | AE32: 0 | AF32: 0 | AG32: 0 | AH32: 100.4806891 | AI32: 51.36508624 | AJ32: 27.94343649 | AK32: 0 | AL32: 0 | AN32: 4.656104277 | AP32: =OFFSET(AA29,A32,A32) -> 212.667402 | AR32: 0.0009850694727 | AS32: 0.0009850694727 | AT32: 0.005687247571 | AU32: 0.0007415334684 | AV32: 0.0005420593375 | AW32: 0 | AX32: -0.001780196543 | AY32: -0.0003350932406 | AZ32: -0.0004797082499 | BA32: 0.00160992856 | BB32: -8.096142118e-19 | BD32: 0.0009850694727 | BE32: 0.0009850694727 | BF32: 0.005687247571 | BG32: 0.0007415334684 | BH32: 0.0005420593375 | BI32: 0 | BJ32: -0.0007951270698 | BK32: -0.0007951270698 | BL32: 0.003907051028 | BM32: -0.001038663074 | BN32: -0.001238137205 | BO32: -0.00113022031 | BP32: -0.00113022031 | BQ32: 0.003571957787 | BR32: -0.001373756315 | BS32: -0.00160992856 | BT32: -0.00160992856 | BU32: 0.003092249537 | BV32: 2.168404345e-19 | BW32: 2.168404345e-19 | BX32: -5.927737773e-19 | BZ32: 522.3530338 | CB32: 4.717550375 | CD32: =CB32-CG3/$K$1 -> 2.41261636
A33: 4 | B33: 120 | D33: 4.739874588 | F33: 0 | G33: 0 | H33: 0 | I33: 114.4198511 | J33: 0 | K33: 0 | L33: 0 | M33: 0 | N33: 0 | O33: 0 | P33: 0 | Q33: 0 | R33: 0 | S33: 0 | T33: 0 | U33: 0 | V33: 0 | W33: 0 | X33: 0 | Y33: 0 | Z33: 0 | AB33: 0 | AC33: 0 | AD33: 0 | AE33: 188.4009977 | AF33: 0 | AG33: 0 | AH33: 73.98114653 | AI33: 23.88787057 | AJ33: 0 | AK33: 0 | AL33: 0 | AN33: 4.78864365 | AP33: =OFFSET(AA29,A33,A33) -> 188.4009977 | AR33: 0.0007415334684 | AS33: 0.0007415334684 | AT33: 0.0007415334684 | AU33: 0.006049360988 | AV33: 0.0005420593375 | AW33: 0 | AX33: -0.001780196543 | AY33: -0.0003350932406 | AZ33: 0.001373756315 | BA33: 5.587558065e-19 | BB33: -2.678805421e-19 | BD33: 0.0007415334684 | BE33: 0.0007415334684 | BF33: 0.0007415334684 | BG33: 0.006049360988 | BH33: 0.0005420593375 | BI33: 0 | BJ33: -0.001038663074 | BK33: -0.001038663074 | BL33: -0.001038663074 | BM33: 0.004269164445 | BN33: -0.001238137205 | BO33: -0.001373756315 | BP33: -0.001373756315 | BQ33: -0.001373756315 | BR33: 0.003934071204 | BS33: -2.168404345e-19 | BT33: -2.168404345e-19 | BU33: -2.168404345e-19 | BV33: 3.41915372e-19 | BW33: 3.41915372e-19 | BX33: 7.403482985e-20 | BZ33: 547.9158935 | CB33: 4.730253613 | CD33: =CB33-CG3/$K$1 -> 2.425319598
A34: 5 | B34: 130 | D34: 4.784553934 | F34: 0 | G34: 0 | H34: 0 | I34: 0 | J34: 119.6479803 | K34: 0 | L34: 0 | M34: 0 | N34: 0 | O34: 0 | P34: 0 | Q34: 0 | R34: 0 | S34: 0 | T34: 0 | U34: 0 | V34: 0 | W34: 0 | X34: 0 | Y34: 0 | Z34: 0 | AB34: 0 | AC34: 0 | AD34: 0 | AE34: 0 | AF34: 172.0301433 | AG34: 0 | AH34: 52.38216302 | AI34: 0 | AJ34: 0 | AK34: 0 | AL34: 0 | AN34: 4.871074573 | AP34: =OFFSET(AA29,A34,A34) -> 172.0301433 | AR34: 0.0005420593375 | AS34: 0.0005420593375 | AT34: 0.0005420593375 | AU34: 0.0005420593375 | AV34: 0.006354994099 | AW34: 0 | AX34: -0.001780196543 | AY34: 0.001238137205 | AZ34: -4.010243789e-19 | BA34: 1.736221217e-19 | BB34: 0 | BD34: 0.0005420593375 | BE34: 0.0005420593375 | BF34: 0.0005420593375 | BG34: 0.0005420593375 | BH34: 0.006354994099 | BI34: 0 | BJ34: -0.001238137205 | BK34: -0.001238137205 | BL34: -0.001238137205 | BM34: -0.001238137205 | BN34: 0.004574797557 | BO34: 4.33680869e-19 | BP34: 4.33680869e-19 | BQ34: 2.168404345e-19 | BR34: 2.168404345e-19 | BS34: 3.265649012e-20 | BT34: 3.265649012e-20 | BU34: -1.841839444e-19 | BV34: 2.062786118e-19 | BW34: 2.062786118e-19 | BX34: 2.062786118e-19 | BZ34: 582.8142344 | CB34: 4.779153143 | CD34: =CB34-CG3/$K$1 -> 2.474219128
A35: 6 | B35: 125 | D35: 4.828313737 | F35: 0 | G35: 0 | H35: 0 | I35: 0 | J35: 0 | K35: 125 | L35: 0 | M35: 0 | N35: 0 | O35: 0 | P35: 0 | Q35: 0 | R35: 0 | S35: 0 | T35: 0 | U35: 0 | V35: 0 | W35: 0 | X35: 0 | Y35: 0 | Z35: 0 | AB35: 0 | AC35: 0 | AD35: 0 | AE35: 0 | AF35: 0 | AG35: 125 | AH35: 0 | AI35: 0 | AJ35: 0 | AK35: 0 | AL35: 0 | AN35: 4.828313737 | AP35: =OFFSET(AA29,A35,A35) -> 125 | AR35: 0 | AS35: 0 | AT35: 0 | AU35: 0 | AV35: 0 | AW35: 0.008 | AX35: 0 | AY35: 0 | AZ35: 0 | BA35: 0 | BB35: 0 | BD35: 0 | BE35: 0 | BF35: 0 | BG35: 0 | BH35: 0 | BI35: 0.008 | BJ35: 0 | BK35: 0 | BL35: 0 | BM35: 0 | BN35: 0 | BO35: 0 | BP35: 0 | BQ35: 0 | BR35: 0 | BS35: 0 | BT35: 0 | BU35: 0 | BV35: 0 | BW35: 0 | BX35: 0 | BZ35: 603.5392172 | CB35: 4.828313737 | CD35: =CB35-CG3/$K$1 -> 2.523379722
A36: 7 | B36: 55 | D36: 3.861475263 | F36: 0 | G36: 0 | H36: 0 | I36: 0 | J36: 0 | K36: 0 | L36: 47.53542692 | M36: 0 | N36: 0 | O36: 0 | P36: 0 | Q36: 0 | R36: 0 | S36: 0 | T36: 0 | U36: 0 | V36: 0 | W36: 0 | X36: 0 | Y36: 0 | Z36: 0 | AB36: 113.6898481 | AC36: 107.0145453 | AD36: 100.4806891 | AE36: 73.98114653 | AF36: 52.38216302 | AG36: 0 | AH36: 447.5483921 | AI36: 201.6191889 | AJ36: 109.3228366 | AK36: 27.70740454 | AL36: 5 | AN36: 4.018507051 | AP36: =OFFSET(AA29,A36,A36) -> 447.5483921 | AR36: -0.001780196543 | AS36: -0.001780196543 | AT36: -0.001780196543 | AU36: -0.001780196543 | AV36: -0.001780196543 | AW36: 0 | AX36: 0.005846407415 | AY36: -0.004066210872 | AZ36: 1.317018569e-18 | BA36: -5.701986469e-19 | BB36: 0 | BD36: -0.001780196543 | BE36: -0.001780196543 | BF36: -0.001780196543 | BG36: -0.001780196543 | BH36: -0.001780196543 | BI36: 0 | BJ36: 0.004066210872 | BK36: 0.004066210872 | BL36: 0.004066210872 | BM36: 0.004066210872 | BN36: 0.004066210872 | BO36: -1.734723476e-18 | BP36: -1.734723476e-18 | BQ36: -8.67361738e-19 | BR36: -8.67361738e-19 | BS36: -4.177049074e-19 | BT36: -4.177049074e-19 | BU36: 4.496568306e-19 | BV36: -9.879035544e-19 | BW36: -9.879035544e-19 | BX36: -9.879035544e-19 | BZ36: 191.0214482 | CB36: -0.8470072553 | CD36: =CB36-CG3/$K$1 -> -3.15194127
A37: 8 | B37: 50 | D37: 3.845941629 | F37: 0 | G37: 0 | H37: 0 | I37: 0 | J37: 0 | K37: 0 | L37: 0 | M37: 46.80273443 | N37: 0 | O37: 0 | P37: 0 | Q37: 0 | R37: 0 | S37: 0 | T37: 0 | U37: 0 | V37: 0 | W37: 0 | X37: 0 | Y37: 0 | Z37: 0 | AB37: 66.1544212 | AC37: 60.21181086 | AD37: 51.36508624 | AE37: 23.88787057 | AF37: 0 | AG37: 0 | AH37: 201.6191889 | AI37: 201.6191889 | AJ37: 109.3228366 | AK37: 27.70740454 | AL37: 5 | AN37: 3.914255278 | AP37: =OFFSET(AA29,A37,A37) -> 201.6191889 | AR37: -0.0003350932406 | AS37: -0.0003350932406 | AT37: -0.0003350932406 | AU37: -0.0003350932406 | AV37: 0.001238137205 | AW37: 0 | AX37: -0.004066210872 | AY37: 0.01523596849 | AZ37: -0.01083466438 | BA37: -2.640930323e-18 | BB37: 2.112744258e-18 | BD37: -0.0003350932406 | BE37: -0.0003350932406 | BF37: -0.0003350932406 | BG37: -0.0003350932406 | BH37: 0.001238137205 | BI37: 0 | BJ37: -0.004401304113 | BK37: -0.004401304113 | BL37: -0.004401304113 | BM37: -0.004401304113 | BN37: -0.002828073667 | BO37: 0.01083466438 | BP37: 0.01083466438 | BQ37: 0.01083466438 | BR37: 0.01083466438 | BS37: 1.734723476e-18 | BT37: 1.734723476e-18 | BU37: 1.734723476e-18 | BV37: -9.06206847e-19 | BW37: -9.06206847e-19 | BX37: 1.206537411e-18 | BZ37: 183.1978503 | CB37: -0.7419121967 | CD37: =CB37-CG3/$K$1 -> -3.046846212
A38: 9 | B38: 60 | D38: 3.894176762 | F38: 0 | G38: 0 | H38: 0 | I38: 0 | J38: 0 | K38: 0 | L38: 0 | M38: 0 | N38: 49.11560289 | O38: 0 | P38: 0 | Q38: 0 | R38: 0 | S38: 0 | T38: 0 | U38: 0 | V38: 0 | W38: 0 | X38: 0 | Y38: 0 | Z38: 0 | AB38: 43.48630649 | AC38: 37.89309361 | AD38: 27.94343649 | AE38: 0 | AF38: 0 | AG38: 0 | AH38: 109.3228366 | AI38: 109.3228366 | AJ38: 109.3228366 | AK38: 27.70740454 | AL38: 5 | AN38: 4.115784489 | AP38: =OFFSET(AA29,A38,A38) -> 109.3228366 | AR38: -0.0004797082499 | AS38: -0.0004797082499 | AT38: -0.0004797082499 | AU38: 0.001373756315 | AV38: -3.695669269e-19 | AW38: 0 | AX38: 1.478267708e-18 | AY38: -0.01083466438 | AZ38: 0.0235669574 | BA38: -0.01225258477 | BB38: 2.278075572e-18 | BD38: -0.0004797082499 | BE38: -0.0004797082499 | BF38: -0.0004797082499 | BG38: 0.001373756315 | BH38: -3.695669269e-19 | BI38: 0 | BJ38: -0.0004797082499 | BK38: -0.0004797082499 | BL38: -0.0004797082499 | BM38: 0.001373756315 | BN38: 1.108700781e-18 | BO38: -0.01131437263 | BP38: -0.01131437263 | BQ38: -0.01131437263 | BR38: -0.009460908061 | BS38: 0.01225258477 | BT38: 0.01225258477 | BU38: 0.01225258477 | BV38: 3.469446952e-18 | BW38: 3.469446952e-18 | BX38: 5.747522524e-18 | BZ38: 202.1492365 | CB38: 0.1791095364 | CD38: =CB38-CG3/$K$1 -> -2.125824479
A39: 10 | B39: 35 | D39: 3.913886787 | F39: 0 | G39: 0 | H39: 0 | I39: 0 | J39: 0 | K39: 0 | L39: 0 | M39: 0 | N39: 0 | O39: 50.09327597 | P39: 0 | Q39: 0 | R39: 0 | S39: 0 | T39: 0 | U39: 0 | V39: 0 | W39: 0 | X39: 0 | Y39: 0 | Z39: 0 | AB39: 16.44188262 | AC39: 11.26552192 | AD39: 0 | AE39: 0 | AF39: 0 | AG39: 0 | AH39: 27.70740454 | AI39: 27.70740454 | AJ39: 27.70740454 | AK39: 27.70740454 | AL39: 5 | AN39: 3.612583355 | AP39: =OFFSET(AA29,A39,A39) -> 27.70740454 | AR39: -0.0008381826687 | AS39: -0.0008381826687 | AT39: 0.00160992856 | AU39: 2.36404266e-19 | AV39: 4.064430376e-19 | AW39: 0 | AX39: -1.62577215e-18 | AY39: 3.171311319e-18 | AZ39: -0.01225258477 | BA39: 0.05712926591 | BB39: -0.04403849847 | BD39: -0.0008381826687 | BE39: -0.0008381826687 | BF39: 0.00160992856 | BG39: 2.36404266e-19 | BH39: 4.064430376e-19 | BI39: 0 | BJ39: -0.0008381826687 | BK39: -0.0008381826687 | BL39: 0.00160992856 | BM39: -1.389367884e-18 | BN39: -1.219329113e-18 | BO39: -0.0008381826687 | BP39: -0.0008381826687 | BQ39: 0.00160992856 | BR39: 1.781943435e-18 | BS39: -0.01309076744 | BT39: -0.01309076744 | BU39: -0.01064265621 | BV39: 0.04403849847 | BW39: 0.04403849847 | BX39: -1.387778781e-17 | BZ39: 180.966135 | CB39: -0.9610161008 | CD39: =CB39-CG3/$K$1 -> -3.265950116
A40: 11 | B40: 40 | D40: 3.958566133 | F40: =IF($A40=F$4,IF($B40<0,-(EXP(-$D40)^(2-$H$1)),IF($B40=0,0,EXP($D40)^(2-$H$1))),0) -> 0 | G40: 0 | H40: 0 | I40: 0 | J40: 0 | K40: 0 | L40: 0 | M40: 0 | N40: 0 | O40: 0 | P40: =IF($A40=P$4,IF($B40<0,-(EXP(-$D40)^(2-$H$1)),IF($B40=0,0,EXP($D40)^(2-$H$1))),0) -> 52.38216302 | Q40: 0 | R40: 0 | S40: 0 | T40: 0 | U40: 0 | V40: 0 | W40: 0 | X40: 0 | Y40: 0 | Z40: 0 | AB40: 5 | AC40: 0 | AD40: 0 | AE40: 0 | AF40: 0 | AG40: 0 | AH40: 5 | AI40: 5 | AJ40: 5 | AK40: 5 | AL40: 5 | AN40: 3.722184848 | AP40: =OFFSET(AA29,A40,A40) -> 5 | AR40: -0.002283439995 | AS40: 0.002319187037 | AT40: -6.409506739e-19 | AU40: -3.664394589e-19 | AV40: -3.664394589e-19 | AW40: 0 | AX40: 1.465757836e-18 | AY40: -2.444627748e-18 | AZ40: 5.127605392e-18 | BA40: -0.04403849847 | BB40: 0.2463219385 | BD40: -0.002283439995 | BE40: 0.002319187037 | BF40: -6.409506739e-19 | BG40: -3.664394589e-19 | BH40: -3.664394589e-19 | BI40: 0 | BJ40: -0.002283439995 | BK40: 0.002319187037 | BL40: 8.248071617e-19 | BM40: 1.099318377e-18 | BN40: 1.099318377e-18 | BO40: -0.002283439995 | BP40: 0.002319187037 | BQ40: -1.619820587e-18 | BR40: -1.345309372e-18 | BS40: -0.002283439995 | BT40: 0.002319187037 | BU40: 3.507784805e-18 | BV40: -0.04632193846 | BW40: -0.04171931143 | BX40: 0.2 | BZ40: 194.9760935 | CB40: -0.7125229153 | CD40: =CB40-CG3/$K$1 -> -3.01745693
A41: 12 | B41: 20 | D41: 3.120959299 | F41: 0 | G41: 0 | H41: 0 | I41: 0 | J41: 0 | K41: 0 | L41: 0 | M41: 0 | N41: 0 | O41: 0 | P41: 0 | Q41: 22.66811471 | R41: 0 | S41: 0 | T41: 0 | U41: 0 | V41: 0 | W41: 0 | X41: 0 | Y41: 0 | Z41: 0 | AN41: 3.003255875 | BZ41: 68.07814867
A42: 13 | B42: 15 | D42: 3.105425665 | F42: 0 | G42: 0 | H42: 0 | I42: 0 | J42: 0 | K42: 0 | L42: 0 | M42: 0 | N42: 0 | O42: 0 | P42: 0 | Q42: 0 | R42: 22.31871725 | S42: 0 | T42: 0 | U42: 0 | V42: 0 | W42: 0 | X42: 0 | Y42: 0 | Z42: 0 | AN42: 2.777507301 | BZ42: 61.9904001
A43: 14 | B43: 25 | D43: 3.153660798 | F43: 0 | G43: 0 | H43: 0 | I43: 0 | J43: 0 | K43: 0 | L43: 0 | M43: 0 | N43: 0 | O43: 0 | P43: 0 | Q43: 0 | R43: 0 | S43: 23.42164975 | T43: 0 | U43: 0 | V43: 0 | W43: 0 | X43: 0 | Y43: 0 | Z43: 0 | AN43: 3.221049315 | BZ43: 75.44228888
A44: 15 | B44: 30 | D44: 3.173370822 | F44: 0 | G44: 0 | H44: 0 | I44: 0 | J44: 0 | K44: 0 | L44: 0 | M44: 0 | N44: 0 | O44: 0 | P44: 0 | Q44: 0 | R44: 0 | S44: 0 | T44: 23.88787057 | U44: 0 | V44: 0 | W44: 0 | X44: 0 | Y44: 0 | Z44: 0 | AN44: 3.42923831 | BZ44: 81.9172009
A45: 16 | B45: 30 | D45: 3.297480842 | F45: 0 | G45: 0 | H45: 0 | I45: 0 | J45: 0 | K45: 0 | L45: 0 | M45: 0 | N45: 0 | O45: 0 | P45: 0 | Q45: 0 | R45: 0 | S45: 0 | T45: 0 | U45: 27.04442387 | V45: 0 | W45: 0 | X45: 0 | Y45: 0 | Z45: 0 | AN45: 3.406766814 | BZ45: 92.13404574
A46: 17 | B46: 30 | D46: 3.281947209 | F46: 0 | G46: 0 | H46: 0 | I46: 0 | J46: 0 | K46: 0 | L46: 0 | M46: 0 | N46: 0 | O46: 0 | P46: 0 | Q46: 0 | R46: 0 | S46: 0 | T46: 0 | U46: 0 | V46: 26.62757169 | W46: 0 | X46: 0 | Y46: 0 | Z46: 0 | AN46: 3.40859895 | BZ46: 90.76271291
A47: 18 | B47: 20 | D47: 3.330182342 | F47: 0 | G47: 0 | H47: 0 | I47: 0 | J47: 0 | K47: 0 | L47: 0 | M47: 0 | N47: 0 | O47: 0 | P47: 0 | Q47: 0 | R47: 0 | S47: 0 | T47: 0 | U47: 0 | V47: 0 | W47: 27.94343649 | X47: 0 | Y47: 0 | Z47: 0 | AN47: 3.045913923 | BZ47: 85.11330227
A48: 19 | B48: 15 | D48: 2.437280537 | F48: 0 | G48: 0 | H48: 0 | I48: 0 | J48: 0 | K48: 0 | L48: 0 | M48: 0 | N48: 0 | O48: 0 | P48: 0 | Q48: 0 | R48: 0 | S48: 0 | T48: 0 | U48: 0 | V48: 0 | W48: 0 | X48: 11.44188262 | Y48: 0 | Z48: 0 | AN48: 2.748253608 | BZ48: 31.4451952
A49: 20 | B49: 5 | D49: 2.421746904 | F49: 0 | G49: 0 | H49: 0 | I49: 0 | J49: 0 | K49: 0 | L49: 0 | M49: 0 | N49: 0 | O49: 0 | P49: 0 | Q49: 0 | R49: 0 | S49: 0 | T49: 0 | U49: 0 | V49: 0 | W49: 0 | X49: 0 | Y49: 11.26552192 | Z49: 0 | AN49: 1.865578981 | BZ49: 21.0167209
A50: 21 | B50: 5 | D50: 1.609437912 | F50: 0 | G50: 0 | H50: 0 | I50: 0 | J50: 0 | K50: 0 | L50: 0 | M50: 0 | N50: 0 | O50: 0 | P50: 0 | Q50: 0 | R50: 0 | S50: 0 | T50: 0 | U50: 0 | V50: 0 | W50: 0 | X50: 0 | Y50: 0 | Z50: 5 | AN50: 1.609437912 | BZ50: 8.047189562
A52: Newton-Raphson Interation Sequence -- Iteration 3
B53: y(i) | D53: xb(i) | F53: W(i,i) | AB53: XWX | AN53: zz(i) | AP53: factor | AR53: xwx-1 | BD53: aa1(i,j) | BZ53: aa2(j) | CB53: beta(j) | CD53: beta_diff = | CE53: =SUM(CD55:CD65) -> -0.0001662171397 | CF53: beta_old = | CG53: =SUM(CB55:CB65) -> 25.33391392
B54: 1 | D54: 1 | F54: 1 | G54: 2 | H54: 3 | I54: 4 | J54: 5 | K54: 6 | L54: 7 | M54: 8 | N54: 9 | O54: 10 | P54: 11 | Q54: 12 | R54: 13 | S54: 14 | T54: 15 | U54: 16 | V54: 17 | W54: 18 | X54: 19 | Y54: 20 | Z54: 21 | AB54: 1 | AC54: 2 | AD54: 3 | AE54: 4 | AF54: 5 | AG54: 6 | AH54: 7 | AI54: 8 | AJ54: 9 | AK54: 10 | AL54: 11 | AN54: 1 | AR54: 1 | AS54: 2 | AT54: 3 | AU54: 4 | AV54: 5 | AW54: 6 | AX54: 7 | AY54: 8 | AZ54: 9 | BA54: 10 | BB54: 11 | BD54: 1 | BE54: 2 | BF54: 3 | BG54: 4 | BH54: 5 | BI54: 6 | BJ54: 7 | BK54: 8 | BL54: 9 | BM54: 10 | BN54: 11 | BO54: 12 | BP54: 13 | BQ54: 14 | BR54: 15 | BS54: 16 | BT54: 17 | BU54: 18 | BV54: 19 | BW54: 20 | BX54: 21
A55: 1 | B55: =B30 -> 95 | D55: =MMULT(DesignMatrix,CB30:CB40) -> 4.692786844 | F55: =IF($A55=F$4,IF($B55<0,-(EXP(-$D55)^(2-$H$1)),IF($B55=0,0,EXP($D55)^(2-$H$1))),0) -> 109.1569597 | G55: 0 | H55: 0 | I55: 0 | J55: 0 | K55: 0 | L55: 0 | M55: 0 | N55: 0 | O55: 0 | P55: =IF($A55=P$4,IF($B55<0,-(EXP(-$D55)^(2-$H$1)),IF($B55=0,0,EXP($D55)^(2-$H$1))),0) -> 0 | Q55: 0 | R55: 0 | S55: 0 | T55: 0 | U55: 0 | V55: 0 | W55: 0 | X55: 0 | Y55: 0 | Z55: 0 | AB55: =MMULT(TRANSPOSE(DesignMatrix),MMULT(F55:Z75,DesignMatrix)) -> 220.0867279 | AC55: 0 | AD55: 0 | AE55: 0 | AF55: 0 | AG55: 0 | AH55: 110.9297682 | AI55: 64.13461706 | AJ55: 41.85065138 | AK55: 15.19564663 | AL55: 5 | AN55: =IF(B55<0,D55+(B55+EXP(-D55))/-EXP(-D55),IF(B55=0,0,D55+(B55-EXP(D55))/EXP(D55))) -> 4.563093238 | AP55: =OFFSET(AA54,A55,A55) -> 220.0867279 | AR55: =MINVERSE(AB55:AL65) -> 0.005743707559 | AS55: 0.001094420224 | AT55: 0.0009773886738 | AU55: 0.000734246862 | AV55: 0.000535814376 | AW55: 0 | AX55: -0.001785684649 | AY55: -0.0003372721719 | AZ55: -0.0004802669628 | BA55: -0.0008430552016 | BB55: -0.002297428574 | BD55: =MMULT(AR55:BB65,TRANSPOSE(DesignMatrix)) -> 0.005743707559 | BE55: 0.001094420224 | BF55: 0.0009773886738 | BG55: 0.000734246862 | BH55: 0.000535814376 | BI55: 0 | BJ55: 0.00395802291 | BK55: -0.0006912644248 | BL55: -0.0008082959748 | BM55: -0.001051437787 | BN55: -0.001249870273 | BO55: 0.003620750738 | BP55: -0.001028536597 | BQ55: -0.001145568147 | BR55: -0.001388709959 | BS55: 0.003140483775 | BT55: -0.001508803559 | BU55: -0.00162583511 | BV55: 0.002297428574 | BW55: -0.002351858761 | BX55: -2.168404345e-18 | BZ55: =MMULT(F55:Z75,AN55:AN75) -> 498.0933849 | CB55: =MMULT(BD55:BX65,BZ55:BZ75) -> 4.692874039 | CD55: =CB55-CG28/$K$1 -> 2.389775845
A56: 2 | B56: =B31 -> 110 | D56: 4.669371353 | F56: 0 | G56: 106.6306882 | H56: 0 | I56: 0 | J56: 0 | K56: 0 | L56: 0 | M56: 0 | N56: 0 | O56: 0 | P56: 0 | Q56: 0 | R56: 0 | S56: 0 | T56: 0 | U56: 0 | V56: 0 | W56: 0 | X56: 0 | Y56: 0 | Z56: 0 | AB56: 0 | AC56: 210.1088733 | AD56: 0 | AE56: 0 | AF56: 0 | AG56: 0 | AH56: 103.4781851 | AI56: 57.76603646 | AJ56: 35.9977992 | AK56: 9.95968392 | AL56: 0 | AN56: =IF(B56<0,D56+(B56+EXP(-D56))/-EXP(-D56),IF(B56=0,0,D56+(B56-EXP(D56))/EXP(D56))) -> 4.700969308 | AP56: =OFFSET(AA54,A56,A56) -> 210.1088733 | AR56: 0.001094420224 | AS56: 0.005853857482 | AT56: 0.0009773886738 | AU56: 0.000734246862 | AV56: 0.000535814376 | AW56: 0 | AX56: -0.001785684649 | AY56: -0.0003372721719 | AZ56: -0.0004802669628 | BA56: -0.0008430552016 | BB56: 0.002351858761 | BD56: 0.001094420224 | BE56: 0.005853857482 | BF56: 0.0009773886738 | BG56: 0.000734246862 | BH56: 0.000535814376 | BI56: 0 | BJ56: -0.0006912644248 | BK56: 0.004068172833 | BL56: -0.0008082959748 | BM56: -0.001051437787 | BN56: -0.001249870273 | BO56: -0.001028536597 | BP56: 0.003730900661 | BQ56: -0.001145568147 | BR56: -0.001388709959 | BS56: -0.001508803559 | BT56: 0.003250633698 | BU56: -0.00162583511 | BV56: -0.002351858761 | BW56: 0.002407578497 | BX56: -8.67361738e-19 | BZ56: 501.2675927 | CB56: 4.669343595 | CD56: =CB56-CG28/$K$1 -> 2.366245401
A57: 3 | B57: 105 | D57: 4.717550375 | F57: 0 | G57: 0 | H57: 111.8938188 | I57: 0 | J57: 0 | K57: 0 | L57: 0 | M57: 0 | N57: 0 | O57: 0 | P57: 0 | Q57: 0 | R57: 0 | S57: 0 | T57: 0 | U57: 0 | V57: 0 | W57: 0 | X57: 0 | Y57: 0 | Z57: 0 | AB57: 0 | AC57: 0 | AD57: 210.0282526 | AE57: 0 | AF57: 0 | AG57: 0 | AH57: 98.13443384 | AI57: 50.16600225 | AJ57: 27.32331752 | AK57: 0 | AL57: 0 | AN57: 4.655940012 | AP57: =OFFSET(AA54,A57,A57) -> 210.0282526 | AR57: 0.0009773886738 | AS57: 0.0009773886738 | AT57: 0.005738652873 | AU57: 0.000734246862 | AV57: 0.000535814376 | AW57: 0 | AX57: -0.001785684649 | AY57: -0.0003372721719 | AZ57: -0.0004802669628 | BA57: 0.00162583511 | BB57: 3.588547032e-19 | BD57: 0.0009773886738 | BE57: 0.0009773886738 | BF57: 0.005738652873 | BG57: 0.000734246862 | BH57: 0.000535814376 | BI57: 0 | BJ57: -0.0008082959748 | BK57: -0.0008082959748 | BL57: 0.003952968225 | BM57: -0.001051437787 | BN57: -0.001249870273 | BO57: -0.001145568147 | BP57: -0.001145568147 | BQ57: 0.003615696053 | BR57: -0.001388709959 | BS57: -0.00162583511 | BT57: -0.00162583511 | BU57: 0.00313542909 | BV57: -8.67361738e-19 | BW57: -8.67361738e-19 | BX57: -5.085070348e-19 | BZ57: 520.9709079 | CB57: 4.717545672 | CD57: =CB57-CG28/$K$1 -> 2.414447478
A58: 4 | B58: 120 | D58: 4.730253613 | F58: 0 | G58: 0 | H58: 0 | I58: 113.3242992 | J58: 0 | K58: 0 | L58: 0 | M58: 0 | N58: 0 | O58: 0 | P58: 0 | Q58: 0 | R58: 0 | S58: 0 | T58: 0 | U58: 0 | V58: 0 | W58: 0 | X58: 0 | Y58: 0 | Z58: 0 | AB58: 0 | AC58: 0 | AD58: 0 | AE58: 185.0406837 | AF58: 0 | AG58: 0 | AH58: 71.71638452 | AI58: 23.1347117 | AJ58: 0 | AK58: 0 | AL58: 0 | AN58: 4.789161551 | AP58: =OFFSET(AA54,A58,A58) -> 185.0406837 | AR58: 0.000734246862 | AS58: 0.000734246862 | AT58: 0.000734246862 | AU58: 0.006138463816 | AV58: 0.000535814376 | AW58: 0 | AX58: -0.001785684649 | AY58: -0.0003372721719 | AZ58: 0.001388709959 | BA58: 5.721514239e-19 | BB58: -3.190973906e-19 | BD58: 0.000734246862 | BE58: 0.000734246862 | BF58: 0.000734246862 | BG58: 0.006138463816 | BH58: 0.000535814376 | BI58: 0 | BJ58: -0.001051437787 | BK58: -0.001051437787 | BL58: -0.001051437787 | BM58: 0.004352779167 | BN58: -0.001249870273 | BO58: -0.001388709959 | BP58: -0.001388709959 | BQ58: -0.001388709959 | BR58: 0.004015506995 | BS58: -8.67361738e-19 | BT58: -8.67361738e-19 | BU58: -8.67361738e-19 | BV58: -2.952103141e-19 | BW58: -2.952103141e-19 | BX58: -6.143077047e-19 | BZ58: 542.7283764 | CB58: 4.730149504 | CD58: =CB58-CG28/$K$1 -> 2.42705131
A59: 5 | B59: 130 | D59: 4.779153143 | F59: 0 | G59: 0 | H59: 0 | I59: 0 | J59: 119.0035284 | K59: 0 | L59: 0 | M59: 0 | N59: 0 | O59: 0 | P59: 0 | Q59: 0 | R59: 0 | S59: 0 | T59: 0 | U59: 0 | V59: 0 | W59: 0 | X59: 0 | Y59: 0 | Z59: 0 | AB59: 0 | AC59: 0 | AD59: 0 | AE59: 0 | AF59: 170.019864 | AG59: 0 | AH59: 51.01633563 | AI59: 0 | AJ59: 0 | AK59: 0 | AL59: 0 | AN59: 4.871557728 | AP59: =OFFSET(AA54,A59,A59) -> 170.019864 | AR59: 0.000535814376 | AS59: 0.000535814376 | AT59: 0.000535814376 | AU59: 0.000535814376 | AV59: 0.006417480061 | AW59: 0 | AX59: -0.001785684649 | AY59: 0.001249870273 | AZ59: 9.760851108e-19 | BA59: -1.217369958e-19 | BB59: 2.782559904e-19 | BD59: 0.000535814376 | BE59: 0.000535814376 | BF59: 0.000535814376 | BG59: 0.000535814376 | BH59: 0.006417480061 | BI59: 0 | BJ59: -0.001249870273 | BK59: -0.001249870273 | BL59: -0.001249870273 | BM59: -0.001249870273 | BN59: 0.004631795412 | BO59: -1.517883041e-18 | BP59: -1.084202172e-18 | BQ59: -1.301042607e-18 | BR59: -1.301042607e-18 | BS59: -5.417979306e-19 | BT59: -1.081170616e-19 | BU59: -3.249574961e-19 | BV59: -6.635349264e-19 | BW59: -2.298540574e-19 | BX59: -3.85278936e-19 | BZ59: 579.7325584 | CB59: 4.779123495 | CD59: =CB59-CG28/$K$1 -> 2.476025301
A60: 6 | B60: 125 | D60: 4.828313737 | F60: 0 | G60: 0 | H60: 0 | I60: 0 | J60: 0 | K60: 125 | L60: 0 | M60: 0 | N60: 0 | O60: 0 | P60: 0 | Q60: 0 | R60: 0 | S60: 0 | T60: 0 | U60: 0 | V60: 0 | W60: 0 | X60: 0 | Y60: 0 | Z60: 0 | AB60: 0 | AC60: 0 | AD60: 0 | AE60: 0 | AF60: 0 | AG60: 125 | AH60: 0 | AI60: 0 | AJ60: 0 | AK60: 0 | AL60: 0 | AN60: 4.828313737 | AP60: =OFFSET(AA54,A60,A60) -> 125 | AR60: 0 | AS60: 0 | AT60: 0 | AU60: 0 | AV60: 0 | AW60: 0.008 | AX60: 0 | AY60: 0 | AZ60: 0 | BA60: 0 | BB60: 0 | BD60: 0 | BE60: 0 | BF60: 0 | BG60: 0 | BH60: 0 | BI60: 0.008 | BJ60: 0 | BK60: 0 | BL60: 0 | BM60: 0 | BN60: 0 | BO60: 0 | BP60: 0 | BQ60: 0 | BR60: 0 | BS60: 0 | BT60: 0 | BU60: 0 | BV60: 0 | BW60: 0 | BX60: 0 | BZ60: 603.5392172 | CB60: 4.828313737 | CD60: =CB60-CG28/$K$1 -> 2.525215543
A61: 7 | B61: 55 | D61: 3.845779589 | F61: 0 | G61: 0 | H61: 0 | I61: 0 | J61: 0 | K61: 0 | L61: 46.79515111 | M61: 0 | N61: 0 | O61: 0 | P61: 0 | Q61: 0 | R61: 0 | S61: 0 | T61: 0 | U61: 0 | V61: 0 | W61: 0 | X61: 0 | Y61: 0 | Z61: 0 | AB61: 110.9297682 | AC61: 103.4781851 | AD61: 98.13443384 | AE61: 71.71638452 | AF61: 51.01633563 | AG61: 0 | AH61: 435.2751073 | AI61: 195.2013675 | AJ61: 105.1717681 | AK61: 25.15533055 | AL61: 5 | AN61: 4.021115039 | AP61: =OFFSET(AA54,A61,A61) -> 435.2751073 | AR61: -0.001785684649 | AS61: -0.001785684649 | AT61: -0.001785684649 | AU61: -0.001785684649 | AV61: -0.001785684649 | AW61: 0 | AX61: 0.005951071504 | AY61: -0.004165386855 | AZ61: -3.25295527e-18 | BA61: 4.057074508e-19 | BB61: -9.27331316e-19 | BD61: -0.001785684649 | BE61: -0.001785684649 | BF61: -0.001785684649 | BG61: -0.001785684649 | BH61: -0.001785684649 | BI61: 0 | BJ61: 0.004165386855 | BK61: 0.004165386855 | BL61: 0.004165386855 | BM61: 0.004165386855 | BN61: 0.004165386855 | BO61: 5.204170428e-18 | BP61: 4.33680869e-18 | BQ61: 5.204170428e-18 | BR61: 5.204170428e-18 | BS61: 1.951215158e-18 | BT61: 1.08385342e-18 | BU61: 1.951215158e-18 | BV61: 2.356922609e-18 | BW61: 1.489560871e-18 | BX61: 1.429591293e-18 | BZ61: 188.1686859 | CB61: -0.8472978133 | CD61: =CB61-CG28/$K$1 -> -3.150396007
A62: 8 | B62: 50 | D62: 3.822364097 | F62: 0 | G62: 0 | H62: 0 | I62: 0 | J62: 0 | K62: 0 | L62: 0 | M62: 45.71214864 | N62: 0 | O62: 0 | P62: 0 | Q62: 0 | R62: 0 | S62: 0 | T62: 0 | U62: 0 | V62: 0 | W62: 0 | X62: 0 | Y62: 0 | Z62: 0 | AB62: 64.13461706 | AC62: 57.76603646 | AD62: 50.16600225 | AE62: 23.1347117 | AF62: 0 | AG62: 0 | AH62: 195.2013675 | AI62: 195.2013675 | AJ62: 105.1717681 | AK62: 25.15533055 | AL62: 5 | AN62: 3.916165231 | AP62: =OFFSET(AA54,A62,A62) -> 195.2013675 | AR62: -0.0003372721719 | AS62: -0.0003372721719 | AT62: -0.0003372721719 | AU62: -0.0003372721719 | AV62: 0.001249870273 | AW62: 0 | AX62: -0.004165386855 | AY62: 0.0156101171 | AZ62: -0.01110745807 | BA62: -5.83396776e-18 | BB62: 5.426946753e-18 | BD62: -0.0003372721719 | BE62: -0.0003372721719 | BF62: -0.0003372721719 | BG62: -0.0003372721719 | BH62: 0.001249870273 | BI62: 0 | BJ62: -0.004502659027 | BK62: -0.004502659027 | BL62: -0.004502659027 | BM62: -0.004502659027 | BN62: -0.002915516582 | BO62: 0.01110745807 | BP62: 0.01110745807 | BQ62: 0.01110745807 | BR62: 0.01110745807 | BS62: 1.734723476e-18 | BT62: 3.469446952e-18 | BU62: 1.734723476e-18 | BV62: -4.099244284e-18 | BW62: -2.364520808e-18 | BX62: 1.327702469e-18 | BZ62: 179.0163271 | CB62: -0.7419373375 | CD62: =CB62-CG28/$K$1 -> -3.045035531
A63: 9 | B63: 60 | D63: 3.870543119 | F63: 0 | G63: 0 | H63: 0 | I63: 0 | J63: 0 | K63: 0 | L63: 0 | M63: 0 | N63: 47.9684316 | O63: 0 | P63: 0 | Q63: 0 | R63: 0 | S63: 0 | T63: 0 | U63: 0 | V63: 0 | W63: 0 | X63: 0 | Y63: 0 | Z63: 0 | AB63: 41.85065138 | AC63: 35.9977992 | AD63: 27.32331752 | AE63: 0 | AF63: 0 | AG63: 0 | AH63: 105.1717681 | AI63: 105.1717681 | AJ63: 105.1717681 | AK63: 25.15533055 | AL63: 5 | AN63: 4.121365754 | AP63: =OFFSET(AA54,A63,A63) -> 105.1717681 | AR63: -0.0004802669628 | AS63: -0.0004802669628 | AT63: -0.0004802669628 | AU63: 0.001388709959 | AV63: 6.251382238e-19 | AW63: 0 | AX63: -2.413834539e-18 | AY63: -0.01110745807 | AZ63: 0.02408515719 | BA63: -0.01249743216 | BB63: -9.391784706e-18 | BD63: -0.0004802669628 | BE63: -0.0004802669628 | BF63: -0.0004802669628 | BG63: 0.001388709959 | BH63: 6.251382238e-19 | BI63: 0 | BJ63: -0.0004802669628 | BK63: -0.0004802669628 | BL63: -0.0004802669628 | BM63: 0.001388709959 | BN63: -1.788696315e-18 | BO63: -0.01158772503 | BP63: -0.01158772503 | BQ63: -0.01158772503 | BR63: -0.009718748112 | BS63: 0.01249743216 | BT63: 0.01249743216 | BU63: 0.01249743216 | BV63: 3.469446952e-18 | BW63: 1.734723476e-18 | BX63: -5.922337754e-18 | BZ63: 197.6954513 | CB63: 0.1792014001 | CD63: =CB63-CG28/$K$1 -> -2.123896794
A64: 10 | B64: 35 | D64: 3.883246357 | F64: 0 | G64: 0 | H64: 0 | I64: 0 | J64: 0 | K64: 0 | L64: 0 | M64: 0 | N64: 0 | O64: 48.58167282 | P64: 0 | Q64: 0 | R64: 0 | S64: 0 | T64: 0 | U64: 0 | V64: 0 | W64: 0 | X64: 0 | Y64: 0 | Z64: 0 | AB64: 15.19564663 | AC64: 9.95968392 | AD64: 0 | AE64: 0 | AF64: 0 | AG64: 0 | AH64: 25.15533055 | AI64: 25.15533055 | AJ64: 25.15533055 | AK64: 25.15533055 | AL64: 5 | AN64: 3.603682645 | AP64: =OFFSET(AA54,A64,A64) -> 25.15533055 | AR64: -0.0008430552016 | AS64: -0.0008430552016 | AT64: 0.00162583511 | AU64: 5.245319837e-19 | AV64: -2.360385153e-19 | AW64: 0 | AX64: 4.212472023e-19 | AY64: -5.41420504e-18 | AZ64: -0.01249743216 | BA64: 0.0629551537 | BB64: -0.04961466634 | BD64: -0.0008430552016 | BE64: -0.0008430552016 | BF64: 0.00162583511 | BG64: 5.245319837e-19 | BH64: -2.360385153e-19 | BI64: 0 | BJ64: -0.0008430552016 | BK64: -0.0008430552016 | BL64: 0.00162583511 | BM64: 9.45779186e-19 | BN64: 1.852086871e-19 | BO64: -0.0008430552016 | BP64: -0.0008430552016 | BQ64: 0.00162583511 | BR64: -4.468425854e-18 | BS64: -0.01334048736 | BT64: -0.01334048736 | BU64: -0.01087159705 | BV64: 0.04961466634 | BW64: 0.04961466634 | BX64: 1.387778781e-17 | BZ64: 175.0729312 | CB64: -0.9685293304 | CD64: =CB64-CG28/$K$1 -> -3.271627524
A65: 11 | B65: 40 | D65: 3.932145888 | F65: =IF($A65=F$4,IF($B65<0,-(EXP(-$D65)^(2-$H$1)),IF($B65=0,0,EXP($D65)^(2-$H$1))),0) -> 0 | G65: 0 | H65: 0 | I65: 0 | J65: 0 | K65: 0 | L65: 0 | M65: 0 | N65: 0 | O65: 0 | P65: =IF($A65=P$4,IF($B65<0,-(EXP(-$D65)^(2-$H$1)),IF($B65=0,0,EXP($D65)^(2-$H$1))),0) -> 51.01633563 | Q65: 0 | R65: 0 | S65: 0 | T65: 0 | U65: 0 | V65: 0 | W65: 0 | X65: 0 | Y65: 0 | Z65: 0 | AB65: 5 | AC65: 0 | AD65: 0 | AE65: 0 | AF65: 0 | AG65: 0 | AH65: 5 | AI65: 5 | AJ65: 5 | AK65: 5 | AL65: 5 | AN65: 3.716208473 | AP65: =OFFSET(AA54,A65,A65) -> 5 | AR65: -0.002297428574 | AS65: 0.002351858761 | AT65: 6.554967374e-19 | AU65: -3.21089176e-19 | AV65: 3.741118283e-19 | AW65: 0 | AX65: -7.151785823e-19 | AY65: 5.00524652e-18 | AZ65: -1.04879478e-17 | BA65: -0.04961466634 | BB65: 0.2519120949 | BD65: -0.002297428574 | BE65: 0.002351858761 | BF65: 6.554967374e-19 | BG65: -3.21089176e-19 | BH65: 3.741118283e-19 | BI65: 0 | BJ65: -0.002297428574 | BK65: 0.002351858761 | BL65: -5.968184489e-20 | BM65: -1.036267758e-18 | BN65: -3.41066754e-19 | BO65: -0.002297428574 | BP65: 0.002351858761 | BQ65: 4.945564675e-18 | BR65: 3.968978761e-18 | BS65: -0.002297428574 | BT65: 0.002351858761 | BU65: -5.542383124e-18 | BV65: -0.05191209491 | BW65: -0.04726280758 | BX65: 0.2 | BZ65: 189.5873387 | CB65: -0.7048730457 | CD65: =CB65-CG28/$K$1 -> -3.00797124
A66: 12 | B66: 20 | D66: 3.103867392 | F66: 0 | G66: 0 | H66: 0 | I66: 0 | J66: 0 | K66: 0 | L66: 0 | M66: 0 | N66: 0 | O66: 0 | P66: 0 | Q66: 22.28396568 | R66: 0 | S66: 0 | T66: 0 | U66: 0 | V66: 0 | W66: 0 | X66: 0 | Y66: 0 | Z66: 0 | AN66: 3.001373711 | BZ66: 66.88250877
A67: 13 | B67: 15 | D67: 3.080451901 | F67: 0 | G67: 0 | H67: 0 | I67: 0 | J67: 0 | K67: 0 | L67: 0 | M67: 0 | N67: 0 | O67: 0 | P67: 0 | Q67: 0 | R67: 21.76823725 | S67: 0 | T67: 0 | U67: 0 | V67: 0 | W67: 0 | X67: 0 | Y67: 0 | Z67: 0 | AN67: 2.769529285 | BZ67: 60.28777056
A68: 14 | B68: 25 | D68: 3.128630923 | F68: 0 | G68: 0 | H68: 0 | I68: 0 | J68: 0 | K68: 0 | L68: 0 | M68: 0 | N68: 0 | O68: 0 | P68: 0 | Q68: 0 | R68: 0 | S68: 22.84268473 | T68: 0 | U68: 0 | V68: 0 | W68: 0 | X68: 0 | Y68: 0 | Z68: 0 | AN68: 3.223073205 | BZ68: 73.62364507
A69: 15 | B69: 30 | D69: 3.141334161 | F69: 0 | G69: 0 | H69: 0 | I69: 0 | J69: 0 | K69: 0 | L69: 0 | M69: 0 | N69: 0 | O69: 0 | P69: 0 | Q69: 0 | R69: 0 | S69: 0 | T69: 23.1347117 | U69: 0 | V69: 0 | W69: 0 | X69: 0 | Y69: 0 | Z69: 0 | AN69: 3.438086867 | BZ69: 79.53914846
A70: 16 | B70: 30 | D70: 3.282976929 | F70: 0 | G70: 0 | H70: 0 | I70: 0 | J70: 0 | K70: 0 | L70: 0 | M70: 0 | N70: 0 | O70: 0 | P70: 0 | Q70: 0 | R70: 0 | S70: 0 | T70: 0 | U70: 26.65500475 | V70: 0 | W70: 0 | X70: 0 | Y70: 0 | Z70: 0 | AN70: 3.408469131 | BZ70: 90.85276088
A71: 17 | B71: 30 | D71: 3.259561437 | F71: 0 | G71: 0 | H71: 0 | I71: 0 | J71: 0 | K71: 0 | L71: 0 | M71: 0 | N71: 0 | O71: 0 | P71: 0 | Q71: 0 | R71: 0 | S71: 0 | T71: 0 | U71: 0 | V71: 26.03811528 | W71: 0 | X71: 0 | Y71: 0 | Z71: 0 | AN71: 3.41171856 | BZ71: 88.83472119
A72: 18 | B72: 20 | D72: 3.307740459 | F72: 0 | G72: 0 | H72: 0 | I72: 0 | J72: 0 | K72: 0 | L72: 0 | M72: 0 | N72: 0 | O72: 0 | P72: 0 | Q72: 0 | R72: 0 | S72: 0 | T72: 0 | U72: 0 | V72: 0 | W72: 27.32331752 | X72: 0 | Y72: 0 | Z72: 0 | AN72: 3.039715996 | BZ72: 83.05512532
A73: 19 | B73: 15 | D73: 2.321960828 | F73: 0 | G73: 0 | H73: 0 | I73: 0 | J73: 0 | K73: 0 | L73: 0 | M73: 0 | N73: 0 | O73: 0 | P73: 0 | Q73: 0 | R73: 0 | S73: 0 | T73: 0 | U73: 0 | V73: 0 | W73: 0 | X73: 10.19564663 | Y73: 0 | Z73: 0 | AN73: 2.79317698 | BZ73: 28.47824545
A74: 20 | B74: 5 | D74: 2.298545336 | F74: 0 | G74: 0 | H74: 0 | I74: 0 | J74: 0 | K74: 0 | L74: 0 | M74: 0 | N74: 0 | O74: 0 | P74: 0 | Q74: 0 | R74: 0 | S74: 0 | T74: 0 | U74: 0 | V74: 0 | W74: 0 | X74: 0 | Y74: 9.95968392 | Z74: 0 | AN74: 1.8005693 | BZ74: 17.9331011
A75: 21 | B75: 5 | D75: 1.609437912 | F75: 0 | G75: 0 | H75: 0 | I75: 0 | J75: 0 | K75: 0 | L75: 0 | M75: 0 | N75: 0 | O75: 0 | P75: 0 | Q75: 0 | R75: 0 | S75: 0 | T75: 0 | U75: 0 | V75: 0 | W75: 0 | X75: 0 | Y75: 0 | Z75: 5 | AN75: 1.609437912 | BZ75: 8.047189562
A77: Newton-Raphson Interation Sequence -- Iteration 4
B78: y(i) | D78: xb(i) | F78: W(i,i) | AB78: XWX | AN78: zz(i) | AP78: factor | AR78: xwx-1 | BD78: aa1(i,j) | BZ78: aa2(j) | CB78: beta(j) | CD78: beta_diff = | CE78: =SUM(CD80:CD90) -> -3.969898321e-08 | CF78: beta_old = | CG78: =SUM(CB80:CB90) -> 25.33391388
B79: 1 | D79: 1 | F79: 1 | G79: 2 | H79: 3 | I79: 4 | J79: 5 | K79: 6 | L79: 7 | M79: 8 | N79: 9 | O79: 10 | P79: 11 | Q79: 12 | R79: 13 | S79: 14 | T79: 15 | U79: 16 | V79: 17 | W79: 18 | X79: 19 | Y79: 20 | Z79: 21 | AB79: 1 | AC79: 2 | AD79: 3 | AE79: 4 | AF79: 5 | AG79: 6 | AH79: 7 | AI79: 8 | AJ79: 9 | AK79: 10 | AL79: 11 | AN79: 1 | AR79: 1 | AS79: 2 | AT79: 3 | AU79: 4 | AV79: 5 | AW79: 6 | AX79: 7 | AY79: 8 | AZ79: 9 | BA79: 10 | BB79: 11 | BD79: 1 | BE79: 2 | BF79: 3 | BG79: 4 | BH79: 5 | BI79: 6 | BJ79: 7 | BK79: 8 | BL79: 9 | BM79: 10 | BN79: 11 | BO79: 12 | BP79: 13 | BQ79: 14 | BR79: 15 | BS79: 16 | BT79: 17 | BU79: 18 | BV79: 19 | BW79: 20 | BX79: 21
A80: 1 | B80: =B55 -> 95 | D80: =MMULT(DesignMatrix,CB55:CB65) -> 4.692874039 | F80: =IF($A80=F$4,IF($B80<0,-(EXP(-$D80)^(2-$H$1)),IF($B80=0,0,EXP($D80)^(2-$H$1))),0) -> 109.1664781 | G80: 0 | H80: 0 | I80: 0 | J80: 0 | K80: 0 | L80: 0 | M80: 0 | N80: 0 | O80: 0 | P80: =IF($A80=P$4,IF($B80<0,-(EXP(-$D80)^(2-$H$1)),IF($B80=0,0,EXP($D80)^(2-$H$1))),0) -> 0 | Q80: 0 | R80: 0 | S80: 0 | T80: 0 | U80: 0 | V80: 0 | W80: 0 | X80: 0 | Y80: 0 | Z80: 0 | AB80: =MMULT(TRANSPOSE(DesignMatrix),MMULT(F80:Z100,DesignMatrix)) -> 220.0002998 | AC80: 0 | AD80: 0 | AE80: 0 | AF80: 0 | AG80: 0 | AH80: 110.8338217 | AI80: 64.04818598 | AJ80: 41.76931168 | AK80: 15.11794883 | AL80: 5 | AN80: =IF(B80<0,D80+(B80+EXP(-D80))/-EXP(-D80),IF(B80=0,0,D80+(B80-EXP(D80))/EXP(D80))) -> 4.56310455 | AP80: =OFFSET(AA79,A80,A80) -> 220.0002998 | AR80: =MINVERSE(AB80:AL90) -> 0.005744623853 | AS80: 0.001093467548 | AT80: 0.00097726962 | AU80: 0.0007341270044 | AV80: 0.0005357143023 | AW80: 0 | AX80: -0.001785714282 | AY80: -0.0003373015817 | AZ80: -0.0004802699882 | BA80: -0.0008431195298 | BB80: -0.002298218471 | BD80: =MMULT(AR80:BB90,TRANSPOSE(DesignMatrix)) -> 0.005744623853 | BE80: 0.001093467548 | BF80: 0.00097726962 | BG80: 0.0007341270044 | BH80: 0.0005357143023 | BI80: 0 | BJ80: 0.003958909571 | BK80: -0.0006922467345 | BL80: -0.0008084446622 | BM80: -0.001051587278 | BN80: -0.00124999998 | BO80: 0.003621607989 | BP80: -0.001029548316 | BQ80: -0.001145746244 | BR80: -0.001388888859 | BS80: 0.003141338001 | BT80: -0.001509818304 | BU80: -0.001626016232 | BV80: 0.002298218471 | BW80: -0.002352937834 | BX80: -4.33680869e-19 | BZ80: =MMULT(F80:Z100,AN80:AN100) -> 498.138053 | CB80: =MMULT(BD80:BX90,BZ80:BZ100) -> 4.692874069 | CD80: =CB80-CG53/$K$1 -> 2.389790986
A81: 2 | B81: =B56 -> 110 | D81: 4.669343595 | F81: 0 | G81: 106.6277285 | H81: 0 | I81: 0 | J81: 0 | K81: 0 | L81: 0 | M81: 0 | N81: 0 | O81: 0 | P81: 0 | Q81: 0 | R81: 0 | S81: 0 | T81: 0 | U81: 0 | V81: 0 | W81: 0 | X81: 0 | Y81: 0 | Z81: 0 | AB81: 0 | AC81: 210.0003039 | AD81: 0 | AE81: 0 | AF81: 0 | AG81: 0 | AH81: 103.3725755 | AI81: 57.67497541 | AJ81: 35.91421332 | AK81: 9.882648214 | AL81: 0 | AN81: =IF(B81<0,D81+(B81+EXP(-D81))/-EXP(-D81),IF(B81=0,0,D81+(B81-EXP(D81))/EXP(D81))) -> 4.700970186 | AP81: =OFFSET(AA79,A81,A81) -> 210.0003039 | AR81: 0.001093467548 | AS81: 0.005855365418 | AT81: 0.00097726962 | AU81: 0.0007341270044 | AV81: 0.0005357143023 | AW81: 0 | AX81: -0.001785714282 | AY81: -0.0003373015817 | AZ81: -0.0004802699882 | BA81: -0.0008431195298 | BB81: 0.002352937834 | BD81: 0.001093467548 | BE81: 0.005855365418 | BF81: 0.00097726962 | BG81: 0.0007341270044 | BH81: 0.0005357143023 | BI81: 0 | BJ81: -0.0006922467345 | BK81: 0.004069651135 | BL81: -0.0008084446622 | BM81: -0.001051587278 | BN81: -0.00124999998 | BO81: -0.001029548316 | BP81: 0.003732349554 | BQ81: -0.001145746244 | BR81: -0.001388888859 | BS81: -0.001509818304 | BT81: 0.003252079566 | BU81: -0.001626016232 | BV81: -0.002352937834 | BW81: 0.002408960036 | BX81: -8.67361738e-19 | BZ81: 501.2537725 | CB81: 4.669343571 | CD81: =CB81-CG53/$K$1 -> 2.366260488
A82: 3 | B82: 105 | D82: 4.717545672 | F82: 0 | G82: 0 | H82: 111.8932926 | I82: 0 | J82: 0 | K82: 0 | L82: 0 | M82: 0 | N82: 0 | O82: 0 | P82: 0 | Q82: 0 | R82: 0 | S82: 0 | T82: 0 | U82: 0 | V82: 0 | W82: 0 | X82: 0 | Y82: 0 | Z82: 0 | AB82: 0 | AC82: 0 | AD82: 210.000004 | AE82: 0 | AF82: 0 | AG82: 0 | AH82: 98.1067114 | AI82: 50.1524409 | AJ82: 27.31707382 | AK82: 0 | AL82: 0 | AN82: 4.655939722 | AP82: =OFFSET(AA79,A82,A82) -> 210.000004 | AR82: 0.00097726962 | AS82: 0.00097726962 | AT82: 0.005739174292 | AU82: 0.0007341270044 | AV82: 0.0005357143023 | AW82: 0 | AX82: -0.001785714282 | AY82: -0.0003373015817 | AZ82: -0.0004802699882 | BA82: 0.001626016232 | BB82: 4.333670669e-19 | BD82: 0.00097726962 | BE82: 0.00097726962 | BF82: 0.005739174292 | BG82: 0.0007341270044 | BH82: 0.0005357143023 | BI82: 0 | BJ82: -0.0008084446622 | BK82: -0.0008084446622 | BL82: 0.00395346001 | BM82: -0.001051587278 | BN82: -0.00124999998 | BO82: -0.001145746244 | BP82: -0.001145746244 | BQ82: 0.003616158428 | BR82: -0.001388888859 | BS82: -0.001626016232 | BT82: -0.001626016232 | BU82: 0.00313588844 | BV82: 4.33680869e-19 | BW82: 4.33680869e-19 | BX82: 8.670479359e-19 | BZ82: 520.9684256 | CB82: 4.717545673 | CD82: =CB82-CG53/$K$1 -> 2.41446259
A83: 4 | B83: 120 | D83: 4.730149504 | F83: 0 | G83: 0 | H83: 0 | I83: 113.3125018 | J83: 0 | K83: 0 | L83: 0 | M83: 0 | N83: 0 | O83: 0 | P83: 0 | Q83: 0 | R83: 0 | S83: 0 | T83: 0 | U83: 0 | V83: 0 | W83: 0 | X83: 0 | Y83: 0 | Z83: 0 | AB83: 0 | AC83: 0 | AD83: 0 | AE83: 185.0000064 | AF83: 0 | AG83: 0 | AH83: 71.68750466 | AI83: 23.12500162 | AJ83: 0 | AK83: 0 | AL83: 0 | AN83: 4.789167689 | AP83: =OFFSET(AA79,A83,A83) -> 185.0000064 | AR83: 0.0007341270044 | AS83: 0.0007341270044 | AT83: 0.0007341270044 | AU83: 0.006139532222 | AV83: 0.0005357143023 | AW83: 0 | AX83: -0.001785714282 | AY83: -0.0003373015817 | AZ83: 0.001388888859 | BA83: -1.467530398e-19 | BB83: 3.594580463e-19 | BD83: 0.0007341270044 | BE83: 0.0007341270044 | BF83: 0.0007341270044 | BG83: 0.006139532222 | BH83: 0.0005357143023 | BI83: 0 | BJ83: -0.001051587278 | BK83: -0.001051587278 | BL83: -0.001051587278 | BM83: 0.00435381794 | BN83: -0.00124999998 | BO83: -0.001388888859 | BP83: -0.001388888859 | BQ83: -0.001388888859 | BR83: 0.004016516358 | BS83: -2.168404345e-19 | BT83: 0 | BU83: -2.168404345e-19 | BV83: -3.635934743e-19 | BW83: -1.467530398e-19 | BX83: -4.135428075e-21 | BZ83: 542.6725723 | CB83: 4.730149489 | CD83: =CB83-CG53/$K$1 -> 2.427066405
A84: 5 | B84: 130 | D84: 4.779123495 | F84: 0 | G84: 0 | H84: 0 | I84: 0 | J84: 119.0000002 | K84: 0 | L84: 0 | M84: 0 | N84: 0 | O84: 0 | P84: 0 | Q84: 0 | R84: 0 | S84: 0 | T84: 0 | U84: 0 | V84: 0 | W84: 0 | X84: 0 | Y84: 0 | Z84: 0 | AB84: 0 | AC84: 0 | AD84: 0 | AE84: 0 | AF84: 170.0000027 | AG84: 0 | AH84: 51.00000248 | AI84: 0 | AJ84: 0 | AK84: 0 | AL84: 0 | AN84: 4.871560468 | AP84: =OFFSET(AA79,A84,A84) -> 170.0000027 | AR84: 0.0005357143023 | AS84: 0.0005357143023 | AT84: 0.0005357143023 | AU84: 0.0005357143023 | AV84: 0.006418067151 | AW84: 0 | AX84: -0.001785714282 | AY84: 0.00124999998 | AZ84: -2.032738602e-19 | BA84: -3.478626264e-20 | BB84: 2.782901011e-19 | BD84: 0.0005357143023 | BE84: 0.0005357143023 | BF84: 0.0005357143023 | BG84: 0.0005357143023 | BH84: 0.006418067151 | BI84: 0 | BJ84: -0.00124999998 | BK84: -0.00124999998 | BL84: -0.00124999998 | BM84: -0.00124999998 | BN84: 0.004632352869 | BO84: -2.168404345e-19 | BP84: 0 | BQ84: -2.168404345e-19 | BR84: 0 | BS84: -4.201142947e-19 | BT84: -2.032738602e-19 | BU84: -4.201142947e-19 | BV84: -4.549005574e-19 | BW84: -2.380601229e-19 | BX84: -1.766104563e-19 | BZ84: 579.7156966 | CB84: 4.779123493 | CD84: =CB84-CG53/$K$1 -> 2.47604041
A85: 6 | B85: 125 | D85: 4.828313737 | F85: 0 | G85: 0 | H85: 0 | I85: 0 | J85: 0 | K85: 125 | L85: 0 | M85: 0 | N85: 0 | O85: 0 | P85: 0 | Q85: 0 | R85: 0 | S85: 0 | T85: 0 | U85: 0 | V85: 0 | W85: 0 | X85: 0 | Y85: 0 | Z85: 0 | AB85: 0 | AC85: 0 | AD85: 0 | AE85: 0 | AF85: 0 | AG85: 125 | AH85: 0 | AI85: 0 | AJ85: 0 | AK85: 0 | AL85: 0 | AN85: 4.828313737 | AP85: =OFFSET(AA79,A85,A85) -> 125 | AR85: 0 | AS85: 0 | AT85: 0 | AU85: 0 | AV85: 0 | AW85: 0.008 | AX85: 0 | AY85: 0 | AZ85: 0 | BA85: 0 | BB85: 0 | BD85: 0 | BE85: 0 | BF85: 0 | BG85: 0 | BH85: 0 | BI85: 0.008 | BJ85: 0 | BK85: 0 | BL85: 0 | BM85: 0 | BN85: 0 | BO85: 0 | BP85: 0 | BQ85: 0 | BR85: 0 | BS85: 0 | BT85: 0 | BU85: 0 | BV85: 0 | BW85: 0 | BX85: 0 | BZ85: 603.5392172 | CB85: 4.828313737 | CD85: =CB85-CG53/$K$1 -> 2.525230654
A86: 7 | B86: 55 | D86: 3.845576226 | F86: 0 | G86: 0 | H86: 0 | I86: 0 | J86: 0 | K86: 0 | L86: 46.78563568 | M86: 0 | N86: 0 | O86: 0 | P86: 0 | Q86: 0 | R86: 0 | S86: 0 | T86: 0 | U86: 0 | V86: 0 | W86: 0 | X86: 0 | Y86: 0 | Z86: 0 | AB86: 110.8338217 | AC86: 103.3725755 | AD86: 98.1067114 | AE86: 71.68750466 | AF86: 51.00000248 | AG86: 0 | AH86: 435.0006157 | AI86: 195.0006039 | AJ86: 105.0005988 | AK86: 25.00059704 | AL86: 5 | AN86: 4.02115072 | AP86: =OFFSET(AA79,A86,A86) -> 435.0006157 | AR86: -0.001785714282 | AS86: -0.001785714282 | AT86: -0.001785714282 | AU86: -0.001785714282 | AV86: -0.001785714282 | AW86: 0 | AX86: 0.005952380744 | AY86: -0.004166666462 | AZ86: 6.775795118e-19 | BA86: 1.15954205e-19 | BB86: -9.276336397e-19 | BD86: -0.001785714282 | BE86: -0.001785714282 | BF86: -0.001785714282 | BG86: -0.001785714282 | BH86: -0.001785714282 | BI86: 0 | BJ86: 0.004166666462 | BK86: 0.004166666462 | BL86: 0.004166666462 | BM86: 0.004166666462 | BN86: 0.004166666462 | BO86: 0 | BP86: -8.67361738e-19 | BQ86: 0 | BR86: 0 | BS86: 6.775795118e-19 | BT86: -1.897822262e-19 | BU86: 6.775795118e-19 | BV86: 7.935337168e-19 | BW86: -7.382802121e-20 | BX86: -1.34099923e-19 | BZ86: 188.1320926 | CB86: -0.8472978604 | CD86: =CB86-CG53/$K$1 -> -3.150380944
A87: 8 | B87: 50 | D87: 3.822045781 | F87: 0 | G87: 0 | H87: 0 | I87: 0 | J87: 0 | K87: 0 | L87: 0 | M87: 45.69760006 | N87: 0 | O87: 0 | P87: 0 | Q87: 0 | R87: 0 | S87: 0 | T87: 0 | U87: 0 | V87: 0 | W87: 0 | X87: 0 | Y87: 0 | Z87: 0 | AB87: 64.04818598 | AC87: 57.67497541 | AD87: 50.1524409 | AE87: 23.12500162 | AF87: 0 | AG87: 0 | AH87: 195.0006039 | AI87: 195.0006039 | AJ87: 105.0005988 | AK87: 25.00059704 | AL87: 5 | AN87: 3.916195144 | AP87: =OFFSET(AA79,A87,A87) -> 195.0006039 | AR87: -0.0003373015817 | AS87: -0.0003373015817 | AT87: -0.0003373015817 | AU87: -0.0003373015817 | AV87: 0.00124999998 | AW87: 0 | AX87: -0.004166666462 | AY87: 0.01561507853 | AZ87: -0.01111111048 | BA87: 8.145662439e-19 | BB87: 0 | BD87: -0.0003373015817 | BE87: -0.0003373015817 | BF87: -0.0003373015817 | BG87: -0.0003373015817 | BH87: 0.00124999998 | BI87: 0 | BJ87: -0.004503968044 | BK87: -0.004503968044 | BL87: -0.004503968044 | BM87: -0.004503968044 | BN87: -0.002916666482 | BO87: 0.01111111048 | BP87: 0.01111111048 | BQ87: 0.01111111048 | BR87: 0.01111111048 | BS87: -1.734723476e-18 | BT87: -1.734723476e-18 | BU87: -1.734723476e-18 | BV87: -9.201572321e-19 | BW87: -9.201572321e-19 | BX87: -9.201572321e-19 | BZ87: 178.9607195 | CB87: -0.7419373447 | CD87: =CB87-CG53/$K$1 -> -3.045020428
A88: 9 | B88: 60 | D88: 3.870247859 | F88: 0 | G88: 0 | H88: 0 | I88: 0 | J88: 0 | K88: 0 | L88: 0 | M88: 0 | N88: 47.9542705 | O88: 0 | P88: 0 | Q88: 0 | R88: 0 | S88: 0 | T88: 0 | U88: 0 | V88: 0 | W88: 0 | X88: 0 | Y88: 0 | Z88: 0 | AB88: 41.76931168 | AC88: 35.91421332 | AD88: 27.31707382 | AE88: 0 | AF88: 0 | AG88: 0 | AH88: 105.0005988 | AI88: 105.0005988 | AJ88: 105.0005988 | AK88: 25.00059704 | AL88: 5 | AN88: 4.121439867 | AP88: =OFFSET(AA79,A88,A88) -> 105.0005988 | AR88: -0.0004802699882 | AS88: -0.0004802699882 | AT88: -0.0004802699882 | AU88: 0.001388888859 | AV88: -5.819339528e-19 | AW88: 0 | AX88: 1.745801858e-18 | AY88: -0.01111111048 | AZ88: 0.02409138019 | BA88: -0.01249999972 | BB88: 0 | BD88: -0.0004802699882 | BE88: -0.0004802699882 | BF88: -0.0004802699882 | BG88: 0.001388888859 | BH88: -5.819339528e-19 | BI88: 0 | BJ88: -0.0004802699882 | BK88: -0.0004802699882 | BL88: -0.0004802699882 | BM88: 0.001388888859 | BN88: 1.163867906e-18 | BO88: -0.01159138047 | BP88: -0.01159138047 | BQ88: -0.01159138047 | BR88: -0.009722221625 | BS88: 0.01249999972 | BT88: 0.01249999972 | BU88: 0.01249999972 | BV88: -3.469446952e-18 | BW88: -3.469446952e-18 | BX88: -3.469446952e-18 | BZ88: 197.6406422 | CB88: 0.1792014295 | CD88: =CB88-CG53/$K$1 -> -2.123881654
A89: 10 | B89: 35 | D89: 3.882851691 | F89: 0 | G89: 0 | H89: 0 | I89: 0 | J89: 0 | K89: 0 | L89: 0 | M89: 0 | N89: 0 | O89: 48.56250304 | P89: 0 | Q89: 0 | R89: 0 | S89: 0 | T89: 0 | U89: 0 | V89: 0 | W89: 0 | X89: 0 | Y89: 0 | Z89: 0 | AB89: 15.11794883 | AC89: 9.882648214 | AD89: 0 | AE89: 0 | AF89: 0 | AG89: 0 | AH89: 25.00059704 | AI89: 25.00059704 | AJ89: 25.00059704 | AK89: 25.00059704 | AL89: 5 | AN89: 3.603572366 | AP89: =OFFSET(AA79,A89,A89) -> 25.00059704 | AR89: -0.0008431195298 | AS89: -0.0008431195298 | AT89: 0.001626016232 | AU89: -1.980770175e-19 | AV89: -2.752595143e-20 | AW89: 0 | AX89: 1.042612504e-19 | AY89: 4.92731559e-18 | AZ89: -0.01249999972 | BA89: 0.0633416267 | BB89: -0.04999850745 | BD89: -0.0008431195298 | BE89: -0.0008431195298 | BF89: 0.001626016232 | BG89: -1.980770175e-19 | BH89: -2.752595143e-20 | BI89: 0 | BJ89: -0.0008431195298 | BK89: -0.0008431195298 | BL89: 0.001626016232 | BM89: -9.381576707e-20 | BN89: 7.673529902e-20 | BO89: -0.0008431195298 | BP89: -0.0008431195298 | BQ89: 0.001626016232 | BR89: 4.833499823e-18 | BS89: -0.01334311925 | BT89: -0.01334311925 | BU89: -0.01087398349 | BV89: 0.04999850745 | BW89: 0.04999850745 | BX89: 2.081668171e-17 | BZ89: 174.998494 | CB89: -0.96855916 | CD89: =CB89-CG53/$K$1 -> -3.271642243
A90: 11 | B90: 40 | D90: 3.931825681 | F90: =IF($A90=F$4,IF($B90<0,-(EXP(-$D90)^(2-$H$1)),IF($B90=0,0,EXP($D90)^(2-$H$1))),0) -> 0 | G90: 0 | H90: 0 | I90: 0 | J90: 0 | K90: 0 | L90: 0 | M90: 0 | N90: 0 | O90: 0 | P90: =IF($A90=P$4,IF($B90<0,-(EXP(-$D90)^(2-$H$1)),IF($B90=0,0,EXP($D90)^(2-$H$1))),0) -> 51.00000248 | Q90: 0 | R90: 0 | S90: 0 | T90: 0 | U90: 0 | V90: 0 | W90: 0 | X90: 0 | Y90: 0 | Z90: 0 | AB90: 5 | AC90: 0 | AD90: 0 | AE90: 0 | AF90: 0 | AG90: 0 | AH90: 5 | AI90: 5 | AJ90: 5 | AK90: 5 | AL90: 5 | AN90: 3.716139369 | AP90: =OFFSET(AA79,A90,A90) -> 5 | AR90: -0.002298218471 | AS90: 0.002352937834 | AT90: 2.188325267e-19 | AU90: 6.405090592e-20 | AV90: 1.86855485e-20 | AW90: 0 | AX90: -1.654729088e-19 | AY90: -2.412551849e-18 | AZ90: 1.750660213e-18 | BA90: -0.04999850745 | BB90: 0.2522967259 | BD90: -0.002298218471 | BE90: 0.002352937834 | BF90: 2.188325267e-19 | BG90: 6.405090592e-20 | BH90: 1.86855485e-20 | BI90: 0 | BJ90: -0.002298218471 | BK90: 0.002352937834 | BL90: 5.335961783e-20 | BM90: -1.014220029e-19 | BN90: -1.467873603e-19 | BO90: -0.002298218471 | BP90: 0.002352937834 | BQ90: -2.359192231e-18 | BR90: -2.513973852e-18 | BS90: -0.002298218471 | BT90: 0.002352937834 | BU90: -6.085320176e-19 | BV90: -0.05229672592 | BW90: -0.04764556961 | BX90: 0.2 | BZ90: 189.523117 | CB90: -0.7048432208 | CD90: =CB90-CG53/$K$1 -> -3.007926304
A91: 12 | B91: 20 | D91: 3.103638888 | F91: 0 | G91: 0 | H91: 0 | I91: 0 | J91: 0 | K91: 0 | L91: 0 | M91: 0 | N91: 0 | O91: 0 | P91: 0 | Q91: 22.2788743 | R91: 0 | S91: 0 | T91: 0 | U91: 0 | V91: 0 | W91: 0 | X91: 0 | Y91: 0 | Z91: 0 | AN91: 3.001350314 | BZ91: 66.86670636
A92: 13 | B92: 15 | D92: 3.080108444 | F92: 0 | G92: 0 | H92: 0 | I92: 0 | J92: 0 | K92: 0 | L92: 0 | M92: 0 | N92: 0 | O92: 0 | P92: 0 | Q92: 0 | R92: 21.76076209 | S92: 0 | T92: 0 | U92: 0 | V92: 0 | W92: 0 | X92: 0 | Y92: 0 | Z92: 0 | AN92: 2.769422538 | BZ92: 60.26474498
A93: 14 | B93: 25 | D93: 3.128310521 | F93: 0 | G93: 0 | H93: 0 | I93: 0 | J93: 0 | K93: 0 | L93: 0 | M93: 0 | N93: 0 | O93: 0 | P93: 0 | Q93: 0 | R93: 0 | S93: 22.83536707 | T93: 0 | U93: 0 | V93: 0 | W93: 0 | X93: 0 | Y93: 0 | Z93: 0 | AN93: 3.22310352 | BZ93: 73.600752
A94: 15 | B94: 30 | D94: 3.140914353 | F94: 0 | G94: 0 | H94: 0 | I94: 0 | J94: 0 | K94: 0 | L94: 0 | M94: 0 | N94: 0 | O94: 0 | P94: 0 | Q94: 0 | R94: 0 | S94: 0 | T94: 23.12500162 | U94: 0 | V94: 0 | W94: 0 | X94: 0 | Y94: 0 | Z94: 0 | AN94: 3.43821156 | BZ94: 79.50864788
A95: 16 | B95: 30 | D95: 3.282840288 | F95: 0 | G95: 0 | H95: 0 | I95: 0 | J95: 0 | K95: 0 | L95: 0 | M95: 0 | N95: 0 | O95: 0 | P95: 0 | Q95: 0 | R95: 0 | S95: 0 | T95: 0 | U95: 26.65136286 | V95: 0 | W95: 0 | X95: 0 | Y95: 0 | Z95: 0 | AN95: 3.408486289 | BZ95: 90.84080488
A96: 17 | B96: 30 | D96: 3.259309844 | F96: 0 | G96: 0 | H96: 0 | I96: 0 | J96: 0 | K96: 0 | L96: 0 | M96: 0 | N96: 0 | O96: 0 | P96: 0 | Q96: 0 | R96: 0 | S96: 0 | T96: 0 | U96: 0 | V96: 26.0315651 | W96: 0 | X96: 0 | Y96: 0 | Z96: 0 | AN96: 3.411756878 | BZ96: 88.81337129
A97: 18 | B97: 20 | D97: 3.307511922 | F97: 0 | G97: 0 | H97: 0 | I97: 0 | J97: 0 | K97: 0 | L97: 0 | M97: 0 | N97: 0 | O97: 0 | P97: 0 | Q97: 0 | R97: 0 | S97: 0 | T97: 0 | U97: 0 | V97: 0 | W97: 27.31707382 | X97: 0 | Y97: 0 | Z97: 0 | AN97: 3.039654761 | BZ97: 83.03447351
A98: 19 | B98: 15 | D98: 2.314310958 | F98: 0 | G98: 0 | H98: 0 | I98: 0 | J98: 0 | K98: 0 | L98: 0 | M98: 0 | N98: 0 | O98: 0 | P98: 0 | Q98: 0 | R98: 0 | S98: 0 | T98: 0 | U98: 0 | V98: 0 | W98: 0 | X98: 10.11794883 | Y98: 0 | Z98: 0 | AN98: 2.79682488 | BZ98: 28.29813101
A99: 20 | B99: 5 | D99: 2.290780514 | F99: 0 | G99: 0 | H99: 0 | I99: 0 | J99: 0 | K99: 0 | L99: 0 | M99: 0 | N99: 0 | O99: 0 | P99: 0 | Q99: 0 | R99: 0 | S99: 0 | T99: 0 | U99: 0 | V99: 0 | W99: 0 | X99: 0 | Y99: 9.882648214 | Z99: 0 | AN99: 1.796717778 | BZ99: 17.75632974
A100: 21 | B100: 5 | D100: 1.609437912 | F100: 0 | G100: 0 | H100: 0 | I100: 0 | J100: 0 | K100: 0 | L100: 0 | M100: 0 | N100: 0 | O100: 0 | P100: 0 | Q100: 0 | R100: 0 | S100: 0 | T100: 0 | U100: 0 | V100: 0 | W100: 0 | X100: 0 | Y100: 0 | Z100: 5 | AN100: 1.609437912 | BZ100: 8.047189562
A102: Newton-Raphson Interation Sequence -- Iteration 5
B103: y(i) | D103: xb(i) | F103: W(i,i) | AB103: XWX | AN103: zz(i) | AP103: factor | AR103: xwx-1 | BD103: aa1(i,j) | BZ103: aa2(j) | CB103: beta(j) | CD103: beta_diff = | CE103: =SUM(CD105:CD115) -> -4.174438573e-14 | CF103: beta_old = | CG103: =SUM(CB105:CB115) -> 25.33391388
B104: 1 | D104: 1 | F104: 1 | G104: 2 | H104: 3 | I104: 4 | J104: 5 | K104: 6 | L104: 7 | M104: 8 | N104: 9 | O104: 10 | P104: 11 | Q104: 12 | R104: 13 | S104: 14 | T104: 15 | U104: 16 | V104: 17 | W104: 18 | X104: 19 | Y104: 20 | Z104: 21 | AB104: 1 | AC104: 2 | AD104: 3 | AE104: 4 | AF104: 5 | AG104: 6 | AH104: 7 | AI104: 8 | AJ104: 9 | AK104: 10 | AL104: 11 | AN104: 1 | AR104: 1 | AS104: 2 | AT104: 3 | AU104: 4 | AV104: 5 | AW104: 6 | AX104: 7 | AY104: 8 | AZ104: 9 | BA104: 10 | BB104: 11 | BD104: 1 | BE104: 2 | BF104: 3 | BG104: 4 | BH104: 5 | BI104: 6 | BJ104: 7 | BK104: 8 | BL104: 9 | BM104: 10 | BN104: 11 | BO104: 12 | BP104: 13 | BQ104: 14 | BR104: 15 | BS104: 16 | BT104: 17 | BU104: 18 | BV104: 19 | BW104: 20 | BX104: 21
A105: 1 | B105: =B80 -> 95 | D105: =MMULT(DesignMatrix,CB80:CB90) -> 4.692874069 | F105: =IF($A105=F$4,IF($B105<0,-(EXP(-$D105)^(2-$H$1)),IF($B105=0,0,EXP($D105)^(2-$H$1))),0) -> 109.1664813 | G105: 0 | H105: 0 | I105: 0 | J105: 0 | K105: 0 | L105: 0 | M105: 0 | N105: 0 | O105: 0 | P105: =IF($A105=P$4,IF($B105<0,-(EXP(-$D105)^(2-$H$1)),IF($B105=0,0,EXP($D105)^(2-$H$1))),0) -> 0 | Q105: 0 | R105: 0 | S105: 0 | T105: 0 | U105: 0 | V105: 0 | W105: 0 | X105: 0 | Y105: 0 | Z105: 0 | AB105: =MMULT(TRANSPOSE(DesignMatrix),MMULT(F105:Z125,DesignMatrix)) -> 220 | AC105: 0 | AD105: 0 | AE105: 0 | AF105: 0 | AG105: 0 | AH105: 110.8335187 | AI105: 64.04788379 | AJ105: 41.76901005 | AK105: 15.11764706 | AL105: 5 | AN105: =IF(B105<0,D105+(B105+EXP(-D105))/-EXP(-D105),IF(B105=0,0,D105+(B105-EXP(D105))/EXP(D105))) -> 4.563104554 | AP105: =OFFSET(AA104,A105,A105) -> 220 | AR105: =MINVERSE(AB105:AL115) -> 0.005744627019 | AS105: 0.001093464229 | AT105: 0.0009772696025 | AU105: 0.0007341269841 | AV105: 0.0005357142857 | AW105: 0 | AX105: -0.001785714286 | AY105: -0.0003373015873 | AZ105: -0.0004802699896 | BA105: -0.0008431195423 | BB105: -0.002298221614 | BD105: =MMULT(AR105:BB115,TRANSPOSE(DesignMatrix)) -> 0.005744627019 | BE105: 0.001093464229 | BF105: 0.0009772696025 | BG105: 0.0007341269841 | BH105: 0.0005357142857 | BI105: 0 | BJ105: 0.003958912733 | BK105: -0.0006922500572 | BL105: -0.0008084446832 | BM105: -0.001051587302 | BN105: -0.00125 | BO105: 0.003621611146 | BP105: -0.001029551644 | BQ105: -0.001145746271 | BR105: -0.001388888889 | BS105: 0.003141341156 | BT105: -0.001509821634 | BU105: -0.00162601626 | BV105: 0.002298221614 | BW105: -0.002352941176 | BX105: -4.33680869e-19 | BZ105: =MMULT(F105:Z125,AN105:AN125) -> 498.1380682 | CB105: =MMULT(BD105:BX115,BZ105:BZ125) -> 4.692874069 | CD105: =CB105-CG78/$K$1 -> 2.389790989
A106: 2 | B106: =B81 -> 110 | D106: 4.669343571 | F106: 0 | G106: 106.627726 | H106: 0 | I106: 0 | J106: 0 | K106: 0 | L106: 0 | M106: 0 | N106: 0 | O106: 0 | P106: 0 | Q106: 0 | R106: 0 | S106: 0 | T106: 0 | U106: 0 | V106: 0 | W106: 0 | X106: 0 | Y106: 0 | Z106: 0 | AB106: 0 | AC106: 210 | AD106: 0 | AE106: 0 | AF106: 0 | AG106: 0 | AH106: 103.372274 | AI106: 57.67467719 | AJ106: 35.91391679 | AK106: 9.882352946 | AL106: 0 | AN106: =IF(B106<0,D106+(B106+EXP(-D106))/-EXP(-D106),IF(B106=0,0,D106+(B106-EXP(D106))/EXP(D106))) -> 4.700970186 | AP106: =OFFSET(AA104,A106,A106) -> 210 | AR106: 0.001093464229 | AS106: 0.00585536899 | AT106: 0.0009772696025 | AU106: 0.0007341269841 | AV106: 0.0005357142857 | AW106: 0 | AX106: -0.001785714286 | AY106: -0.0003373015873 | AZ106: -0.0004802699896 | BA106: -0.0008431195423 | BB106: 0.002352941176 | BD106: 0.001093464229 | BE106: 0.00585536899 | BF106: 0.0009772696025 | BG106: 0.0007341269841 | BH106: 0.0005357142857 | BI106: 0 | BJ106: -0.0006922500572 | BK106: 0.004069654705 | BL106: -0.0008084446832 | BM106: -0.001051587302 | BN106: -0.00125 | BO106: -0.001029551644 | BP106: 0.003732353117 | BQ106: -0.001145746271 | BR106: -0.001388888889 | BS106: -0.001509821634 | BT106: 0.003252083128 | BU106: -0.00162601626 | BV106: -0.002352941176 | BW106: 0.002408963585 | BX106: 4.33680869e-19 | BZ106: 501.2537608 | CB106: 4.669343571 | CD106: =CB106-CG78/$K$1 -> 2.366260492
A107: 3 | B107: 105 | D107: 4.717545673 | F107: 0 | G107: 0 | H107: 111.8932927 | I107: 0 | J107: 0 | K107: 0 | L107: 0 | M107: 0 | N107: 0 | O107: 0 | P107: 0 | Q107: 0 | R107: 0 | S107: 0 | T107: 0 | U107: 0 | V107: 0 | W107: 0 | X107: 0 | Y107: 0 | Z107: 0 | AB107: 0 | AC107: 0 | AD107: 210 | AE107: 0 | AF107: 0 | AG107: 0 | AH107: 98.10670732 | AI107: 50.15243902 | AJ107: 27.31707317 | AK107: 0 | AL107: 0 | AN107: 4.655939722 | AP107: =OFFSET(AA104,A107,A107) -> 210 | AR107: 0.0009772696025 | AS107: 0.0009772696025 | AT107: 0.005739174364 | AU107: 0.0007341269841 | AV107: 0.0005357142857 | AW107: 0 | AX107: -0.001785714286 | AY107: -0.0003373015873 | AZ107: -0.0004802699896 | BA107: 0.00162601626 | BB107: 0 | BD107: 0.0009772696025 | BE107: 0.0009772696025 | BF107: 0.005739174364 | BG107: 0.0007341269841 | BH107: 0.0005357142857 | BI107: 0 | BJ107: -0.0008084446832 | BK107: -0.0008084446832 | BL107: 0.003953460079 | BM107: -0.001051587302 | BN107: -0.00125 | BO107: -0.001145746271 | BP107: -0.001145746271 | BQ107: 0.003616158491 | BR107: -0.001388888889 | BS107: -0.00162601626 | BT107: -0.00162601626 | BU107: 0.003135888502 | BV107: -4.33680869e-19 | BW107: -4.33680869e-19 | BX107: -4.33680869e-19 | BZ107: 520.9684261 | CB107: 4.717545673 | CD107: =CB107-CG78/$K$1 -> 2.414462594
A108: 4 | B108: 120 | D108: 4.730149489 | F108: 0 | G108: 0 | H108: 0 | I108: 113.3125 | J108: 0 | K108: 0 | L108: 0 | M108: 0 | N108: 0 | O108: 0 | P108: 0 | Q108: 0 | R108: 0 | S108: 0 | T108: 0 | U108: 0 | V108: 0 | W108: 0 | X108: 0 | Y108: 0 | Z108: 0 | AB108: 0 | AC108: 0 | AD108: 0 | AE108: 185 | AF108: 0 | AG108: 0 | AH108: 71.6875 | AI108: 23.125 | AJ108: 0 | AK108: 0 | AL108: 0 | AN108: 4.78916769 | AP108: =OFFSET(AA104,A108,A108) -> 185 | AR108: 0.0007341269841 | AS108: 0.0007341269841 | AT108: 0.0007341269841 | AU108: 0.00613953239 | AV108: 0.0005357142857 | AW108: 0 | AX108: -0.001785714286 | AY108: -0.0003373015873 | AZ108: 0.001388888889 | BA108: -5.650289321e-19 | BB108: 0 | BD108: 0.0007341269841 | BE108: 0.0007341269841 | BF108: 0.0007341269841 | BG108: 0.00613953239 | BH108: 0.0005357142857 | BI108: 0 | BJ108: -0.001051587302 | BK108: -0.001051587302 | BL108: -0.001051587302 | BM108: 0.004353818104 | BN108: -0.00125 | BO108: -0.001388888889 | BP108: -0.001388888889 | BQ108: -0.001388888889 | BR108: 0.004016516517 | BS108: 0 | BT108: -2.168404345e-19 | BU108: -2.168404345e-19 | BV108: -5.650289321e-19 | BW108: -7.818693666e-19 | BX108: -5.650289321e-19 | BZ108: 542.6725639 | CB108: 4.730149489 | CD108: =CB108-CG78/$K$1 -> 2.427066409
A109: 5 | B109: 130 | D109: 4.779123493 | F109: 0 | G109: 0 | H109: 0 | I109: 0 | J109: 119 | K109: 0 | L109: 0 | M109: 0 | N109: 0 | O109: 0 | P109: 0 | Q109: 0 | R109: 0 | S109: 0 | T109: 0 | U109: 0 | V109: 0 | W109: 0 | X109: 0 | Y109: 0 | Z109: 0 | AB109: 0 | AC109: 0 | AD109: 0 | AE109: 0 | AF109: 170 | AG109: 0 | AH109: 51 | AI109: 0 | AJ109: 0 | AK109: 0 | AL109: 0 | AN109: 4.871560468 | AP109: =OFFSET(AA104,A109,A109) -> 170 | AR109: 0.0005357142857 | AS109: 0.0005357142857 | AT109: 0.0005357142857 | AU109: 0.0005357142857 | AV109: 0.006418067227 | AW109: 0 | AX109: -0.001785714286 | AY109: 0.00125 | AZ109: -1.978301878e-19 | BA109: -6.957256846e-20 | BB109: 0 | BD109: 0.0005357142857 | BE109: 0.0005357142857 | BF109: 0.0005357142857 | BG109: 0.0005357142857 | BH109: 0.006418067227 | BI109: 0 | BJ109: -0.00125 | BK109: -0.00125 | BL109: -0.00125 | BM109: -0.00125 | BN109: 0.004632352941 | BO109: 4.33680869e-19 | BP109: 2.168404345e-19 | BQ109: 2.168404345e-19 | BR109: 4.33680869e-19 | BS109: 2.358506812e-19 | BT109: 1.901024672e-20 | BU109: 1.901024672e-20 | BV109: 1.662781128e-19 | BW109: -5.056232175e-20 | BX109: 1.662781128e-19 | BZ109: 579.7156957 | CB109: 4.779123493 | CD109: =CB109-CG78/$K$1 -> 2.476040413
A110: 6 | B110: 125 | D110: 4.828313737 | F110: 0 | G110: 0 | H110: 0 | I110: 0 | J110: 0 | K110: 125 | L110: 0 | M110: 0 | N110: 0 | O110: 0 | P110: 0 | Q110: 0 | R110: 0 | S110: 0 | T110: 0 | U110: 0 | V110: 0 | W110: 0 | X110: 0 | Y110: 0 | Z110: 0 | AB110: 0 | AC110: 0 | AD110: 0 | AE110: 0 | AF110: 0 | AG110: 125 | AH110: 0 | AI110: 0 | AJ110: 0 | AK110: 0 | AL110: 0 | AN110: 4.828313737 | AP110: =OFFSET(AA104,A110,A110) -> 125 | AR110: 0 | AS110: 0 | AT110: 0 | AU110: 0 | AV110: 0 | AW110: 0.008 | AX110: 0 | AY110: 0 | AZ110: 0 | BA110: 0 | BB110: 0 | BD110: 0 | BE110: 0 | BF110: 0 | BG110: 0 | BH110: 0 | BI110: 0.008 | BJ110: 0 | BK110: 0 | BL110: 0 | BM110: 0 | BN110: 0 | BO110: 0 | BP110: 0 | BQ110: 0 | BR110: 0 | BS110: 0 | BT110: 0 | BU110: 0 | BV110: 0 | BW110: 0 | BX110: 0 | BZ110: 603.5392172 | CB110: 4.828313737 | CD110: =CB110-CG78/$K$1 -> 2.525230658
A111: 7 | B111: 55 | D111: 3.845576208 | F111: 0 | G111: 0 | H111: 0 | I111: 0 | J111: 0 | K111: 0 | L111: 46.78563486 | M111: 0 | N111: 0 | O111: 0 | P111: 0 | Q111: 0 | R111: 0 | S111: 0 | T111: 0 | U111: 0 | V111: 0 | W111: 0 | X111: 0 | Y111: 0 | Z111: 0 | AB111: 110.8335187 | AC111: 103.372274 | AD111: 98.10670732 | AE111: 71.6875 | AF111: 51 | AG111: 0 | AH111: 435 | AI111: 195 | AJ111: 105 | AK111: 25.00000001 | AL111: 5 | AN111: 4.021150723 | AP111: =OFFSET(AA104,A111,A111) -> 435 | AR111: -0.001785714286 | AS111: -0.001785714286 | AT111: -0.001785714286 | AU111: -0.001785714286 | AV111: -0.001785714286 | AW111: 0 | AX111: 0.005952380952 | AY111: -0.004166666667 | AZ111: 6.594339593e-19 | BA111: 2.319085615e-19 | BB111: 0 | BD111: -0.001785714286 | BE111: -0.001785714286 | BF111: -0.001785714286 | BG111: -0.001785714286 | BH111: -0.001785714286 | BI111: 0 | BJ111: 0.004166666667 | BK111: 0.004166666667 | BL111: 0.004166666667 | BM111: 0.004166666667 | BN111: 0.004166666667 | BO111: -8.67361738e-19 | BP111: -8.67361738e-19 | BQ111: -8.67361738e-19 | BR111: -8.67361738e-19 | BS111: -2.079277787e-19 | BT111: -2.079277787e-19 | BU111: -2.079277787e-19 | BV111: 2.398078282e-20 | BW111: 2.398078282e-20 | BX111: 2.398078282e-20 | BZ111: 188.1320895 | CB111: -0.8472978604 | CD111: =CB111-CG78/$K$1 -> -3.15038094
A112: 8 | B112: 50 | D112: 3.822045711 | F112: 0 | G112: 0 | H112: 0 | I112: 0 | J112: 0 | K112: 0 | L112: 0 | M112: 45.69759684 | N112: 0 | O112: 0 | P112: 0 | Q112: 0 | R112: 0 | S112: 0 | T112: 0 | U112: 0 | V112: 0 | W112: 0 | X112: 0 | Y112: 0 | Z112: 0 | AB112: 64.04788379 | AC112: 57.67467719 | AD112: 50.15243902 | AE112: 23.125 | AF112: 0 | AG112: 0 | AH112: 195 | AI112: 195 | AJ112: 105 | AK112: 25.00000001 | AL112: 5 | AN112: 3.916195151 | AP112: =OFFSET(AA104,A112,A112) -> 195 | AR112: -0.0003373015873 | AS112: -0.0003373015873 | AT112: -0.0003373015873 | AU112: -0.0003373015873 | AV112: 0.00125 | AW112: 0 | AX112: -0.004166666667 | AY112: 0.01561507937 | AZ112: -0.01111111111 | BA112: 3.801314916e-18 | BB112: 0 | BD112: -0.0003373015873 | BE112: -0.0003373015873 | BF112: -0.0003373015873 | BG112: -0.0003373015873 | BH112: 0.00125 | BI112: 0 | BJ112: -0.004503968254 | BK112: -0.004503968254 | BL112: -0.004503968254 | BM112: -0.004503968254 | BN112: -0.002916666667 | BO112: 0.01111111111 | BP112: 0.01111111111 | BQ112: 0.01111111111 | BR112: 0.01111111111 | BS112: 0 | BT112: 0 | BU112: 0 | BV112: 3.801314916e-18 | BW112: 3.801314916e-18 | BX112: 3.801314916e-18 | BZ112: 178.9607072 | CB112: -0.7419373447 | CD112: =CB112-CG78/$K$1 -> -3.045020424
A113: 9 | B113: 60 | D113: 3.870247813 | F113: 0 | G113: 0 | H113: 0 | I113: 0 | J113: 0 | K113: 0 | L113: 0 | M113: 0 | N113: 47.95426829 | O113: 0 | P113: 0 | Q113: 0 | R113: 0 | S113: 0 | T113: 0 | U113: 0 | V113: 0 | W113: 0 | X113: 0 | Y113: 0 | Z113: 0 | AB113: 41.76901005 | AC113: 35.91391679 | AD113: 27.31707317 | AE113: 0 | AF113: 0 | AG113: 0 | AH113: 105 | AI113: 105 | AJ113: 105 | AK113: 25.00000001 | AL113: 5 | AN113: 4.121439878 | AP113: =OFFSET(AA104,A113,A113) -> 105 | AR113: -0.0004802699896 | AS113: -0.0004802699896 | AT113: -0.0004802699896 | AU113: 0.001388888889 | AV113: -3.343350749e-19 | AW113: 0 | AX113: 8.67361738e-20 | AY113: -0.01111111111 | AZ113: 0.0240913811 | BA113: -0.0125 | BB113: 0 | BD113: -0.0004802699896 | BE113: -0.0004802699896 | BF113: -0.0004802699896 | BG113: 0.001388888889 | BH113: -3.343350749e-19 | BI113: 0 | BJ113: -0.0004802699896 | BK113: -0.0004802699896 | BL113: -0.0004802699896 | BM113: 0.001388888889 | BN113: -2.475989011e-19 | BO113: -0.0115913811 | BP113: -0.0115913811 | BQ113: -0.0115913811 | BR113: -0.009722222222 | BS113: 0.0125 | BT113: 0.0125 | BU113: 0.0125 | BV113: -6.938893904e-18 | BW113: -6.938893904e-18 | BX113: -6.938893904e-18 | BZ113: 197.6406337 | CB113: 0.1792014295 | CD113: =CB113-CG78/$K$1 -> -2.12388165
A114: 10 | B114: 35 | D114: 3.882851628 | F114: 0 | G114: 0 | H114: 0 | I114: 0 | J114: 0 | K114: 0 | L114: 0 | M114: 0 | N114: 0 | O114: 48.5625 | P114: 0 | Q114: 0 | R114: 0 | S114: 0 | T114: 0 | U114: 0 | V114: 0 | W114: 0 | X114: 0 | Y114: 0 | Z114: 0 | AB114: 15.11764706 | AC114: 9.882352946 | AD114: 0 | AE114: 0 | AF114: 0 | AG114: 0 | AH114: 25.00000001 | AI114: 25.00000001 | AJ114: 25.00000001 | AK114: 25.00000001 | AL114: 5 | AN114: 3.603572349 | AP114: =OFFSET(AA104,A114,A114) -> 25.00000001 | AR114: -0.0008431195423 | AS114: -0.0008431195423 | AT114: 0.00162601626 | AU114: -5.508765616e-19 | AV114: 1.95156391e-19 | AW114: 0 | AX114: -5.262673597e-19 | AY114: 5.459547212e-18 | AZ114: -0.0125 | BA114: 0.06334311952 | BB114: -0.04999999998 | BD114: -0.0008431195423 | BE114: -0.0008431195423 | BF114: 0.00162601626 | BG114: -5.508765616e-19 | BH114: 1.95156391e-19 | BI114: 0 | BJ114: -0.0008431195423 | BK114: -0.0008431195423 | BL114: 0.00162601626 | BM114: -1.077143921e-18 | BN114: -3.311109686e-19 | BO114: -0.0008431195423 | BP114: -0.0008431195423 | BQ114: 0.00162601626 | BR114: 4.382403291e-18 | BS114: -0.01334311954 | BT114: -0.01334311954 | BU114: -0.01087398374 | BV114: 0.04999999998 | BW114: 0.04999999998 | BX114: 2.081668171e-17 | BZ114: 174.9984822 | CB114: -0.9685591604 | CD114: =CB114-CG78/$K$1 -> -3.27164224
A115: 11 | B115: 40 | D115: 3.931825633 | F115: =IF($A115=F$4,IF($B115<0,-(EXP(-$D115)^(2-$H$1)),IF($B115=0,0,EXP($D115)^(2-$H$1))),0) -> 0 | G115: 0 | H115: 0 | I115: 0 | J115: 0 | K115: 0 | L115: 0 | M115: 0 | N115: 0 | O115: 0 | P115: =IF($A115=P$4,IF($B115<0,-(EXP(-$D115)^(2-$H$1)),IF($B115=0,0,EXP($D115)^(2-$H$1))),0) -> 51 | Q115: 0 | R115: 0 | S115: 0 | T115: 0 | U115: 0 | V115: 0 | W115: 0 | X115: 0 | Y115: 0 | Z115: 0 | AB115: 5 | AC115: 0 | AD115: 0 | AE115: 0 | AF115: 0 | AG115: 0 | AH115: 5 | AI115: 5 | AJ115: 5 | AK115: 5 | AL115: 5 | AN115: 3.716139358 | AP115: =OFFSET(AA104,A115,A115) -> 5 | AR115: -0.002298221614 | AS115: 0.002352941176 | AT115: -6.565014719e-19 | AU115: -2.666751737e-20 | AV115: -1.09416912e-19 | AW115: 0 | AX115: 7.84612343e-19 | AY115: -1.355884547e-18 | AZ115: 3.501341184e-18 | BA115: -0.04999999998 | BB115: 0.2522982216 | BD115: -0.002298221614 | BE115: 0.002352941176 | BF115: -6.565014719e-19 | BG115: -2.666751737e-20 | BH115: -1.09416912e-19 | BI115: 0 | BJ115: -0.002298221614 | BK115: 0.002352941176 | BL115: 1.281108711e-19 | BM115: 7.579448256e-19 | BN115: 6.75195431e-19 | BO115: -0.002298221614 | BP115: 0.002352941176 | BQ115: -1.227773676e-18 | BR115: -5.979397214e-19 | BS115: -0.002298221614 | BT115: 0.002352941176 | BU115: 2.273567508e-18 | BV115: -0.05229822159 | BW115: -0.0476470588 | BX115: 0.2 | BZ115: 189.5231073 | CB115: -0.7048432203 | CD115: =CB115-CG78/$K$1 -> -3.0079263
A116: 12 | B116: 20 | D116: 3.103638864 | F116: 0 | G116: 0 | H116: 0 | I116: 0 | J116: 0 | K116: 0 | L116: 0 | M116: 0 | N116: 0 | O116: 0 | P116: 0 | Q116: 22.27887374 | R116: 0 | S116: 0 | T116: 0 | U116: 0 | V116: 0 | W116: 0 | X116: 0 | Y116: 0 | Z116: 0 | AN116: 3.001350311 | BZ116: 66.86670465
A117: 13 | B117: 15 | D117: 3.080108366 | F117: 0 | G117: 0 | H117: 0 | I117: 0 | J117: 0 | K117: 0 | L117: 0 | M117: 0 | N117: 0 | O117: 0 | P117: 0 | Q117: 0 | R117: 21.7607604 | S117: 0 | T117: 0 | U117: 0 | V117: 0 | W117: 0 | X117: 0 | Y117: 0 | Z117: 0 | AN117: 2.769422514 | BZ117: 60.26473977
A118: 14 | B118: 25 | D118: 3.128310468 | F118: 0 | G118: 0 | H118: 0 | I118: 0 | J118: 0 | K118: 0 | L118: 0 | M118: 0 | N118: 0 | O118: 0 | P118: 0 | Q118: 0 | R118: 0 | S118: 22.83536585 | T118: 0 | U118: 0 | V118: 0 | W118: 0 | X118: 0 | Y118: 0 | Z118: 0 | AN118: 3.223103526 | BZ118: 73.60074819
A119: 15 | B119: 30 | D119: 3.140914283 | F119: 0 | G119: 0 | H119: 0 | I119: 0 | J119: 0 | K119: 0 | L119: 0 | M119: 0 | N119: 0 | O119: 0 | P119: 0 | Q119: 0 | R119: 0 | S119: 0 | T119: 23.125 | U119: 0 | V119: 0 | W119: 0 | X119: 0 | Y119: 0 | Z119: 0 | AN119: 3.438211581 | BZ119: 79.5086428
A120: 16 | B120: 30 | D120: 3.282840293 | F120: 0 | G120: 0 | H120: 0 | I120: 0 | J120: 0 | K120: 0 | L120: 0 | M120: 0 | N120: 0 | O120: 0 | P120: 0 | Q120: 0 | R120: 0 | S120: 0 | T120: 0 | U120: 26.65136298 | V120: 0 | W120: 0 | X120: 0 | Y120: 0 | Z120: 0 | AN120: 3.408486288 | BZ120: 90.84080529
A121: 17 | B121: 30 | D121: 3.259309796 | F121: 0 | G121: 0 | H121: 0 | I121: 0 | J121: 0 | K121: 0 | L121: 0 | M121: 0 | N121: 0 | O121: 0 | P121: 0 | Q121: 0 | R121: 0 | S121: 0 | T121: 0 | U121: 0 | V121: 26.03156385 | W121: 0 | X121: 0 | Y121: 0 | Z121: 0 | AN121: 3.411756886 | BZ121: 88.81336719
A122: 18 | B122: 20 | D122: 3.307511898 | F122: 0 | G122: 0 | H122: 0 | I122: 0 | J122: 0 | K122: 0 | L122: 0 | M122: 0 | N122: 0 | O122: 0 | P122: 0 | Q122: 0 | R122: 0 | S122: 0 | T122: 0 | U122: 0 | V122: 0 | W122: 27.31707317 | X122: 0 | Y122: 0 | Z122: 0 | AN122: 3.039654755 | BZ122: 83.03447135
A123: 19 | B123: 15 | D123: 2.314281133 | F123: 0 | G123: 0 | H123: 0 | I123: 0 | J123: 0 | K123: 0 | L123: 0 | M123: 0 | N123: 0 | O123: 0 | P123: 0 | Q123: 0 | R123: 0 | S123: 0 | T123: 0 | U123: 0 | V123: 0 | W123: 0 | X123: 10.11764706 | Y123: 0 | Z123: 0 | AN123: 2.796839272 | BZ123: 28.29743265
A124: 20 | B124: 5 | D124: 2.290750636 | F124: 0 | G124: 0 | H124: 0 | I124: 0 | J124: 0 | K124: 0 | L124: 0 | M124: 0 | N124: 0 | O124: 0 | P124: 0 | Q124: 0 | R124: 0 | S124: 0 | T124: 0 | U124: 0 | V124: 0 | W124: 0 | X124: 0 | Y124: 9.882352946 | Z124: 0 | AN124: 1.796703017 | BZ124: 17.75565335
A125: 21 | B125: 5 | D125: 1.609437912 | F125: 0 | G125: 0 | H125: 0 | I125: 0 | J125: 0 | K125: 0 | L125: 0 | M125: 0 | N125: 0 | O125: 0 | P125: 0 | Q125: 0 | R125: 0 | S125: 0 | T125: 0 | U125: 0 | V125: 0 | W125: 0 | X125: 0 | Y125: 0 | Z125: 5 | AN125: 1.609437912 | BZ125: 8.047189562
A127: Newton-Raphson Interation Sequence -- Iteration 6
B128: y(i) | D128: xb(i) | F128: W(i,i) | AB128: XWX | AN128: zz(i) | AP128: factor | AR128: xwx-1 | BD128: aa1(i,j) | BZ128: aa2(j) | CB128: beta(j) | CD128: beta_diff = | CE128: =SUM(CD130:CD140) -> 1.509903313e-14 | CF128: beta_old = | CG128: =SUM(CB130:CB140) -> 25.33391388
B129: 1 | D129: 1 | F129: 1 | G129: 2 | H129: 3 | I129: 4 | J129: 5 | K129: 6 | L129: 7 | M129: 8 | N129: 9 | O129: 10 | P129: 11 | Q129: 12 | R129: 13 | S129: 14 | T129: 15 | U129: 16 | V129: 17 | W129: 18 | X129: 19 | Y129: 20 | Z129: 21 | AB129: 1 | AC129: 2 | AD129: 3 | AE129: 4 | AF129: 5 | AG129: 6 | AH129: 7 | AI129: 8 | AJ129: 9 | AK129: 10 | AL129: 11 | AN129: 1 | AR129: 1 | AS129: 2 | AT129: 3 | AU129: 4 | AV129: 5 | AW129: 6 | AX129: 7 | AY129: 8 | AZ129: 9 | BA129: 10 | BB129: 11 | BD129: 1 | BE129: 2 | BF129: 3 | BG129: 4 | BH129: 5 | BI129: 6 | BJ129: 7 | BK129: 8 | BL129: 9 | BM129: 10 | BN129: 11 | BO129: 12 | BP129: 13 | BQ129: 14 | BR129: 15 | BS129: 16 | BT129: 17 | BU129: 18 | BV129: 19 | BW129: 20 | BX129: 21
A130: 1 | B130: =B105 -> 95 | D130: =MMULT(DesignMatrix,CB105:CB115) -> 4.692874069 | F130: =IF($A130=F$4,IF($B130<0,-(EXP(-$D130)^(2-$H$1)),IF($B130=0,0,EXP($D130)^(2-$H$1))),0) -> 109.1664813 | G130: 0 | H130: 0 | I130: 0 | J130: 0 | K130: 0 | L130: 0 | M130: 0 | N130: 0 | O130: 0 | P130: =IF($A130=P$4,IF($B130<0,-(EXP(-$D130)^(2-$H$1)),IF($B130=0,0,EXP($D130)^(2-$H$1))),0) -> 0 | Q130: 0 | R130: 0 | S130: 0 | T130: 0 | U130: 0 | V130: 0 | W130: 0 | X130: 0 | Y130: 0 | Z130: 0 | AB130: =MMULT(TRANSPOSE(DesignMatrix),MMULT(F130:Z150,DesignMatrix)) -> 220 | AC130: 0 | AD130: 0 | AE130: 0 | AF130: 0 | AG130: 0 | AH130: 110.8335187 | AI130: 64.04788379 | AJ130: 41.76901004 | AK130: 15.11764706 | AL130: 5 | AN130: =IF(B130<0,D130+(B130+EXP(-D130))/-EXP(-D130),IF(B130=0,0,D130+(B130-EXP(D130))/EXP(D130))) -> 4.563104554 | AP130: =OFFSET(AA129,A130,A130) -> 220 | AR130: =MINVERSE(AB130:AL140) -> 0.005744627019 | AS130: 0.001093464228 | AT130: 0.0009772696025 | AU130: 0.0007341269841 | AV130: 0.0005357142857 | AW130: 0 | AX130: -0.001785714286 | AY130: -0.0003373015873 | AZ130: -0.0004802699896 | BA130: -0.0008431195423 | BB130: -0.002298221614 | BD130: =MMULT(AR130:BB140,TRANSPOSE(DesignMatrix)) -> 0.005744627019 | BE130: 0.001093464228 | BF130: 0.0009772696025 | BG130: 0.0007341269841 | BH130: 0.0005357142857 | BI130: 0 | BJ130: 0.003958912733 | BK130: -0.0006922500572 | BL130: -0.0008084446832 | BM130: -0.001051587302 | BN130: -0.00125 | BO130: 0.003621611146 | BP130: -0.001029551645 | BQ130: -0.001145746271 | BR130: -0.001388888889 | BS130: 0.003141341157 | BT130: -0.001509821634 | BU130: -0.00162601626 | BV130: 0.002298221614 | BW130: -0.002352941176 | BX130: -4.33680869e-19 | BZ130: =MMULT(F130:Z150,AN130:AN150) -> 498.1380682 | CB130: =MMULT(BD130:BX140,BZ130:BZ150) -> 4.692874069 | CD130: =CB130-CG103/$K$1 -> 2.389790989
A131: 2 | B131: =B106 -> 110 | D131: 4.669343571 | F131: 0 | G131: 106.627726 | H131: 0 | I131: 0 | J131: 0 | K131: 0 | L131: 0 | M131: 0 | N131: 0 | O131: 0 | P131: 0 | Q131: 0 | R131: 0 | S131: 0 | T131: 0 | U131: 0 | V131: 0 | W131: 0 | X131: 0 | Y131: 0 | Z131: 0 | AB131: 0 | AC131: 210 | AD131: 0 | AE131: 0 | AF131: 0 | AG131: 0 | AH131: 103.372274 | AI131: 57.67467719 | AJ131: 35.91391679 | AK131: 9.882352941 | AL131: 0 | AN131: =IF(B131<0,D131+(B131+EXP(-D131))/-EXP(-D131),IF(B131=0,0,D131+(B131-EXP(D131))/EXP(D131))) -> 4.700970186 | AP131: =OFFSET(AA129,A131,A131) -> 210 | AR131: 0.001093464228 | AS131: 0.00585536899 | AT131: 0.0009772696025 | AU131: 0.0007341269841 | AV131: 0.0005357142857 | AW131: 0 | AX131: -0.001785714286 | AY131: -0.0003373015873 | AZ131: -0.0004802699896 | BA131: -0.0008431195423 | BB131: 0.002352941176 | BD131: 0.001093464228 | BE131: 0.00585536899 | BF131: 0.0009772696025 | BG131: 0.0007341269841 | BH131: 0.0005357142857 | BI131: 0 | BJ131: -0.0006922500572 | BK131: 0.004069654705 | BL131: -0.0008084446832 | BM131: -0.001051587302 | BN131: -0.00125 | BO131: -0.001029551645 | BP131: 0.003732353117 | BQ131: -0.001145746271 | BR131: -0.001388888889 | BS131: -0.001509821634 | BT131: 0.003252083128 | BU131: -0.00162601626 | BV131: -0.002352941176 | BW131: 0.002408963585 | BX131: -4.33680869e-19 | BZ131: 501.2537608 | CB131: 4.669343571 | CD131: =CB131-CG103/$K$1 -> 2.366260492
A132: 3 | B132: 105 | D132: 4.717545673 | F132: 0 | G132: 0 | H132: 111.8932927 | I132: 0 | J132: 0 | K132: 0 | L132: 0 | M132: 0 | N132: 0 | O132: 0 | P132: 0 | Q132: 0 | R132: 0 | S132: 0 | T132: 0 | U132: 0 | V132: 0 | W132: 0 | X132: 0 | Y132: 0 | Z132: 0 | AB132: 0 | AC132: 0 | AD132: 210 | AE132: 0 | AF132: 0 | AG132: 0 | AH132: 98.10670732 | AI132: 50.15243902 | AJ132: 27.31707317 | AK132: 0 | AL132: 0 | AN132: 4.655939722 | AP132: =OFFSET(AA129,A132,A132) -> 210 | AR132: 0.0009772696025 | AS132: 0.0009772696025 | AT132: 0.005739174364 | AU132: 0.0007341269841 | AV132: 0.0005357142857 | AW132: 0 | AX132: -0.001785714286 | AY132: -0.0003373015873 | AZ132: -0.0004802699896 | BA132: 0.00162601626 | BB132: -2.166836702e-19 | BD132: 0.0009772696025 | BE132: 0.0009772696025 | BF132: 0.005739174364 | BG132: 0.0007341269841 | BH132: 0.0005357142857 | BI132: 0 | BJ132: -0.0008084446832 | BK132: -0.0008084446832 | BL132: 0.003953460079 | BM132: -0.001051587302 | BN132: -0.00125 | BO132: -0.001145746271 | BP132: -0.001145746271 | BQ132: 0.003616158491 | BR132: -0.001388888889 | BS132: -0.00162601626 | BT132: -0.00162601626 | BU132: 0.003135888502 | BV132: 1.084202172e-18 | BW132: 1.084202172e-18 | BX132: 8.675185023e-19 | BZ132: 520.9684261 | CB132: 4.717545673 | CD132: =CB132-CG103/$K$1 -> 2.414462594
A133: 4 | B133: 120 | D133: 4.730149489 | F133: 0 | G133: 0 | H133: 0 | I133: 113.3125 | J133: 0 | K133: 0 | L133: 0 | M133: 0 | N133: 0 | O133: 0 | P133: 0 | Q133: 0 | R133: 0 | S133: 0 | T133: 0 | U133: 0 | V133: 0 | W133: 0 | X133: 0 | Y133: 0 | Z133: 0 | AB133: 0 | AC133: 0 | AD133: 0 | AE133: 185 | AF133: 0 | AG133: 0 | AH133: 71.6875 | AI133: 23.125 | AJ133: 0 | AK133: 0 | AL133: 0 | AN133: 4.78916769 | AP133: =OFFSET(AA129,A133,A133) -> 185 | AR133: 0.0007341269841 | AS133: 0.0007341269841 | AT133: 0.0007341269841 | AU133: 0.00613953239 | AV133: 0.0005357142857 | AW133: 0 | AX133: -0.001785714286 | AY133: -0.0003373015873 | AZ133: 0.001388888889 | BA133: 2.540701403e-19 | BB133: -1.797291352e-19 | BD133: 0.0007341269841 | BE133: 0.0007341269841 | BF133: 0.0007341269841 | BG133: 0.00613953239 | BH133: 0.0005357142857 | BI133: 0 | BJ133: -0.001051587302 | BK133: -0.001051587302 | BL133: -0.001051587302 | BM133: 0.004353818104 | BN133: -0.00125 | BO133: -0.001388888889 | BP133: -0.001388888889 | BQ133: -0.001388888889 | BR133: 0.004016516517 | BS133: -4.33680869e-19 | BT133: -4.33680869e-19 | BU133: -4.33680869e-19 | BV133: -1.796107287e-19 | BW133: -1.796107287e-19 | BX133: -3.593398639e-19 | BZ133: 542.6725639 | CB133: 4.730149489 | CD133: =CB133-CG103/$K$1 -> 2.427066409
A134: 5 | B134: 130 | D134: 4.779123493 | F134: 0 | G134: 0 | H134: 0 | I134: 0 | J134: 119 | K134: 0 | L134: 0 | M134: 0 | N134: 0 | O134: 0 | P134: 0 | Q134: 0 | R134: 0 | S134: 0 | T134: 0 | U134: 0 | V134: 0 | W134: 0 | X134: 0 | Y134: 0 | Z134: 0 | AB134: 0 | AC134: 0 | AD134: 0 | AE134: 0 | AF134: 170 | AG134: 0 | AH134: 51 | AI134: 0 | AJ134: 0 | AK134: 0 | AL134: 0 | AN134: 4.871560468 | AP134: =OFFSET(AA129,A134,A134) -> 170 | AR134: 0.0005357142857 | AS134: 0.0005357142857 | AT134: 0.0005357142857 | AU134: 0.0005357142857 | AV134: 0.006418067227 | AW134: 0 | AX134: -0.001785714286 | AY134: 0.00125 | AZ134: -1.630439035e-19 | BA134: 5.217942635e-20 | BB134: -1.391451369e-19 | BD134: 0.0005357142857 | BE134: 0.0005357142857 | BF134: 0.0005357142857 | BG134: 0.0005357142857 | BH134: 0.006418067227 | BI134: 0 | BJ134: -0.00125 | BK134: -0.00125 | BL134: -0.00125 | BM134: -0.00125 | BN134: 0.004632352941 | BO134: 0 | BP134: 0 | BQ134: 2.168404345e-19 | BR134: 0 | BS134: -1.630439035e-19 | BT134: -1.630439035e-19 | BU134: 5.379653095e-20 | BV134: -1.108644772e-19 | BW134: -1.108644772e-19 | BX134: -2.500096141e-19 | BZ134: 579.7156957 | CB134: 4.779123493 | CD134: =CB134-CG103/$K$1 -> 2.476040413
A135: 6 | B135: 125 | D135: 4.828313737 | F135: 0 | G135: 0 | H135: 0 | I135: 0 | J135: 0 | K135: 125 | L135: 0 | M135: 0 | N135: 0 | O135: 0 | P135: 0 | Q135: 0 | R135: 0 | S135: 0 | T135: 0 | U135: 0 | V135: 0 | W135: 0 | X135: 0 | Y135: 0 | Z135: 0 | AB135: 0 | AC135: 0 | AD135: 0 | AE135: 0 | AF135: 0 | AG135: 125 | AH135: 0 | AI135: 0 | AJ135: 0 | AK135: 0 | AL135: 0 | AN135: 4.828313737 | AP135: =OFFSET(AA129,A135,A135) -> 125 | AR135: 0 | AS135: 0 | AT135: 0 | AU135: 0 | AV135: 0 | AW135: 0.008 | AX135: 0 | AY135: 0 | AZ135: 0 | BA135: 0 | BB135: 0 | BD135: 0 | BE135: 0 | BF135: 0 | BG135: 0 | BH135: 0 | BI135: 0.008 | BJ135: 0 | BK135: 0 | BL135: 0 | BM135: 0 | BN135: 0 | BO135: 0 | BP135: 0 | BQ135: 0 | BR135: 0 | BS135: 0 | BT135: 0 | BU135: 0 | BV135: 0 | BW135: 0 | BX135: 0 | BZ135: 603.5392172 | CB135: 4.828313737 | CD135: =CB135-CG103/$K$1 -> 2.525230658
A136: 7 | B136: 55 | D136: 3.845576208 | F136: 0 | G136: 0 | H136: 0 | I136: 0 | J136: 0 | K136: 0 | L136: 46.78563486 | M136: 0 | N136: 0 | O136: 0 | P136: 0 | Q136: 0 | R136: 0 | S136: 0 | T136: 0 | U136: 0 | V136: 0 | W136: 0 | X136: 0 | Y136: 0 | Z136: 0 | AB136: 110.8335187 | AC136: 103.372274 | AD136: 98.10670732 | AE136: 71.6875 | AF136: 51 | AG136: 0 | AH136: 435 | AI136: 195 | AJ136: 105 | AK136: 25 | AL136: 5 | AN136: 4.021150723 | AP136: =OFFSET(AA129,A136,A136) -> 435 | AR136: -0.001785714286 | AS136: -0.001785714286 | AT136: -0.001785714286 | AU136: -0.001785714286 | AV136: -0.001785714286 | AW136: 0 | AX136: 0.005952380952 | AY136: -0.004166666667 | AZ136: 5.434796785e-19 | BA136: -1.739314212e-19 | BB136: 4.638171231e-19 | BD136: -0.001785714286 | BE136: -0.001785714286 | BF136: -0.001785714286 | BG136: -0.001785714286 | BH136: -0.001785714286 | BI136: 0 | BJ136: 0.004166666667 | BK136: 0.004166666667 | BL136: 0.004166666667 | BM136: 0.004166666667 | BN136: 0.004166666667 | BO136: 0 | BP136: 0 | BQ136: 0 | BR136: 0 | BS136: 5.434796785e-19 | BT136: 5.434796785e-19 | BU136: 5.434796785e-19 | BV136: 3.695482573e-19 | BW136: 3.695482573e-19 | BX136: 8.333653804e-19 | BZ136: 188.1320895 | CB136: -0.8472978604 | CD136: =CB136-CG103/$K$1 -> -3.15038094
A137: 8 | B137: 50 | D137: 3.822045711 | F137: 0 | G137: 0 | H137: 0 | I137: 0 | J137: 0 | K137: 0 | L137: 0 | M137: 45.69759684 | N137: 0 | O137: 0 | P137: 0 | Q137: 0 | R137: 0 | S137: 0 | T137: 0 | U137: 0 | V137: 0 | W137: 0 | X137: 0 | Y137: 0 | Z137: 0 | AB137: 64.04788379 | AC137: 57.67467719 | AD137: 50.15243902 | AE137: 23.125 | AF137: 0 | AG137: 0 | AH137: 195 | AI137: 195 | AJ137: 105 | AK137: 25 | AL137: 5 | AN137: 3.916195151 | AP137: =OFFSET(AA129,A137,A137) -> 195 | AR137: -0.0003373015873 | AS137: -0.0003373015873 | AT137: -0.0003373015873 | AU137: -0.0003373015873 | AV137: 0.00125 | AW137: 0 | AX137: -0.004166666667 | AY137: 0.01561507937 | AZ137: -0.01111111111 | BA137: -1.493373717e-18 | BB137: 0 | BD137: -0.0003373015873 | BE137: -0.0003373015873 | BF137: -0.0003373015873 | BG137: -0.0003373015873 | BH137: 0.00125 | BI137: 0 | BJ137: -0.004503968254 | BK137: -0.004503968254 | BL137: -0.004503968254 | BM137: -0.004503968254 | BN137: -0.002916666667 | BO137: 0.01111111111 | BP137: 0.01111111111 | BQ137: 0.01111111111 | BR137: 0.01111111111 | BS137: 0 | BT137: 0 | BU137: 0 | BV137: -1.493373717e-18 | BW137: -1.493373717e-18 | BX137: -1.493373717e-18 | BZ137: 178.9607072 | CB137: -0.7419373447 | CD137: =CB137-CG103/$K$1 -> -3.045020424
A138: 9 | B138: 60 | D138: 3.870247813 | F138: 0 | G138: 0 | H138: 0 | I138: 0 | J138: 0 | K138: 0 | L138: 0 | M138: 0 | N138: 47.95426829 | O138: 0 | P138: 0 | Q138: 0 | R138: 0 | S138: 0 | T138: 0 | U138: 0 | V138: 0 | W138: 0 | X138: 0 | Y138: 0 | Z138: 0 | AB138: 41.76901004 | AC138: 35.91391679 | AD138: 27.31707317 | AE138: 0 | AF138: 0 | AG138: 0 | AH138: 105 | AI138: 105 | AJ138: 105 | AK138: 25 | AL138: 5 | AN138: 4.121439878 | AP138: =OFFSET(AA129,A138,A138) -> 105 | AR138: -0.0004802699896 | AS138: -0.0004802699896 | AT138: -0.0004802699896 | AU138: 0.001388888889 | AV138: -6.253020629e-19 | AW138: 0 | AX138: 1.919274276e-18 | AY138: -0.01111111111 | AZ138: 0.0240913811 | BA138: -0.0125 | BB138: 0 | BD138: -0.0004802699896 | BE138: -0.0004802699896 | BF138: -0.0004802699896 | BG138: 0.001388888889 | BH138: -6.253020629e-19 | BI138: 0 | BJ138: -0.0004802699896 | BK138: -0.0004802699896 | BL138: -0.0004802699896 | BM138: 0.001388888889 | BN138: 1.293972213e-18 | BO138: -0.0115913811 | BP138: -0.0115913811 | BQ138: -0.0115913811 | BR138: -0.009722222222 | BS138: 0.0125 | BT138: 0.0125 | BU138: 0.0125 | BV138: 1.734723476e-18 | BW138: 1.734723476e-18 | BX138: 1.734723476e-18 | BZ138: 197.6406337 | CB138: 0.1792014295 | CD138: =CB138-CG103/$K$1 -> -2.12388165
A139: 10 | B139: 35 | D139: 3.882851628 | F139: 0 | G139: 0 | H139: 0 | I139: 0 | J139: 0 | K139: 0 | L139: 0 | M139: 0 | N139: 0 | O139: 48.5625 | P139: 0 | Q139: 0 | R139: 0 | S139: 0 | T139: 0 | U139: 0 | V139: 0 | W139: 0 | X139: 0 | Y139: 0 | Z139: 0 | AB139: 15.11764706 | AC139: 9.882352941 | AD139: 0 | AE139: 0 | AF139: 0 | AG139: 0 | AH139: 25 | AI139: 25 | AJ139: 25 | AK139: 25 | AL139: 5 | AN139: 3.603572349 | AP139: =OFFSET(AA129,A139,A139) -> 25 | AR139: -0.0008431195423 | AS139: -0.0008431195423 | AT139: 0.00162601626 | AU139: 1.547134627e-19 | AV139: 1.705471891e-19 | AW139: 0 | AX139: -7.747752471e-19 | AY139: 8.790623721e-19 | AZ139: -0.0125 | BA139: 0.06334311954 | BB139: -0.05 | BD139: -0.0008431195423 | BE139: -0.0008431195423 | BF139: 0.00162601626 | BG139: 1.547134627e-19 | BH139: 1.705471891e-19 | BI139: 0 | BJ139: -0.0008431195423 | BK139: -0.0008431195423 | BL139: 0.00162601626 | BM139: -6.200617845e-19 | BN139: -6.042280581e-19 | BO139: -0.0008431195423 | BP139: -0.0008431195423 | BQ139: 0.00162601626 | BR139: 2.590005876e-19 | BS139: -0.01334311954 | BT139: -0.01334311954 | BU139: -0.01087398374 | BV139: 0.05 | BW139: 0.05 | BX139: -6.938893904e-18 | BZ139: 174.9984822 | CB139: -0.9685591604 | CD139: =CB139-CG103/$K$1 -> -3.27164224
A140: 11 | B140: 40 | D140: 3.931825633 | F140: =IF($A140=F$4,IF($B140<0,-(EXP(-$D140)^(2-$H$1)),IF($B140=0,0,EXP($D140)^(2-$H$1))),0) -> 0 | G140: 0 | H140: 0 | I140: 0 | J140: 0 | K140: 0 | L140: 0 | M140: 0 | N140: 0 | O140: 0 | P140: =IF($A140=P$4,IF($B140<0,-(EXP(-$D140)^(2-$H$1)),IF($B140=0,0,EXP($D140)^(2-$H$1))),0) -> 51 | Q140: 0 | R140: 0 | S140: 0 | T140: 0 | U140: 0 | V140: 0 | W140: 0 | X140: 0 | Y140: 0 | Z140: 0 | AB140: 5 | AC140: 0 | AD140: 0 | AE140: 0 | AF140: 0 | AG140: 0 | AH140: 5 | AI140: 5 | AJ140: 5 | AK140: 5 | AL140: 5 | AN140: 3.716139358 | AP140: =OFFSET(AA129,A140,A140) -> 5 | AR140: -0.002298221614 | AS140: 0.002352941176 | AT140: -2.18833824e-19 | AU140: 1.547783884e-19 | AV140: -4.536147639e-20 | AW140: 0 | AX140: 5.283906008e-19 | AY140: -6.938893904e-19 | AZ140: 3.501341184e-18 | BA140: -0.05 | BB140: 0.2522982216 | BD140: -0.002298221614 | BE140: 0.002352941176 | BF140: -2.18833824e-19 | BG140: 1.547783884e-19 | BH140: -4.536147639e-20 | BI140: 0 | BJ140: -0.002298221614 | BK140: 0.002352941176 | BL140: 3.095567768e-19 | BM140: 6.831689892e-19 | BN140: 4.830291244e-19 | BO140: -0.002298221614 | BP140: 0.002352941176 | BQ140: -3.843326136e-19 | BR140: -1.072040123e-20 | BS140: -0.002298221614 | BT140: 0.002352941176 | BU140: 3.11700857e-18 | BV140: -0.05229822161 | BW140: -0.04764705882 | BX140: 0.2 | BZ140: 189.5231073 | CB140: -0.7048432203 | CD140: =CB140-CG103/$K$1 -> -3.0079263
A141: 12 | B141: 20 | D141: 3.103638864 | F141: 0 | G141: 0 | H141: 0 | I141: 0 | J141: 0 | K141: 0 | L141: 0 | M141: 0 | N141: 0 | O141: 0 | P141: 0 | Q141: 22.27887374 | R141: 0 | S141: 0 | T141: 0 | U141: 0 | V141: 0 | W141: 0 | X141: 0 | Y141: 0 | Z141: 0 | AN141: 3.001350311 | BZ141: 66.86670465
A142: 13 | B142: 15 | D142: 3.080108366 | F142: 0 | G142: 0 | H142: 0 | I142: 0 | J142: 0 | K142: 0 | L142: 0 | M142: 0 | N142: 0 | O142: 0 | P142: 0 | Q142: 0 | R142: 21.7607604 | S142: 0 | T142: 0 | U142: 0 | V142: 0 | W142: 0 | X142: 0 | Y142: 0 | Z142: 0 | AN142: 2.769422514 | BZ142: 60.26473977
A143: 14 | B143: 25 | D143: 3.128310468 | F143: 0 | G143: 0 | H143: 0 | I143: 0 | J143: 0 | K143: 0 | L143: 0 | M143: 0 | N143: 0 | O143: 0 | P143: 0 | Q143: 0 | R143: 0 | S143: 22.83536585 | T143: 0 | U143: 0 | V143: 0 | W143: 0 | X143: 0 | Y143: 0 | Z143: 0 | AN143: 3.223103526 | BZ143: 73.60074819
A144: 15 | B144: 30 | D144: 3.140914283 | F144: 0 | G144: 0 | H144: 0 | I144: 0 | J144: 0 | K144: 0 | L144: 0 | M144: 0 | N144: 0 | O144: 0 | P144: 0 | Q144: 0 | R144: 0 | S144: 0 | T144: 23.125 | U144: 0 | V144: 0 | W144: 0 | X144: 0 | Y144: 0 | Z144: 0 | AN144: 3.438211581 | BZ144: 79.5086428
A145: 16 | B145: 30 | D145: 3.282840293 | F145: 0 | G145: 0 | H145: 0 | I145: 0 | J145: 0 | K145: 0 | L145: 0 | M145: 0 | N145: 0 | O145: 0 | P145: 0 | Q145: 0 | R145: 0 | S145: 0 | T145: 0 | U145: 26.65136298 | V145: 0 | W145: 0 | X145: 0 | Y145: 0 | Z145: 0 | AN145: 3.408486288 | BZ145: 90.84080529
A146: 17 | B146: 30 | D146: 3.259309796 | F146: 0 | G146: 0 | H146: 0 | I146: 0 | J146: 0 | K146: 0 | L146: 0 | M146: 0 | N146: 0 | O146: 0 | P146: 0 | Q146: 0 | R146: 0 | S146: 0 | T146: 0 | U146: 0 | V146: 26.03156385 | W146: 0 | X146: 0 | Y146: 0 | Z146: 0 | AN146: 3.411756886 | BZ146: 88.81336719
A147: 18 | B147: 20 | D147: 3.307511898 | F147: 0 | G147: 0 | H147: 0 | I147: 0 | J147: 0 | K147: 0 | L147: 0 | M147: 0 | N147: 0 | O147: 0 | P147: 0 | Q147: 0 | R147: 0 | S147: 0 | T147: 0 | U147: 0 | V147: 0 | W147: 27.31707317 | X147: 0 | Y147: 0 | Z147: 0 | AN147: 3.039654755 | BZ147: 83.03447135
A148: 19 | B148: 15 | D148: 2.314281133 | F148: 0 | G148: 0 | H148: 0 | I148: 0 | J148: 0 | K148: 0 | L148: 0 | M148: 0 | N148: 0 | O148: 0 | P148: 0 | Q148: 0 | R148: 0 | S148: 0 | T148: 0 | U148: 0 | V148: 0 | W148: 0 | X148: 10.11764706 | Y148: 0 | Z148: 0 | AN148: 2.796839272 | BZ148: 28.29743264
A149: 20 | B149: 5 | D149: 2.290750635 | F149: 0 | G149: 0 | H149: 0 | I149: 0 | J149: 0 | K149: 0 | L149: 0 | M149: 0 | N149: 0 | O149: 0 | P149: 0 | Q149: 0 | R149: 0 | S149: 0 | T149: 0 | U149: 0 | V149: 0 | W149: 0 | X149: 0 | Y149: 9.882352941 | Z149: 0 | AN149: 1.796703016 | BZ149: 17.75565334
A150: 21 | B150: 5 | D150: 1.609437912 | F150: 0 | G150: 0 | H150: 0 | I150: 0 | J150: 0 | K150: 0 | L150: 0 | M150: 0 | N150: 0 | O150: 0 | P150: 0 | Q150: 0 | R150: 0 | S150: 0 | T150: 0 | U150: 0 | V150: 0 | W150: 0 | X150: 0 | Y150: 0 | Z150: 5 | AN150: 1.609437912 | BZ150: 8.047189562

Sheet Diagnostics
A1: Residual Graphs | AC1: =AVERAGE(AJ5:AJ25) -> 0.01754049648 | AD1: =STDEV(AJ5:AJ25) -> 1.624348301
AC2: Normal RSS Calc | AF2: Normality for Pearson Residuals
W3: Exposure | X3: Develop | Y3: Calendar | Z3: Fitted | AC3: Scaled
W4: Offset | X4: Offset | Y4: Period | Z4: Values | AA4: Residual | AC4: Normal | AD4: Difference | AF4: Rank | AG4: Order | AH4: Percentile | AI4: PhiInv | AJ4: Sort | AK4: R2
V5: 1 | W5: 1 | X5: 0 | Y5: =IF(W5="","",W5+X5-1) -> 0 | Z5: =IF(W5="","",OFFSET(Data!$N$77,W5,X5)) -> 109.1664813 | AA5: =IF(W5="","",OFFSET(Data!$N$104,W5,X5)) -> -2.220410188 | AC5: =IF(AH5="","",NORMINV(AH5,$AC$1,$AD$1)) -> -3.051681798 | AD5: =IF(AC5="","",AJ5-AC5) -> 0.5097877083 | AF5: =IF(AA5="","",RANK(AA5,ResidY1Values,1)) -> 3 | AG5: =IF(W5="","",V5) -> 1 | AH5: =IF(W5="","",(AG5-0.375)/(Data!$P$113+0.25)) -> 0.02941176471 | AI5: =IF(W5="","",NORMINV(AH5,0,1)) -> -1.88950996 | AJ5: =IF(AA5="","",IF(ISERROR(MATCH(AG5,AF$5:AF$25,0)),0,OFFSET(AA$4,MATCH(AG5,AF$5:AF$25,0),0))) -> -2.54189409 | AK5: =CORREL(NormXValues,NormYValues)^2 -> 0.9353695261 | AM5: u | AN5: =LN(Data!$P$113) -> 3.044522438
V6: 2 | W6: 2 | X6: 0 | Y6: =IF(W6="","",W6+X6-1) -> 1 | Z6: =IF(W6="","",OFFSET(Data!$N$77,W6,X6)) -> 106.627726 | AA6: =IF(W6="","",OFFSET(Data!$N$104,W6,X6)) -> 0.5328353295 | AC6: =IF(AH6="","",NORMINV(AH6,$AC$1,$AD$1)) -> -2.304009648 | AD6: =IF(AC6="","",AJ6-AC6) -> 0.06713741051 | AF6: 11 | AG6: =IF(W6="","",V6) -> 2 | AH6: =IF(W6="","",(AG6-0.375)/(Data!$P$113+0.25)) -> 0.07647058824 | AI6: =IF(W6="","",NORMINV(AH6,0,1)) -> -1.429219424 | AJ6: =IF(AA6="","",IF(ISERROR(MATCH(AG6,AF$5:AF$25,0)),0,OFFSET(AA$4,MATCH(AG6,AF$5:AF$25,0),0))) -> -2.236872237 | AM6: v | AN6: =LN(AN5) -> 1.113344054
V7: 3 | W7: 3 | X7: 0 | Y7: 2 | Z7: =IF(W7="","",OFFSET(Data!$N$77,W7,X7)) -> 111.8932927 | AA7: =IF(W7="","",OFFSET(Data!$N$104,W7,X7)) -> -1.089405146 | AC7: -1.862679722 | AD7: -0.3577304662 | AF7: 7 | AG7: 3 | AH7: =IF(W7="","",(AG7-0.375)/(Data!$P$113+0.25)) -> 0.1235294118 | AI7: -1.157522815 | AJ7: -2.220410188 | AM7: Mu | AN7: =-1.2725+1.0521*(AN6-AN5) -> -3.304292778
V8: 4 | W8: 4 | X8: 0 | Y8: 3 | Z8: =IF(W8="","",OFFSET(Data!$N$77,W8,X8)) -> 113.3125 | AA8: =IF(W8="","",OFFSET(Data!$N$104,W8,X8)) -> 1.138842719 | AC8: -1.528584513 | AD8: -0.5460103392 | AF8: 16 | AG8: 4 | AH8: =IF(W8="","",(AG8-0.375)/(Data!$P$113+0.25)) -> 0.1705882353 | AI8: -0.9518432764 | AJ8: -2.074594852 | AM8: Sigma | AN8: =1.0308-0.26758*(AN6+2/AN5) -> 0.5571134194
V9: 5 | W9: 5 | X9: 0 | Y9: 4 | Z9: =IF(W9="","",OFFSET(Data!$N$77,W9,X9)) -> 119 | AA9: =IF(W9="","",OFFSET(Data!$N$104,W9,X9)) -> 2.074594852 | AC9: -1.249718211 | AD9: -0.5999380555 | AF9: 19 | AG9: 5 | AH9: =IF(W9="","",(AG9-0.375)/(Data!$P$113+0.25)) -> 0.2176470588 | AI9: -0.7801643936 | AJ9: -1.849656267 | AM9: z | AN9: =(LN(1-AK5)-AN7)/AN8 -> 1.014557378
V10: 6 | W10: 6 | X10: 0 | Y10: 5 | Z10: =IF(W10="","",OFFSET(Data!$N$77,W10,X10)) -> 125 | AA10: =IF(W10="","",OFFSET(Data!$N$104,W10,X10)) -> 0 | AC10: -1.004019001 | AD10: -0.7574126781 | AF10: 9 | AG10: 6 | AH10: =IF(W10="","",(AG10-0.375)/(Data!$P$113+0.25)) -> 0.2647058824 | AI10: -0.6289042176 | AJ10: -1.761431679 | AM10: p-Value | AN10: =1-NORMSDIST(AN9) -> 0.1551584327
V11: 7 | W11: 1 | X11: 1 | Y11: 1 | Z11: =IF(W11="","",OFFSET(Data!$N$77,W11,X11)) -> 46.78563486 | AA11: =IF(W11="","",OFFSET(Data!$N$104,W11,X11)) -> 1.525380105 | AC11: -0.7797780582 | AD11: -0.3096270882 | AF11: 17 | AG11: 7 | AH11: =IF(W11="","",(AG11-0.375)/(Data!$P$113+0.25)) -> 0.3117647059 | AI11: -0.490854427 | AJ11: -1.089405146
V12: 8 | W12: 2 | X12: 1 | Y12: 2 | Z12: =IF(W12="","",OFFSET(Data!$N$77,W12,X12)) -> 45.69759684 | AA12: =IF(W12="","",OFFSET(Data!$N$104,W12,X12)) -> 0.8059432042 | AC12: -0.5698323381 | AD12: -0.01923215816 | AF12: 13 | AG12: 8 | AH12: =IF(W12="","",(AG12-0.375)/(Data!$P$113+0.25)) -> 0.3588235294 | AI12: -0.361605226 | AJ12: -0.5890644963
V13: 9 | W13: 3 | X13: 1 | Y13: 3 | Z13: =IF(W13="","",OFFSET(Data!$N$77,W13,X13)) -> 47.95426829 | AA13: =IF(W13="","",OFFSET(Data!$N$104,W13,X13)) -> 2.226072373 | AC13: -0.3692981558 | AD13: 0.3692981558 | AF13: 20 | AG13: 9 | AH13: =IF(W13="","",(AG13-0.375)/(Data!$P$113+0.25)) -> 0.4058823529 | AI13: -0.2381500642 | AJ13: 0
V14: 10 | W14: 4 | X14: 1 | Y14: 4 | Z14: =IF(W14="","",OFFSET(Data!$N$77,W14,X14)) -> 48.5625 | AA14: =IF(W14="","",OFFSET(Data!$N$104,W14,X14)) -> -2.54189409 | AC14: -0.1745124911 | AD14: 0.1745124911 | AF14: 1 | AG14: 10 | AH14: =IF(W14="","",(AG14-0.375)/(Data!$P$113+0.25)) -> 0.4529411765 | AI14: -0.1182338711 | AJ14: 0
V15: 11 | W15: 5 | X15: 1 | Y15: 5 | Z15: =IF(W15="","",OFFSET(Data!$N$77,W15,X15)) -> 51 | AA15: =IF(W15="","",OFFSET(Data!$N$104,W15,X15)) -> -2.074594852 | AC15: 0.01754049648 | AD15: 0.515294833 | AF15: 4 | AG15: 11 | AH15: =IF(W15="","",(AG15-0.375)/(Data!$P$113+0.25)) -> 0.5 | AI15: 0 | AJ15: 0.5328353295
V16: 12 | W16: 1 | X16: 2 | Y16: 2 | Z16: =IF(W16="","",OFFSET(Data!$N$77,W16,X16)) -> 22.27887374 | AA16: =IF(W16="","",OFFSET(Data!$N$104,W16,X16)) -> -0.5890644963 | AC16: 0.2095934841 | AD16: 0.3464329724 | AF16: 8 | AG16: 12 | AH16: =IF(W16="","",(AG16-0.375)/(Data!$P$113+0.25)) -> 0.5470588235 | AI16: 0.1182338711 | AJ16: 0.5560264565
V17: 13 | W17: 2 | X17: 2 | Y17: 3 | Z17: =IF(W17="","",OFFSET(Data!$N$77,W17,X17)) -> 21.7607604 | AA17: =IF(W17="","",OFFSET(Data!$N$104,W17,X17)) -> -1.761431679 | AC17: 0.4043791488 | AD17: 0.4015640555 | AF17: 6 | AG17: 13 | AH17: =IF(W17="","",(AG17-0.375)/(Data!$P$113+0.25)) -> 0.5941176471 | AI17: 0.2381500642 | AJ17: 0.8059432042
V18: 14 | W18: 3 | X18: 2 | Y18: 4 | Z18: =IF(W18="","",OFFSET(Data!$N$77,W18,X18)) -> 22.83536585 | AA18: =IF(W18="","",OFFSET(Data!$N$104,W18,X18)) -> 0.5560264565 | AC18: 0.6049133311 | AD18: 0.2445078473 | AF18: 12 | AG18: 14 | AH18: =IF(W18="","",(AG18-0.375)/(Data!$P$113+0.25)) -> 0.6411764706 | AI18: 0.361605226 | AJ18: 0.8494211784
V19: 15 | W19: 4 | X19: 2 | Y19: 5 | Z19: =IF(W19="","",OFFSET(Data!$N$77,W19,X19)) -> 23.125 | AA19: =IF(W19="","",OFFSET(Data!$N$104,W19,X19)) -> 1.773034403 | AC19: 0.8148590512 | AD19: 0.1977974731 | AF19: 18 | AG19: 15 | AH19: =IF(W19="","",(AG19-0.375)/(Data!$P$113+0.25)) -> 0.6882352941 | AI19: 0.490854427 | AJ19: 1.012656524
V20: 16 | W20: 1 | X20: 3 | Y20: 3 | Z20: =IF(W20="","",OFFSET(Data!$N$77,W20,X20)) -> 26.65136298 | AA20: =IF(W20="","",OFFSET(Data!$N$104,W20,X20)) -> 0.8494211784 | AC20: 1.039099994 | AD20: 0.09974272485 | AF20: 14 | AG20: 16 | AH20: =IF(W20="","",(AG20-0.375)/(Data!$P$113+0.25)) -> 0.7352941176 | AI20: 0.6289042176 | AJ20: 1.138842719
V21: 17 | W21: 2 | X21: 3 | Y21: 4 | Z21: =IF(W21="","",OFFSET(Data!$N$77,W21,X21)) -> 26.03156385 | AA21: =IF(W21="","",OFFSET(Data!$N$104,W21,X21)) -> 1.012656524 | AC21: 1.284799204 | AD21: 0.2405809006 | AF21: 15 | AG21: 17 | AH21: =IF(W21="","",(AG21-0.375)/(Data!$P$113+0.25)) -> 0.7823529412 | AI21: 0.7801643936 | AJ21: 1.525380105
V22: 18 | W22: 3 | X22: 3 | Y22: 5 | Z22: =IF(W22="","",OFFSET(Data!$N$77,W22,X22)) -> 27.31707317 | AA22: =IF(W22="","",OFFSET(Data!$N$104,W22,X22)) -> -1.849656267 | AC22: 1.563665506 | AD22: 0.2093688973 | AF22: 5 | AG22: 18 | AH22: =IF(W22="","",(AG22-0.375)/(Data!$P$113+0.25)) -> 0.8294117647 | AI22: 0.9518432764 | AJ22: 1.773034403
V23: 19 | W23: 1 | X23: 4 | Y23: 4 | Z23: =IF(W23="","",OFFSET(Data!$N$77,W23,X23)) -> 10.11764706 | AA23: =IF(W23="","",OFFSET(Data!$N$104,W23,X23)) -> 2.236872237 | AC23: 1.897760715 | AD23: 0.1768341372 | AF23: 21 | AG23: 19 | AH23: =IF(W23="","",(AG23-0.375)/(Data!$P$113+0.25)) -> 0.8764705882 | AI23: 1.157522815 | AJ23: 2.074594852
V24: 20 | W24: 2 | X24: 4 | Y24: 5 | Z24: =IF(W24="","",OFFSET(Data!$N$77,W24,X24)) -> 9.882352941 | AA24: =IF(W24="","",OFFSET(Data!$N$104,W24,X24)) -> -2.236872237 | AC24: 2.339090641 | AD24: -0.1130182677 | AF24: 2 | AG24: 20 | AH24: =IF(W24="","",(AG24-0.375)/(Data!$P$113+0.25)) -> 0.9235294118 | AI24: 1.429219424 | AJ24: 2.226072373
V25: 21 | W25: 1 | X25: 5 | Y25: 5 | Z25: =IF(W25="","",OFFSET(Data!$N$77,W25,X25)) -> 5 | AA25: =IF(W25="","",OFFSET(Data!$N$104,W25,X25)) -> 0 | AC25: 3.086762791 | AD25: -0.8498905539 | AF25: 9 | AG25: 21 | AH25: =IF(W25="","",(AG25-0.375)/(Data!$P$113+0.25)) -> 0.9705882353 | AI25: 1.88950996 | AJ25: 2.236872237
AC27: RSS | AD27: =SUMSQ(AD5:AD25) -> 3.410890197 | AI27: Linear Regression
V28: Mean Residuals | AC28: AIC | AD28: =2*(Data!R113)+Data!P113*(LN(2*PI()*AD27/Data!P113)+1) -> 43.42688676 | AI28: =LINEST(NormYValues,NormXValues,TRUE,TRUE) -> 1.628562527 | AJ28: 0.01754049648
A29: Normality Plot | V29: Exposure | W29: Residual | X29: Develop | Y29: Residual | Z29: Calendar | AA29: Residual | AC29: BIC | AD29: =Data!P113*LN(AD27/Data!P113)+(Data!R113*LN(Data!P113)) -> -4.678784822 | AI29: 0.09820977108 | AJ29: 0.0924541433
V30: 1 | W30: =IF(V30="","",SUMIF(ResidX2Values,V30,ResidY1Values)/COUNTIF(ResidX2Values,V30)) -> 0.3003664726 | X30: 0 | Y30: =IF(X30="","",SUMIF(ResidX1Values,X30,ResidY1Values)/COUNTIF(ResidX1Values,X30)) -> 0.07274292766 | Z30: 0 | AA30: =IF(Z30="","",SUMIF(ResidX3Values,Z30,ResidY1Values)/COUNTIF(ResidX3Values,Z30)) -> -2.220410188 | AI30: 0.9353695261 | AJ30: 0.42367811
V31: 2 | W31: =IF(V31="","",SUMIF(ResidX2Values,V31,ResidY1Values)/COUNTIF(ResidX2Values,V31)) -> -0.3293737717 | X31: 1 | Y31: =IF(X31="","",SUMIF(ResidX1Values,X31,ResidY1Values)/COUNTIF(ResidX1Values,X31)) -> -0.01181865197 | Z31: 1 | AA31: 1.029107717 | AI31: 274.9789678 | AJ31: 19
V32: 3 | W32: =IF(V32="","",SUMIF(ResidX2Values,V32,ResidY1Values)/COUNTIF(ResidX2Values,V32)) -> -0.03924064591 | X32: 2 | Y32: =IF(X32="","",SUMIF(ResidX1Values,X32,ResidY1Values)/COUNTIF(ResidX1Values,X32)) -> -0.005358829025 | Z32: 2 | AA32: -0.2908421462 | AI32: 49.35958841 | AJ32: 3.410559677
V33: 4 | W33: =IF(V33="","",SUMIF(ResidX2Values,V33,ResidY1Values)/COUNTIF(ResidX2Values,V33)) -> 0.1233276774 | X33: 3 | Y33: =IF(X33="","",SUMIF(ResidX1Values,X33,ResidY1Values)/COUNTIF(ResidX1Values,X33)) -> 0.004140478714 | Z33: 3 | AA33: 0.6132261478
V34: 5 | W34: =IF(V34="","",SUMIF(ResidX2Values,V34,ResidY1Values)/COUNTIF(ResidX2Values,V34)) -> -1.421085472e-14 | X34: 4 | Y34: =IF(X34="","",SUMIF(ResidX1Values,X34,ResidY1Values)/COUNTIF(ResidX1Values,X34)) -> -9.103828802e-15 | Z34: 4 | AA34: 0.667651196 | AI34: Line of best fit
Z35: 5 | AA35: -0.7313481588 | AI35: -3 | AJ35: =AI35*AI$28+AJ$28 -> -4.868147084
AI36: 3 | AJ36: =AI36*AI$28+AJ$28 -> 4.903228077
A45: ="N = "&TEXT(Data!$P$113,"0") -> N = 21 | C45: ="p-Value = "&TEXT(AN10,"0.0%") -> p-Value = 15.5% | F45: R2 = | G45: =AK5 -> 0.9353695261
A46: ="Normal: MU = "&TEXT(AC1,"0.00")&", Sigma = "&TEXT(AD1,"0.00") -> Normal: MU = 0.02, Sigma = 1.62 | G46: ="AIC = "&TEXT(AD28,"0.0")&", BIC = "&TEXT(AD29,"0.0") -> AIC = 43.4, BIC = -4.7

Sheet Hat Matrix
A1: Weight Matrix
A2: =Data!N78 -> 109.1664813 | B2: 0 | C2: 0 | D2: 0 | E2: 0 | F2: 0 | G2: 0 | H2: 0 | I2: 0 | J2: 0 | K2: 0 | L2: 0 | M2: 0 | N2: 0 | O2: 0 | P2: 0 | Q2: 0 | R2: 0 | S2: 0 | T2: 0 | U2: 0
A3: 0 | B3: =Data!N79 -> 106.627726 | C3: 0 | D3: 0 | E3: 0 | F3: 0 | G3: 0 | H3: 0 | I3: 0 | J3: 0 | K3: 0 | L3: 0 | M3: 0 | N3: 0 | O3: 0 | P3: 0 | Q3: 0 | R3: 0 | S3: 0 | T3: 0 | U3: 0
A4: 0 | B4: 0 | C4: =Data!N80 -> 111.8932927 | D4: 0 | E4: 0 | F4: 0 | G4: 0 | H4: 0 | I4: 0 | J4: 0 | K4: 0 | L4: 0 | M4: 0 | N4: 0 | O4: 0 | P4: 0 | Q4: 0 | R4: 0 | S4: 0 | T4: 0 | U4: 0
A5: 0 | B5: 0 | C5: 0 | D5: =Data!N81 -> 113.3125 | E5: 0 | F5: 0 | G5: 0 | H5: 0 | I5: 0 | J5: 0 | K5: 0 | L5: 0 | M5: 0 | N5: 0 | O5: 0 | P5: 0 | Q5: 0 | R5: 0 | S5: 0 | T5: 0 | U5: 0
A6: 0 | B6: 0 | C6: 0 | D6: 0 | E6: =Data!N82 -> 119 | F6: 0 | G6: 0 | H6: 0 | I6: 0 | J6: 0 | K6: 0 | L6: 0 | M6: 0 | N6: 0 | O6: 0 | P6: 0 | Q6: 0 | R6: 0 | S6: 0 | T6: 0 | U6: 0
A7: 0 | B7: 0 | C7: 0 | D7: 0 | E7: 0 | F7: =Data!N83 -> 125 | G7: 0 | H7: 0 | I7: 0 | J7: 0 | K7: 0 | L7: 0 | M7: 0 | N7: 0 | O7: 0 | P7: 0 | Q7: 0 | R7: 0 | S7: 0 | T7: 0 | U7: 0
A8: 0 | B8: 0 | C8: 0 | D8: 0 | E8: 0 | F8: 0 | G8: =Data!O78 -> 46.78563486 | H8: 0 | I8: 0 | J8: 0 | K8: 0 | L8: 0 | M8: 0 | N8: 0 | O8: 0 | P8: 0 | Q8: 0 | R8: 0 | S8: 0 | T8: 0 | U8: 0
A9: 0 | B9: 0 | C9: 0 | D9: 0 | E9: 0 | F9: 0 | G9: 0 | H9: =Data!O79 -> 45.69759684 | I9: 0 | J9: 0 | K9: 0 | L9: 0 | M9: 0 | N9: 0 | O9: 0 | P9: 0 | Q9: 0 | R9: 0 | S9: 0 | T9: 0 | U9: 0
A10: 0 | B10: 0 | C10: 0 | D10: 0 | E10: 0 | F10: 0 | G10: 0 | H10: 0 | I10: =Data!O80 -> 47.95426829 | J10: 0 | K10: 0 | L10: 0 | M10: 0 | N10: 0 | O10: 0 | P10: 0 | Q10: 0 | R10: 0 | S10: 0 | T10: 0 | U10: 0
A11: 0 | B11: 0 | C11: 0 | D11: 0 | E11: 0 | F11: 0 | G11: 0 | H11: 0 | I11: 0 | J11: =Data!O81 -> 48.5625 | K11: 0 | L11: 0 | M11: 0 | N11: 0 | O11: 0 | P11: 0 | Q11: 0 | R11: 0 | S11: 0 | T11: 0 | U11: 0
A12: 0 | B12: 0 | C12: 0 | D12: 0 | E12: 0 | F12: 0 | G12: 0 | H12: 0 | I12: 0 | J12: 0 | K12: =Data!O82 -> 51 | L12: 0 | M12: 0 | N12: 0 | O12: 0 | P12: 0 | Q12: 0 | R12: 0 | S12: 0 | T12: 0 | U12: 0
A13: 0 | B13: 0 | C13: 0 | D13: 0 | E13: 0 | F13: 0 | G13: 0 | H13: 0 | I13: 0 | J13: 0 | K13: 0 | L13: =Data!P78 -> 22.27887374 | M13: 0 | N13: 0 | O13: 0 | P13: 0 | Q13: 0 | R13: 0 | S13: 0 | T13: 0 | U13: 0
A14: 0 | B14: 0 | C14: 0 | D14: 0 | E14: 0 | F14: 0 | G14: 0 | H14: 0 | I14: 0 | J14: 0 | K14: 0 | L14: 0 | M14: =Data!P79 -> 21.7607604 | N14: 0 | O14: 0 | P14: 0 | Q14: 0 | R14: 0 | S14: 0 | T14: 0 | U14: 0
A15: 0 | B15: 0 | C15: 0 | D15: 0 | E15: 0 | F15: 0 | G15: 0 | H15: 0 | I15: 0 | J15: 0 | K15: 0 | L15: 0 | M15: 0 | N15: =Data!P80 -> 22.83536585 | O15: 0 | P15: 0 | Q15: 0 | R15: 0 | S15: 0 | T15: 0 | U15: 0
A16: 0 | B16: 0 | C16: 0 | D16: 0 | E16: 0 | F16: 0 | G16: 0 | H16: 0 | I16: 0 | J16: 0 | K16: 0 | L16: 0 | M16: 0 | N16: 0 | O16: =Data!P81 -> 23.125 | P16: 0 | Q16: 0 | R16: 0 | S16: 0 | T16: 0 | U16: 0
A17: 0 | B17: 0 | C17: 0 | D17: 0 | E17: 0 | F17: 0 | G17: 0 | H17: 0 | I17: 0 | J17: 0 | K17: 0 | L17: 0 | M17: 0 | N17: 0 | O17: 0 | P17: =Data!Q78 -> 26.65136298 | Q17: 0 | R17: 0 | S17: 0 | T17: 0 | U17: 0
A18: 0 | B18: 0 | C18: 0 | D18: 0 | E18: 0 | F18: 0 | G18: 0 | H18: 0 | I18: 0 | J18: 0 | K18: 0 | L18: 0 | M18: 0 | N18: 0 | O18: 0 | P18: 0 | Q18: =Data!Q79 -> 26.03156385 | R18: 0 | S18: 0 | T18: 0 | U18: 0
A19: 0 | B19: 0 | C19: 0 | D19: 0 | E19: 0 | F19: 0 | G19: 0 | H19: 0 | I19: 0 | J19: 0 | K19: 0 | L19: 0 | M19: 0 | N19: 0 | O19: 0 | P19: 0 | Q19: 0 | R19: =Data!Q80 -> 27.31707317 | S19: 0 | T19: 0 | U19: 0
A20: 0 | B20: 0 | C20: 0 | D20: 0 | E20: 0 | F20: 0 | G20: 0 | H20: 0 | I20: 0 | J20: 0 | K20: 0 | L20: 0 | M20: 0 | N20: 0 | O20: 0 | P20: 0 | Q20: 0 | R20: 0 | S20: =Data!R78 -> 10.11764706 | T20: 0 | U20: 0
A21: 0 | B21: 0 | C21: 0 | D21: 0 | E21: 0 | F21: 0 | G21: 0 | H21: 0 | I21: 0 | J21: 0 | K21: 0 | L21: 0 | M21: 0 | N21: 0 | O21: 0 | P21: 0 | Q21: 0 | R21: 0 | S21: 0 | T21: =Data!R79 -> 9.882352941 | U21: 0
A22: 0 | B22: 0 | C22: 0 | D22: 0 | E22: 0 | F22: 0 | G22: 0 | H22: 0 | I22: 0 | J22: 0 | K22: 0 | L22: 0 | M22: 0 | N22: 0 | O22: 0 | P22: 0 | Q22: 0 | R22: 0 | S22: 0 | T22: 0 | U22: =Data!S78 -> 5
A24: Hat Matrix
A25: =MMULT(MMULT(MMULT(DesignMatrix,MINVERSE(MMULT(MMULT(TRANSPOSE(DesignMatrix),WeightMatrix),DesignMatrix))),TRANSPOSE(DesignMatrix)),WeightMatrix) -> 0.6271207183 | B25: 0.1165936041 | C25: 0.1093499137 | D25: 0.08318576389 | E25: 0.06375 | F25: 0 | G25: 0.1852202456 | H25: -0.03163416403 | I25: -0.03876837324 | J25: -0.05106770833 | K25: -0.06375 | L25: 0.08068541748 | M25: -0.02240382666 | N25: -0.02616353526 | O25: -0.03211805556 | P25: 0.08372102342 | Q25: -0.03930301826 | R25: -0.04441800516 | S25: 0.02325259516 | T25: -0.02325259516 | U25: -1.301042607e-17
A26: 0.1193696423 | B26: 0.6243446801 | C26: 0.1093499137 | D26: 0.08318576389 | E26: 0.06375 | F26: 0 | G26: -0.03238735841 | H26: 0.18597344 | I26: -0.03876837324 | J26: -0.05106770833 | K26: -0.06375 | L26: -0.0229372511 | M26: 0.08121884192 | N26: -0.02616353526 | O26: -0.03211805556 | P26: -0.04023880441 | Q26: 0.08465680957 | R26: -0.04441800516 | S26: -0.02380622837 | T26: 0.02380622837 | U26: 2.168404345e-18
A27: 0.1066850838 | B27: 0.1042040354 | C27: 0.6421751169 | D27: 0.08318576389 | E27: 0.06375 | F27: 0 | G27: -0.03782359776 | H27: -0.03694397921 | I27: 0.1895852853 | J27: -0.05106770833 | K27: -0.06375 | L27: -0.0255259365 | M27: -0.02493231007 | N27: 0.08257630213 | O27: -0.03211805556 | P27: -0.04333554957 | Q27: -0.04232774609 | R27: 0.08566329566 | S27: 0 | T27: -4.285787411e-18 | U27: -1.31498953e-18
A28: 0.08014205972 | B28: 0.07827829089 | C28: 0.0821438855 | D28: 0.6956857639 | E28: 0.06375 | F28: 0 | G28: -0.04919917952 | H28: -0.04805501255 | I28: -0.05042809959 | J28: 0.2114322917 | K28: -0.06375 | L28: -0.0309428802 | M28: -0.03022327834 | N28: -0.03171578591 | O28: 0.09288194444 | P28: 2.311637252e-17 | Q28: 1.128939123e-17 | R28: 1.184689203e-17 | S28: 4.437359713e-18 | T28: 4.83778898e-20 | U28: 1.973041812e-18
A29: 0.05848204358 | B29: 0.05712199605 | C29: 0.05994283537 | D29: 0.060703125 | E29: 0.76375 | F29: 0 | G29: -0.05848204358 | H29: -0.05712199605 | I29: -0.05994283537 | J29: -0.060703125 | K29: 0.23625 | L29: 0 | M29: -4.71861274e-18 | N29: -4.951630654e-18 | O29: 0 | P29: 1.141538984e-17 | Q29: 5.505220042e-18 | R29: 5.77708276e-18 | S29: 3.101776505e-18 | T29: 8.867484616e-19 | U29: 8.371289833e-19
A30: 0 | B30: 0 | C30: 0 | D30: 0 | E30: 0 | F30: 1 | G30: 0 | H30: 0 | I30: 0 | J30: 0 | K30: 0 | L30: 0 | M30: 0 | N30: 0 | O30: 0 | P30: 0 | Q30: 0 | R30: 0 | S30: 0 | T30: 0 | U30: 0
A31: 0.4321805731 | B31: -0.07381304941 | C31: -0.09045953756 | D31: -0.1191579861 | E31: -0.14875 | F31: 0 | G31: 0.3801603909 | H31: 0.1587724895 | I31: 0.161041078 | J31: 0.1512760417 | K31: 0.14875 | L31: 0.08068541748 | M31: -0.02240382666 | N31: -0.02616353526 | O31: -0.03211805556 | P31: 0.08372102342 | Q31: -0.03930301826 | R31: -0.04441800516 | S31: 0.02325259516 | T31: -0.02325259516 | U31: -1.734723476e-17
A32: -0.07557050296 | B32: 0.4339380266 | C32: -0.09045953756 | D32: -0.1191579861 | E32: -0.14875 | F32: 0 | G32: 0.1625527869 | H32: 0.3763800935 | I32: 0.161041078 | J32: 0.1512760417 | K32: 0.14875 | L32: -0.0229372511 | M32: 0.08121884192 | N32: -0.02616353526 | O32: -0.03211805556 | P32: -0.04023880441 | Q32: 0.08465680957 | R32: -0.04441800516 | S32: -0.02380622837 | T32: 0.02380622837 | U32: 2.168404345e-18
A33: -0.08825506143 | B33: -0.08620261815 | C33: 0.4423656657 | D33: -0.1191579861 | E33: -0.14875 | F33: 0 | G33: 0.1571165475 | H33: 0.1534626743 | I33: 0.3893947365 | J33: 0.1512760417 | K33: 0.14875 | L33: -0.0255259365 | M33: -0.02493231007 | N33: 0.08257630213 | O33: -0.03211805556 | P33: -0.04333554957 | Q33: -0.04232774609 | R33: 0.08566329566 | S33: 4.387829969e-18 | T33: 0 | U33: 3.172500431e-18
A34: -0.1147980855 | B34: -0.1121283626 | C34: -0.1176655657 | D34: 0.4933420139 | E34: -0.14875 | F34: 0 | G34: 0.1457409657 | H34: 0.142351641 | I34: 0.1493813516 | J34: 0.4137760417 | K34: 0.14875 | L34: -0.0309428802 | M34: -0.03022327834 | N34: -0.03171578591 | O34: 0.09288194444 | P34: -5.779093129e-18 | Q34: -5.644695615e-18 | R34: -5.923446016e-18 | S34: -2.426069501e-18 | T34: -2.36964928e-18 | U34: 9.003164791e-19
A35: -0.1364581017 | B35: -0.1332846575 | C35: -0.1398666159 | D35: -0.141640625 | E35: 0.55125 | F35: 0 | G35: 0.1364581017 | H35: 0.1332846575 | I35: 0.1398666159 | J35: 0.141640625 | K35: 0.44875 | L35: 0 | M35: 9.437225481e-18 | N35: 9.903261307e-18 | O35: 0 | P35: -2.663590963e-17 | Q35: -1.472707864e-17 | R35: -1.545434178e-17 | S35: -7.237478511e-18 | T35: -2.783377646e-18 | U35: -1.953300961e-18
A36: 0.3953585456 | B36: -0.1097787506 | C36: -0.1282013228 | D36: -0.1573784722 | E36: -5.160802341e-17 | F36: 0 | G36: 0.1694393767 | H36: -0.04704803598 | I36: -0.05494342405 | J36: -0.06744791667 | K36: -2.211772432e-17 | L36: 0.3282284591 | M36: 0.2193824 | N36: 0.227562752 | O36: 0.2248263889 | P36: 0.08372102342 | Q36: -0.03930301826 | R36: -0.04441800516 | S36: 0.02325259516 | T36: -0.02325259516 | U36: -2.168404345e-17
A37: -0.1123925304 | B37: 0.3979723254 | C37: -0.1282013228 | D37: -0.1573784722 | E37: -5.160802341e-17 | F37: 0 | G37: -0.04816822732 | H37: 0.170559568 | I37: -0.05494342405 | J37: -0.06744791667 | K37: 6.635317296e-17 | L37: 0.2246057905 | M37: 0.3230050686 | N37: 0.227562752 | O37: 0.2248263889 | P37: -0.04023880441 | Q37: 0.08465680957 | R37: -0.04441800516 | S37: -0.02380622837 | T37: 0.02380622837 | U37: -6.505213035e-18
A38: -0.1250770889 | B38: -0.1221683194 | C38: 0.4046238805 | D38: -0.1573784722 | E38: -2.580401171e-17 | F38: 0 | G38: -0.05360446666 | H38: -0.05235785116 | I38: 0.1734102345 | J38: -0.06744791667 | K38: 3.317658648e-17 | L38: 0.2220171051 | M38: 0.2168539166 | N38: 0.3363025894 | O38: 0.2248263889 | P38: -0.04333554957 | Q38: -0.04232774609 | R38: 0.08566329566 | S38: 4.387829969e-18 | T38: 4.285787411e-18 | U38: -2.257949449e-18
A39: -0.151620113 | B39: -0.1480940638 | C39: -0.1554073509 | D39: 0.4551215278 | E39: -2.580401171e-17 | F39: 0 | G39: -0.06498004842 | H39: -0.06346888451 | I39: -0.06660315041 | J39: 0.1950520833 | K39: 3.317658648e-17 | L39: 0.2166001614 | M39: 0.2115629484 | N39: 0.2220105014 | O39: 0.3498263889 | P39: -4.623274504e-17 | Q39: -4.515756492e-17 | R39: -4.738756812e-17 | S39: 4.19387571e-18 | T39: 4.096343717e-18 | U39: -1.258648849e-18
A40: 0.3429291608 | B40: -0.1609888475 | C40: -0.1819403133 | D40: 2.457073173e-17 | E40: -1.698295184e-17 | F40: 0 | G40: 0.1469696403 | H40: -0.06899522034 | I40: -0.07797441999 | J40: -5.44142747e-17 | K40: -7.548276321e-17 | L40: 0.06998554302 | M40: -0.03285486683 | N40: -0.03713067618 | O40: -6.602703976e-17 | P40: 0.4168630607 | Q40: 0.2860915298 | R40: 0.2970454095 | S40: 0.02325259516 | T40: -0.02325259516 | U40: -8.67361738e-18
A41: -0.1648219153 | B41: 0.3467622286 | C41: -0.1819403133 | D41: 0 | E41: -1.698295184e-17 | F41: 0 | G41: -0.07063796369 | H41: 0.1486123837 | I41: -0.07797441999 | J41: 1.92979205e-17 | K41: 1.298813406e-17 | L41: -0.03363712556 | M41: 0.07076780175 | N41: -0.03713067618 | O41: -3.092599443e-17 | P41: 0.2929032329 | Q41: 0.4100513576 | R41: 0.2970454095 | S41: -0.02380622837 | T41: 0.02380622837 | U41: 6.505213035e-18
A42: -0.1775064737 | B42: -0.1733784162 | C42: 0.3508848899 | D42: 2.457073173e-17 | E42: 8.821059868e-18 | F42: 0 | G42: -0.07607420303 | H42: -0.07430503552 | I42: 0.1503792385 | J42: -1.22930203e-17 | K42: -2.018845242e-17 | L42: -0.03622581097 | M42: -0.03538335025 | N42: 0.07160916121 | O42: -5.853819191e-18 | P42: 0.2898064877 | Q42: 0.283066802 | R42: 0.4271267103 | S42: 0 | T42: 0 | U42: 7.323816218e-18
A43: 0.250888767 | B43: -0.250888767 | C43: -2.42629902e-17 | D43: -2.785644747e-17 | E43: -6.31325329e-18 | F43: 0 | G43: 0.1075237573 | H43: -0.1075237573 | I43: -4.541401166e-17 | J43: -4.739818771e-17 | K43: -3.994522122e-17 | L43: 0.05120178918 | M43: -0.05120178918 | N43: -1.017632441e-18 | O43: -1.701093894e-18 | P43: 0.06125073846 | Q43: -0.06125073846 | R43: -4.860492282e-17 | S43: 0.5291349481 | T43: 0.4708650519 | U43: -6.938893904e-17
A44: -0.2568623091 | B44: 0.2568623091 | C44: -2.42629902e-17 | D44: -5.242717921e-17 | E44: -6.31325329e-18 | F44: 0 | G44: -0.1100838467 | H44: 0.1100838467 | I44: 3.777338332e-17 | J44: 2.631400749e-17 | K44: 4.852567606e-17 | L44: -0.0524208794 | M44: 0.0524208794 | N44: 3.859541279e-17 | O44: 3.339995144e-17 | P44: -0.06270908937 | Q44: 0.06270908937 | R44: -1.217354696e-18 | S44: 0.4820761246 | T44: 0.5179238754 | U44: -6.938893904e-17
A45: -2.84060487e-16 | B45: 0 | C45: -2.42629902e-17 | D45: -2.830819937e-17 | E45: -5.299768771e-17 | F45: 0 | G45: -1.354259162e-16 | H45: -1.336743521e-17 | I45: -2.442597984e-17 | J45: -2.633756051e-17 | K45: -3.763178592e-17 | L45: -9.075988038e-17 | M45: -3.20258326e-17 | N45: -3.855898585e-17 | O45: -3.981080026e-17 | P45: -6.14897974e-17 | Q45: 7.67654527e-18 | R45: 2.13218791e-18 | S45: -9.354862851e-17 | T45: -6.565835454e-17 | U45: 1
A48: Hat Matrix Factors
A49: =IF(A25=1,0,1/SQRT(1-A25)) -> 1.637630331
B50: =IF(B26=1,0,1/SQRT(1-B26)) -> 1.631568185
C51: =IF(C27=1,0,1/SQRT(1-C27)) -> 1.671724591
D52: =IF(D28=1,0,1/SQRT(1-D28)) -> 1.812753971
E53: =IF(E29=1,0,1/SQRT(1-E29)) -> 2.057377999
F54: =IF(F30=1,0,1/SQRT(1-F30)) -> 0
G55: =IF(G31=1,0,1/SQRT(1-G31)) -> 1.270165573
H56: =IF(H32=1,0,1/SQRT(1-H32)) -> 1.266309938
I57: =IF(I33=1,0,1/SQRT(1-I33)) -> 1.279734058
J58: =IF(J34=1,0,1/SQRT(1-J34)) -> 1.306075306
K59: =IF(K35=1,0,1/SQRT(1-K35)) -> 1.346870059
L60: =IF(L36=1,0,1/SQRT(1-L36)) -> 1.220082504
M61: =IF(M37=1,0,1/SQRT(1-M37)) -> 1.215366584
N62: =IF(N38=1,0,1/SQRT(1-N38)) -> 1.227481452
O63: =IF(O39=1,0,1/SQRT(1-O39)) -> 1.240181734
P64: =IF(P40=1,0,1/SQRT(1-P40)) -> 1.309527803
Q65: =IF(Q41=1,0,1/SQRT(1-Q41)) -> 1.301945776
R66: =IF(R42=1,0,1/SQRT(1-R42)) -> 1.321206535
S67: =IF(S43=1,0,1/SQRT(1-S43)) -> 1.457309416
T68: =IF(T44=1,0,1/SQRT(1-T44)) -> 1.440264275
U69: =IF(U45=1,0,1/SQRT(1-U45)) -> 0

Sheet GLM 2
A1: GLM Estimation of Sample Data Parameters | G1: rho = | H1: =Data!F55 -> 1 | J1: parameters = | K1: =2*6-1 -> 11
A2: Newton-Raphson Interation Sequence -- Iteration 1
B3: y(i) | D3: xb(i) | F3: W(i,i) | AB3: XWX | AN3: zz(i) | AP3: factor | AR3: xwx-1 | BD3: aa1(i,j) | BZ3: aa2(j) | CB3: beta(j) | CD3: beta_diff = | CE3: =SUM(CD5:CD15) -> 2.143506724 | CF3: beta_old = | CG3: =SUM(CB5:CB15) -> 23.57857396
B4: 1 | D4: 1 | F4: 1 | G4: 2 | H4: 3 | I4: 4 | J4: 5 | K4: 6 | L4: 7 | M4: 8 | N4: 9 | O4: 10 | P4: 11 | Q4: 12 | R4: 13 | S4: 14 | T4: 15 | U4: 16 | V4: 17 | W4: 18 | X4: 19 | Y4: 20 | Z4: 21 | AB4: 1 | AC4: 2 | AD4: 3 | AE4: 4 | AF4: 5 | AG4: 6 | AH4: 7 | AI4: 8 | AJ4: 9 | AK4: 10 | AL4: 11 | AN4: 1 | AR4: 1 | AS4: 2 | AT4: 3 | AU4: 4 | AV4: 5 | AW4: 6 | AX4: 7 | AY4: 8 | AZ4: 9 | BA4: 10 | BB4: 11 | BD4: 1 | BE4: 2 | BF4: 3 | BG4: 4 | BH4: 5 | BI4: 6 | BJ4: 7 | BK4: 8 | BL4: 9 | BM4: 10 | BN4: 11 | BO4: 12 | BP4: 13 | BQ4: 14 | BR4: 15 | BS4: 16 | BT4: 17 | BU4: 18 | BV4: 19 | BW4: 20 | BX4: 21
A5: 1 | B5: =Data!N138 -> 89.84076129 | D5: =IF(B5<0,-LN(-B5),LN(B5)) -> 4.498038784 | F5: =IF($A5=F$4,IF($B5<0,-(EXP(-$D5)^(2-$H$1)),IF($B5=0,0,EXP($D5)^(2-$H$1))),0) -> 89.84076129 | G5: 0 | H5: 0 | I5: 0 | J5: 0 | K5: 0 | L5: 0 | M5: 0 | N5: 0 | O5: 0 | P5: =IF($A5=P$4,IF($B5<0,-(EXP(-$D5)^(2-$H$1)),IF($B5=0,0,EXP($D5)^(2-$H$1))),0) -> 0 | Q5: 0 | R5: 0 | S5: 0 | T5: 0 | U5: 0 | V5: 0 | W5: 0 | X5: 0 | Y5: 0 | Z5: 0 | AB5: =MMULT(TRANSPOSE(DesignMatrix),MMULT(F5:Z25,DesignMatrix)) -> 209.7597355 | AC5: 0 | AD5: 0 | AE5: 0 | AF5: 0 | AG5: 0 | AH5: 119.9189742 | AI5: 57.83312758 | AJ5: 43.86829976 | AK5: 13.05625836 | AL5: -0.6838479761 | AN5: =IF(B5<0,D5+(B5+EXP(-D5))/-EXP(-D5),IF(B5=0,0,D5+(B5-EXP(D5))/EXP(D5))) -> 4.498038784 | AP5: =OFFSET(AA4,A5,A5) -> 209.7597355 | AR5: =MINVERSE(AB5:AL15) -> 0.00629270882 | AS5: 0.001538166624 | AT5: 0.001100527708 | AU5: 0.0008558302066 | AV5: 0.0006550928564 | AW5: 0 | AX5: -0.002461628814 | AY5: 0.0003488808837 | AZ5: -0.0007206728502 | BA5: -0.001141821053 | BB5: -0.002317466987 | BD5: =MMULT(AR5:BB15,TRANSPOSE(DesignMatrix)) -> 0.00629270882 | BE5: 0.001538166624 | BF5: 0.001100527708 | BG5: 0.0008558302066 | BH5: 0.0006550928564 | BI5: 0 | BJ5: 0.003831080006 | BK5: -0.00092346219 | BL5: -0.001361101106 | BM5: -0.001605798607 | BN5: -0.001806535957 | BO5: 0.00417996089 | BP5: -0.0005745813063 | BQ5: -0.001012220222 | BR5: -0.001256917723 | BS5: 0.00345928804 | BT5: -0.001295254156 | BU5: -0.001732893073 | BV5: 0.002317466987 | BW5: -0.00243707521 | BX5: 8.67361738e-19 | BZ5: =MMULT(F5:Z25,AN5:AN25) -> 404.1072287 | CB5: =MMULT(BD5:BX15,BZ5:BZ25) -> 4.617592584 | CD5: =CB5/$K$1 -> 0.419781144
A6: 2 | B6: =Data!N139 -> 85.20531387 | D6: =IF(B6<0,-LN(-B6),LN(B6)) -> 4.445063801 | F6: 0 | G6: 85.20531387 | H6: 0 | I6: 0 | J6: 0 | K6: 0 | L6: 0 | M6: 0 | N6: 0 | O6: 0 | P6: 0 | Q6: 0 | R6: 0 | S6: 0 | T6: 0 | U6: 0 | V6: 0 | W6: 0 | X6: 0 | Y6: 0 | Z6: 0 | AB6: 0 | AC6: 195.8975302 | AD6: 0 | AE6: 0 | AF6: 0 | AG6: 0 | AH6: 110.6922163 | AI6: 59.54644358 | AJ6: 48.14354815 | AK6: 13.06576125 | AL6: 0 | AN6: =IF(B6<0,D6+(B6+EXP(-D6))/-EXP(-D6),IF(B6=0,0,D6+(B6-EXP(D6))/EXP(D6))) -> 4.445063801 | AP6: =OFFSET(AA4,A6,A6) -> 195.8975302 | AR6: 0.001538166624 | AS6: 0.006657498298 | AT6: 0.001113955707 | AU6: 0.0008017455912 | AV6: 0.0006122847493 | AW6: 0 | AX6: -0.002300769679 | AY6: 0.0003020854436 | AZ6: -0.001166340989 | BA6: -0.000868414689 | BB6: 0.00249527329 | BD6: 0.001538166624 | BE6: 0.006657498298 | BF6: 0.001113955707 | BG6: 0.0008017455912 | BH6: 0.0006122847493 | BI6: 0 | BJ6: -0.0007626030555 | BK6: 0.004356728619 | BL6: -0.001186813972 | BM6: -0.001499024088 | BN6: -0.00168848493 | BO6: -0.0004605176119 | BP6: 0.004658814063 | BQ6: -0.0008847285286 | BR6: -0.001196938644 | BS6: -0.001626858601 | BT6: 0.003492473073 | BU6: -0.002051069518 | BV6: -0.00249527329 | BW6: 0.002624058384 | BX6: 4.33680869e-19 | BZ6: 378.7430564 | CB6: 4.541953344 | CD6: 0.4129048494
A7: 3 | B7: =Data!N140 -> 123.9399284 | D7: 4.819797 | F7: 0 | G7: 0 | H7: 123.9399284 | I7: 0 | J7: 0 | K7: 0 | L7: 0 | M7: 0 | N7: 0 | O7: 0 | P7: 0 | Q7: 0 | R7: 0 | S7: 0 | T7: 0 | U7: 0 | V7: 0 | W7: 0 | X7: 0 | Y7: 0 | Z7: 0 | AB7: 0 | AC7: 0 | AD7: 223.1059788 | AE7: 0 | AF7: 0 | AG7: 0 | AH7: 99.16605046 | AI7: 68.81414974 | AJ7: 35.28958479 | AK7: 0 | AL7: 0 | AN7: 4.819797 | AP7: =OFFSET(AA4,A7,A7) -> 223.1059788 | AR7: 0.001100527708 | AS7: 0.001113955707 | AT7: 0.005563997595 | AU7: 0.0006507285514 | AV7: 0.0003926917864 | AW7: 0 | AX7: -0.001475609766 | AY7: -0.001585847665 | AZ7: 0.0003994952499 | BA7: 0.001554889375 | BB7: 6.545098157e-06 | BD7: 0.001100527708 | BE7: 0.001113955707 | BF7: 0.005563997595 | BG7: 0.0006507285514 | BH7: 0.0003926917864 | BI7: 0 | BJ7: -0.0003750820581 | BK7: -0.0003616540587 | BL7: 0.00408838783 | BM7: -0.0008248812142 | BN7: -0.001082917979 | BO7: -0.001960929723 | BP7: -0.001947501723 | BQ7: 0.002502540165 | BR7: -0.002410728879 | BS7: -0.001561434473 | BT7: -0.001548006473 | BU7: 0.002902035415 | BV7: -6.545098157e-06 | BW7: 6.882901269e-06 | BX7: 1.066414481e-18 | BZ7: 597.3652949 | CB7: 4.768289604 | CD7: 0.4334808731
A8: 4 | B8: =Data!N141 -> 118.9844439 | D8: 4.778992761 | F8: 0 | G8: 0 | H8: 0 | I8: 118.9844439 | J8: 0 | K8: 0 | L8: 0 | M8: 0 | N8: 0 | O8: 0 | P8: 0 | Q8: 0 | R8: 0 | S8: 0 | T8: 0 | U8: 0 | V8: 0 | W8: 0 | X8: 0 | Y8: 0 | Z8: 0 | AB8: 0 | AC8: 0 | AD8: 0 | AE8: 185.4903906 | AF8: 0 | AG8: 0 | AH8: 66.5059467 | AI8: 14.23028783 | AJ8: 0 | AK8: 0 | AL8: 0 | AN8: 4.778992761 | AP8: =OFFSET(AA4,A8,A8) -> 185.4903906 | AR8: 0.0008558302066 | AS8: 0.0008017455912 | AT8: 0.0006507285514 | AU8: 0.006073420771 | AV8: 0.000516156836 | AW8: 0 | AX8: -0.001939551817 | AY8: 0.0001708004009 | AZ8: 0.001003207569 | BA8: -6.392434492e-05 | BB8: -2.63620146e-05 | BD8: 0.0008558302066 | BE8: 0.0008017455912 | BF8: 0.0006507285514 | BG8: 0.006073420771 | BH8: 0.000516156836 | BI8: 0 | BJ8: -0.00108372161 | BK8: -0.001137806226 | BL8: -0.001288823265 | BM8: 0.004133868954 | BN8: -0.001423394981 | BO8: -0.0009129212094 | BP8: -0.0009670058248 | BQ8: -0.001118022865 | BR8: 0.004304669355 | BS8: 9.028635952e-05 | BT8: 3.620174407e-05 | BU8: -0.0001148152957 | BV8: 2.63620146e-05 | BW8: -2.772260085e-05 | BX8: 4.946672412e-19 | BZ8: 568.6257958 | CB8: 4.728919961 | CD8: 0.4299018147
A9: 5 | B9: =Data!N142 -> 99.7850489 | D9: 4.603018361 | F9: 0 | G9: 0 | H9: 0 | I9: 0 | J9: 99.7850489 | K9: 0 | L9: 0 | M9: 0 | N9: 0 | O9: 0 | P9: 0 | Q9: 0 | R9: 0 | S9: 0 | T9: 0 | U9: 0 | V9: 0 | W9: 0 | X9: 0 | Y9: 0 | Z9: 0 | AB9: 0 | AC9: 0 | AD9: 0 | AE9: 0 | AF9: 135.9694782 | AG9: 0 | AH9: 36.18442935 | AI9: 0 | AJ9: 0 | AK9: 0 | AL9: 0 | AN9: 4.603018361 | AP9: =OFFSET(AA4,A9,A9) -> 135.9694782 | AR9: 0.0006550928564 | AS9: 0.0006122847493 | AT9: 0.0003926917864 | AU9: 0.000516156836 | AV9: 0.007805690607 | AW9: 0 | AX9: -0.001695084881 | AY9: 0.001194008996 | AZ9: -4.765503255e-05 | BA9: -8.549633818e-05 | BB9: -2.086559986e-05 | BD9: 0.0006550928564 | BE9: 0.0006122847493 | BF9: 0.0003926917864 | BG9: 0.000516156836 | BH9: 0.007805690607 | BI9: 0 | BJ9: -0.001039992025 | BK9: -0.001082800132 | BL9: -0.001302393095 | BM9: -0.001178928046 | BN9: 0.006110605725 | BO9: 0.0001540169706 | BP9: 0.0001112088635 | BQ9: -0.0001083840994 | BR9: 1.50809502e-05 | BS9: 0.000106361938 | BT9: 6.355383093e-05 | BU9: -0.0001560391319 | BV9: 2.086559986e-05 | BW9: -2.194250724e-05 | BX9: 3.896351557e-19 | BZ9: 459.3124123 | CB9: 4.536329 | CD9: 0.4123935455
A10: 6 | B10: =Data!N143 -> 101.8053244 | D10: 4.623062406 | F10: 0 | G10: 0 | H10: 0 | I10: 0 | J10: 0 | K10: 101.8053244 | L10: 0 | M10: 0 | N10: 0 | O10: 0 | P10: 0 | Q10: 0 | R10: 0 | S10: 0 | T10: 0 | U10: 0 | V10: 0 | W10: 0 | X10: 0 | Y10: 0 | Z10: 0 | AB10: 0 | AC10: 0 | AD10: 0 | AE10: 0 | AF10: 0 | AG10: 101.8053244 | AH10: 0 | AI10: 0 | AJ10: 0 | AK10: 0 | AL10: 0 | AN10: 4.623062406 | AP10: =OFFSET(AA4,A10,A10) -> 101.8053244 | AR10: 0 | AS10: 0 | AT10: 0 | AU10: 0 | AV10: 0 | AW10: 0.009822668958 | AX10: 0 | AY10: 0 | AZ10: 0 | BA10: 0 | BB10: 0 | BD10: 0 | BE10: 0 | BF10: 0 | BG10: 0 | BH10: 0 | BI10: 0.009822668958 | BJ10: 0 | BK10: 0 | BL10: 0 | BM10: 0 | BN10: 0 | BO10: 0 | BP10: 0 | BQ10: 0 | BR10: 0 | BS10: 0 | BT10: 0 | BU10: 0 | BV10: 0 | BW10: 0 | BX10: 0 | BZ10: 470.652368 | CB10: 4.623062406 | CD10: 0.4202784005
A11: 7 | B11: =Data!O138 -> 62.08584667 | D11: 4.128518051 | F11: 0 | G11: 0 | H11: 0 | I11: 0 | J11: 0 | K11: 0 | L11: 62.08584667 | M11: 0 | N11: 0 | O11: 0 | P11: 0 | Q11: 0 | R11: 0 | S11: 0 | T11: 0 | U11: 0 | V11: 0 | W11: 0 | X11: 0 | Y11: 0 | Z11: 0 | AB11: 119.9189742 | AC11: 110.6922163 | AD11: 99.16605046 | AE11: 66.5059467 | AF11: 36.18442935 | AG11: 0 | AH11: 432.4676171 | AI11: 200.4240087 | AJ11: 127.3014327 | AK11: 26.12201961 | AL11: -0.6838479761 | AN11: 4.128518051 | AP11: =OFFSET(AA4,A11,A11) -> 432.4676171 | AR11: -0.002461628814 | AS11: -0.002300769679 | AT11: -0.001475609766 | AU11: -0.001939551817 | AV11: -0.001695084881 | AW11: 0 | AX11: 0.006369585236 | AY11: -0.004486702792 | AZ11: 0.0001790723255 | BA11: 0.0003212678134 | BB11: 7.8406231e-05 | BD11: -0.002461628814 | BE11: -0.002300769679 | BF11: -0.001475609766 | BG11: -0.001939551817 | BH11: -0.001695084881 | BI11: 0 | BJ11: 0.003907956422 | BK11: 0.004068815556 | BL11: 0.00489397547 | BM11: 0.004430033419 | BN11: 0.004674500354 | BO11: -0.0005787463699 | BP11: -0.0004178872354 | BQ11: 0.0004072726781 | BR11: -5.666937317e-05 | BS11: -0.0003996740444 | BT11: -0.0002388149099 | BU11: 0.0005863450036 | BV11: -7.8406231e-05 | BW11: 8.245290351e-05 | BX11: -1.897353802e-18 | BZ11: 256.3225387 | CB11: -0.7637922375 | CD11: -0.06943565795
A12: 8 | B12: =Data!O139 -> 51.14577272 | D12: 3.934679844 | F12: 0 | G12: 0 | H12: 0 | I12: 0 | J12: 0 | K12: 0 | L12: 0 | M12: 51.14577272 | N12: 0 | O12: 0 | P12: 0 | Q12: 0 | R12: 0 | S12: 0 | T12: 0 | U12: 0 | V12: 0 | W12: 0 | X12: 0 | Y12: 0 | Z12: 0 | AB12: 57.83312758 | AC12: 59.54644358 | AD12: 68.81414974 | AE12: 14.23028783 | AF12: 0 | AG12: 0 | AH12: 200.4240087 | AI12: 200.4240087 | AJ12: 127.3014327 | AK12: 26.12201961 | AL12: -0.6838479761 | AN12: 3.934679844 | AP12: =OFFSET(AA4,A12,A12) -> 200.4240087 | AR12: 0.0003488808837 | AS12: 0.0003020854436 | AT12: -0.001585847665 | AU12: 0.0001708004009 | AV12: 0.001194008996 | AW12: 0 | AX12: -0.004486702792 | AY12: 0.01874245882 | AZ12: -0.01391361444 | BA12: -0.0006682133544 | BB12: -2.280911245e-05 | BD12: 0.0003488808837 | BE12: 0.0003020854436 | BF12: -0.001585847665 | BG12: 0.0001708004009 | BH12: 0.001194008996 | BI12: 0 | BJ12: -0.004137821908 | BK12: -0.004184617348 | BL12: -0.006072550456 | BM12: -0.004315902391 | BN12: -0.003292693796 | BO12: 0.01460463691 | BP12: 0.01455784147 | BQ12: 0.01266990836 | BR12: 0.01442655643 | BS12: 0.0006910224668 | BT12: 0.0006442270267 | BU12: -0.001243706082 | BV12: 2.280911245e-05 | BW12: -2.398632767e-05 | BX12: -2.124358632e-18 | BZ12: 201.242241 | CB12: -0.9226598284 | CD12: -0.08387816622
A13: 9 | B13: =Data!O140 -> 30.35190072 | D13: 3.412859142 | F13: 0 | G13: 0 | H13: 0 | I13: 0 | J13: 0 | K13: 0 | L13: 0 | M13: 0 | N13: 30.35190072 | O13: 0 | P13: 0 | Q13: 0 | R13: 0 | S13: 0 | T13: 0 | U13: 0 | V13: 0 | W13: 0 | X13: 0 | Y13: 0 | Z13: 0 | AB13: 43.86829976 | AC13: 48.14354815 | AD13: 35.28958479 | AE13: 0 | AF13: 0 | AG13: 0 | AH13: 127.3014327 | AI13: 127.3014327 | AJ13: 127.3014327 | AK13: 26.12201961 | AL13: -0.6838479761 | AN13: 3.412859142 | AP13: =OFFSET(AA4,A13,A13) -> 127.3014327 | AR13: -0.0007206728502 | AS13: -0.001166340989 | AT13: 0.0003994952499 | AU13: 0.001003207569 | AV13: -4.765503255e-05 | AW13: 0 | AX13: 0.0001790723255 | AY13: -0.01391361444 | AZ13: 0.02410246192 | BA13: -0.009430018639 | BB13: -0.000217228317 | BD13: -0.0007206728502 | BE13: -0.001166340989 | BF13: 0.0003994952499 | BG13: 0.001003207569 | BH13: -4.765503255e-05 | BI13: 0 | BJ13: -0.0005416005246 | BK13: -0.0009872686637 | BL13: 0.0005785675755 | BM13: 0.001182279894 | BN13: 0.000131417293 | BO13: -0.01445521497 | BP13: -0.01490088311 | BQ13: -0.01333504687 | BR13: -0.01273133455 | BS13: 0.009647246956 | BT13: 0.009201578817 | BU13: 0.01076741506 | BV13: 0.000217228317 | BW13: -0.0002284398221 | BX13: 4.201283418e-18 | BZ13: 103.5867619 | CB13: 0.5627040364 | CD13: 0.0511549124
A14: 10 | B14: =Data!O141 -> 52.27565887 | D14: 3.956530849 | F14: 0 | G14: 0 | H14: 0 | I14: 0 | J14: 0 | K14: 0 | L14: 0 | M14: 0 | N14: 0 | O14: 52.27565887 | P14: 0 | Q14: 0 | R14: 0 | S14: 0 | T14: 0 | U14: 0 | V14: 0 | W14: 0 | X14: 0 | Y14: 0 | Z14: 0 | AB14: 13.05625836 | AC14: 13.06576125 | AD14: 0 | AE14: 0 | AF14: 0 | AG14: 0 | AH14: 26.12201961 | AI14: 26.12201961 | AJ14: 26.12201961 | AK14: 26.12201961 | AL14: -0.6838479761 | AN14: 3.956530849 | AP14: =OFFSET(AA4,A14,A14) -> 26.12201961 | AR14: -0.001141821053 | AS14: -0.000868414689 | AT14: 0.001554889375 | AU14: -6.392434492e-05 | AV14: -8.549633818e-05 | AW14: 0 | AX14: 0.0003212678134 | AY14: -0.0006682133544 | AZ14: -0.009430018639 | BA14: 0.04809078627 | BB14: -0.03717200104 | BD14: -0.001141821053 | BE14: -0.000868414689 | BF14: 0.001554889375 | BG14: -6.392434492e-05 | BH14: -8.549633818e-05 | BI14: 0 | BJ14: -0.0008205532397 | BK14: -0.0005471468756 | BL14: 0.001876157188 | BM14: 0.0002573434685 | BN14: 0.0002357714752 | BO14: -0.001488766594 | BP14: -0.00121536023 | BQ14: 0.001207943834 | BR14: -0.0004108698859 | BS14: -0.01091878523 | BT14: -0.01064537887 | BU14: -0.008222074805 | BV14: 0.03717200104 | BW14: 0.0374454074 | BX14: 6.938893904e-18 | BZ14: 206.830257 | CB14: -0.861186264 | CD14: -0.07828966037
A15: 11 | B15: =Data!O142 -> 36.18442935 | D15: 3.588628898 | F15: =IF($A15=F$4,IF($B15<0,-(EXP(-$D15)^(2-$H$1)),IF($B15=0,0,EXP($D15)^(2-$H$1))),0) -> 0 | G15: 0 | H15: 0 | I15: 0 | J15: 0 | K15: 0 | L15: 0 | M15: 0 | N15: 0 | O15: 0 | P15: =IF($A15=P$4,IF($B15<0,-(EXP(-$D15)^(2-$H$1)),IF($B15=0,0,EXP($D15)^(2-$H$1))),0) -> 36.18442935 | Q15: 0 | R15: 0 | S15: 0 | T15: 0 | U15: 0 | V15: 0 | W15: 0 | X15: 0 | Y15: 0 | Z15: 0 | AB15: -0.6838479761 | AC15: 0 | AD15: 0 | AE15: 0 | AF15: 0 | AG15: 0 | AH15: -0.6838479761 | AI15: -0.6838479761 | AJ15: -0.6838479761 | AK15: -0.6838479761 | AL15: -0.6838479761 | AN15: 3.588628898 | AP15: =OFFSET(AA4,A15,A15) -> -0.6838479761 | AR15: -0.002317466987 | AS15: 0.00249527329 | AT15: 6.545098157e-06 | AU15: -2.63620146e-05 | AV15: -2.086559986e-05 | AW15: 0 | AX15: 7.8406231e-05 | AY15: -2.280911245e-05 | AZ15: -0.000217228317 | BA15: -0.03717200104 | BB15: -1.422662215 | BD15: -0.002317466987 | BE15: 0.00249527329 | BF15: 6.545098157e-06 | BG15: -2.63620146e-05 | BH15: -2.086559986e-05 | BI15: 0 | BJ15: -0.002239060756 | BK15: 0.002573679521 | BL15: 8.495132915e-05 | BM15: 5.204421639e-05 | BN15: 5.754063114e-05 | BO15: -0.002261869868 | BP15: 0.002550870409 | BQ15: 6.214221671e-05 | BR15: 2.923510395e-05 | BS15: -0.002479098185 | BT15: 0.002333642092 | BU15: -0.0001550861003 | BV15: -0.03965109922 | BW15: -0.03483835894 | BX15: -1.462313314 | BZ15: 129.8524888 | CB15: -2.252638647 | CD15: -0.2047853315
A16: 12 | B16: =Data!P138 -> 13.96482782 | D16: 2.63654187 | F16: 0 | G16: 0 | H16: 0 | I16: 0 | J16: 0 | K16: 0 | L16: 0 | M16: 0 | N16: 0 | O16: 0 | P16: 0 | Q16: 13.96482782 | R16: 0 | S16: 0 | T16: 0 | U16: 0 | V16: 0 | W16: 0 | X16: 0 | Y16: 0 | Z16: 0 | AN16: 2.63654187 | BZ16: 36.81885326
A17: 13 | B17: =Data!P139 -> 11.40289543 | D17: 2.433867309 | F17: 0 | G17: 0 | H17: 0 | I17: 0 | J17: 0 | K17: 0 | L17: 0 | M17: 0 | N17: 0 | O17: 0 | P17: 0 | Q17: 0 | R17: 11.40289543 | S17: 0 | T17: 0 | U17: 0 | V17: 0 | W17: 0 | X17: 0 | Y17: 0 | Z17: 0 | AN17: 2.433867309 | BZ17: 27.75313442
A18: 14 | B18: =Data!P140 -> 33.52456495 | D18: 3.512278452 | F18: 0 | G18: 0 | H18: 0 | I18: 0 | J18: 0 | K18: 0 | L18: 0 | M18: 0 | N18: 0 | O18: 0 | P18: 0 | Q18: 0 | R18: 0 | S18: 33.52456495 | T18: 0 | U18: 0 | V18: 0 | W18: 0 | X18: 0 | Y18: 0 | Z18: 0 | AN18: 3.512278452 | BZ18: 117.7476071
A19: 15 | B19: =Data!P141 -> 14.23028783 | D19: 2.655372639 | F19: 0 | G19: 0 | H19: 0 | I19: 0 | J19: 0 | K19: 0 | L19: 0 | M19: 0 | N19: 0 | O19: 0 | P19: 0 | Q19: 0 | R19: 0 | S19: 0 | T19: 14.23028783 | U19: 0 | V19: 0 | W19: 0 | X19: 0 | Y19: 0 | Z19: 0 | AN19: 2.655372639 | BZ19: 37.78671696
A20: 16 | B20: =Data!Q138 -> 30.8120414 | D20: 3.427905568 | F20: 0 | G20: 0 | H20: 0 | I20: 0 | J20: 0 | K20: 0 | L20: 0 | M20: 0 | N20: 0 | O20: 0 | P20: 0 | Q20: 0 | R20: 0 | S20: 0 | T20: 0 | U20: 30.8120414 | V20: 0 | W20: 0 | X20: 0 | Y20: 0 | Z20: 0 | AN20: 3.427905568 | BZ20: 105.6207683
A21: 17 | B21: =Data!Q139 -> 35.0777869 | D21: 3.557568078 | F21: 0 | G21: 0 | H21: 0 | I21: 0 | J21: 0 | K21: 0 | L21: 0 | M21: 0 | N21: 0 | O21: 0 | P21: 0 | Q21: 0 | R21: 0 | S21: 0 | T21: 0 | U21: 0 | V21: 35.0777869 | W21: 0 | X21: 0 | Y21: 0 | Z21: 0 | AN21: 3.557568078 | BZ21: 124.7916149
A22: 18 | B22: =Data!Q140 -> 35.28958479 | D22: 3.563587872 | F22: 0 | G22: 0 | H22: 0 | I22: 0 | J22: 0 | K22: 0 | L22: 0 | M22: 0 | N22: 0 | O22: 0 | P22: 0 | Q22: 0 | R22: 0 | S22: 0 | T22: 0 | U22: 0 | V22: 0 | W22: 35.28958479 | X22: 0 | Y22: 0 | Z22: 0 | AN22: 3.563587872 | BZ22: 125.7575363
A23: 19 | B23: =Data!R138 -> 13.74010634 | D23: 2.620319026 | F23: 0 | G23: 0 | H23: 0 | I23: 0 | J23: 0 | K23: 0 | L23: 0 | M23: 0 | N23: 0 | O23: 0 | P23: 0 | Q23: 0 | R23: 0 | S23: 0 | T23: 0 | U23: 0 | V23: 0 | W23: 0 | X23: 13.74010634 | Y23: 0 | Z23: 0 | AN23: 2.620319026 | BZ23: 36.00346206
A24: 20 | B24: =Data!R139 -> 13.06576125 | D24: 2.569995164 | F24: 0 | G24: 0 | H24: 0 | I24: 0 | J24: 0 | K24: 0 | L24: 0 | M24: 0 | N24: 0 | O24: 0 | P24: 0 | Q24: 0 | R24: 0 | S24: 0 | T24: 0 | U24: 0 | V24: 0 | W24: 0 | X24: 0 | Y24: 13.06576125 | Z24: 0 | AN24: 2.569995164 | BZ24: 33.57894322
A25: 21 | B25: =Data!S138 -> -0.6838479761 | D25: 0.3800196433 | F25: 0 | G25: 0 | H25: 0 | I25: 0 | J25: 0 | K25: 0 | L25: 0 | M25: 0 | N25: 0 | O25: 0 | P25: 0 | Q25: 0 | R25: 0 | S25: 0 | T25: 0 | U25: 0 | V25: 0 | W25: 0 | X25: 0 | Y25: 0 | Z25: -0.6838479761 | AN25: 0.3800196433 | BZ25: -0.2598756639
A27: Newton-Raphson Interation Sequence -- Iteration 2
B28: y(i) | D28: xb(i) | F28: W(i,i) | AB28: XWX | AN28: zz(i) | AP28: factor | AR28: xwx-1 | BD28: aa1(i,j) | BZ28: aa2(j) | CB28: beta(j) | CD28: beta_diff = | CE28: =SUM(CD30:CD40) -> -0.009112550357 | CF28: beta_old = | CG28: =SUM(CB30:CB40) -> 23.56946141
B29: 1 | D29: 1 | F29: 1 | G29: 2 | H29: 3 | I29: 4 | J29: 5 | K29: 6 | L29: 7 | M29: 8 | N29: 9 | O29: 10 | P29: 11 | Q29: 12 | R29: 13 | S29: 14 | T29: 15 | U29: 16 | V29: 17 | W29: 18 | X29: 19 | Y29: 20 | Z29: 21 | AB29: 1 | AC29: 2 | AD29: 3 | AE29: 4 | AF29: 5 | AG29: 6 | AH29: 7 | AI29: 8 | AJ29: 9 | AK29: 10 | AL29: 11 | AN29: 1 | AR29: 1 | AS29: 2 | AT29: 3 | AU29: 4 | AV29: 5 | AW29: 6 | AX29: 7 | AY29: 8 | AZ29: 9 | BA29: 10 | BB29: 11 | BD29: 1 | BE29: 2 | BF29: 3 | BG29: 4 | BH29: 5 | BI29: 6 | BJ29: 7 | BK29: 8 | BL29: 9 | BM29: 10 | BN29: 11 | BO29: 12 | BP29: 13 | BQ29: 14 | BR29: 15 | BS29: 16 | BT29: 17 | BU29: 18 | BV29: 19 | BW29: 20 | BX29: 21
A30: 1 | B30: =B5 -> 89.84076129 | D30: =MMULT(DesignMatrix,CB5:CB15) -> 4.617592584 | F30: =IF($A30=F$4,IF($B30<0,-(EXP(-$D30)^(2-$H$1)),IF($B30=0,0,EXP($D30)^(2-$H$1))),0) -> 101.2499876 | G30: 0 | H30: 0 | I30: 0 | J30: 0 | K30: 0 | L30: 0 | M30: 0 | N30: 0 | O30: 0 | P30: =IF($A30=P$4,IF($B30<0,-(EXP(-$D30)^(2-$H$1)),IF($B30=0,0,EXP($D30)^(2-$H$1))),0) -> 0 | Q30: 0 | R30: 0 | S30: 0 | T30: 0 | U30: 0 | V30: 0 | W30: 0 | X30: 0 | Y30: 0 | Z30: 0 | AB30: =MMULT(TRANSPOSE(DesignMatrix),MMULT(F30:Z50,DesignMatrix)) -> 213.3100716 | AC30: 0 | AD30: 0 | AE30: 0 | AF30: 0 | AG30: 0 | AH30: 112.060084 | AI30: 64.88809103 | AJ30: 46.13908916 | AK30: 13.22685149 | AL30: -0.6838479761 | AN30: =IF(B30<0,D30+(B30+EXP(-D30))/-EXP(-D30),IF(B30=0,0,D30+(B30-EXP(D30))/EXP(D30))) -> 4.504908853 | AP30: =OFFSET(AA29,A30,A30) -> 213.3100716 | AR30: =MINVERSE(AB30:AL40) -> 0.00595161901 | AS30: 0.001278589037 | AT30: 0.001110003154 | AU30: 0.0007915422045 | AV30: 0.0006119493074 | AW30: 0 | AX30: -0.001925437586 | AY30: -0.0002878087524 | AZ30: -0.000514314099 | BA30: -0.0009758675884 | BB30: -0.002248190984 | BD30: =MMULT(AR30:BB40,TRANSPOSE(DesignMatrix)) -> 0.00595161901 | BE30: 0.001278589037 | BF30: 0.001110003154 | BG30: 0.0007915422045 | BH30: 0.0006119493074 | BI30: 0 | BJ30: 0.004026181424 | BK30: -0.0006468485489 | BL30: -0.0008154344324 | BM30: -0.001133895382 | BN30: -0.001313488279 | BO30: 0.003738372672 | BP30: -0.0009346573013 | BQ30: -0.001103243185 | BR30: -0.001421704134 | BS30: 0.003224058573 | BT30: -0.0014489714 | BU30: -0.001617557284 | BV30: 0.002248190984 | BW30: -0.002424838989 | BX30: -1.301042607e-18 | BZ30: =MMULT(F30:Z50,AN30:AN50) -> 456.1219655 | CB30: =MMULT(BD30:BX40,BZ30:BZ50) -> 4.614352967 | CD30: =CB30-CG3/$K$1 -> 2.470846243
A31: 2 | B31: =B6 -> 85.20531387 | D31: 4.541953344 | F31: 0 | G31: 93.87398931 | H31: 0 | I31: 0 | J31: 0 | K31: 0 | L31: 0 | M31: 0 | N31: 0 | O31: 0 | P31: 0 | Q31: 0 | R31: 0 | S31: 0 | T31: 0 | U31: 0 | V31: 0 | W31: 0 | X31: 0 | Y31: 0 | Z31: 0 | AB31: 0 | AC31: 198.4045963 | AD31: 0 | AE31: 0 | AF31: 0 | AG31: 0 | AH31: 104.530607 | AI31: 60.79506425 | AJ31: 43.41191544 | AK31: 12.89731371 | AL31: 0 | AN31: =IF(B31<0,D31+(B31+EXP(-D31))/-EXP(-D31),IF(B31=0,0,D31+(B31-EXP(D31))/EXP(D31))) -> 4.449609602 | AP31: =OFFSET(AA29,A31,A31) -> 198.4045963 | AR31: 0.001278589037 | AS31: 0.006318794853 | AT31: 0.001110003154 | AU31: 0.0007915422045 | AV31: 0.0006119493074 | AW31: 0 | AX31: -0.001925437586 | AY31: -0.0002878087524 | AZ31: -0.000514314099 | BA31: -0.0009758675884 | BB31: 0.002424838989 | BD31: 0.001278589037 | BE31: 0.006318794853 | BF31: 0.001110003154 | BG31: 0.0007915422045 | BH31: 0.0006119493074 | BI31: 0 | BJ31: -0.0006468485489 | BK31: 0.004393357267 | BL31: -0.0008154344324 | BM31: -0.001133895382 | BN31: -0.001313488279 | BO31: -0.0009346573013 | BP31: 0.004105548514 | BQ31: -0.001103243185 | BR31: -0.001421704134 | BS31: -0.0014489714 | BT31: 0.003591234415 | BU31: -0.001617557284 | BV31: -0.002424838989 | BW31: 0.002615366827 | BX31: 4.33680869e-19 | BZ31: 417.7026042 | CB31: 4.542668424 | CD31: =CB31-CG3/$K$1 -> 2.399161701
A32: 3 | B32: 123.9399284 | D32: 4.768289604 | F32: 0 | G32: 0 | H32: 117.7177258 | I32: 0 | J32: 0 | K32: 0 | L32: 0 | M32: 0 | N32: 0 | O32: 0 | P32: 0 | Q32: 0 | R32: 0 | S32: 0 | T32: 0 | U32: 0 | V32: 0 | W32: 0 | X32: 0 | Y32: 0 | Z32: 0 | AB32: 0 | AC32: 0 | AD32: 232.6256249 | AE32: 0 | AF32: 0 | AG32: 0 | AH32: 114.9078991 | AI32: 60.06364815 | AJ32: 38.26522709 | AK32: 0 | AL32: 0 | AN32: 4.821146577 | AP32: =OFFSET(AA29,A32,A32) -> 232.6256249 | AR32: 0.001110003154 | AS32: 0.001110003154 | AT32: 0.005408755712 | AU32: 0.0007915422045 | AV32: 0.0006119493074 | AW32: 0 | AX32: -0.001925437586 | AY32: -0.0002878087524 | AZ32: -0.000514314099 | BA32: 0.001617557284 | BB32: -1.131862717e-19 | BD32: 0.001110003154 | BE32: 0.001110003154 | BF32: 0.005408755712 | BG32: 0.0007915422045 | BH32: 0.0006119493074 | BI32: 0 | BJ32: -0.0008154344324 | BK32: -0.0008154344324 | BL32: 0.003483318125 | BM32: -0.001133895382 | BN32: -0.001313488279 | BO32: -0.001103243185 | BP32: -0.001103243185 | BQ32: 0.003195509373 | BR32: -0.001421704134 | BS32: -0.001617557284 | BT32: -0.001617557284 | BU32: 0.002681195274 | BV32: -6.505213035e-19 | BW32: -2.168404345e-19 | BX32: -7.637075752e-19 | BZ32: 567.5344107 | CB32: 4.74173384 | CD32: =CB32-CG3/$K$1 -> 2.598227116
A33: 4 | B33: 118.9844439 | D33: 4.728919961 | F33: 0 | G33: 0 | H33: 0 | I33: 113.1732648 | J33: 0 | K33: 0 | L33: 0 | M33: 0 | N33: 0 | O33: 0 | P33: 0 | Q33: 0 | R33: 0 | S33: 0 | T33: 0 | U33: 0 | V33: 0 | W33: 0 | X33: 0 | Y33: 0 | Z33: 0 | AB33: 0 | AC33: 0 | AD33: 0 | AE33: 186.8571672 | AF33: 0 | AG33: 0 | AH33: 73.68390235 | AI33: 20.9568989 | AJ33: 0 | AK33: 0 | AL33: 0 | AN33: 4.780267592 | AP33: =OFFSET(AA29,A33,A33) -> 186.8571672 | AR33: 0.0007915422045 | AS33: 0.0007915422045 | AT33: 0.0007915422045 | AU33: 0.006143223466 | AV33: 0.0006119493074 | AW33: 0 | AX33: -0.001925437586 | AY33: -0.0002878087524 | AZ33: 0.001421704134 | BA33: 7.252465578e-19 | BB33: 1.178523733e-19 | BD33: 0.0007915422045 | BE33: 0.0007915422045 | BF33: 0.0007915422045 | BG33: 0.006143223466 | BH33: 0.0006119493074 | BI33: 0 | BJ33: -0.001133895382 | BK33: -0.001133895382 | BL33: -0.001133895382 | BM33: 0.00421778588 | BN33: -0.001313488279 | BO33: -0.001421704134 | BP33: -0.001421704134 | BQ33: -0.001421704134 | BR33: 0.003929977127 | BS33: -1.301042607e-18 | BT33: -8.67361738e-19 | BU33: -8.67361738e-19 | BV33: -5.757960491e-19 | BW33: -1.421151801e-19 | BX33: -4.579436758e-19 | BZ33: 540.9984901 | CB33: 4.739939738 | CD33: =CB33-CG3/$K$1 -> 2.596433015
A34: 5 | B34: 99.7850489 | D34: 4.536329 | F34: 0 | G34: 0 | H34: 0 | I34: 0 | J34: 93.34749176 | K34: 0 | L34: 0 | M34: 0 | N34: 0 | O34: 0 | P34: 0 | Q34: 0 | R34: 0 | S34: 0 | T34: 0 | U34: 0 | V34: 0 | W34: 0 | X34: 0 | Y34: 0 | Z34: 0 | AB34: 0 | AC34: 0 | AD34: 0 | AE34: 0 | AF34: 136.8377412 | AG34: 0 | AH34: 43.49024947 | AI34: 0 | AJ34: 0 | AK34: 0 | AL34: 0 | AN34: 4.605292365 | AP34: =OFFSET(AA29,A34,A34) -> 136.8377412 | AR34: 0.0006119493074 | AS34: 0.0006119493074 | AT34: 0.0006119493074 | AU34: 0.0006119493074 | AV34: 0.007919874672 | AW34: 0 | AX34: -0.001925437586 | AY34: 0.001313488279 | AZ34: 9.932762961e-19 | BA34: 1.125689839e-19 | BB34: 0 | BD34: 0.0006119493074 | BE34: 0.0006119493074 | BF34: 0.0006119493074 | BG34: 0.0006119493074 | BH34: 0.007919874672 | BI34: 0 | BJ34: -0.001313488279 | BK34: -0.001313488279 | BL34: -0.001313488279 | BM34: -0.001313488279 | BN34: 0.005994437086 | BO34: -8.67361738e-19 | BP34: -8.67361738e-19 | BQ34: -8.67361738e-19 | BR34: -8.67361738e-19 | BS34: 1.259145581e-19 | BT34: 1.259145581e-19 | BU34: 1.259145581e-19 | BV34: 2.384835421e-19 | BW34: 2.384835421e-19 | BX34: 2.384835421e-19 | BZ34: 429.8924911 | CB34: 4.542037357 | CD34: =CB34-CG3/$K$1 -> 2.398530633
A35: 6 | B35: 101.8053244 | D35: 4.623062406 | F35: 0 | G35: 0 | H35: 0 | I35: 0 | J35: 0 | K35: 101.8053244 | L35: 0 | M35: 0 | N35: 0 | O35: 0 | P35: 0 | Q35: 0 | R35: 0 | S35: 0 | T35: 0 | U35: 0 | V35: 0 | W35: 0 | X35: 0 | Y35: 0 | Z35: 0 | AB35: 0 | AC35: 0 | AD35: 0 | AE35: 0 | AF35: 0 | AG35: 101.8053244 | AH35: 0 | AI35: 0 | AJ35: 0 | AK35: 0 | AL35: 0 | AN35: 4.623062406 | AP35: =OFFSET(AA29,A35,A35) -> 101.8053244 | AR35: 0 | AS35: 0 | AT35: 0 | AU35: 0 | AV35: 0 | AW35: 0.009822668958 | AX35: 0 | AY35: 0 | AZ35: 0 | BA35: 0 | BB35: 0 | BD35: 0 | BE35: 0 | BF35: 0 | BG35: 0 | BH35: 0 | BI35: 0.009822668958 | BJ35: 0 | BK35: 0 | BL35: 0 | BM35: 0 | BN35: 0 | BO35: 0 | BP35: 0 | BQ35: 0 | BR35: 0 | BS35: 0 | BT35: 0 | BU35: 0 | BV35: 0 | BW35: 0 | BX35: 0 | BZ35: 470.652368 | CB35: 4.623062406 | CD35: =CB35-CG3/$K$1 -> 2.479555682
A36: 7 | B36: 62.08584667 | D36: 3.853800346 | F36: 0 | G36: 0 | H36: 0 | I36: 0 | J36: 0 | K36: 0 | L36: 47.17199292 | M36: 0 | N36: 0 | O36: 0 | P36: 0 | Q36: 0 | R36: 0 | S36: 0 | T36: 0 | U36: 0 | V36: 0 | W36: 0 | X36: 0 | Y36: 0 | Z36: 0 | AB36: 112.060084 | AC36: 104.530607 | AD36: 114.9078991 | AE36: 73.68390235 | AF36: 43.49024947 | AG36: 0 | AH36: 448.6727418 | AI36: 206.7037023 | AJ36: 127.8162317 | AK36: 26.1241652 | AL36: -0.6838479761 | AN36: 4.169959423 | AP36: =OFFSET(AA29,A36,A36) -> 448.6727418 | AR36: -0.001925437586 | AS36: -0.001925437586 | AT36: -0.001925437586 | AU36: -0.001925437586 | AV36: -0.001925437586 | AW36: 0 | AX36: 0.00605819772 | AY36: -0.004132760133 | AZ36: -3.125245002e-18 | BA36: -3.541871035e-19 | BB36: 0 | BD36: -0.001925437586 | BE36: -0.001925437586 | BF36: -0.001925437586 | BG36: -0.001925437586 | BH36: -0.001925437586 | BI36: 0 | BJ36: 0.004132760133 | BK36: 0.004132760133 | BL36: 0.004132760133 | BM36: 0.004132760133 | BN36: 0.004132760133 | BO36: 3.469446952e-18 | BP36: 3.469446952e-18 | BQ36: 3.469446952e-18 | BR36: 3.469446952e-18 | BS36: 3.442019504e-19 | BT36: 3.442019504e-19 | BU36: 3.442019504e-19 | BV36: -9.985153032e-21 | BW36: -9.985153032e-21 | BX36: -9.985153032e-21 | BZ36: 196.7052964 | CB36: -0.8017175569 | CD36: =CB36-CG3/$K$1 -> -2.94522428
A37: 8 | B37: 51.14577272 | D37: 3.778161106 | F37: 0 | G37: 0 | H37: 0 | I37: 0 | J37: 0 | K37: 0 | L37: 0 | M37: 43.73554273 | N37: 0 | O37: 0 | P37: 0 | Q37: 0 | R37: 0 | S37: 0 | T37: 0 | U37: 0 | V37: 0 | W37: 0 | X37: 0 | Y37: 0 | Z37: 0 | AB37: 64.88809103 | AC37: 60.79506425 | AD37: 60.06364815 | AE37: 20.9568989 | AF37: 0 | AG37: 0 | AH37: 206.7037023 | AI37: 206.7037023 | AJ37: 127.8162317 | AK37: 26.1241652 | AL37: -0.6838479761 | AN37: 3.947593781 | AP37: =OFFSET(AA29,A37,A37) -> 206.7037023 | AR37: -0.0002878087524 | AS37: -0.0002878087524 | AT37: -0.0002878087524 | AU37: -0.0002878087524 | AV37: 0.001313488279 | AW37: 0 | AX37: -0.004132760133 | AY37: 0.01709685312 | AZ37: -0.01267628423 | BA37: -5.221174652e-18 | BB37: -1.050802446e-18 | BD37: -0.0002878087524 | BE37: -0.0002878087524 | BF37: -0.0002878087524 | BG37: -0.0002878087524 | BH37: 0.001313488279 | BI37: 0 | BJ37: -0.004420568886 | BK37: -0.004420568886 | BL37: -0.004420568886 | BM37: -0.004420568886 | BN37: -0.002819271855 | BO37: 0.01267628423 | BP37: 0.01267628423 | BQ37: 0.01267628423 | BR37: 0.01267628423 | BS37: 6.938893904e-18 | BT37: 5.204170428e-18 | BU37: 6.938893904e-18 | BV37: 1.717719251e-18 | BW37: -1.700422455e-20 | BX37: 6.669168056e-19 | BZ37: 172.6501565 | CB37: -0.9527890676 | CD37: =CB37-CG3/$K$1 -> -3.096295791
A38: 9 | B38: 30.35190072 | D38: 4.004497367 | F38: 0 | G38: 0 | H38: 0 | I38: 0 | J38: 0 | K38: 0 | L38: 0 | M38: 0 | N38: 54.84425094 | O38: 0 | P38: 0 | Q38: 0 | R38: 0 | S38: 0 | T38: 0 | U38: 0 | V38: 0 | W38: 0 | X38: 0 | Y38: 0 | Z38: 0 | AB38: 46.13908916 | AC38: 43.41191544 | AD38: 38.26522709 | AE38: 0 | AF38: 0 | AG38: 0 | AH38: 127.8162317 | AI38: 127.8162317 | AJ38: 127.8162317 | AK38: 26.1241652 | AL38: -0.6838479761 | AN38: 3.557917282 | AP38: =OFFSET(AA29,A38,A38) -> 127.8162317 | AR38: -0.000514314099 | AS38: -0.000514314099 | AT38: -0.000514314099 | AU38: 0.001421704134 | AV38: 1.24398306e-18 | AW38: 0 | AX38: -3.766066364e-18 | AY38: -0.01267628423 | AZ38: 0.02302420713 | BA38: -0.009833608801 | BB38: 2.33750228e-18 | BD38: -0.000514314099 | BE38: -0.000514314099 | BF38: -0.000514314099 | BG38: 0.001421704134 | BH38: 1.24398306e-18 | BI38: 0 | BJ38: -0.000514314099 | BK38: -0.000514314099 | BL38: -0.000514314099 | BM38: 0.001421704134 | BN38: -2.522083304e-18 | BO38: -0.01319059833 | BP38: -0.01319059833 | BQ38: -0.01319059833 | BR38: -0.0112545801 | BS38: 0.009833608801 | BT38: 0.009833608801 | BU38: 0.009833608801 | BV38: -1.734723476e-18 | BW38: -1.734723476e-18 | BX38: 6.027788039e-19 | BZ38: 195.1313083 | CB38: 0.6365438212 | CD38: =CB38-CG3/$K$1 -> -1.506962902
A39: 10 | B39: 52.27565887 | D39: 3.965127724 | F39: 0 | G39: 0 | H39: 0 | I39: 0 | J39: 0 | K39: 0 | L39: 0 | M39: 0 | N39: 0 | O39: 52.72700345 | P39: 0 | Q39: 0 | R39: 0 | S39: 0 | T39: 0 | U39: 0 | V39: 0 | W39: 0 | X39: 0 | Y39: 0 | Z39: 0 | AB39: 13.22685149 | AC39: 12.89731371 | AD39: 0 | AE39: 0 | AF39: 0 | AG39: 0 | AH39: 26.1241652 | AI39: 26.1241652 | AJ39: 26.1241652 | AK39: 26.1241652 | AL39: -0.6838479761 | AN39: 3.956567697 | AP39: =OFFSET(AA29,A39,A39) -> 26.1241652 | AR39: -0.0009758675884 | AS39: -0.0009758675884 | AT39: 0.001617557284 | AU39: 1.810763091e-19 | AV39: -3.668207968e-19 | AW39: 0 | AX39: 1.271427896e-18 | AY39: -6.122403646e-18 | AZ39: -0.009833608801 | BA39: 0.04811175587 | BB39: -0.03730227948 | BD39: -0.0009758675884 | BE39: -0.0009758675884 | BF39: 0.001617557284 | BG39: 1.810763091e-19 | BH39: -3.668207968e-19 | BI39: 0 | BJ39: -0.0009758675884 | BK39: -0.0009758675884 | BL39: 0.001617557284 | BM39: 1.452504206e-18 | BN39: 9.046070996e-19 | BO39: -0.0009758675884 | BP39: -0.0009758675884 | BQ39: 0.001617557284 | BR39: -4.669899441e-18 | BS39: -0.01080947639 | BT39: -0.01080947639 | BU39: -0.008216051517 | BV39: 0.03730227948 | BW39: 0.03730227948 | BX39: -6.938893904e-18 | BZ39: 208.6179586 | CB39: -0.8657145108 | CD39: =CB39-CG3/$K$1 -> -3.009221234
A40: 11 | B40: 36.18442935 | D40: 3.772536763 | F40: =IF($A40=F$4,IF($B40<0,-(EXP(-$D40)^(2-$H$1)),IF($B40=0,0,EXP($D40)^(2-$H$1))),0) -> 0 | G40: 0 | H40: 0 | I40: 0 | J40: 0 | K40: 0 | L40: 0 | M40: 0 | N40: 0 | O40: 0 | P40: =IF($A40=P$4,IF($B40<0,-(EXP(-$D40)^(2-$H$1)),IF($B40=0,0,EXP($D40)^(2-$H$1))),0) -> 43.49024947 | Q40: 0 | R40: 0 | S40: 0 | T40: 0 | U40: 0 | V40: 0 | W40: 0 | X40: 0 | Y40: 0 | Z40: 0 | AB40: -0.6838479761 | AC40: 0 | AD40: 0 | AE40: 0 | AF40: 0 | AG40: 0 | AH40: -0.6838479761 | AI40: -0.6838479761 | AJ40: -0.6838479761 | AK40: -0.6838479761 | AL40: -0.6838479761 | AN40: 3.604549221 | AP40: =OFFSET(AA29,A40,A40) -> -0.6838479761 | AR40: -0.002248190984 | AS40: 0.002424838989 | AT40: 1.542562566e-19 | AU40: 4.104786181e-19 | AV40: 3.333504899e-19 | AW40: 0 | AX40: -9.752134928e-19 | AY40: 3.398828906e-19 | AZ40: 2.468100105e-18 | BA40: -0.03730227948 | BB40: -1.422762843 | BD40: -0.002248190984 | BE40: 0.002424838989 | BF40: 1.542562566e-19 | BG40: 4.104786181e-19 | BH40: 3.333504899e-19 | BI40: 0 | BJ40: -0.002248190984 | BK40: 0.002424838989 | BL40: -8.209572363e-19 | BM40: -5.647348747e-19 | BN40: -6.41863003e-19 | BO40: -0.002248190984 | BP40: 0.002424838989 | BQ40: -4.810743456e-19 | BR40: -2.248519841e-19 | BS40: -0.002248190984 | BT40: 0.002424838989 | BU40: 1.987025759e-18 | BV40: -0.03955047047 | BW40: -0.03487744049 | BX40: -1.462313314 | BZ40: 156.7627448 | CB40: -2.25065601 | CD40: =CB40-CG3/$K$1 -> -4.394162733
A41: 12 | B41: 13.96482782 | D41: 2.931140518 | F41: 0 | G41: 0 | H41: 0 | I41: 0 | J41: 0 | K41: 0 | L41: 0 | M41: 0 | N41: 0 | O41: 0 | P41: 0 | Q41: 18.74900187 | R41: 0 | S41: 0 | T41: 0 | U41: 0 | V41: 0 | W41: 0 | X41: 0 | Y41: 0 | Z41: 0 | AN41: 2.675970985 | BZ41: 50.17178501
A42: 13 | B42: 11.40289543 | D42: 2.855501278 | F42: 0 | G42: 0 | H42: 0 | I42: 0 | J42: 0 | K42: 0 | L42: 0 | M42: 0 | N42: 0 | O42: 0 | P42: 0 | Q42: 0 | R42: 17.38314881 | S42: 0 | T42: 0 | U42: 0 | V42: 0 | W42: 0 | X42: 0 | Y42: 0 | Z42: 0 | AN42: 2.51147538 | BZ42: 43.65735026
A43: 14 | B43: 33.52456495 | D43: 3.081837539 | F43: 0 | G43: 0 | H43: 0 | I43: 0 | J43: 0 | K43: 0 | L43: 0 | M43: 0 | N43: 0 | O43: 0 | P43: 0 | Q43: 0 | R43: 0 | S43: 21.79842106 | T43: 0 | U43: 0 | V43: 0 | W43: 0 | X43: 0 | Y43: 0 | Z43: 0 | AN43: 3.619773009 | BZ43: 78.90533619
A44: 15 | B44: 14.23028783 | D44: 3.042467895 | F44: 0 | G44: 0 | H44: 0 | I44: 0 | J44: 0 | K44: 0 | L44: 0 | M44: 0 | N44: 0 | O44: 0 | P44: 0 | Q44: 0 | R44: 0 | S44: 0 | T44: 20.9568989 | U44: 0 | V44: 0 | W44: 0 | X44: 0 | Y44: 0 | Z44: 0 | AN44: 2.721494306 | BZ44: 57.03408102
A45: 16 | B45: 30.8120414 | D45: 3.493844554 | F45: 0 | G45: 0 | H45: 0 | I45: 0 | J45: 0 | K45: 0 | L45: 0 | M45: 0 | N45: 0 | O45: 0 | P45: 0 | Q45: 0 | R45: 0 | S45: 0 | T45: 0 | U45: 32.91223766 | V45: 0 | W45: 0 | X45: 0 | Y45: 0 | Z45: 0 | AN45: 3.430032537 | BZ45: 112.8900461
A46: 17 | B46: 35.0777869 | D46: 3.418205314 | F46: 0 | G46: 0 | H46: 0 | I46: 0 | J46: 0 | K46: 0 | L46: 0 | M46: 0 | N46: 0 | O46: 0 | P46: 0 | Q46: 0 | R46: 0 | S46: 0 | T46: 0 | U46: 0 | V46: 30.51460173 | W46: 0 | X46: 0 | Y46: 0 | Z46: 0 | AN46: 3.567746351 | BZ46: 108.868359
A47: 18 | B47: 35.28958479 | D47: 3.644541575 | F47: 0 | G47: 0 | H47: 0 | I47: 0 | J47: 0 | K47: 0 | L47: 0 | M47: 0 | N47: 0 | O47: 0 | P47: 0 | Q47: 0 | R47: 0 | S47: 0 | T47: 0 | U47: 0 | V47: 0 | W47: 38.26522709 | X47: 0 | Y47: 0 | Z47: 0 | AN47: 3.566777962 | BZ47: 136.4835687
A48: 19 | B48: 13.74010634 | D48: 2.63265829 | F48: 0 | G48: 0 | H48: 0 | I48: 0 | J48: 0 | K48: 0 | L48: 0 | M48: 0 | N48: 0 | O48: 0 | P48: 0 | Q48: 0 | R48: 0 | S48: 0 | T48: 0 | U48: 0 | V48: 0 | W48: 0 | X48: 13.91069947 | Y48: 0 | Z48: 0 | AN48: 2.620394843 | BZ48: 36.45152515
A49: 20 | B49: 13.06576125 | D49: 2.55701905 | F49: 0 | G49: 0 | H49: 0 | I49: 0 | J49: 0 | K49: 0 | L49: 0 | M49: 0 | N49: 0 | O49: 0 | P49: 0 | Q49: 0 | R49: 0 | S49: 0 | T49: 0 | U49: 0 | V49: 0 | W49: 0 | X49: 0 | Y49: 12.89731371 | Z49: 0 | AN49: 2.570079719 | BZ49: 33.14712439
A50: 21 | B50: -0.6838479761 | D50: 0.3800196433 | F50: 0 | G50: 0 | H50: 0 | I50: 0 | J50: 0 | K50: 0 | L50: 0 | M50: 0 | N50: 0 | O50: 0 | P50: 0 | Q50: 0 | R50: 0 | S50: 0 | T50: 0 | U50: 0 | V50: 0 | W50: 0 | X50: 0 | Y50: 0 | Z50: -0.6838479761 | AN50: 0.3800196433 | BZ50: -0.2598756639
A52: Newton-Raphson Interation Sequence -- Iteration 3
B53: y(i) | D53: xb(i) | F53: W(i,i) | AB53: XWX | AN53: zz(i) | AP53: factor | AR53: xwx-1 | BD53: aa1(i,j) | BZ53: aa2(j) | CB53: beta(j) | CD53: beta_diff = | CE53: =SUM(CD55:CD65) -> -0.0003923108326 | CF53: beta_old = | CG53: =SUM(CB55:CB65) -> 23.5690691
B54: 1 | D54: 1 | F54: 1 | G54: 2 | H54: 3 | I54: 4 | J54: 5 | K54: 6 | L54: 7 | M54: 8 | N54: 9 | O54: 10 | P54: 11 | Q54: 12 | R54: 13 | S54: 14 | T54: 15 | U54: 16 | V54: 17 | W54: 18 | X54: 19 | Y54: 20 | Z54: 21 | AB54: 1 | AC54: 2 | AD54: 3 | AE54: 4 | AF54: 5 | AG54: 6 | AH54: 7 | AI54: 8 | AJ54: 9 | AK54: 10 | AL54: 11 | AN54: 1 | AR54: 1 | AS54: 2 | AT54: 3 | AU54: 4 | AV54: 5 | AW54: 6 | AX54: 7 | AY54: 8 | AZ54: 9 | BA54: 10 | BB54: 11 | BD54: 1 | BE54: 2 | BF54: 3 | BG54: 4 | BH54: 5 | BI54: 6 | BJ54: 7 | BK54: 8 | BL54: 9 | BM54: 10 | BN54: 11 | BO54: 12 | BP54: 13 | BQ54: 14 | BR54: 15 | BS54: 16 | BT54: 17 | BU54: 18 | BV54: 19 | BW54: 20 | BX54: 21
A55: 1 | B55: =B30 -> 89.84076129 | D55: =MMULT(DesignMatrix,CB30:CB40) -> 4.614352967 | F55: =IF($A55=F$4,IF($B55<0,-(EXP(-$D55)^(2-$H$1)),IF($B55=0,0,EXP($D55)^(2-$H$1))),0) -> 100.9225072 | G55: 0 | H55: 0 | I55: 0 | J55: 0 | K55: 0 | L55: 0 | M55: 0 | N55: 0 | O55: 0 | P55: =IF($A55=P$4,IF($B55<0,-(EXP(-$D55)^(2-$H$1)),IF($B55=0,0,EXP($D55)^(2-$H$1))),0) -> 0 | Q55: 0 | R55: 0 | S55: 0 | T55: 0 | U55: 0 | V55: 0 | W55: 0 | X55: 0 | Y55: 0 | Z55: 0 | AB55: =MMULT(TRANSPOSE(DesignMatrix),MMULT(F55:Z75,DesignMatrix)) -> 209.846362 | AC55: 0 | AD55: 0 | AE55: 0 | AF55: 0 | AG55: 0 | AH55: 108.9238548 | AI55: 63.65426909 | AJ55: 46.19542504 | AK55: 13.19929894 | AL55: -0.6838479761 | AN55: =IF(B55<0,D55+(B55+EXP(-D55))/-EXP(-D55),IF(B55=0,0,D55+(B55-EXP(D55))/EXP(D55))) -> 4.504548462 | AP55: =OFFSET(AA54,A55,A55) -> 209.846362 | AR55: =MINVERSE(AB55:AL65) -> 0.00602967998 | AS55: 0.001279767841 | AT55: 0.001106090471 | AU55: 0.0007717496702 | AV55: 0.0005980202378 | AW55: 0 | AX55: -0.001931226646 | AY55: -0.0002952510269 | AZ55: -0.0005378433764 | BA55: -0.0009754902477 | BB55: -0.002289868683 | BD55: =MMULT(AR55:BB65,TRANSPOSE(DesignMatrix)) -> 0.00602967998 | BE55: 0.001279767841 | BF55: 0.001106090471 | BG55: 0.0007717496702 | BH55: 0.0005980202378 | BI55: 0 | BJ55: 0.004098453334 | BK55: -0.0006514588049 | BL55: -0.0008251361749 | BM55: -0.001159476975 | BN55: -0.001333206408 | BO55: 0.003803202307 | BP55: -0.0009467098319 | BQ55: -0.001120387202 | BR55: -0.001454728002 | BS55: 0.003265358931 | BT55: -0.001484553208 | BU55: -0.001658230578 | BV55: 0.002289868683 | BW55: -0.002460043456 | BX55: 4.33680869e-19 | BZ55: =MMULT(F55:Z75,AN55:AN75) -> 454.6103246 | CB55: =MMULT(BD55:BX65,BZ55:BZ75) -> 4.614327983 | CD55: =CB55-CG28/$K$1 -> 2.471649673
A56: 2 | B56: =B31 -> 85.20531387 | D56: 4.542668424 | F56: 0 | G56: 93.9411408 | H56: 0 | I56: 0 | J56: 0 | K56: 0 | L56: 0 | M56: 0 | N56: 0 | O56: 0 | P56: 0 | Q56: 0 | R56: 0 | S56: 0 | T56: 0 | U56: 0 | V56: 0 | W56: 0 | X56: 0 | Y56: 0 | Z56: 0 | AB56: 0 | AC56: 195.9666743 | AD56: 0 | AE56: 0 | AF56: 0 | AG56: 0 | AH56: 102.0255335 | AI56: 59.88749469 | AJ56: 43.63637517 | AK56: 12.92277308 | AL56: 0 | AN56: =IF(B56<0,D56+(B56+EXP(-D56))/-EXP(-D56),IF(B56=0,0,D56+(B56-EXP(D56))/EXP(D56))) -> 4.449675867 | AP56: =OFFSET(AA54,A56,A56) -> 195.9666743 | AR56: 0.001279767841 | AS56: 0.0063826763 | AT56: 0.001106090471 | AU56: 0.0007717496702 | AV56: 0.0005980202378 | AW56: 0 | AX56: -0.001931226646 | AY56: -0.0002952510269 | AZ56: -0.0005378433764 | BA56: -0.0009754902477 | BB56: 0.002460043456 | BD56: 0.001279767841 | BE56: 0.0063826763 | BF56: 0.001106090471 | BG56: 0.0007717496702 | BH56: 0.0005980202378 | BI56: 0 | BJ56: -0.0006514588049 | BK56: 0.004451449654 | BL56: -0.0008251361749 | BM56: -0.001159476975 | BN56: -0.001333206408 | BO56: -0.0009467098319 | BP56: 0.004156198627 | BQ56: -0.001120387202 | BR56: -0.001454728002 | BS56: -0.001484553208 | BT56: 0.003618355251 | BU56: -0.001658230578 | BV56: -0.002460043456 | BW56: 0.002642865003 | BX56: -4.33680869e-19 | BZ56: 418.0076271 | CB56: 4.542702073 | CD56: =CB56-CG28/$K$1 -> 2.400023763
A57: 3 | B57: 123.9399284 | D57: 4.74173384 | F57: 0 | G57: 0 | H57: 114.6327843 | I57: 0 | J57: 0 | K57: 0 | L57: 0 | M57: 0 | N57: 0 | O57: 0 | P57: 0 | Q57: 0 | R57: 0 | S57: 0 | T57: 0 | U57: 0 | V57: 0 | W57: 0 | X57: 0 | Y57: 0 | Z57: 0 | AB57: 0 | AC57: 0 | AD57: 223.361478 | AE57: 0 | AF57: 0 | AG57: 0 | AH57: 108.7286936 | AI57: 57.30925511 | AJ57: 37.47863496 | AK57: 0 | AL57: 0 | AN57: 4.822924784 | AP57: =OFFSET(AA54,A57,A57) -> 223.361478 | AR57: 0.001106090471 | AS57: 0.001106090471 | AT57: 0.00558313821 | AU57: 0.0007717496702 | AV57: 0.0005980202378 | AW57: 0 | AX57: -0.001931226646 | AY57: -0.0002952510269 | AZ57: -0.0005378433764 | BA57: 0.001658230578 | BB57: -7.392057359e-20 | BD57: 0.001106090471 | BE57: 0.001106090471 | BF57: 0.00558313821 | BG57: 0.0007717496702 | BH57: 0.0005980202378 | BI57: 0 | BJ57: -0.0008251361749 | BK57: -0.0008251361749 | BL57: 0.003651911564 | BM57: -0.001159476975 | BN57: -0.001333206408 | BO57: -0.001120387202 | BP57: -0.001120387202 | BQ57: 0.003356660537 | BR57: -0.001454728002 | BS57: -0.001658230578 | BT57: -0.001658230578 | BU57: 0.002818817161 | BV57: -4.33680869e-19 | BW57: 0 | BX57: -5.076014426e-19 | BZ57: 552.8652966 | CB57: 4.741003358 | CD57: =CB57-CG28/$K$1 -> 2.598325048
A58: 4 | B58: 118.9844439 | D58: 4.739939738 | F58: 0 | G58: 0 | H58: 0 | I58: 114.4273059 | J58: 0 | K58: 0 | L58: 0 | M58: 0 | N58: 0 | O58: 0 | P58: 0 | Q58: 0 | R58: 0 | S58: 0 | T58: 0 | U58: 0 | V58: 0 | W58: 0 | X58: 0 | Y58: 0 | Z58: 0 | AB58: 0 | AC58: 0 | AD58: 0 | AE58: 185.5496494 | AF58: 0 | AG58: 0 | AH58: 71.12234348 | AI58: 19.7950739 | AJ58: 0 | AK58: 0 | AL58: 0 | AN58: 4.779765355 | AP58: =OFFSET(AA54,A58,A58) -> 185.5496494 | AR58: 0.0007717496702 | AS58: 0.0007717496702 | AT58: 0.0007717496702 | AU58: 0.00616114277 | AV58: 0.0005980202378 | AW58: 0 | AX58: -0.001931226646 | AY58: -0.0002952510269 | AZ58: 0.001454728002 | BA58: 2.594472409e-19 | BB58: -1.162065525e-19 | BD58: 0.0007717496702 | BE58: 0.0007717496702 | BF58: 0.0007717496702 | BG58: 0.00616114277 | BH58: 0.0005980202378 | BI58: 0 | BJ58: -0.001159476975 | BK58: -0.001159476975 | BL58: -0.001159476975 | BM58: 0.004229916124 | BN58: -0.001333206408 | BO58: -0.001454728002 | BP58: -0.001454728002 | BQ58: -0.001454728002 | BR58: 0.003934665097 | BS58: 4.33680869e-19 | BT58: 8.67361738e-19 | BU58: 4.33680869e-19 | BV58: 6.931281099e-19 | BW58: 1.126808979e-18 | BX58: 5.769215574e-19 | BZ58: 546.9356724 | CB58: 4.740153422 | CD58: =CB58-CG28/$K$1 -> 2.597475113
A59: 5 | B59: 99.7850489 | D59: 4.542037357 | F59: 0 | G59: 0 | H59: 0 | I59: 0 | J59: 93.8818763 | K59: 0 | L59: 0 | M59: 0 | N59: 0 | O59: 0 | P59: 0 | Q59: 0 | R59: 0 | S59: 0 | T59: 0 | U59: 0 | V59: 0 | W59: 0 | X59: 0 | Y59: 0 | Z59: 0 | AB59: 0 | AC59: 0 | AD59: 0 | AE59: 0 | AF59: 135.9933316 | AG59: 0 | AH59: 42.11145526 | AI59: 0 | AJ59: 0 | AK59: 0 | AL59: 0 | AN59: 4.604916081 | AP59: =OFFSET(AA54,A59,A59) -> 135.9933316 | AR59: 0.0005980202378 | AS59: 0.0005980202378 | AT59: 0.0005980202378 | AU59: 0.0005980202378 | AV59: 0.007951321966 | AW59: 0 | AX59: -0.001931226646 | AY59: 0.001333206408 | AZ59: 1.104531545e-19 | BA59: 1.494562639e-19 | BB59: 0 | BD59: 0.0005980202378 | BE59: 0.0005980202378 | BF59: 0.0005980202378 | BG59: 0.0005980202378 | BH59: 0.007951321966 | BI59: 0 | BJ59: -0.001333206408 | BK59: -0.001333206408 | BL59: -0.001333206408 | BM59: -0.001333206408 | BN59: 0.00602009532 | BO59: 4.33680869e-19 | BP59: 6.505213035e-19 | BQ59: 6.505213035e-19 | BR59: 6.505213035e-19 | BS59: 5.441340235e-19 | BT59: 7.609744579e-19 | BU59: 7.609744579e-19 | BV59: 6.935902873e-19 | BW59: 9.104307218e-19 | BX59: 6.935902873e-19 | BZ59: 432.3181619 | CB59: 4.542128196 | CD59: =CB59-CG28/$K$1 -> 2.399449886
A60: 6 | B60: 101.8053244 | D60: 4.623062406 | F60: 0 | G60: 0 | H60: 0 | I60: 0 | J60: 0 | K60: 101.8053244 | L60: 0 | M60: 0 | N60: 0 | O60: 0 | P60: 0 | Q60: 0 | R60: 0 | S60: 0 | T60: 0 | U60: 0 | V60: 0 | W60: 0 | X60: 0 | Y60: 0 | Z60: 0 | AB60: 0 | AC60: 0 | AD60: 0 | AE60: 0 | AF60: 0 | AG60: 101.8053244 | AH60: 0 | AI60: 0 | AJ60: 0 | AK60: 0 | AL60: 0 | AN60: 4.623062406 | AP60: =OFFSET(AA54,A60,A60) -> 101.8053244 | AR60: 0 | AS60: 0 | AT60: 0 | AU60: 0 | AV60: 0 | AW60: 0.009822668958 | AX60: 0 | AY60: 0 | AZ60: 0 | BA60: 0 | BB60: 0 | BD60: 0 | BE60: 0 | BF60: 0 | BG60: 0 | BH60: 0 | BI60: 0.009822668958 | BJ60: 0 | BK60: 0 | BL60: 0 | BM60: 0 | BN60: 0 | BO60: 0 | BP60: 0 | BQ60: 0 | BR60: 0 | BS60: 0 | BT60: 0 | BU60: 0 | BV60: 0 | BW60: 0 | BX60: 0 | BZ60: 470.652368 | CB60: 4.623062406 | CD60: =CB60-CG28/$K$1 -> 2.480384096
A61: 7 | B61: 62.08584667 | D61: 3.81263541 | F61: 0 | G61: 0 | H61: 0 | I61: 0 | J61: 0 | K61: 0 | L61: 45.26958572 | M61: 0 | N61: 0 | O61: 0 | P61: 0 | Q61: 0 | R61: 0 | S61: 0 | T61: 0 | U61: 0 | V61: 0 | W61: 0 | X61: 0 | Y61: 0 | Z61: 0 | AB61: 108.9238548 | AC61: 102.0255335 | AD61: 108.7286936 | AE61: 71.12234348 | AF61: 42.11145526 | AG61: 0 | AH61: 432.9118807 | AI61: 200.6460928 | AJ61: 127.3104352 | AK61: 26.12207203 | AL61: -0.6838479761 | AN61: 4.184104702 | AP61: =OFFSET(AA54,A61,A61) -> 432.9118807 | AR61: -0.001931226646 | AS61: -0.001931226646 | AT61: -0.001931226646 | AU61: -0.001931226646 | AV61: -0.001931226646 | AW61: 0 | AX61: 0.006236639031 | AY61: -0.004305412386 | AZ61: -3.566937396e-19 | BA61: -4.826490825e-19 | BB61: 0 | BD61: -0.001931226646 | BE61: -0.001931226646 | BF61: -0.001931226646 | BG61: -0.001931226646 | BH61: -0.001931226646 | BI61: 0 | BJ61: 0.004305412386 | BK61: 0.004305412386 | BL61: 0.004305412386 | BM61: 0.004305412386 | BN61: 0.004305412386 | BO61: -8.67361738e-19 | BP61: -1.734723476e-18 | BQ61: -1.734723476e-18 | BR61: -1.734723476e-18 | BS61: -1.224055478e-18 | BT61: -2.091417216e-18 | BU61: -2.091417216e-18 | BV61: -1.70670456e-18 | BW61: -2.574066298e-18 | BX61: -1.70670456e-18 | BZ61: 189.4126864 | CB61: -0.8025773419 | CD61: =CB61-CG28/$K$1 -> -2.945255652
A62: 8 | B62: 51.14577272 | D62: 3.740950868 | F62: 0 | G62: 0 | H62: 0 | I62: 0 | J62: 0 | K62: 0 | L62: 0 | M62: 42.13803881 | N62: 0 | O62: 0 | P62: 0 | Q62: 0 | R62: 0 | S62: 0 | T62: 0 | U62: 0 | V62: 0 | W62: 0 | X62: 0 | Y62: 0 | Z62: 0 | AB62: 63.65426909 | AC62: 59.88749469 | AD62: 57.30925511 | AE62: 19.7950739 | AF62: 0 | AG62: 0 | AH62: 200.6460928 | AI62: 200.6460928 | AJ62: 127.3104352 | AK62: 26.12207203 | AL62: -0.6838479761 | AN62: 3.954718147 | AP62: =OFFSET(AA54,A62,A62) -> 200.6460928 | AR62: -0.0002952510269 | AS62: -0.0002952510269 | AT62: -0.0002952510269 | AU62: -0.0002952510269 | AV62: 0.001333206408 | AW62: 0 | AX62: -0.004305412386 | AY62: 0.01823659486 | AZ62: -0.01363593145 | BA62: -6.978105167e-19 | BB62: 1.089265197e-18 | BD62: -0.0002952510269 | BE62: -0.0002952510269 | BF62: -0.0002952510269 | BG62: -0.0002952510269 | BH62: 0.001333206408 | BI62: 0 | BJ62: -0.004600663413 | BK62: -0.004600663413 | BL62: -0.004600663413 | BM62: -0.004600663413 | BN62: -0.002972205978 | BO62: 0.01363593145 | BP62: 0.01363593145 | BQ62: 0.01363593145 | BR62: 0.01363593145 | BS62: 0 | BT62: 1.734723476e-18 | BU62: 1.734723476e-18 | BV62: -6.978105167e-19 | BW62: 1.036912959e-18 | BX62: 3.914546801e-19 | BZ62: 166.6440668 | CB62: -0.9546965065 | CD62: =CB62-CG28/$K$1 -> -3.097374816
A63: 9 | B63: 30.35190072 | D63: 3.940016283 | F63: 0 | G63: 0 | H63: 0 | I63: 0 | J63: 0 | K63: 0 | L63: 0 | M63: 0 | N63: 51.41943854 | O63: 0 | P63: 0 | Q63: 0 | R63: 0 | S63: 0 | T63: 0 | U63: 0 | V63: 0 | W63: 0 | X63: 0 | Y63: 0 | Z63: 0 | AB63: 46.19542504 | AC63: 43.63637517 | AD63: 37.47863496 | AE63: 0 | AF63: 0 | AG63: 0 | AH63: 127.3104352 | AI63: 127.3104352 | AJ63: 127.3104352 | AK63: 26.12207203 | AL63: -0.6838479761 | AN63: 3.530296954 | AP63: =OFFSET(AA54,A63,A63) -> 127.3104352 | AR63: -0.0005378433764 | AS63: -0.0005378433764 | AT63: -0.0005378433764 | AU63: 0.001454728002 | AV63: -6.857403053e-20 | AW63: 0 | AX63: 2.057220916e-19 | AY63: -0.01363593145 | AZ63: 0.02405633413 | BA63: -0.009882559308 | BB63: -1.225070457e-18 | BD63: -0.0005378433764 | BE63: -0.0005378433764 | BF63: -0.0005378433764 | BG63: 0.001454728002 | BH63: -6.857403053e-20 | BI63: 0 | BJ63: -0.0005378433764 | BK63: -0.0005378433764 | BL63: -0.0005378433764 | BM63: 0.001454728002 | BN63: 1.371480611e-19 | BO63: -0.01417377483 | BP63: -0.01417377483 | BQ63: -0.01417377483 | BR63: -0.01218120345 | BS63: 0.009882559308 | BT63: 0.009882559308 | BU63: 0.009882559308 | BV63: 3.469446952e-18 | BW63: 3.469446952e-18 | BX63: 2.244376495e-18 | BZ63: 181.5258873 | CB63: 0.6394910887 | CD63: =CB63-CG28/$K$1 -> -1.503187221
A64: 10 | B64: 52.27565887 | D64: 3.938222182 | F64: 0 | G64: 0 | H64: 0 | I64: 0 | J64: 0 | K64: 0 | L64: 0 | M64: 0 | N64: 0 | O64: 51.32726957 | P64: 0 | Q64: 0 | R64: 0 | S64: 0 | T64: 0 | U64: 0 | V64: 0 | W64: 0 | X64: 0 | Y64: 0 | Z64: 0 | AB64: 13.19929894 | AC64: 12.92277308 | AD64: 0 | AE64: 0 | AF64: 0 | AG64: 0 | AH64: 26.12207203 | AI64: 26.12207203 | AJ64: 26.12207203 | AK64: 26.12207203 | AL64: -0.6838479761 | AN64: 3.95669948 | AP64: =OFFSET(AA54,A64,A64) -> 26.12207203 | AR64: -0.0009754902477 | AS64: -0.0009754902477 | AT64: 0.001658230578 | AU64: -8.354990629e-20 | AV64: 3.382442622e-19 | AW64: 0 | AX64: -1.01068815e-18 | AY64: 3.341996252e-18 | AZ64: -0.009882559308 | BA64: 0.04816324183 | BB64: -0.03730519228 | BD64: -0.0009754902477 | BE64: -0.0009754902477 | BF64: 0.001658230578 | BG64: -8.354990629e-20 | BH64: 3.382442622e-19 | BI64: 0 | BJ64: -0.0009754902477 | BK64: -0.0009754902477 | BL64: 0.001658230578 | BM64: -1.094238056e-18 | BN64: -6.724438874e-19 | BO64: -0.0009754902477 | BP64: -0.0009754902477 | BQ64: 0.001658230578 | BR64: 2.247758196e-18 | BS64: -0.01085804956 | BT64: -0.01085804956 | BU64: -0.008224328729 | BV64: 0.03730519228 | BW64: 0.03730519228 | BX64: 0 | BZ64: 203.0865809 | CB64: -0.8658997917 | CD64: =CB64-CG28/$K$1 -> -3.008578102
A65: 11 | B65: 36.18442935 | D65: 3.7403198 | F65: =IF($A65=F$4,IF($B65<0,-(EXP(-$D65)^(2-$H$1)),IF($B65=0,0,EXP($D65)^(2-$H$1))),0) -> 0 | G65: 0 | H65: 0 | I65: 0 | J65: 0 | K65: 0 | L65: 0 | M65: 0 | N65: 0 | O65: 0 | P65: =IF($A65=P$4,IF($B65<0,-(EXP(-$D65)^(2-$H$1)),IF($B65=0,0,EXP($D65)^(2-$H$1))),0) -> 42.11145526 | Q65: 0 | R65: 0 | S65: 0 | T65: 0 | U65: 0 | V65: 0 | W65: 0 | X65: 0 | Y65: 0 | Z65: 0 | AB65: -0.6838479761 | AC65: 0 | AD65: 0 | AE65: 0 | AF65: 0 | AG65: 0 | AH65: -0.6838479761 | AI65: -0.6838479761 | AJ65: -0.6838479761 | AK65: -0.6838479761 | AL65: -0.6838479761 | AN65: 3.599573633 | AP65: =OFFSET(AA54,A65,A65) -> -0.6838479761 | AR65: -0.002289868683 | AS65: 0.002460043456 | AT65: -3.085028441e-19 | AU65: 6.471419282e-20 | AV65: -1.046053492e-19 | AW65: 0 | AX65: 4.680674697e-19 | AY65: -2.588567713e-18 | AZ65: 3.702034129e-18 | BA65: -0.03730519228 | BB65: -1.422718253 | BD65: -0.002289868683 | BE65: 0.002460043456 | BF65: -3.085028441e-19 | BG65: 6.471419282e-20 | BH65: -1.046053492e-19 | BI65: 0 | BJ65: -0.002289868683 | BK65: 0.002460043456 | BL65: 1.595646256e-19 | BM65: 5.327816626e-19 | BN65: 3.634621205e-19 | BO65: -0.002289868683 | BP65: 0.002460043456 | BQ65: -2.429003087e-18 | BR65: -2.05578605e-18 | BS65: -0.002289868683 | BT65: 0.002460043456 | BU65: 1.273031042e-18 | BV65: -0.03959506096 | BW65: -0.03484514882 | BX65: -1.462313314 | BZ65: 151.583284 | CB65: -2.250625788 | CD65: =CB65-CG28/$K$1 -> -4.393304098
A66: 12 | B66: 13.96482782 | D66: 2.859846342 | F66: 0 | G66: 0 | H66: 0 | I66: 0 | J66: 0 | K66: 0 | L66: 0 | M66: 0 | N66: 0 | O66: 0 | P66: 0 | Q66: 17.45884405 | R66: 0 | S66: 0 | T66: 0 | U66: 0 | V66: 0 | W66: 0 | X66: 0 | Y66: 0 | Z66: 0 | AN66: 2.659717616 | BZ66: 46.43559506
A67: 13 | B67: 11.40289543 | D67: 2.7881618 | F67: 0 | G67: 0 | H67: 0 | I67: 0 | J67: 0 | K67: 0 | L67: 0 | M67: 0 | N67: 0 | O67: 0 | P67: 0 | Q67: 0 | R67: 16.25111952 | S67: 0 | T67: 0 | U67: 0 | V67: 0 | W67: 0 | X67: 0 | Y67: 0 | Z67: 0 | AN67: 2.489830102 | BZ67: 40.46252657
A68: 14 | B68: 33.52456495 | D68: 2.987227215 | F68: 0 | G68: 0 | H68: 0 | I68: 0 | J68: 0 | K68: 0 | L68: 0 | M68: 0 | N68: 0 | O68: 0 | P68: 0 | Q68: 0 | R68: 0 | S68: 19.83062014 | T68: 0 | U68: 0 | V68: 0 | W68: 0 | X68: 0 | Y68: 0 | Z68: 0 | AN68: 3.67777268 | BZ68: 72.93251299
A69: 15 | B69: 14.23028783 | D69: 2.985433114 | F69: 0 | G69: 0 | H69: 0 | I69: 0 | J69: 0 | K69: 0 | L69: 0 | M69: 0 | N69: 0 | O69: 0 | P69: 0 | Q69: 0 | R69: 0 | S69: 0 | T69: 19.7950739 | U69: 0 | V69: 0 | W69: 0 | X69: 0 | Y69: 0 | Z69: 0 | AN69: 2.704313372 | BZ69: 53.53208305
A70: 16 | B70: 30.8120414 | D70: 3.496390164 | F70: 0 | G70: 0 | H70: 0 | I70: 0 | J70: 0 | K70: 0 | L70: 0 | M70: 0 | N70: 0 | O70: 0 | P70: 0 | Q70: 0 | R70: 0 | S70: 0 | T70: 0 | U70: 32.9961261 | V70: 0 | W70: 0 | X70: 0 | Y70: 0 | Z70: 0 | AN70: 3.430198008 | BZ70: 113.183246
A71: 17 | B71: 35.0777869 | D71: 3.424705621 | F71: 0 | G71: 0 | H71: 0 | I71: 0 | J71: 0 | K71: 0 | L71: 0 | M71: 0 | N71: 0 | O71: 0 | P71: 0 | Q71: 0 | R71: 0 | S71: 0 | T71: 0 | U71: 0 | V71: 30.71360208 | W71: 0 | X71: 0 | Y71: 0 | Z71: 0 | AN71: 3.566798522 | BZ71: 109.5492305
A72: 18 | B72: 35.28958479 | D72: 3.623771036 | F72: 0 | G72: 0 | H72: 0 | I72: 0 | J72: 0 | K72: 0 | L72: 0 | M72: 0 | N72: 0 | O72: 0 | P72: 0 | Q72: 0 | R72: 0 | S72: 0 | T72: 0 | U72: 0 | V72: 0 | W72: 37.47863496 | X72: 0 | Y72: 0 | Z72: 0 | AN72: 3.565363088 | BZ72: 133.6249417
A73: 19 | B73: 13.74010634 | D73: 2.630675653 | F73: 0 | G73: 0 | H73: 0 | I73: 0 | J73: 0 | K73: 0 | L73: 0 | M73: 0 | N73: 0 | O73: 0 | P73: 0 | Q73: 0 | R73: 0 | S73: 0 | T73: 0 | U73: 0 | V73: 0 | W73: 0 | X73: 13.88314692 | Y73: 0 | Z73: 0 | AN73: 2.620372471 | BZ73: 36.37901601
A74: 20 | B74: 13.06576125 | D74: 2.55899111 | F74: 0 | G74: 0 | H74: 0 | I74: 0 | J74: 0 | K74: 0 | L74: 0 | M74: 0 | N74: 0 | O74: 0 | P74: 0 | Q74: 0 | R74: 0 | S74: 0 | T74: 0 | U74: 0 | V74: 0 | W74: 0 | X74: 0 | Y74: 12.92277308 | Z74: 0 | AN74: 2.570055931 | BZ74: 33.21224961
A75: 21 | B75: -0.6838479761 | D75: 0.3800196433 | F75: 0 | G75: 0 | H75: 0 | I75: 0 | J75: 0 | K75: 0 | L75: 0 | M75: 0 | N75: 0 | O75: 0 | P75: 0 | Q75: 0 | R75: 0 | S75: 0 | T75: 0 | U75: 0 | V75: 0 | W75: 0 | X75: 0 | Y75: 0 | Z75: -0.6838479761 | AN75: 0.3800196433 | BZ75: -0.2598756639
A77: Newton-Raphson Interation Sequence -- Iteration 4
B78: y(i) | D78: xb(i) | F78: W(i,i) | AB78: XWX | AN78: zz(i) | AP78: factor | AR78: xwx-1 | BD78: aa1(i,j) | BZ78: aa2(j) | CB78: beta(j) | CD78: beta_diff = | CE78: =SUM(CD80:CD90) -> -2.959271379e-07 | CF78: beta_old = | CG78: =SUM(CB80:CB90) -> 23.5690688
B79: 1 | D79: 1 | F79: 1 | G79: 2 | H79: 3 | I79: 4 | J79: 5 | K79: 6 | L79: 7 | M79: 8 | N79: 9 | O79: 10 | P79: 11 | Q79: 12 | R79: 13 | S79: 14 | T79: 15 | U79: 16 | V79: 17 | W79: 18 | X79: 19 | Y79: 20 | Z79: 21 | AB79: 1 | AC79: 2 | AD79: 3 | AE79: 4 | AF79: 5 | AG79: 6 | AH79: 7 | AI79: 8 | AJ79: 9 | AK79: 10 | AL79: 11 | AN79: 1 | AR79: 1 | AS79: 2 | AT79: 3 | AU79: 4 | AV79: 5 | AW79: 6 | AX79: 7 | AY79: 8 | AZ79: 9 | BA79: 10 | BB79: 11 | BD79: 1 | BE79: 2 | BF79: 3 | BG79: 4 | BH79: 5 | BI79: 6 | BJ79: 7 | BK79: 8 | BL79: 9 | BM79: 10 | BN79: 11 | BO79: 12 | BP79: 13 | BQ79: 14 | BR79: 15 | BS79: 16 | BT79: 17 | BU79: 18 | BV79: 19 | BW79: 20 | BX79: 21
A80: 1 | B80: =B55 -> 89.84076129 | D80: =MMULT(DesignMatrix,CB55:CB65) -> 4.614327983 | F80: =IF($A80=F$4,IF($B80<0,-(EXP(-$D80)^(2-$H$1)),IF($B80=0,0,EXP($D80)^(2-$H$1))),0) -> 100.9199858 | G80: 0 | H80: 0 | I80: 0 | J80: 0 | K80: 0 | L80: 0 | M80: 0 | N80: 0 | O80: 0 | P80: =IF($A80=P$4,IF($B80<0,-(EXP(-$D80)^(2-$H$1)),IF($B80=0,0,EXP($D80)^(2-$H$1))),0) -> 0 | Q80: 0 | R80: 0 | S80: 0 | T80: 0 | U80: 0 | V80: 0 | W80: 0 | X80: 0 | Y80: 0 | Z80: 0 | AB80: =MMULT(TRANSPOSE(DesignMatrix),MMULT(F80:Z100,DesignMatrix)) -> 209.7598217 | AC80: 0 | AD80: 0 | AE80: 0 | AF80: 0 | AG80: 0 | AH80: 108.8398359 | AI80: 63.61028557 | AJ80: 46.20012225 | AK80: 13.19887939 | AL80: -0.6838479761 | AN80: =IF(B80<0,D80+(B80+EXP(-D80))/-EXP(-D80),IF(B80=0,0,D80+(B80-EXP(D80))/EXP(D80))) -> 4.504545719 | AP80: =OFFSET(AA79,A80,A80) -> 209.7598217 | AR80: =MINVERSE(AB80:AL90) -> 0.006031622393 | AS80: 0.001279756958 | AT80: 0.001105942207 | AU80: 0.0007711349381 | AV80: 0.0005977231582 | AW80: 0 | AX80: -0.001931413461 | AY80: -0.0002954258678 | AZ80: -0.000538463906 | BA80: -0.0009754392541 | BB80: -0.002290879905 | BD80: =MMULT(AR80:BB90,TRANSPOSE(DesignMatrix)) -> 0.006031622393 | BE80: 0.001279756958 | BF80: 0.001105942207 | BG80: 0.0007711349381 | BH80: 0.0005977231582 | BI80: 0 | BJ80: 0.004100208933 | BK80: -0.0006516565032 | BL80: -0.0008254712538 | BM80: -0.001160278523 | BN80: -0.001333690303 | BO80: 0.003804783065 | BP80: -0.000947082371 | BQ80: -0.001120897122 | BR80: -0.001455704391 | BS80: 0.003266319159 | BT80: -0.001485546277 | BU80: -0.001659361028 | BV80: 0.002290879905 | BW80: -0.002460985531 | BX80: 8.67361738e-19 | BZ80: =MMULT(F80:Z100,AN80:AN100) -> 454.59869 | CB80: =MMULT(BD80:BX90,BZ80:BZ100) -> 4.614328004 | CD80: =CB80-CG53/$K$1 -> 2.471685358
A81: 2 | B81: =B56 -> 85.20531387 | D81: 4.542702073 | F81: 0 | G81: 93.94430179 | H81: 0 | I81: 0 | J81: 0 | K81: 0 | L81: 0 | M81: 0 | N81: 0 | O81: 0 | P81: 0 | Q81: 0 | R81: 0 | S81: 0 | T81: 0 | U81: 0 | V81: 0 | W81: 0 | X81: 0 | Y81: 0 | Z81: 0 | AB81: 0 | AC81: 195.897606 | AD81: 0 | AE81: 0 | AF81: 0 | AG81: 0 | AH81: 101.9533042 | AI81: 59.85006278 | AJ81: 43.64330626 | AK81: 12.92314024 | AL81: 0 | AN81: =IF(B81<0,D81+(B81+EXP(-D81))/-EXP(-D81),IF(B81=0,0,D81+(B81-EXP(D81))/EXP(D81))) -> 4.449678997 | AP81: =OFFSET(AA79,A81,A81) -> 195.897606 | AR81: 0.001279756958 | AS81: 0.006384464568 | AT81: 0.001105942207 | AU81: 0.0007711349381 | AV81: 0.0005977231582 | AW81: 0 | AX81: -0.001931413461 | AY81: -0.0002954258678 | AZ81: -0.000538463906 | BA81: -0.0009754392541 | BB81: 0.002460985531 | BD81: 0.001279756958 | BE81: 0.006384464568 | BF81: 0.001105942207 | BG81: 0.0007711349381 | BH81: 0.0005977231582 | BI81: 0 | BJ81: -0.0006516565032 | BK81: 0.004453051107 | BL81: -0.0008254712538 | BM81: -0.001160278523 | BN81: -0.001333690303 | BO81: -0.000947082371 | BP81: 0.004157625239 | BQ81: -0.001120897122 | BR81: -0.001455704391 | BS81: -0.001485546277 | BT81: 0.003619161333 | BU81: -0.001659361028 | BV81: -0.002460985531 | BW81: 0.002643722079 | BX81: -1.301042607e-18 | BZ81: 418.0219865 | CB81: 4.542702116 | CD81: =CB81-CG53/$K$1 -> 2.40005947
A82: 3 | B82: 123.9399284 | D82: 4.741003358 | F82: 0 | G82: 0 | H82: 114.5490777 | I82: 0 | J82: 0 | K82: 0 | L82: 0 | M82: 0 | N82: 0 | O82: 0 | P82: 0 | Q82: 0 | R82: 0 | S82: 0 | T82: 0 | U82: 0 | V82: 0 | W82: 0 | X82: 0 | Y82: 0 | Z82: 0 | AB82: 0 | AC82: 0 | AD82: 223.1062012 | AE82: 0 | AF82: 0 | AG82: 0 | AH82: 108.5571235 | AI82: 57.21939059 | AJ82: 37.45801096 | AK82: 0 | AL82: 0 | AN82: 4.822984381 | AP82: =OFFSET(AA79,A82,A82) -> 223.1062012 | AR82: 0.001105942207 | AS82: 0.001105942207 | AT82: 0.005588112557 | AU82: 0.0007711349381 | AV82: 0.0005977231582 | AW82: 0 | AX82: -0.001931413461 | AY82: -0.0002954258678 | AZ82: -0.000538463906 | BA82: 0.001659361028 | BB82: 1.695325144e-19 | BD82: 0.001105942207 | BE82: 0.001105942207 | BF82: 0.005588112557 | BG82: 0.0007711349381 | BH82: 0.0005977231582 | BI82: 0 | BJ82: -0.0008254712538 | BK82: -0.0008254712538 | BL82: 0.003656699096 | BM82: -0.001160278523 | BN82: -0.001333690303 | BO82: -0.001120897122 | BP82: -0.001120897122 | BQ82: 0.003361273228 | BR82: -0.001455704391 | BS82: -0.001659361028 | BT82: -0.001659361028 | BU82: 0.002822809322 | BV82: 0 | BW82: 0 | BX82: 1.695325144e-19 | BZ82: 552.4684128 | CB82: 4.741002819 | CD82: =CB82-CG53/$K$1 -> 2.598360174
A83: 4 | B83: 118.9844439 | D83: 4.740153422 | F83: 0 | G83: 0 | H83: 0 | I83: 114.4517598 | J83: 0 | K83: 0 | L83: 0 | M83: 0 | N83: 0 | O83: 0 | P83: 0 | Q83: 0 | R83: 0 | S83: 0 | T83: 0 | U83: 0 | V83: 0 | W83: 0 | X83: 0 | Y83: 0 | Z83: 0 | AB83: 0 | AC83: 0 | AD83: 0 | AE83: 185.4904684 | AF83: 0 | AG83: 0 | AH83: 71.03870856 | AI83: 19.74459087 | AJ83: 0 | AK83: 0 | AL83: 0 | AN83: 4.779756868 | AP83: =OFFSET(AA79,A83,A83) -> 185.4904684 | AR83: 0.0007711349381 | AS83: 0.0007711349381 | AT83: 0.0007711349381 | AU83: 0.006162247532 | AV83: 0.0005977231582 | AW83: 0 | AX83: -0.001931413461 | AY83: -0.0002954258678 | AZ83: 0.001455704391 | BA83: -8.417856929e-20 | BB83: 1.976993095e-19 | BD83: 0.0007711349381 | BE83: 0.0007711349381 | BF83: 0.0007711349381 | BG83: 0.006162247532 | BH83: 0.0005977231582 | BI83: 0 | BJ83: -0.001160278523 | BK83: -0.001160278523 | BL83: -0.001160278523 | BM83: 0.004230834071 | BN83: -0.001333690303 | BO83: -0.001455704391 | BP83: -0.001455704391 | BQ83: -0.001455704391 | BR83: 0.003935408203 | BS83: -2.168404345e-19 | BT83: -2.168404345e-19 | BU83: -2.168404345e-19 | BV83: -3.010190038e-19 | BW83: -3.010190038e-19 | BX83: -1.033196943e-19 | BZ83: 547.051585 | CB83: 4.740153576 | CD83: =CB83-CG53/$K$1 -> 2.597510931
A84: 5 | B84: 99.7850489 | D84: 4.542128196 | F84: 0 | G84: 0 | H84: 0 | I84: 0 | J84: 93.89040482 | K84: 0 | L84: 0 | M84: 0 | N84: 0 | O84: 0 | P84: 0 | Q84: 0 | R84: 0 | S84: 0 | T84: 0 | U84: 0 | V84: 0 | W84: 0 | X84: 0 | Y84: 0 | Z84: 0 | AB84: 0 | AC84: 0 | AD84: 0 | AE84: 0 | AF84: 135.9694911 | AG84: 0 | AH84: 42.07908626 | AI84: 0 | AJ84: 0 | AK84: 0 | AL84: 0 | AN84: 4.604910374 | AP84: =OFFSET(AA79,A84,A84) -> 135.9694911 | AR84: 0.0005977231582 | AS84: 0.0005977231582 | AT84: 0.0005977231582 | AU84: 0.0005977231582 | AV84: 0.007952314192 | AW84: 0 | AX84: -0.001931413461 | AY84: 0.001333690303 | AZ84: 1.659572879e-19 | BA84: 7.706581362e-20 | BB84: -7.473048594e-20 | BD84: 0.0005977231582 | BE84: 0.0005977231582 | BF84: 0.0005977231582 | BG84: 0.0005977231582 | BH84: 0.007952314192 | BI84: 0 | BJ84: -0.001333690303 | BK84: -0.001333690303 | BL84: -0.001333690303 | BM84: -0.001333690303 | BN84: 0.006020900731 | BO84: 0 | BP84: 0 | BQ84: -2.168404345e-19 | BR84: -2.168404345e-19 | BS84: 1.659572879e-19 | BT84: 1.659572879e-19 | BU84: -5.088314659e-20 | BV84: 2.430231015e-19 | BW84: 2.430231015e-19 | BX84: 1.682926156e-19 | BZ84: 432.3568991 | CB84: 4.542128242 | CD84: =CB84-CG53/$K$1 -> 2.399485596
A85: 6 | B85: 101.8053244 | D85: 4.623062406 | F85: 0 | G85: 0 | H85: 0 | I85: 0 | J85: 0 | K85: 101.8053244 | L85: 0 | M85: 0 | N85: 0 | O85: 0 | P85: 0 | Q85: 0 | R85: 0 | S85: 0 | T85: 0 | U85: 0 | V85: 0 | W85: 0 | X85: 0 | Y85: 0 | Z85: 0 | AB85: 0 | AC85: 0 | AD85: 0 | AE85: 0 | AF85: 0 | AG85: 101.8053244 | AH85: 0 | AI85: 0 | AJ85: 0 | AK85: 0 | AL85: 0 | AN85: 4.623062406 | AP85: =OFFSET(AA79,A85,A85) -> 101.8053244 | AR85: 0 | AS85: 0 | AT85: 0 | AU85: 0 | AV85: 0 | AW85: 0.009822668958 | AX85: 0 | AY85: 0 | AZ85: 0 | BA85: 0 | BB85: 0 | BD85: 0 | BE85: 0 | BF85: 0 | BG85: 0 | BH85: 0 | BI85: 0.009822668958 | BJ85: 0 | BK85: 0 | BL85: 0 | BM85: 0 | BN85: 0 | BO85: 0 | BP85: 0 | BQ85: 0 | BR85: 0 | BS85: 0 | BT85: 0 | BU85: 0 | BV85: 0 | BW85: 0 | BX85: 0 | BZ85: 470.652368 | CB85: 4.623062406 | CD85: =CB85-CG53/$K$1 -> 2.48041976
A86: 7 | B86: 62.08584667 | D86: 3.811750641 | F86: 0 | G86: 0 | H86: 0 | I86: 0 | J86: 0 | K86: 0 | L86: 45.22955031 | M86: 0 | N86: 0 | O86: 0 | P86: 0 | Q86: 0 | R86: 0 | S86: 0 | T86: 0 | U86: 0 | V86: 0 | W86: 0 | X86: 0 | Y86: 0 | Z86: 0 | AB86: 108.8398359 | AC86: 101.9533042 | AD86: 108.5571235 | AE86: 71.03870856 | AF86: 42.07908626 | AG86: 0 | AH86: 432.4680584 | AI86: 200.4243298 | AJ86: 127.3014395 | AK86: 26.12201962 | AL86: -0.6838479761 | AN86: 4.184433903 | AP86: =OFFSET(AA79,A86,A86) -> 432.4680584 | AR86: -0.001931413461 | AS86: -0.001931413461 | AT86: -0.001931413461 | AU86: -0.001931413461 | AV86: -0.001931413461 | AW86: 0 | AX86: 0.006240946006 | AY86: -0.004309532545 | AZ86: -5.3625518e-19 | BA86: -2.490215541e-19 | BB86: 2.414754464e-19 | BD86: -0.001931413461 | BE86: -0.001931413461 | BF86: -0.001931413461 | BG86: -0.001931413461 | BH86: -0.001931413461 | BI86: 0 | BJ86: 0.004309532545 | BK86: 0.004309532545 | BL86: 0.004309532545 | BM86: 0.004309532545 | BN86: 0.004309532545 | BO86: 0 | BP86: 0 | BQ86: 0 | BR86: 8.67361738e-19 | BS86: -5.3625518e-19 | BT86: -5.3625518e-19 | BU86: -5.3625518e-19 | BV86: -7.852767341e-19 | BW86: -7.852767341e-19 | BX86: -5.438012877e-19 | BZ86: 189.2600637 | CB86: -0.802577795 | CD86: =CB86-CG53/$K$1 -> -2.94522044
A87: 8 | B87: 51.14577272 | D87: 3.740124731 | F87: 0 | G87: 0 | H87: 0 | I87: 0 | J87: 0 | K87: 0 | L87: 0 | M87: 42.1032414 | N87: 0 | O87: 0 | P87: 0 | Q87: 0 | R87: 0 | S87: 0 | T87: 0 | U87: 0 | V87: 0 | W87: 0 | X87: 0 | Y87: 0 | Z87: 0 | AB87: 63.61028557 | AC87: 59.85006278 | AD87: 57.21939059 | AE87: 19.74459087 | AF87: 0 | AG87: 0 | AH87: 200.4243298 | AI87: 200.4243298 | AJ87: 127.3014395 | AK87: 26.12201962 | AL87: -0.6838479761 | AN87: 3.954895162 | AP87: =OFFSET(AA79,A87,A87) -> 200.4243298 | AR87: -0.0002954258678 | AS87: -0.0002954258678 | AT87: -0.0002954258678 | AU87: -0.0002954258678 | AV87: 0.001333690303 | AW87: 0 | AX87: -0.004309532545 | AY87: 0.01828056663 | AZ87: -0.01367560822 | BA87: 1.686765356e-18 | BB87: -2.726085424e-18 | BD87: -0.0002954258678 | BE87: -0.0002954258678 | BF87: -0.0002954258678 | BG87: -0.0002954258678 | BH87: 0.001333690303 | BI87: 0 | BJ87: -0.004604958413 | BK87: -0.004604958413 | BL87: -0.004604958413 | BM87: -0.004604958413 | BN87: -0.002975842242 | BO87: 0.01367560822 | BP87: 0.01367560822 | BQ87: 0.01367560822 | BR87: 0.01367560822 | BS87: 5.204170428e-18 | BT87: 5.204170428e-18 | BU87: 5.204170428e-18 | BV87: 6.890935784e-18 | BW87: 6.890935784e-18 | BX87: 4.16485036e-18 | BZ87: 166.5139057 | CB87: -0.9547002621 | CD87: =CB87-CG53/$K$1 -> -3.097342907
A88: 9 | B88: 30.35190072 | D88: 3.938426016 | F88: 0 | G88: 0 | H88: 0 | I88: 0 | J88: 0 | K88: 0 | L88: 0 | M88: 0 | N88: 51.33773289 | O88: 0 | P88: 0 | Q88: 0 | R88: 0 | S88: 0 | T88: 0 | U88: 0 | V88: 0 | W88: 0 | X88: 0 | Y88: 0 | Z88: 0 | AB88: 46.20012225 | AC88: 43.64330626 | AD88: 37.45801096 | AE88: 0 | AF88: 0 | AG88: 0 | AH88: 127.3014395 | AI88: 127.3014395 | AJ88: 127.3014395 | AK88: 26.12201962 | AL88: -0.6838479761 | AN88: 3.529646138 | AP88: =OFFSET(AA79,A88,A88) -> 127.3014395 | AR88: -0.000538463906 | AS88: -0.000538463906 | AT88: -0.000538463906 | AU88: 0.001455704391 | AV88: -6.002600291e-19 | AW88: 0 | AX88: 1.131939966e-18 | AY88: -0.01367560822 | AZ88: 0.02409750495 | BA88: -0.00988343283 | BB88: 2.454676827e-18 | BD88: -0.000538463906 | BE88: -0.000538463906 | BF88: -0.000538463906 | BG88: 0.001455704391 | BH88: -6.002600291e-19 | BI88: 0 | BJ88: -0.000538463906 | BK88: -0.000538463906 | BL88: -0.000538463906 | BM88: 0.001455704391 | BN88: 5.316799372e-19 | BO88: -0.01421407212 | BP88: -0.01421407212 | BQ88: -0.01421407212 | BR88: -0.01221990383 | BS88: 0.00988343283 | BT88: 0.00988343283 | BU88: 0.00988343283 | BV88: -6.938893904e-18 | BW88: -6.938893904e-18 | BX88: -4.484217076e-18 | BZ88: 181.2040306 | CB88: 0.6394954101 | CD88: =CB88-CG53/$K$1 -> -1.503147235
A89: 10 | B89: 52.27565887 | D89: 3.937576081 | F89: 0 | G89: 0 | H89: 0 | I89: 0 | J89: 0 | K89: 0 | L89: 0 | M89: 0 | N89: 0 | O89: 51.29411768 | P89: 0 | Q89: 0 | R89: 0 | S89: 0 | T89: 0 | U89: 0 | V89: 0 | W89: 0 | X89: 0 | Y89: 0 | Z89: 0 | AB89: 13.19887939 | AC89: 12.92314024 | AD89: 0 | AE89: 0 | AF89: 0 | AG89: 0 | AH89: 26.12201962 | AI89: 26.12201962 | AJ89: 26.12201962 | AK89: 26.12201962 | AL89: -0.6838479761 | AN89: 3.956711631 | AP89: =OFFSET(AA79,A89,A89) -> 26.12201962 | AR89: -0.0009754392541 | AS89: -0.0009754392541 | AT89: 0.001659361028 | AU89: -7.343984727e-20 | AV89: -5.98854714e-20 | AW89: 0 | AX89: 4.539767815e-19 | AY89: 1.304466195e-18 | AZ89: -0.00988343283 | BA89: 0.0481641373 | BB89: -0.03730526521 | BD89: -0.0009754392541 | BE89: -0.0009754392541 | BF89: 0.001659361028 | BG89: -7.343984727e-20 | BH89: -5.98854714e-20 | BI89: 0 | BJ89: -0.0009754392541 | BK89: -0.0009754392541 | BL89: 0.001659361028 | BM89: 3.805369342e-19 | BN89: 3.940913101e-19 | BO89: -0.0009754392541 | BP89: -0.0009754392541 | BQ89: 0.001659361028 | BR89: 1.685003129e-18 | BS89: -0.01085887208 | BT89: -0.01085887208 | BU89: -0.008224071803 | BV89: 0.03730526521 | BW89: 0.03730526521 | BX89: 0 | BZ89: 202.9560321 | CB89: -0.8658999363 | CD89: =CB89-CG53/$K$1 -> -3.008542581
A90: 11 | B90: 36.18442935 | D90: 3.739550854 | F90: =IF($A90=F$4,IF($B90<0,-(EXP(-$D90)^(2-$H$1)),IF($B90=0,0,EXP($D90)^(2-$H$1))),0) -> 0 | G90: 0 | H90: 0 | I90: 0 | J90: 0 | K90: 0 | L90: 0 | M90: 0 | N90: 0 | O90: 0 | P90: =IF($A90=P$4,IF($B90<0,-(EXP(-$D90)^(2-$H$1)),IF($B90=0,0,EXP($D90)^(2-$H$1))),0) -> 42.07908626 | Q90: 0 | R90: 0 | S90: 0 | T90: 0 | U90: 0 | V90: 0 | W90: 0 | X90: 0 | Y90: 0 | Z90: 0 | AB90: -0.6838479761 | AC90: 0 | AD90: 0 | AE90: 0 | AF90: 0 | AG90: 0 | AH90: -0.6838479761 | AI90: -0.6838479761 | AJ90: -0.6838479761 | AK90: -0.6838479761 | AL90: -0.6838479761 | AN90: 3.599465661 | AP90: =OFFSET(AA79,A90,A90) -> -0.6838479761 | AR90: -0.002290879905 | AS90: 0.002460985531 | AT90: 1.542513045e-19 | AU90: 4.503425806e-19 | AV90: 2.588572774e-19 | AW90: 0 | AX90: -7.765718321e-19 | AY90: -2.269439546e-18 | AZ90: 4.936041744e-18 | BA90: -0.03730526521 | BB90: -1.422717169 | BD90: -0.002290879905 | BE90: 0.002460985531 | BF90: 1.542513045e-19 | BG90: 4.503425806e-19 | BH90: 2.588572774e-19 | BI90: 0 | BJ90: -0.002290879905 | BK90: 0.002460985531 | BL90: -6.223205276e-19 | BM90: -3.262292515e-19 | BN90: -5.177145547e-19 | BO90: -0.002290879905 | BP90: 0.002460985531 | BQ90: -2.891760073e-18 | BR90: -2.595668797e-18 | BS90: -0.002290879905 | BT90: 0.002460985531 | BU90: 2.044281671e-18 | BV90: -0.03959614512 | BW90: -0.03484427968 | BX90: -1.462313314 | BZ90: 151.4622261 | CB90: -2.250625777 | CD90: =CB90-CG53/$K$1 -> -4.393268422
A91: 12 | B91: 13.96482782 | D91: 2.857054135 | F91: 0 | G91: 0 | H91: 0 | I91: 0 | J91: 0 | K91: 0 | L91: 0 | M91: 0 | N91: 0 | O91: 0 | P91: 0 | Q91: 17.41016332 | R91: 0 | S91: 0 | T91: 0 | U91: 0 | V91: 0 | W91: 0 | X91: 0 | Y91: 0 | Z91: 0 | AN91: 2.659161936 | BZ91: 46.2964436
A92: 13 | B92: 11.40289543 | D92: 2.785428224 | F92: 0 | G92: 0 | H92: 0 | I92: 0 | J92: 0 | K92: 0 | L92: 0 | M92: 0 | N92: 0 | O92: 0 | P92: 0 | Q92: 0 | R92: 16.20675651 | S92: 0 | T92: 0 | U92: 0 | V92: 0 | W92: 0 | X92: 0 | Y92: 0 | Z92: 0 | AN92: 2.489017213 | BZ92: 40.33889594
A93: 14 | B93: 33.52456495 | D93: 2.983729509 | F93: 0 | G93: 0 | H93: 0 | I93: 0 | J93: 0 | K93: 0 | L93: 0 | M93: 0 | N93: 0 | O93: 0 | P93: 0 | Q93: 0 | R93: 0 | S93: 19.76137963 | T93: 0 | U93: 0 | V93: 0 | W93: 0 | X93: 0 | Y93: 0 | Z93: 0 | AN93: 3.680198358 | BZ93: 72.72579687
A94: 15 | B94: 14.23028783 | D94: 2.982879574 | F94: 0 | G94: 0 | H94: 0 | I94: 0 | J94: 0 | K94: 0 | L94: 0 | M94: 0 | N94: 0 | O94: 0 | P94: 0 | Q94: 0 | R94: 0 | S94: 0 | T94: 19.74459087 | U94: 0 | V94: 0 | W94: 0 | X94: 0 | Y94: 0 | Z94: 0 | AN94: 2.703597867 | BZ94: 53.38143378
A95: 16 | B95: 30.8120414 | D95: 3.496545223 | F95: 0 | G95: 0 | H95: 0 | I95: 0 | J95: 0 | K95: 0 | L95: 0 | M95: 0 | N95: 0 | O95: 0 | P95: 0 | Q95: 0 | R95: 0 | S95: 0 | T95: 0 | U95: 33.00124287 | V95: 0 | W95: 0 | X95: 0 | Y95: 0 | Z95: 0 | AN95: 3.430208283 | BZ95: 113.2011366
A96: 17 | B96: 35.0777869 | D96: 3.424919313 | F96: 0 | G96: 0 | H96: 0 | I96: 0 | J96: 0 | K96: 0 | L96: 0 | M96: 0 | N96: 0 | O96: 0 | P96: 0 | Q96: 0 | R96: 0 | S96: 0 | T96: 0 | U96: 0 | V96: 30.72016603 | W96: 0 | X96: 0 | Y96: 0 | Z96: 0 | AN96: 3.566768184 | BZ96: 109.5717108
A97: 18 | B97: 35.28958479 | D97: 3.623220598 | F97: 0 | G97: 0 | H97: 0 | I97: 0 | J97: 0 | K97: 0 | L97: 0 | M97: 0 | N97: 0 | O97: 0 | P97: 0 | Q97: 0 | R97: 0 | S97: 0 | T97: 0 | U97: 0 | V97: 0 | W97: 37.45801096 | X97: 0 | Y97: 0 | Z97: 0 | AN97: 3.565331081 | BZ97: 133.5502107
A98: 19 | B98: 13.74010634 | D98: 2.630645432 | F98: 0 | G98: 0 | H98: 0 | I98: 0 | J98: 0 | K98: 0 | L98: 0 | M98: 0 | N98: 0 | O98: 0 | P98: 0 | Q98: 0 | R98: 0 | S98: 0 | T98: 0 | U98: 0 | V98: 0 | W98: 0 | X98: 13.88272736 | Y98: 0 | Z98: 0 | AN98: 2.62037216 | BZ98: 36.37791229
A99: 20 | B99: 13.06576125 | D99: 2.559019521 | F99: 0 | G99: 0 | H99: 0 | I99: 0 | J99: 0 | K99: 0 | L99: 0 | M99: 0 | N99: 0 | O99: 0 | P99: 0 | Q99: 0 | R99: 0 | S99: 0 | T99: 0 | U99: 0 | V99: 0 | W99: 0 | X99: 0 | Y99: 12.92314024 | Z99: 0 | AN99: 2.570055617 | BZ99: 33.21318915
A100: 21 | B100: -0.6838479761 | D100: 0.3800196433 | F100: 0 | G100: 0 | H100: 0 | I100: 0 | J100: 0 | K100: 0 | L100: 0 | M100: 0 | N100: 0 | O100: 0 | P100: 0 | Q100: 0 | R100: 0 | S100: 0 | T100: 0 | U100: 0 | V100: 0 | W100: 0 | X100: 0 | Y100: 0 | Z100: -0.6838479761 | AN100: 0.3800196433 | BZ100: -0.2598756639
A102: Newton-Raphson Interation Sequence -- Iteration 5
B103: y(i) | D103: xb(i) | F103: W(i,i) | AB103: XWX | AN103: zz(i) | AP103: factor | AR103: xwx-1 | BD103: aa1(i,j) | BZ103: aa2(j) | CB103: beta(j) | CD103: beta_diff = | CE103: =SUM(CD105:CD115) -> -1.811883976e-13 | CF103: beta_old = | CG103: =SUM(CB105:CB115) -> 23.5690688
B104: 1 | D104: 1 | F104: 1 | G104: 2 | H104: 3 | I104: 4 | J104: 5 | K104: 6 | L104: 7 | M104: 8 | N104: 9 | O104: 10 | P104: 11 | Q104: 12 | R104: 13 | S104: 14 | T104: 15 | U104: 16 | V104: 17 | W104: 18 | X104: 19 | Y104: 20 | Z104: 21 | AB104: 1 | AC104: 2 | AD104: 3 | AE104: 4 | AF104: 5 | AG104: 6 | AH104: 7 | AI104: 8 | AJ104: 9 | AK104: 10 | AL104: 11 | AN104: 1 | AR104: 1 | AS104: 2 | AT104: 3 | AU104: 4 | AV104: 5 | AW104: 6 | AX104: 7 | AY104: 8 | AZ104: 9 | BA104: 10 | BB104: 11 | BD104: 1 | BE104: 2 | BF104: 3 | BG104: 4 | BH104: 5 | BI104: 6 | BJ104: 7 | BK104: 8 | BL104: 9 | BM104: 10 | BN104: 11 | BO104: 12 | BP104: 13 | BQ104: 14 | BR104: 15 | BS104: 16 | BT104: 17 | BU104: 18 | BV104: 19 | BW104: 20 | BX104: 21
A105: 1 | B105: =B80 -> 89.84076129 | D105: =MMULT(DesignMatrix,CB80:CB90) -> 4.614328004 | F105: =IF($A105=F$4,IF($B105<0,-(EXP(-$D105)^(2-$H$1)),IF($B105=0,0,EXP($D105)^(2-$H$1))),0) -> 100.9199879 | G105: 0 | H105: 0 | I105: 0 | J105: 0 | K105: 0 | L105: 0 | M105: 0 | N105: 0 | O105: 0 | P105: =IF($A105=P$4,IF($B105<0,-(EXP(-$D105)^(2-$H$1)),IF($B105=0,0,EXP($D105)^(2-$H$1))),0) -> 0 | Q105: 0 | R105: 0 | S105: 0 | T105: 0 | U105: 0 | V105: 0 | W105: 0 | X105: 0 | Y105: 0 | Z105: 0 | AB105: =MMULT(TRANSPOSE(DesignMatrix),MMULT(F105:Z125,DesignMatrix)) -> 209.7597355 | AC105: 0 | AD105: 0 | AE105: 0 | AF105: 0 | AG105: 0 | AH105: 108.8397477 | AI105: 63.6102169 | AJ105: 46.2001265 | AK105: 13.19887923 | AL105: -0.6838479761 | AN105: =IF(B105<0,D105+(B105+EXP(-D105))/-EXP(-D105),IF(B105=0,0,D105+(B105-EXP(D105))/EXP(D105))) -> 4.504545721 | AP105: =OFFSET(AA104,A105,A105) -> 209.7597355 | AR105: =MINVERSE(AB105:AL115) -> 0.006031624186 | AS105: 0.001279756806 | AT105: 0.001105941912 | AU105: 0.0007711341994 | AV105: 0.0005977230101 | AW105: 0 | AX105: -0.001931413586 | AY105: -0.0002954259684 | AZ105: -0.0005384644425 | BA105: -0.00097543932 | BB105: -0.002290880869 | BD105: =MMULT(AR105:BB115,TRANSPOSE(DesignMatrix)) -> 0.006031624186 | BE105: 0.001279756806 | BF105: 0.001105941912 | BG105: 0.0007711341994 | BH105: 0.0005977230101 | BI105: 0 | BJ105: 0.0041002106 | BK105: -0.0006516567809 | BL105: -0.0008254716749 | BM105: -0.001160279387 | BN105: -0.001333690576 | BO105: 0.003804784631 | BP105: -0.0009470827494 | BQ105: -0.001120897643 | BR105: -0.001455705355 | BS105: 0.003266320189 | BT105: -0.001485547192 | BU105: -0.001659362086 | BV105: 0.002290880869 | BW105: -0.002460986512 | BX105: 4.33680869e-19 | BZ105: =MMULT(F105:Z125,AN105:AN125) -> 454.5986996 | CB105: =MMULT(BD105:BX115,BZ105:BZ125) -> 4.614328004 | CD105: =CB105-CG78/$K$1 -> 2.471685385
A106: 2 | B106: =B81 -> 85.20531387 | D106: 4.542702116 | F106: 0 | G106: 93.94430584 | H106: 0 | I106: 0 | J106: 0 | K106: 0 | L106: 0 | M106: 0 | N106: 0 | O106: 0 | P106: 0 | Q106: 0 | R106: 0 | S106: 0 | T106: 0 | U106: 0 | V106: 0 | W106: 0 | X106: 0 | Y106: 0 | Z106: 0 | AB106: 0 | AC106: 195.8975302 | AD106: 0 | AE106: 0 | AF106: 0 | AG106: 0 | AH106: 101.9532243 | AI106: 59.8500002 | AJ106: 43.64331119 | AK106: 12.92314038 | AL106: 0 | AN106: =IF(B106<0,D106+(B106+EXP(-D106))/-EXP(-D106),IF(B106=0,0,D106+(B106-EXP(D106))/EXP(D106))) -> 4.449679001 | AP106: =OFFSET(AA104,A106,A106) -> 195.8975302 | AR106: 0.001279756806 | AS106: 0.006384466391 | AT106: 0.001105941912 | AU106: 0.0007711341994 | AV106: 0.0005977230101 | AW106: 0 | AX106: -0.001931413586 | AY106: -0.0002954259684 | AZ106: -0.0005384644425 | BA106: -0.00097543932 | BB106: 0.002460986512 | BD106: 0.001279756806 | BE106: 0.006384466391 | BF106: 0.001105941912 | BG106: 0.0007711341994 | BH106: 0.0005977230101 | BI106: 0 | BJ106: -0.0006516567809 | BK106: 0.004453052804 | BL106: -0.0008254716749 | BM106: -0.001160279387 | BN106: -0.001333690576 | BO106: -0.0009470827494 | BP106: 0.004157626836 | BQ106: -0.001120897643 | BR106: -0.001455705355 | BS106: -0.001485547192 | BT106: 0.003619162393 | BU106: -0.001659362086 | BV106: -0.002460986512 | BW106: 0.002643723073 | BX106: -4.33680869e-19 | BZ106: 418.0220049 | CB106: 4.542702116 | CD106: =CB106-CG78/$K$1 -> 2.400059497
A107: 3 | B107: 123.9399284 | D107: 4.741002819 | F107: 0 | G107: 0 | H107: 114.549016 | I107: 0 | J107: 0 | K107: 0 | L107: 0 | M107: 0 | N107: 0 | O107: 0 | P107: 0 | Q107: 0 | R107: 0 | S107: 0 | T107: 0 | U107: 0 | V107: 0 | W107: 0 | X107: 0 | Y107: 0 | Z107: 0 | AB107: 0 | AC107: 0 | AD107: 223.1059788 | AE107: 0 | AF107: 0 | AG107: 0 | AH107: 108.5569628 | AI107: 57.21928082 | AJ107: 37.45799501 | AK107: 0 | AL107: 0 | AN107: 4.822984425 | AP107: =OFFSET(AA104,A107,A107) -> 223.1059788 | AR107: 0.001105941912 | AS107: 0.001105941912 | AT107: 0.005588116729 | AU107: 0.0007711341994 | AV107: 0.0005977230101 | AW107: 0 | AX107: -0.001931413586 | AY107: -0.0002954259684 | AZ107: -0.0005384644425 | BA107: 0.001659362086 | BB107: -3.085882479e-19 | BD107: 0.001105941912 | BE107: 0.001105941912 | BF107: 0.005588116729 | BG107: 0.0007711341994 | BH107: 0.0005977230101 | BI107: 0 | BJ107: -0.0008254716749 | BK107: -0.0008254716749 | BL107: 0.003656703143 | BM107: -0.001160279387 | BN107: -0.001333690576 | BO107: -0.001120897643 | BP107: -0.001120897643 | BQ107: 0.003361277175 | BR107: -0.001455705355 | BS107: -0.001659362086 | BT107: -0.001659362086 | BU107: 0.002822812732 | BV107: 8.67361738e-19 | BW107: 4.33680869e-19 | BX107: 5.587734901e-19 | BZ107: 552.4681202 | CB107: 4.741002819 | CD107: =CB107-CG78/$K$1 -> 2.598360201
A108: 4 | B108: 118.9844439 | D108: 4.740153576 | F108: 0 | G108: 0 | H108: 0 | I108: 114.4517774 | J108: 0 | K108: 0 | L108: 0 | M108: 0 | N108: 0 | O108: 0 | P108: 0 | Q108: 0 | R108: 0 | S108: 0 | T108: 0 | U108: 0 | V108: 0 | W108: 0 | X108: 0 | Y108: 0 | Z108: 0 | AB108: 0 | AC108: 0 | AD108: 0 | AE108: 185.4903906 | AF108: 0 | AG108: 0 | AH108: 71.03861315 | AI108: 19.74451081 | AJ108: 0 | AK108: 0 | AL108: 0 | AN108: 4.779756862 | AP108: =OFFSET(AA104,A108,A108) -> 185.4903906 | AR108: 0.0007711341994 | AS108: 0.0007711341994 | AT108: 0.0007711341994 | AU108: 0.006162249054 | AV108: 0.0005977230101 | AW108: 0 | AX108: -0.001931413586 | AY108: -0.0002954259684 | AZ108: 0.001455705355 | BA108: -1.570178953e-19 | BB108: -3.01030666e-19 | BD108: 0.0007711341994 | BE108: 0.0007711341994 | BF108: 0.0007711341994 | BG108: 0.006162249054 | BH108: 0.0005977230101 | BI108: 0 | BJ108: -0.001160279387 | BK108: -0.001160279387 | BL108: -0.001160279387 | BM108: 0.004230835468 | BN108: -0.001333690576 | BO108: -0.001455705355 | BP108: -0.001455705355 | BQ108: -0.001455705355 | BR108: 0.003935409499 | BS108: 4.33680869e-19 | BT108: 0 | BU108: 0 | BV108: 2.766629737e-19 | BW108: -1.570178953e-19 | BX108: -2.436769225e-20 | BZ108: 547.0516685 | CB108: 4.740153576 | CD108: =CB108-CG78/$K$1 -> 2.597510958
A109: 5 | B109: 99.7850489 | D109: 4.542128242 | F109: 0 | G109: 0 | H109: 0 | I109: 0 | J109: 93.89040912 | K109: 0 | L109: 0 | M109: 0 | N109: 0 | O109: 0 | P109: 0 | Q109: 0 | R109: 0 | S109: 0 | T109: 0 | U109: 0 | V109: 0 | W109: 0 | X109: 0 | Y109: 0 | Z109: 0 | AB109: 0 | AC109: 0 | AD109: 0 | AE109: 0 | AF109: 135.9694782 | AG109: 0 | AH109: 42.07906913 | AI109: 0 | AJ109: 0 | AK109: 0 | AL109: 0 | AN109: 4.604910371 | AP109: =OFFSET(AA104,A109,A109) -> 135.9694782 | AR109: 0.0005977230101 | AS109: 0.0005977230101 | AT109: 0.0005977230101 | AU109: 0.0005977230101 | AV109: 0.007952314738 | AW109: 0 | AX109: -0.001931413586 | AY109: 0.001333690576 | AZ109: 4.313401434e-19 | BA109: -1.517963416e-19 | BB109: -1.494610133e-19 | BD109: 0.0005977230101 | BE109: 0.0005977230101 | BF109: 0.0005977230101 | BG109: 0.0005977230101 | BH109: 0.007952314738 | BI109: 0 | BJ109: -0.001333690576 | BK109: -0.001333690576 | BL109: -0.001333690576 | BM109: -0.001333690576 | BN109: 0.006020901152 | BO109: -4.33680869e-19 | BP109: -4.33680869e-19 | BQ109: -4.33680869e-19 | BR109: -4.33680869e-19 | BS109: -2.340725592e-21 | BT109: -2.340725592e-21 | BU109: -2.340725592e-21 | BV109: -1.541370672e-19 | BW109: -1.541370672e-19 | BX109: -3.035980805e-19 | BZ109: 432.3569187 | CB109: 4.542128242 | CD109: =CB109-CG78/$K$1 -> 2.399485623
A110: 6 | B110: 101.8053244 | D110: 4.623062406 | F110: 0 | G110: 0 | H110: 0 | I110: 0 | J110: 0 | K110: 101.8053244 | L110: 0 | M110: 0 | N110: 0 | O110: 0 | P110: 0 | Q110: 0 | R110: 0 | S110: 0 | T110: 0 | U110: 0 | V110: 0 | W110: 0 | X110: 0 | Y110: 0 | Z110: 0 | AB110: 0 | AC110: 0 | AD110: 0 | AE110: 0 | AF110: 0 | AG110: 101.8053244 | AH110: 0 | AI110: 0 | AJ110: 0 | AK110: 0 | AL110: 0 | AN110: 4.623062406 | AP110: =OFFSET(AA104,A110,A110) -> 101.8053244 | AR110: 0 | AS110: 0 | AT110: 0 | AU110: 0 | AV110: 0 | AW110: 0.009822668958 | AX110: 0 | AY110: 0 | AZ110: 0 | BA110: 0 | BB110: 0 | BD110: 0 | BE110: 0 | BF110: 0 | BG110: 0 | BH110: 0 | BI110: 0.009822668958 | BJ110: 0 | BK110: 0 | BL110: 0 | BM110: 0 | BN110: 0 | BO110: 0 | BP110: 0 | BQ110: 0 | BR110: 0 | BS110: 0 | BT110: 0 | BU110: 0 | BV110: 0 | BW110: 0 | BX110: 0 | BZ110: 470.652368 | CB110: 4.623062406 | CD110: =CB110-CG78/$K$1 -> 2.480419787
A111: 7 | B111: 62.08584667 | D111: 3.811750209 | F111: 0 | G111: 0 | H111: 0 | I111: 0 | J111: 0 | K111: 0 | L111: 45.22953075 | M111: 0 | N111: 0 | O111: 0 | P111: 0 | Q111: 0 | R111: 0 | S111: 0 | T111: 0 | U111: 0 | V111: 0 | W111: 0 | X111: 0 | Y111: 0 | Z111: 0 | AB111: 108.8397477 | AC111: 101.9532243 | AD111: 108.5569628 | AE111: 71.03861315 | AF111: 42.07906913 | AG111: 0 | AH111: 432.4676171 | AI111: 200.4240087 | AJ111: 127.3014327 | AK111: 26.12201961 | AL111: -0.6838479761 | AN111: 4.184434064 | AP111: =OFFSET(AA104,A111,A111) -> 432.4676171 | AR111: -0.001931413586 | AS111: -0.001931413586 | AT111: -0.001931413586 | AU111: -0.001931413586 | AV111: -0.001931413586 | AW111: 0 | AX111: 0.006240948364 | AY111: -0.004309534778 | AZ111: -1.393783072e-18 | BA111: 4.904972899e-19 | BB111: 4.829511777e-19 | BD111: -0.001931413586 | BE111: -0.001931413586 | BF111: -0.001931413586 | BG111: -0.001931413586 | BH111: -0.001931413586 | BI111: 0 | BJ111: 0.004309534778 | BK111: 0.004309534778 | BL111: 0.004309534778 | BM111: 0.004309534778 | BN111: 0.004309534778 | BO111: 8.67361738e-19 | BP111: 1.734723476e-18 | BQ111: 1.734723476e-18 | BR111: 1.734723476e-18 | BS111: -5.264213343e-19 | BT111: 3.409404037e-19 | BU111: 3.409404037e-19 | BV111: -3.59240444e-20 | BW111: 8.314376936e-19 | BX111: 4.470271333e-19 | BZ111: 189.2599892 | CB111: -0.802577795 | CD111: =CB111-CG78/$K$1 -> -2.945220413
A112: 8 | B112: 51.14577272 | D112: 3.740124321 | F112: 0 | G112: 0 | H112: 0 | I112: 0 | J112: 0 | K112: 0 | L112: 0 | M112: 42.10322414 | N112: 0 | O112: 0 | P112: 0 | Q112: 0 | R112: 0 | S112: 0 | T112: 0 | U112: 0 | V112: 0 | W112: 0 | X112: 0 | Y112: 0 | Z112: 0 | AB112: 63.6102169 | AC112: 59.8500002 | AD112: 57.21928082 | AE112: 19.74451081 | AF112: 0 | AG112: 0 | AH112: 200.4240087 | AI112: 200.4240087 | AJ112: 127.3014327 | AK112: 26.12201961 | AL112: -0.6838479761 | AN112: 3.95489525 | AP112: =OFFSET(AA104,A112,A112) -> 200.4240087 | AR112: -0.0002954259684 | AS112: -0.0002954259684 | AT112: -0.0002954259684 | AU112: -0.0002954259684 | AV112: 0.001333690576 | AW112: 0 | AX112: -0.004309534778 | AY112: 0.01828062774 | AZ112: -0.013675667 | BA112: -2.896469082e-19 | BB112: 1.090435419e-18 | BD112: -0.0002954259684 | BE112: -0.0002954259684 | BF112: -0.0002954259684 | BG112: -0.0002954259684 | BH112: 0.001333690576 | BI112: 0 | BJ112: -0.004604960746 | BK112: -0.004604960746 | BL112: -0.004604960746 | BM112: -0.004604960746 | BN112: -0.002975844201 | BO112: 0.013675667 | BP112: 0.013675667 | BQ112: 0.013675667 | BR112: 0.013675667 | BS112: -5.204170428e-18 | BT112: -3.469446952e-18 | BU112: -5.204170428e-18 | BV112: -5.493817336e-18 | BW112: -3.75909386e-18 | BX112: -4.403381917e-18 | BZ112: 166.5138411 | CB112: -0.9547002621 | CD112: =CB112-CG78/$K$1 -> -3.09734288
A113: 9 | B113: 30.35190072 | D113: 3.938425024 | F113: 0 | G113: 0 | H113: 0 | I113: 0 | J113: 0 | K113: 0 | L113: 0 | M113: 0 | N113: 51.33768197 | O113: 0 | P113: 0 | Q113: 0 | R113: 0 | S113: 0 | T113: 0 | U113: 0 | V113: 0 | W113: 0 | X113: 0 | Y113: 0 | Z113: 0 | AB113: 46.2001265 | AC113: 43.64331119 | AD113: 37.45799501 | AE113: 0 | AF113: 0 | AG113: 0 | AH113: 127.3014327 | AI113: 127.3014327 | AJ113: 127.3014327 | AK113: 26.12201961 | AL113: -0.6838479761 | AN113: 3.529645733 | AP113: =OFFSET(AA104,A113,A113) -> 127.3014327 | AR113: -0.0005384644425 | AS113: -0.0005384644425 | AT113: -0.0005384644425 | AU113: 0.001455705355 | AV113: 1.269103475e-18 | AW113: 0 | AX113: -3.807310425e-18 | AY113: -0.013675667 | AZ113: 0.02409756493 | BA113: -0.009883433492 | BB113: -1.22734173e-18 | BD113: -0.0005384644425 | BE113: -0.0005384644425 | BF113: -0.0005384644425 | BG113: 0.001455705355 | BH113: 1.269103475e-18 | BI113: 0 | BJ113: -0.0005384644425 | BK113: -0.0005384644425 | BL113: -0.0005384644425 | BM113: 0.001455705355 | BN113: -2.53820695e-18 | BO113: -0.01421413144 | BP113: -0.01421413144 | BQ113: -0.01421413144 | BR113: -0.01221996164 | BS113: 0.009883433492 | BT113: 0.009883433492 | BU113: 0.009883433492 | BV113: 1.734723476e-18 | BW113: 0 | BX113: 5.073817458e-19 | BZ113: 181.2038301 | CB113: 0.6394954101 | CD113: =CB113-CG78/$K$1 -> -1.503147208
A114: 10 | B114: 52.27565887 | D114: 3.937575781 | F114: 0 | G114: 0 | H114: 0 | I114: 0 | J114: 0 | K114: 0 | L114: 0 | M114: 0 | N114: 0 | O114: 51.29410233 | P114: 0 | Q114: 0 | R114: 0 | S114: 0 | T114: 0 | U114: 0 | V114: 0 | W114: 0 | X114: 0 | Y114: 0 | Z114: 0 | AB114: 13.19887923 | AC114: 12.92314038 | AD114: 0 | AE114: 0 | AF114: 0 | AG114: 0 | AH114: 26.12201961 | AI114: 26.12201961 | AJ114: 26.12201961 | AK114: 26.12201961 | AL114: -0.6838479761 | AN114: 3.956711637 | AP114: =OFFSET(AA104,A114,A114) -> 26.12201961 | AR114: -0.00097543932 | AS114: -0.00097543932 | AT114: 0.001659362086 | AU114: -9.97300408e-20 | AV114: -2.12412605e-19 | AW114: 0 | AX114: 6.352154924e-19 | AY114: -1.288287636e-18 | AZ114: -0.009883433492 | BA114: 0.04816413804 | BB114: -0.03730526523 | BD114: -0.00097543932 | BE114: -0.00097543932 | BF114: 0.001659362086 | BG114: -9.97300408e-20 | BH114: -2.12412605e-19 | BI114: 0 | BJ114: -0.00097543932 | BK114: -0.00097543932 | BL114: 0.001659362086 | BM114: 5.354854516e-19 | BN114: 4.228028874e-19 | BO114: -0.00097543932 | BP114: -0.00097543932 | BQ114: 0.001659362086 | BR114: -7.528021842e-19 | BS114: -0.01085887281 | BT114: -0.01085887281 | BU114: -0.008224071406 | BV114: 0.03730526523 | BW114: 0.03730526523 | BX114: 6.938893904e-18 | BZ114: 202.9559716 | CB114: -0.8658999363 | CD114: =CB114-CG78/$K$1 -> -3.008542555
A115: 11 | B115: 36.18442935 | D115: 3.739550447 | F115: =IF($A115=F$4,IF($B115<0,-(EXP(-$D115)^(2-$H$1)),IF($B115=0,0,EXP($D115)^(2-$H$1))),0) -> 0 | G115: 0 | H115: 0 | I115: 0 | J115: 0 | K115: 0 | L115: 0 | M115: 0 | N115: 0 | O115: 0 | P115: =IF($A115=P$4,IF($B115<0,-(EXP(-$D115)^(2-$H$1)),IF($B115=0,0,EXP($D115)^(2-$H$1))),0) -> 42.07906913 | Q115: 0 | R115: 0 | S115: 0 | T115: 0 | U115: 0 | V115: 0 | W115: 0 | X115: 0 | Y115: 0 | Z115: 0 | AB115: -0.6838479761 | AC115: 0 | AD115: 0 | AE115: 0 | AF115: 0 | AG115: 0 | AH115: -0.6838479761 | AI115: -0.6838479761 | AJ115: -0.6838479761 | AK115: -0.6838479761 | AL115: -0.6838479761 | AN115: 3.599465604 | AP115: =OFFSET(AA104,A115,A115) -> -0.6838479761 | AR115: -0.002290880869 | AS115: 0.002460986512 | AT115: -4.627539132e-19 | AU115: -5.522908982e-19 | AV115: -1.817316253e-19 | AW115: 0 | AX115: 4.680692236e-19 | AY115: 2.886444763e-18 | AZ115: -3.702031306e-18 | BA115: -0.03730526523 | BB115: -1.422717168 | BD115: -0.002290880869 | BE115: 0.002460986512 | BF115: -4.627539132e-19 | BG115: -5.522908982e-19 | BH115: -1.817316253e-19 | BI115: 0 | BJ115: -0.002290880869 | BK115: 0.002460986512 | BL115: 5.315310385e-21 | BM115: -8.422167465e-20 | BN115: 2.863375983e-19 | BO115: -0.002290880869 | BP115: 0.002460986512 | BQ115: 2.891760073e-18 | BR115: 2.802223088e-18 | BS115: -0.002290880869 | BT115: 0.002460986512 | BU115: -8.102712326e-19 | BV115: -0.0395961461 | BW115: -0.03484427872 | BX115: -1.462313314 | BZ115: 151.462162 | CB115: -2.250625777 | CD115: =CB115-CG78/$K$1 -> -4.393268395
A116: 12 | B116: 13.96482782 | D116: 2.857049947 | F116: 0 | G116: 0 | H116: 0 | I116: 0 | J116: 0 | K116: 0 | L116: 0 | M116: 0 | N116: 0 | O116: 0 | P116: 0 | Q116: 17.41009041 | R116: 0 | S116: 0 | T116: 0 | U116: 0 | V116: 0 | W116: 0 | X116: 0 | Y116: 0 | Z116: 0 | AN116: 2.659161107 | BZ116: 46.29623528
A117: 13 | B117: 11.40289543 | D117: 2.785424058 | F117: 0 | G117: 0 | H117: 0 | I117: 0 | J117: 0 | K117: 0 | L117: 0 | M117: 0 | N117: 0 | O117: 0 | P117: 0 | Q117: 0 | R117: 16.206689 | S117: 0 | T117: 0 | U117: 0 | V117: 0 | W117: 0 | X117: 0 | Y117: 0 | Z117: 0 | AN117: 2.489015979 | BZ117: 40.33870789
A118: 14 | B118: 33.52456495 | D118: 2.983724762 | F118: 0 | G118: 0 | H118: 0 | I118: 0 | J118: 0 | K118: 0 | L118: 0 | M118: 0 | N118: 0 | O118: 0 | P118: 0 | Q118: 0 | R118: 0 | S118: 19.76128582 | T118: 0 | U118: 0 | V118: 0 | W118: 0 | X118: 0 | Y118: 0 | Z118: 0 | AN118: 3.680201664 | BZ118: 72.72551695
A119: 15 | B119: 14.23028783 | D119: 2.982875519 | F119: 0 | G119: 0 | H119: 0 | I119: 0 | J119: 0 | K119: 0 | L119: 0 | M119: 0 | N119: 0 | O119: 0 | P119: 0 | Q119: 0 | R119: 0 | S119: 0 | T119: 19.74451081 | U119: 0 | V119: 0 | W119: 0 | X119: 0 | Y119: 0 | Z119: 0 | AN119: 2.703596735 | BZ119: 53.38119496
A120: 16 | B120: 30.8120414 | D120: 3.496545357 | F120: 0 | G120: 0 | H120: 0 | I120: 0 | J120: 0 | K120: 0 | L120: 0 | M120: 0 | N120: 0 | O120: 0 | P120: 0 | Q120: 0 | R120: 0 | S120: 0 | T120: 0 | U120: 33.00124727 | V120: 0 | W120: 0 | X120: 0 | Y120: 0 | Z120: 0 | AN120: 3.430208292 | BZ120: 113.201152
A121: 17 | B121: 35.0777869 | D121: 3.424919469 | F121: 0 | G121: 0 | H121: 0 | I121: 0 | J121: 0 | K121: 0 | L121: 0 | M121: 0 | N121: 0 | O121: 0 | P121: 0 | Q121: 0 | R121: 0 | S121: 0 | T121: 0 | U121: 0 | V121: 30.72017081 | W121: 0 | X121: 0 | Y121: 0 | Z121: 0 | AN121: 3.566768162 | BZ121: 109.5717272
A122: 18 | B122: 35.28958479 | D122: 3.623220172 | F122: 0 | G122: 0 | H122: 0 | I122: 0 | J122: 0 | K122: 0 | L122: 0 | M122: 0 | N122: 0 | O122: 0 | P122: 0 | Q122: 0 | R122: 0 | S122: 0 | T122: 0 | U122: 0 | V122: 0 | W122: 37.45799501 | X122: 0 | Y122: 0 | Z122: 0 | AN122: 3.565331056 | BZ122: 133.5501529
A123: 19 | B123: 13.74010634 | D123: 2.63064542 | F123: 0 | G123: 0 | H123: 0 | I123: 0 | J123: 0 | K123: 0 | L123: 0 | M123: 0 | N123: 0 | O123: 0 | P123: 0 | Q123: 0 | R123: 0 | S123: 0 | T123: 0 | U123: 0 | V123: 0 | W123: 0 | X123: 13.88272721 | Y123: 0 | Z123: 0 | AN123: 2.62037216 | BZ123: 36.37791188
A124: 20 | B124: 13.06576125 | D124: 2.559019532 | F124: 0 | G124: 0 | H124: 0 | I124: 0 | J124: 0 | K124: 0 | L124: 0 | M124: 0 | N124: 0 | O124: 0 | P124: 0 | Q124: 0 | R124: 0 | S124: 0 | T124: 0 | U124: 0 | V124: 0 | W124: 0 | X124: 0 | Y124: 12.92314038 | Z124: 0 | AN124: 2.570055617 | BZ124: 33.21318952
A125: 21 | B125: -0.6838479761 | D125: 0.3800196433 | F125: 0 | G125: 0 | H125: 0 | I125: 0 | J125: 0 | K125: 0 | L125: 0 | M125: 0 | N125: 0 | O125: 0 | P125: 0 | Q125: 0 | R125: 0 | S125: 0 | T125: 0 | U125: 0 | V125: 0 | W125: 0 | X125: 0 | Y125: 0 | Z125: -0.6838479761 | AN125: 0.3800196433 | BZ125: -0.2598756639
A127: Newton-Raphson Interation Sequence -- Iteration 6
B128: y(i) | D128: xb(i) | F128: W(i,i) | AB128: XWX | AN128: zz(i) | AP128: factor | AR128: xwx-1 | BD128: aa1(i,j) | BZ128: aa2(j) | CB128: beta(j) | CD128: beta_diff = | CE128: =SUM(CD130:CD140) -> -2.309263891e-14 | CF128: beta_old = | CG128: =SUM(CB130:CB140) -> 23.5690688
B129: 1 | D129: 1 | F129: 1 | G129: 2 | H129: 3 | I129: 4 | J129: 5 | K129: 6 | L129: 7 | M129: 8 | N129: 9 | O129: 10 | P129: 11 | Q129: 12 | R129: 13 | S129: 14 | T129: 15 | U129: 16 | V129: 17 | W129: 18 | X129: 19 | Y129: 20 | Z129: 21 | AB129: 1 | AC129: 2 | AD129: 3 | AE129: 4 | AF129: 5 | AG129: 6 | AH129: 7 | AI129: 8 | AJ129: 9 | AK129: 10 | AL129: 11 | AN129: 1 | AR129: 1 | AS129: 2 | AT129: 3 | AU129: 4 | AV129: 5 | AW129: 6 | AX129: 7 | AY129: 8 | AZ129: 9 | BA129: 10 | BB129: 11 | BD129: 1 | BE129: 2 | BF129: 3 | BG129: 4 | BH129: 5 | BI129: 6 | BJ129: 7 | BK129: 8 | BL129: 9 | BM129: 10 | BN129: 11 | BO129: 12 | BP129: 13 | BQ129: 14 | BR129: 15 | BS129: 16 | BT129: 17 | BU129: 18 | BV129: 19 | BW129: 20 | BX129: 21
A130: 1 | B130: =B105 -> 89.84076129 | D130: =MMULT(DesignMatrix,CB105:CB115) -> 4.614328004 | F130: =IF($A130=F$4,IF($B130<0,-(EXP(-$D130)^(2-$H$1)),IF($B130=0,0,EXP($D130)^(2-$H$1))),0) -> 100.9199879 | G130: 0 | H130: 0 | I130: 0 | J130: 0 | K130: 0 | L130: 0 | M130: 0 | N130: 0 | O130: 0 | P130: =IF($A130=P$4,IF($B130<0,-(EXP(-$D130)^(2-$H$1)),IF($B130=0,0,EXP($D130)^(2-$H$1))),0) -> 0 | Q130: 0 | R130: 0 | S130: 0 | T130: 0 | U130: 0 | V130: 0 | W130: 0 | X130: 0 | Y130: 0 | Z130: 0 | AB130: =MMULT(TRANSPOSE(DesignMatrix),MMULT(F130:Z150,DesignMatrix)) -> 209.7597355 | AC130: 0 | AD130: 0 | AE130: 0 | AF130: 0 | AG130: 0 | AH130: 108.8397477 | AI130: 63.6102169 | AJ130: 46.2001265 | AK130: 13.19887923 | AL130: -0.6838479761 | AN130: =IF(B130<0,D130+(B130+EXP(-D130))/-EXP(-D130),IF(B130=0,0,D130+(B130-EXP(D130))/EXP(D130))) -> 4.504545721 | AP130: =OFFSET(AA129,A130,A130) -> 209.7597355 | AR130: =MINVERSE(AB130:AL140) -> 0.006031624186 | AS130: 0.001279756806 | AT130: 0.001105941912 | AU130: 0.0007711341994 | AV130: 0.0005977230101 | AW130: 0 | AX130: -0.001931413586 | AY130: -0.0002954259684 | AZ130: -0.0005384644425 | BA130: -0.00097543932 | BB130: -0.002290880869 | BD130: =MMULT(AR130:BB140,TRANSPOSE(DesignMatrix)) -> 0.006031624186 | BE130: 0.001279756806 | BF130: 0.001105941912 | BG130: 0.0007711341994 | BH130: 0.0005977230101 | BI130: 0 | BJ130: 0.0041002106 | BK130: -0.0006516567809 | BL130: -0.0008254716749 | BM130: -0.001160279387 | BN130: -0.001333690576 | BO130: 0.003804784631 | BP130: -0.0009470827494 | BQ130: -0.001120897643 | BR130: -0.001455705356 | BS130: 0.003266320189 | BT130: -0.001485547192 | BU130: -0.001659362086 | BV130: 0.002290880869 | BW130: -0.002460986512 | BX130: -4.33680869e-19 | BZ130: =MMULT(F130:Z150,AN130:AN150) -> 454.5986996 | CB130: =MMULT(BD130:BX140,BZ130:BZ150) -> 4.614328004 | CD130: =CB130-CG103/$K$1 -> 2.471685385
A131: 2 | B131: =B106 -> 85.20531387 | D131: 4.542702116 | F131: 0 | G131: 93.94430584 | H131: 0 | I131: 0 | J131: 0 | K131: 0 | L131: 0 | M131: 0 | N131: 0 | O131: 0 | P131: 0 | Q131: 0 | R131: 0 | S131: 0 | T131: 0 | U131: 0 | V131: 0 | W131: 0 | X131: 0 | Y131: 0 | Z131: 0 | AB131: 0 | AC131: 195.8975302 | AD131: 0 | AE131: 0 | AF131: 0 | AG131: 0 | AH131: 101.9532243 | AI131: 59.8500002 | AJ131: 43.64331119 | AK131: 12.92314038 | AL131: 0 | AN131: =IF(B131<0,D131+(B131+EXP(-D131))/-EXP(-D131),IF(B131=0,0,D131+(B131-EXP(D131))/EXP(D131))) -> 4.449679001 | AP131: =OFFSET(AA129,A131,A131) -> 195.8975302 | AR131: 0.001279756806 | AS131: 0.006384466391 | AT131: 0.001105941912 | AU131: 0.0007711341994 | AV131: 0.0005977230101 | AW131: 0 | AX131: -0.001931413586 | AY131: -0.0002954259684 | AZ131: -0.0005384644425 | BA131: -0.00097543932 | BB131: 0.002460986512 | BD131: 0.001279756806 | BE131: 0.006384466391 | BF131: 0.001105941912 | BG131: 0.0007711341994 | BH131: 0.0005977230101 | BI131: 0 | BJ131: -0.0006516567809 | BK131: 0.004453052804 | BL131: -0.0008254716749 | BM131: -0.001160279387 | BN131: -0.001333690576 | BO131: -0.0009470827494 | BP131: 0.004157626836 | BQ131: -0.001120897643 | BR131: -0.001455705356 | BS131: -0.001485547192 | BT131: 0.003619162393 | BU131: -0.001659362086 | BV131: -0.002460986512 | BW131: 0.002643723073 | BX131: 8.67361738e-19 | BZ131: 418.0220049 | CB131: 4.542702116 | CD131: =CB131-CG103/$K$1 -> 2.400059497
A132: 3 | B132: 123.9399284 | D132: 4.741002819 | F132: 0 | G132: 0 | H132: 114.549016 | I132: 0 | J132: 0 | K132: 0 | L132: 0 | M132: 0 | N132: 0 | O132: 0 | P132: 0 | Q132: 0 | R132: 0 | S132: 0 | T132: 0 | U132: 0 | V132: 0 | W132: 0 | X132: 0 | Y132: 0 | Z132: 0 | AB132: 0 | AC132: 0 | AD132: 223.1059788 | AE132: 0 | AF132: 0 | AG132: 0 | AH132: 108.5569628 | AI132: 57.21928082 | AJ132: 37.45799501 | AK132: 0 | AL132: 0 | AN132: 4.822984425 | AP132: =OFFSET(AA129,A132,A132) -> 223.1059788 | AR132: 0.001105941912 | AS132: 0.001105941912 | AT132: 0.005588116729 | AU132: 0.0007711341994 | AV132: 0.0005977230101 | AW132: 0 | AX132: -0.001931413586 | AY132: -0.0002954259684 | AZ132: -0.0005384644425 | BA132: 0.001659362086 | BB132: -2.349901751e-19 | BD132: 0.001105941912 | BE132: 0.001105941912 | BF132: 0.005588116729 | BG132: 0.0007711341994 | BH132: 0.0005977230101 | BI132: 0 | BJ132: -0.0008254716749 | BK132: -0.0008254716749 | BL132: 0.003656703143 | BM132: -0.001160279387 | BN132: -0.001333690576 | BO132: -0.001120897643 | BP132: -0.001120897643 | BQ132: 0.003361277175 | BR132: -0.001455705356 | BS132: -0.001659362086 | BT132: -0.001659362086 | BU132: 0.002822812732 | BV132: 2.168404345e-19 | BW132: -2.168404345e-19 | BX132: -1.814974062e-20 | BZ132: 552.4681202 | CB132: 4.741002819 | CD132: =CB132-CG103/$K$1 -> 2.598360201
A133: 4 | B133: 118.9844439 | D133: 4.740153576 | F133: 0 | G133: 0 | H133: 0 | I133: 114.4517774 | J133: 0 | K133: 0 | L133: 0 | M133: 0 | N133: 0 | O133: 0 | P133: 0 | Q133: 0 | R133: 0 | S133: 0 | T133: 0 | U133: 0 | V133: 0 | W133: 0 | X133: 0 | Y133: 0 | Z133: 0 | AB133: 0 | AC133: 0 | AD133: 0 | AE133: 185.4903906 | AF133: 0 | AG133: 0 | AH133: 71.03861315 | AI133: 19.74451081 | AJ133: 0 | AK133: 0 | AL133: 0 | AN133: 4.779756862 | AP133: =OFFSET(AA129,A133,A133) -> 185.4903906 | AR133: 0.0007711341994 | AS133: 0.0007711341994 | AT133: 0.0007711341994 | AU133: 0.006162249054 | AV133: 0.0005977230101 | AW133: 0 | AX133: -0.001931413586 | AY133: -0.0002954259684 | AZ133: 0.001455705356 | BA133: 4.501894523e-19 | BB133: -1.84959349e-19 | BD133: 0.0007711341994 | BE133: 0.0007711341994 | BF133: 0.0007711341994 | BG133: 0.006162249054 | BH133: 0.0005977230101 | BI133: 0 | BJ133: -0.001160279387 | BK133: -0.001160279387 | BL133: -0.001160279387 | BM133: 0.004230835468 | BN133: -0.001333690576 | BO133: -0.001455705356 | BP133: -0.001455705356 | BQ133: -0.001455705356 | BR133: 0.003935409499 | BS133: 4.33680869e-19 | BT133: 2.168404345e-19 | BU133: 2.168404345e-19 | BV133: 8.838703213e-19 | BW133: 6.670298868e-19 | BX133: 6.989109723e-19 | BZ133: 547.0516685 | CB133: 4.740153576 | CD133: =CB133-CG103/$K$1 -> 2.597510958
A134: 5 | B134: 99.7850489 | D134: 4.542128242 | F134: 0 | G134: 0 | H134: 0 | I134: 0 | J134: 93.89040912 | K134: 0 | L134: 0 | M134: 0 | N134: 0 | O134: 0 | P134: 0 | Q134: 0 | R134: 0 | S134: 0 | T134: 0 | U134: 0 | V134: 0 | W134: 0 | X134: 0 | Y134: 0 | Z134: 0 | AB134: 0 | AC134: 0 | AD134: 0 | AE134: 0 | AF134: 135.9694782 | AG134: 0 | AH134: 42.07906913 | AI134: 0 | AJ134: 0 | AK134: 0 | AL134: 0 | AN134: 4.604910371 | AP134: =OFFSET(AA129,A134,A134) -> 135.9694782 | AR134: 0.0005977230101 | AS134: 0.0005977230101 | AT134: 0.0005977230101 | AU134: 0.0005977230101 | AV134: 0.007952314738 | AW134: 0 | AX134: -0.001931413586 | AY134: 0.001333690576 | AZ134: 3.533301763e-19 | BA134: 2.055088932e-19 | BB134: -1.494610133e-19 | BD134: 0.0005977230101 | BE134: 0.0005977230101 | BF134: 0.0005977230101 | BG134: 0.0005977230101 | BH134: 0.007952314738 | BI134: 0 | BJ134: -0.001333690576 | BK134: -0.001333690576 | BL134: -0.001333690576 | BM134: -0.001333690576 | BN134: 0.006020901152 | BO134: 2.168404345e-19 | BP134: 2.168404345e-19 | BQ134: 2.168404345e-19 | BR134: -2.168404345e-19 | BS134: 5.701706108e-19 | BT134: 5.701706108e-19 | BU134: 5.701706108e-19 | BV134: 7.75679504e-19 | BW134: 7.75679504e-19 | BX134: 6.262184907e-19 | BZ134: 432.3569187 | CB134: 4.542128242 | CD134: =CB134-CG103/$K$1 -> 2.399485623
A135: 6 | B135: 101.8053244 | D135: 4.623062406 | F135: 0 | G135: 0 | H135: 0 | I135: 0 | J135: 0 | K135: 101.8053244 | L135: 0 | M135: 0 | N135: 0 | O135: 0 | P135: 0 | Q135: 0 | R135: 0 | S135: 0 | T135: 0 | U135: 0 | V135: 0 | W135: 0 | X135: 0 | Y135: 0 | Z135: 0 | AB135: 0 | AC135: 0 | AD135: 0 | AE135: 0 | AF135: 0 | AG135: 101.8053244 | AH135: 0 | AI135: 0 | AJ135: 0 | AK135: 0 | AL135: 0 | AN135: 4.623062406 | AP135: =OFFSET(AA129,A135,A135) -> 101.8053244 | AR135: 0 | AS135: 0 | AT135: 0 | AU135: 0 | AV135: 0 | AW135: 0.009822668958 | AX135: 0 | AY135: 0 | AZ135: 0 | BA135: 0 | BB135: 0 | BD135: 0 | BE135: 0 | BF135: 0 | BG135: 0 | BH135: 0 | BI135: 0.009822668958 | BJ135: 0 | BK135: 0 | BL135: 0 | BM135: 0 | BN135: 0 | BO135: 0 | BP135: 0 | BQ135: 0 | BR135: 0 | BS135: 0 | BT135: 0 | BU135: 0 | BV135: 0 | BW135: 0 | BX135: 0 | BZ135: 470.652368 | CB135: 4.623062406 | CD135: =CB135-CG103/$K$1 -> 2.480419787
A136: 7 | B136: 62.08584667 | D136: 3.811750209 | F136: 0 | G136: 0 | H136: 0 | I136: 0 | J136: 0 | K136: 0 | L136: 45.22953075 | M136: 0 | N136: 0 | O136: 0 | P136: 0 | Q136: 0 | R136: 0 | S136: 0 | T136: 0 | U136: 0 | V136: 0 | W136: 0 | X136: 0 | Y136: 0 | Z136: 0 | AB136: 108.8397477 | AC136: 101.9532243 | AD136: 108.5569628 | AE136: 71.03861315 | AF136: 42.07906913 | AG136: 0 | AH136: 432.4676171 | AI136: 200.4240087 | AJ136: 127.3014327 | AK136: 26.12201961 | AL136: -0.6838479761 | AN136: 4.184434064 | AP136: =OFFSET(AA129,A136,A136) -> 432.4676171 | AR136: -0.001931413586 | AS136: -0.001931413586 | AT136: -0.001931413586 | AU136: -0.001931413586 | AV136: -0.001931413586 | AW136: 0 | AX136: 0.006240948364 | AY136: -0.004309534778 | AZ136: -1.141710611e-18 | BA136: -6.640578694e-19 | BB136: 4.829511777e-19 | BD136: -0.001931413586 | BE136: -0.001931413586 | BF136: -0.001931413586 | BG136: -0.001931413586 | BH136: -0.001931413586 | BI136: 0 | BJ136: 0.004309534778 | BK136: 0.004309534778 | BL136: 0.004309534778 | BM136: 0.004309534778 | BN136: 0.004309534778 | BO136: -8.67361738e-19 | BP136: 0 | BQ136: 0 | BR136: 8.67361738e-19 | BS136: -2.009072349e-18 | BT136: -1.141710611e-18 | BU136: -1.141710611e-18 | BV136: -2.673130218e-18 | BW136: -1.80576848e-18 | BX136: -2.19017904e-18 | BZ136: 189.2599892 | CB136: -0.802577795 | CD136: =CB136-CG103/$K$1 -> -2.945220413
A137: 8 | B137: 51.14577272 | D137: 3.740124321 | F137: 0 | G137: 0 | H137: 0 | I137: 0 | J137: 0 | K137: 0 | L137: 0 | M137: 42.10322414 | N137: 0 | O137: 0 | P137: 0 | Q137: 0 | R137: 0 | S137: 0 | T137: 0 | U137: 0 | V137: 0 | W137: 0 | X137: 0 | Y137: 0 | Z137: 0 | AB137: 63.6102169 | AC137: 59.8500002 | AD137: 57.21928082 | AE137: 19.74451081 | AF137: 0 | AG137: 0 | AH137: 200.4240087 | AI137: 200.4240087 | AJ137: 127.3014327 | AK137: 26.12201961 | AL137: -0.6838479761 | AN137: 3.95489525 | AP137: =OFFSET(AA129,A137,A137) -> 200.4240087 | AR137: -0.0002954259684 | AS137: -0.0002954259684 | AT137: -0.0002954259684 | AU137: -0.0002954259684 | AV137: 0.001333690576 | AW137: 0 | AX137: -0.004309534778 | AY137: 0.01828062774 | AZ137: -0.013675667 | BA137: -1.84010977e-18 | BB137: 0 | BD137: -0.0002954259684 | BE137: -0.0002954259684 | BF137: -0.0002954259684 | BG137: -0.0002954259684 | BH137: 0.001333690576 | BI137: 0 | BJ137: -0.004604960746 | BK137: -0.004604960746 | BL137: -0.004604960746 | BM137: -0.004604960746 | BN137: -0.002975844201 | BO137: 0.013675667 | BP137: 0.013675667 | BQ137: 0.013675667 | BR137: 0.013675667 | BS137: 3.469446952e-18 | BT137: 3.469446952e-18 | BU137: 1.734723476e-18 | BV137: 1.629337182e-18 | BW137: 1.629337182e-18 | BX137: 1.629337182e-18 | BZ137: 166.5138411 | CB137: -0.9547002621 | CD137: =CB137-CG103/$K$1 -> -3.09734288
A138: 9 | B138: 30.35190072 | D138: 3.938425024 | F138: 0 | G138: 0 | H138: 0 | I138: 0 | J138: 0 | K138: 0 | L138: 0 | M138: 0 | N138: 51.33768197 | O138: 0 | P138: 0 | Q138: 0 | R138: 0 | S138: 0 | T138: 0 | U138: 0 | V138: 0 | W138: 0 | X138: 0 | Y138: 0 | Z138: 0 | AB138: 46.2001265 | AC138: 43.64331119 | AD138: 37.45799501 | AE138: 0 | AF138: 0 | AG138: 0 | AH138: 127.3014327 | AI138: 127.3014327 | AJ138: 127.3014327 | AK138: 26.12201961 | AL138: -0.6838479761 | AN138: 3.529645733 | AP138: =OFFSET(AA129,A138,A138) -> 127.3014327 | AR138: -0.0005384644425 | AS138: -0.0005384644425 | AT138: -0.0005384644425 | AU138: 0.001455705356 | AV138: 1.903655212e-18 | AW138: 0 | AX138: -5.0764139e-18 | AY138: -0.013675667 | AZ138: 0.02409756493 | BA138: -0.009883433492 | BB138: 0 | BD138: -0.0005384644425 | BE138: -0.0005384644425 | BF138: -0.0005384644425 | BG138: 0.001455705356 | BH138: 1.903655212e-18 | BI138: 0 | BJ138: -0.0005384644425 | BK138: -0.0005384644425 | BL138: -0.0005384644425 | BM138: 0.001455705356 | BN138: -3.172758687e-18 | BO138: -0.01421413144 | BP138: -0.01421413144 | BQ138: -0.01421413144 | BR138: -0.01221996164 | BS138: 0.009883433492 | BT138: 0.009883433492 | BU138: 0.009883433492 | BV138: 1.734723476e-18 | BW138: 1.734723476e-18 | BX138: 1.734723476e-18 | BZ138: 181.2038301 | CB138: 0.6394954101 | CD138: =CB138-CG103/$K$1 -> -1.503147208
A139: 10 | B139: 52.27565887 | D139: 3.937575781 | F139: 0 | G139: 0 | H139: 0 | I139: 0 | J139: 0 | K139: 0 | L139: 0 | M139: 0 | N139: 0 | O139: 51.29410233 | P139: 0 | Q139: 0 | R139: 0 | S139: 0 | T139: 0 | U139: 0 | V139: 0 | W139: 0 | X139: 0 | Y139: 0 | Z139: 0 | AB139: 13.19887923 | AC139: 12.92314038 | AD139: 0 | AE139: 0 | AF139: 0 | AG139: 0 | AH139: 26.12201961 | AI139: 26.12201961 | AJ139: 26.12201961 | AK139: 26.12201961 | AL139: -0.6838479761 | AN139: 3.956711637 | AP139: =OFFSET(AA129,A139,A139) -> 26.12201961 | AR139: -0.00097543932 | AS139: -0.00097543932 | AT139: 0.001659362086 | AU139: -5.889048717e-19 | AV139: -3.155854237e-19 | AW139: 0 | AX139: 8.415611299e-19 | AY139: 2.641289591e-18 | AZ139: -0.009883433492 | BA139: 0.04816413804 | BB139: -0.03730526523 | BD139: -0.00097543932 | BE139: -0.00097543932 | BF139: 0.001659362086 | BG139: -5.889048717e-19 | BH139: -3.155854237e-19 | BI139: 0 | BJ139: -0.00097543932 | BK139: -0.00097543932 | BL139: 0.001659362086 | BM139: 2.526562583e-19 | BN139: 5.259757062e-19 | BO139: -0.00097543932 | BP139: -0.00097543932 | BQ139: 0.001659362086 | BR139: 2.893945849e-18 | BS139: -0.01085887281 | BT139: -0.01085887281 | BU139: -0.008224071406 | BV139: 0.03730526523 | BW139: 0.03730526523 | BX139: 0 | BZ139: 202.9559716 | CB139: -0.8658999363 | CD139: =CB139-CG103/$K$1 -> -3.008542555
A140: 11 | B140: 36.18442935 | D140: 3.739550447 | F140: =IF($A140=F$4,IF($B140<0,-(EXP(-$D140)^(2-$H$1)),IF($B140=0,0,EXP($D140)^(2-$H$1))),0) -> 0 | G140: 0 | H140: 0 | I140: 0 | J140: 0 | K140: 0 | L140: 0 | M140: 0 | N140: 0 | O140: 0 | P140: =IF($A140=P$4,IF($B140<0,-(EXP(-$D140)^(2-$H$1)),IF($B140=0,0,EXP($D140)^(2-$H$1))),0) -> 42.07906913 | Q140: 0 | R140: 0 | S140: 0 | T140: 0 | U140: 0 | V140: 0 | W140: 0 | X140: 0 | Y140: 0 | Z140: 0 | AB140: -0.6838479761 | AC140: 0 | AD140: 0 | AE140: 0 | AF140: 0 | AG140: 0 | AH140: -0.6838479761 | AI140: -0.6838479761 | AJ140: -0.6838479761 | AK140: -0.6838479761 | AL140: -0.6838479761 | AN140: 3.599465604 | AP140: =OFFSET(AA129,A140,A140) -> -0.6838479761 | AR140: -0.002290880869 | AS140: 0.002460986512 | AT140: -1.542513044e-19 | AU140: 2.987489312e-19 | AV140: -1.569089596e-19 | AW140: 0 | AX140: 4.184238923e-19 | AY140: -3.304868655e-18 | AZ140: 3.702031306e-18 | BA140: -0.03730526523 | BB140: -1.422717168 | BD140: -0.002290880869 | BE140: 0.002460986512 | BF140: -1.542513044e-19 | BG140: 2.987489312e-19 | BH140: -1.569089596e-19 | BI140: 0 | BJ140: -0.002290880869 | BK140: 0.002460986512 | BL140: 2.641725879e-19 | BM140: 7.171728234e-19 | BN140: 2.615149327e-19 | BO140: -0.002290880869 | BP140: 0.002460986512 | BQ140: -3.040696067e-18 | BR140: -2.587695832e-18 | BS140: -0.002290880869 | BT140: 0.002460986512 | BU140: 6.613352386e-19 | BV140: -0.0395961461 | BW140: -0.03484427872 | BX140: -1.462313314 | BZ140: 151.462162 | CB140: -2.250625777 | CD140: =CB140-CG103/$K$1 -> -4.393268395
A141: 12 | B141: 13.96482782 | D141: 2.857049947 | F141: 0 | G141: 0 | H141: 0 | I141: 0 | J141: 0 | K141: 0 | L141: 0 | M141: 0 | N141: 0 | O141: 0 | P141: 0 | Q141: 17.41009041 | R141: 0 | S141: 0 | T141: 0 | U141: 0 | V141: 0 | W141: 0 | X141: 0 | Y141: 0 | Z141: 0 | AN141: 2.659161107 | BZ141: 46.29623528
A142: 13 | B142: 11.40289543 | D142: 2.785424058 | F142: 0 | G142: 0 | H142: 0 | I142: 0 | J142: 0 | K142: 0 | L142: 0 | M142: 0 | N142: 0 | O142: 0 | P142: 0 | Q142: 0 | R142: 16.206689 | S142: 0 | T142: 0 | U142: 0 | V142: 0 | W142: 0 | X142: 0 | Y142: 0 | Z142: 0 | AN142: 2.489015979 | BZ142: 40.33870789
A143: 14 | B143: 33.52456495 | D143: 2.983724762 | F143: 0 | G143: 0 | H143: 0 | I143: 0 | J143: 0 | K143: 0 | L143: 0 | M143: 0 | N143: 0 | O143: 0 | P143: 0 | Q143: 0 | R143: 0 | S143: 19.76128582 | T143: 0 | U143: 0 | V143: 0 | W143: 0 | X143: 0 | Y143: 0 | Z143: 0 | AN143: 3.680201664 | BZ143: 72.72551695
A144: 15 | B144: 14.23028783 | D144: 2.982875519 | F144: 0 | G144: 0 | H144: 0 | I144: 0 | J144: 0 | K144: 0 | L144: 0 | M144: 0 | N144: 0 | O144: 0 | P144: 0 | Q144: 0 | R144: 0 | S144: 0 | T144: 19.74451081 | U144: 0 | V144: 0 | W144: 0 | X144: 0 | Y144: 0 | Z144: 0 | AN144: 2.703596735 | BZ144: 53.38119496
A145: 16 | B145: 30.8120414 | D145: 3.496545357 | F145: 0 | G145: 0 | H145: 0 | I145: 0 | J145: 0 | K145: 0 | L145: 0 | M145: 0 | N145: 0 | O145: 0 | P145: 0 | Q145: 0 | R145: 0 | S145: 0 | T145: 0 | U145: 33.00124727 | V145: 0 | W145: 0 | X145: 0 | Y145: 0 | Z145: 0 | AN145: 3.430208292 | BZ145: 113.201152
A146: 17 | B146: 35.0777869 | D146: 3.424919469 | F146: 0 | G146: 0 | H146: 0 | I146: 0 | J146: 0 | K146: 0 | L146: 0 | M146: 0 | N146: 0 | O146: 0 | P146: 0 | Q146: 0 | R146: 0 | S146: 0 | T146: 0 | U146: 0 | V146: 30.72017081 | W146: 0 | X146: 0 | Y146: 0 | Z146: 0 | AN146: 3.566768162 | BZ146: 109.5717272
A147: 18 | B147: 35.28958479 | D147: 3.623220172 | F147: 0 | G147: 0 | H147: 0 | I147: 0 | J147: 0 | K147: 0 | L147: 0 | M147: 0 | N147: 0 | O147: 0 | P147: 0 | Q147: 0 | R147: 0 | S147: 0 | T147: 0 | U147: 0 | V147: 0 | W147: 37.45799501 | X147: 0 | Y147: 0 | Z147: 0 | AN147: 3.565331056 | BZ147: 133.5501529
A148: 19 | B148: 13.74010634 | D148: 2.63064542 | F148: 0 | G148: 0 | H148: 0 | I148: 0 | J148: 0 | K148: 0 | L148: 0 | M148: 0 | N148: 0 | O148: 0 | P148: 0 | Q148: 0 | R148: 0 | S148: 0 | T148: 0 | U148: 0 | V148: 0 | W148: 0 | X148: 13.88272721 | Y148: 0 | Z148: 0 | AN148: 2.62037216 | BZ148: 36.37791188
A149: 20 | B149: 13.06576125 | D149: 2.559019532 | F149: 0 | G149: 0 | H149: 0 | I149: 0 | J149: 0 | K149: 0 | L149: 0 | M149: 0 | N149: 0 | O149: 0 | P149: 0 | Q149: 0 | R149: 0 | S149: 0 | T149: 0 | U149: 0 | V149: 0 | W149: 0 | X149: 0 | Y149: 12.92314038 | Z149: 0 | AN149: 2.570055617 | BZ149: 33.21318952
A150: 21 | B150: -0.6838479761 | D150: 0.3800196433 | F150: 0 | G150: 0 | H150: 0 | I150: 0 | J150: 0 | K150: 0 | L150: 0 | M150: 0 | N150: 0 | O150: 0 | P150: 0 | Q150: 0 | R150: 0 | S150: 0 | T150: 0 | U150: 0 | V150: 0 | W150: 0 | X150: 0 | Y150: 0 | Z150: -0.6838479761 | AN150: 0.3800196433 | BZ150: -0.2598756639
